Workbook

Sheet Riskk (hidden)
A1: LSL | B1: UPSW | H1: =COUNT(H3:H26) -> 0 | I1: FALSE
A2: LSL | B2: Userid | H2: Main/sub | I2: Caption | J2: On Action | K2: NewGroup
A3: 3 | B3: UserLevel
A4: 2010-09-09T15:20:33 | B4: LoginTime
B5: LogoutTime
A6: MYR | B6: Global Ccy

Sheet Login
C10: Compliance Report
K24: Press To Enter

Sheet InPL (hidden)
A1: sType | B1: qFundCode | C1: ShortGL | D1: qAssetAccType | E1: Amount
A2: Mth | B2: HFT | C2: 200100 | D2: 0 | E2: -0.02
A3: Mth | B3: HFT | C3: 500000 | D3: 0 | E3: 1264920.49
A4: Mth | B4: HFT | C4: 710102 | D4: 0 | E4: 129
A5: Mth | B5: HFT | C5: 800000 | D5: 0 | E5: -377438368.6
A6: Mth | B6: HFT | C6: 830000 | D6: 0 | E6: -43729749.14
A7: Mth | B7: HFT | C7: 100000 | D7: 210 | E7: 83000000
A8: Mth | B8: HFT | C8: 139000 | D8: 210 | E8: 15698.64
A9: Mth | B9: HFT | C9: 630000 | D9: 210 | E9: -119216.41
A10: Mth | B10: HFT | C10: 639000 | D10: 210 | E10: -15698.64
A11: Mth | B11: HFT | C11: 830000 | D11: 210 | E11: -1950227.82
A12: Mth | B12: HFT | C12: 939000 | D12: 210 | E12: 12684.93
A13: Mth | B13: HFT | C13: 100000 | D13: 220 | E13: 365000000
A14: Mth | B14: HFT | C14: 139000 | D14: 220 | E14: 4223349.31
A15: Mth | B15: HFT | C15: 630000 | D15: 220 | E15: -1900763.03
A16: Mth | B16: HFT | C16: 639000 | D16: 220 | E16: -4223349.31
A17: Mth | B17: HFT | C17: 830000 | D17: 220 | E17: -28637069.62
A18: Mth | B18: HFT | C18: 939000 | D18: 220 | E18: 4497660.26
A19: Mth | B19: HWANG | C19: 800000 | D19: 0 | E19: 31065329.06
A20: Mth | B20: HWANG | C20: 830000 | D20: 0 | E20: -31039929.86
A21: Mth | B21: HWANG | C21: 299000 | D21: 10 | E21: -25399.2
A22: Mth | B22: SHF | C22: 800000 | D22: 0 | E22: -8550572.61
A23: Mth | B23: SHF | C23: 830000 | D23: 0 | E23: -1451751.05
A24: Mth | B24: SHF | C24: 100000 | D24: 220 | E24: 10871414.5
A25: Mth | B25: SHF | C25: 139000 | D25: 220 | E25: 170997.78
A26: Mth | B26: SHF | C26: 639000 | D26: 220 | E26: -170997.78
A27: Mth | B27: SHF | C27: 830000 | D27: 220 | E27: -1000094.42
A28: Mth | B28: SHF | C28: 939000 | D28: 220 | E28: 131003.58
A29: Mth | B29: TMLAFS | C29: 800000 | D29: 0 | E29: 224904.18
A30: Mth | B30: TMLAFS | C30: 830000 | D30: 0 | E30: -224904.18
A31: Mth | B31: TMLHFT | C31: 800000 | D31: 0 | E31: 7086950.41
A32: Mth | B32: TMLHFT | C32: 830000 | D32: 0 | E32: -7086950.41
A33: Mth | B33: TMUT | C33: 640001 | D33: 0 | E33: -10863.63
A34: Mth | B34: TMUT | C34: 800000 | D34: 0 | E34: -1249625377
A35: Mth | B35: TMUT | C35: 830000 | D35: 0 | E35: -218108903.6
A36: Mth | B36: TMUT | C36: 299000 | D36: 430 | E36: -1853494.74
A37: Mth | B37: TMUT | C37: 300000 | D37: 430 | E37: 80001973.29
A38: Mth | B38: TMUT | C38: 830000 | D38: 430 | E38: -19507888.54
A39: Mth | B39: TMUT | C39: 100000 | D39: 440 | E39: 946896197.1
A40: Mth | B40: TMUT | C40: 189000 | D40: 440 | E40: 7902127.39
A41: Mth | B41: TMUT | C41: 299000 | D41: 440 | E41: 933363.63
A42: Mth | B42: TMUT | C42: 600000 | D42: 440 | E42: -2019196.69
A43: Mth | B43: TMUT | C43: 636000 | D43: 440 | E43: -4191669.5
A44: Mth | B44: TMUT | C44: 689000 | D44: 440 | E44: -7902127.39
A45: Mth | B45: TMUT | C45: 810000 | D45: 440 | E45: -9835308.6
A46: Mth | B46: TMUT | C46: 830000 | D46: 440 | E46: -100209677.3
A47: Mth | B47: TMUT | C47: 989000 | D47: 440 | E47: 9835308.6
A48: Mth | B48: TMUT | C48: 100000 | D48: 450 | E48: 730025305
A49: Mth | B49: TMUT | C49: 189000 | D49: 450 | E49: 8595809.94
A50: Mth | B50: TMUT | C50: 299000 | D50: 450 | E50: 920131.11
A51: Mth | B51: TMUT | C51: 300000 | D51: 450 | E51: -80001973.29
A52: Mth | B52: TMUT | C52: 600000 | D52: 450 | E52: -21907
A53: Mth | B53: TMUT | C53: 636000 | D53: 450 | E53: -4320029.88
A54: Mth | B54: TMUT | C54: 689000 | D54: 450 | E54: -8595809.94
A55: Mth | B55: TMUT | C55: 810000 | D55: 450 | E55: -12151550.36
A56: Mth | B56: TMUT | C56: 830000 | D56: 450 | E56: -78905989.06
A57: Mth | B57: TMUT | C57: 989000 | D57: 450 | E57: 12151550.36
A58: Mth | B58: HFT | C58: 200100 | D58: 0 | E58: 0.02
A59: Mth | B59: HFT | C59: 500000 | D59: 0 | E59: -1217068.27
A60: Mth | B60: HFT | C60: 710102 | D60: 0 | E60: -79
A61: Mth | B61: HFT | C61: 800000 | D61: 0 | E61: 375098095.2
A62: Mth | B62: HFT | C62: 830000 | D62: 0 | E62: 43729749.14
A63: Mth | B63: HFT | C63: 100000 | D63: 210 | E63: -39000000
A64: Mth | B64: HFT | C64: 139000 | D64: 210 | E64: -13273.98
A65: Mth | B65: HFT | C65: 630000 | D65: 210 | E65: 71928.75
A66: Mth | B66: HFT | C66: 639000 | D66: 210 | E66: 13273.98
A67: Mth | B67: HFT | C67: 830000 | D67: 210 | E67: 1950227.82
A68: Mth | B68: HFT | C68: 939000 | D68: 210 | E68: -12684.93
A69: Mth | B69: HFT | C69: 100000 | D69: 220 | E69: -406000000
A70: Mth | B70: HFT | C70: 139000 | D70: 220 | E70: -4157886.28
A71: Mth | B71: HFT | C71: 630000 | D71: 220 | E71: 1240421.94
A72: Mth | B72: HFT | C72: 639000 | D72: 220 | E72: 4157886.28
A73: Mth | B73: HFT | C73: 830000 | D73: 220 | E73: 28637069.62
A74: Mth | B74: HFT | C74: 939000 | D74: 220 | E74: -4497660.26
A75: Mth | B75: HWANG | C75: 800000 | D75: 0 | E75: -31065329.06
A76: Mth | B76: HWANG | C76: 830000 | D76: 0 | E76: 31039929.86
A77: Mth | B77: HWANG | C77: 299000 | D77: 10 | E77: 25399.2
A78: Mth | B78: SHF | C78: 800000 | D78: 0 | E78: 8550572.61
A79: Mth | B79: SHF | C79: 830000 | D79: 0 | E79: 1451751.05
A80: Mth | B80: SHF | C80: 100000 | D80: 220 | E80: -10871414.5
A81: Mth | B81: SHF | C81: 139000 | D81: 220 | E81: -152017.49
A82: Mth | B82: SHF | C82: 639000 | D82: 220 | E82: 152017.49
A83: Mth | B83: SHF | C83: 830000 | D83: 220 | E83: 1000094.42
A84: Mth | B84: SHF | C84: 939000 | D84: 220 | E84: -131003.58
A85: Mth | B85: TMLAFS | C85: 800000 | D85: 0 | E85: -224904.18
A86: Mth | B86: TMLAFS | C86: 830000 | D86: 0 | E86: 224904.18
A87: Mth | B87: TMLHFT | C87: 800000 | D87: 0 | E87: -7086950.41
A88: Mth | B88: TMLHFT | C88: 830000 | D88: 0 | E88: 7086950.41
A89: Mth | B89: TMUT | C89: 640001 | D89: 0 | E89: 7653.54
A90: Mth | B90: TMUT | C90: 800000 | D90: 0 | E90: 1253965650
A91: Mth | B91: TMUT | C91: 830000 | D91: 0 | E91: 218108903.6
A92: Mth | B92: TMUT | C92: 299000 | D92: 430 | E92: 1853494.74
A93: Mth | B93: TMUT | C93: 300000 | D93: 430 | E93: -80001973.29
A94: Mth | B94: TMUT | C94: 830000 | D94: 430 | E94: 19507888.54
A95: Mth | B95: TMUT | C95: 100000 | D95: 440 | E95: -946896197.1
A96: Mth | B96: TMUT | C96: 189000 | D96: 440 | E96: -7026064.44
A97: Mth | B97: TMUT | C97: 299000 | D97: 440 | E97: -933363.63
A98: Mth | B98: TMUT | C98: 600000 | D98: 440 | E98: 2019196.69
A99: Mth | B99: TMUT | C99: 636000 | D99: 440 | E99: 2125353.55
A100: Mth | B100: TMUT | C100: 689000 | D100: 440 | E100: 7026064.44
A101: Mth | B101: TMUT | C101: 810000 | D101: 440 | E101: 9835308.6
A102: Mth | B102: TMUT | C102: 830000 | D102: 440 | E102: 100209677.3
A103: Mth | B103: TMUT | C103: 989000 | D103: 440 | E103: -9835308.6
A104: Mth | B104: TMUT | C104: 100000 | D104: 450 | E104: -730025305
A105: Mth | B105: TMUT | C105: 189000 | D105: 450 | E105: -9504158.6
A106: Mth | B106: TMUT | C106: 299000 | D106: 450 | E106: -920131.11
A107: Mth | B107: TMUT | C107: 300000 | D107: 450 | E107: 80001973.29
A108: Mth | B108: TMUT | C108: 600000 | D108: 450 | E108: 21907
A109: Mth | B109: TMUT | C109: 636000 | D109: 450 | E109: 2049282.45
A110: Mth | B110: TMUT | C110: 689000 | D110: 450 | E110: 9504158.6
A111: Mth | B111: TMUT | C111: 810000 | D111: 450 | E111: 12151550.36
A112: Mth | B112: TMUT | C112: 830000 | D112: 450 | E112: 78905989.06
A113: Mth | B113: TMUT | C113: 989000 | D113: 450 | E113: -12151550.36
A114: YTD | B114: HFT | C114: 200100 | D114: 0 | E114: -0.02
A115: YTD | B115: HFT | C115: 500000 | D115: 0 | E115: 1264920.49
A116: YTD | B116: HFT | C116: 710102 | D116: 0 | E116: 129
A117: YTD | B117: HFT | C117: 800000 | D117: 0 | E117: -377438368.6
A118: YTD | B118: HFT | C118: 830000 | D118: 0 | E118: -43729749.14
A119: YTD | B119: HFT | C119: 100000 | D119: 210 | E119: 83000000
A120: YTD | B120: HFT | C120: 139000 | D120: 210 | E120: 15698.64
A121: YTD | B121: HFT | C121: 630000 | D121: 210 | E121: -119216.41
A122: YTD | B122: HFT | C122: 639000 | D122: 210 | E122: -15698.64
A123: YTD | B123: HFT | C123: 830000 | D123: 210 | E123: -1950227.82
A124: YTD | B124: HFT | C124: 939000 | D124: 210 | E124: 12684.93
A125: YTD | B125: HFT | C125: 100000 | D125: 220 | E125: 365000000
A126: YTD | B126: HFT | C126: 139000 | D126: 220 | E126: 4223349.31
A127: YTD | B127: HFT | C127: 630000 | D127: 220 | E127: -1900763.03
A128: YTD | B128: HFT | C128: 639000 | D128: 220 | E128: -4223349.31
A129: YTD | B129: HFT | C129: 830000 | D129: 220 | E129: -28637069.62
A130: YTD | B130: HFT | C130: 939000 | D130: 220 | E130: 4497660.26
A131: YTD | B131: HWANG | C131: 800000 | D131: 0 | E131: 31065329.06
A132: YTD | B132: HWANG | C132: 830000 | D132: 0 | E132: -31039929.86
A133: YTD | B133: HWANG | C133: 299000 | D133: 10 | E133: -25399.2
A134: YTD | B134: SHF | C134: 800000 | D134: 0 | E134: -8550572.61
A135: YTD | B135: SHF | C135: 830000 | D135: 0 | E135: -1451751.05
A136: YTD | B136: SHF | C136: 100000 | D136: 220 | E136: 10871414.5
A137: YTD | B137: SHF | C137: 139000 | D137: 220 | E137: 170997.78
A138: YTD | B138: SHF | C138: 639000 | D138: 220 | E138: -170997.78
A139: YTD | B139: SHF | C139: 830000 | D139: 220 | E139: -1000094.42
A140: YTD | B140: SHF | C140: 939000 | D140: 220 | E140: 131003.58
A141: YTD | B141: TMLAFS | C141: 800000 | D141: 0 | E141: 224904.18
A142: YTD | B142: TMLAFS | C142: 830000 | D142: 0 | E142: -224904.18
A143: YTD | B143: TMLHFT | C143: 800000 | D143: 0 | E143: 7086950.41
A144: YTD | B144: TMLHFT | C144: 830000 | D144: 0 | E144: -7086950.41
A145: YTD | B145: TMUT | C145: 640001 | D145: 0 | E145: -10863.63
A146: YTD | B146: TMUT | C146: 800000 | D146: 0 | E146: -1249625377
A147: YTD | B147: TMUT | C147: 830000 | D147: 0 | E147: -218108903.6
A148: YTD | B148: TMUT | C148: 299000 | D148: 430 | E148: -1853494.74
A149: YTD | B149: TMUT | C149: 300000 | D149: 430 | E149: 80001973.29
A150: YTD | B150: TMUT | C150: 830000 | D150: 430 | E150: -19507888.54
A151: YTD | B151: TMUT | C151: 100000 | D151: 440 | E151: 946896197.1
A152: YTD | B152: TMUT | C152: 189000 | D152: 440 | E152: 7902127.39
A153: YTD | B153: TMUT | C153: 299000 | D153: 440 | E153: 933363.63
A154: YTD | B154: TMUT | C154: 600000 | D154: 440 | E154: -2019196.69
A155: YTD | B155: TMUT | C155: 636000 | D155: 440 | E155: -4191669.5
A156: YTD | B156: TMUT | C156: 689000 | D156: 440 | E156: -7902127.39
A157: YTD | B157: TMUT | C157: 810000 | D157: 440 | E157: -9835308.6
A158: YTD | B158: TMUT | C158: 830000 | D158: 440 | E158: -100209677.3
A159: YTD | B159: TMUT | C159: 989000 | D159: 440 | E159: 9835308.6
A160: YTD | B160: TMUT | C160: 100000 | D160: 450 | E160: 730025305
A161: YTD | B161: TMUT | C161: 189000 | D161: 450 | E161: 8595809.94
A162: YTD | B162: TMUT | C162: 299000 | D162: 450 | E162: 920131.11
A163: YTD | B163: TMUT | C163: 300000 | D163: 450 | E163: -80001973.29
A164: YTD | B164: TMUT | C164: 600000 | D164: 450 | E164: -21907
A165: YTD | B165: TMUT | C165: 636000 | D165: 450 | E165: -4320029.88
A166: YTD | B166: TMUT | C166: 689000 | D166: 450 | E166: -8595809.94
A167: YTD | B167: TMUT | C167: 810000 | D167: 450 | E167: -12151550.36
A168: YTD | B168: TMUT | C168: 830000 | D168: 450 | E168: -78905989.06
A169: YTD | B169: TMUT | C169: 989000 | D169: 450 | E169: 12151550.36

Sheet Main (hidden)
A3: Compliance Report
B7: Report Date | C7: 2022-02-28 | I7: Sheet | J7: Export
B8: Total Book Value | C8: 2639532366 | I8: FI_TMIM | J8: YES
B9: Total Market Value | C9: 2639532366 | I9: NoFI_TMIM | J9: YES
I10: FI_BNM | J10: YES
I11: NoFI_LBNM | J11: YES
I12: NoFI_NLBNM | J12: YES
I13: NoFI_NLBNM_X | J13: YES
I14: MainMarket | J14: YES
I15: Asset | J15: YES
I16: InvestRisk | J16: YES
I17: newInvestRisk | J17: YES
V18: =SUM(SUMIFS(InMstHst!J:J,InMstHst!AK:AK,"FI",InMstHst!AG:AG,"BND")) -> 108571550
U25: =SUM(SUMIFS(InMstHst!J:J,InMstHst!AK:AK,"FI",InMstHst!AG:AG,"BND")) -> 108571550
T28: =IF(N9="X",0,0.05) -> 0.05

Sheet FI_TMIM (hidden)
A1: TOKIO MARINE INSURANS (MALAYSIA) BERHAD. (Company No. 149520-U) | R1: Total Asset | S1: =TotalMV -> 2639532366
A3: EXPOSURE TO FINANCIAL INSTITUTIONS (DEPOSITS & BONDS)-PER TMIM INVESTMENT GUIDELINES | R3: Attribute | S3: (Multiple Items)
I4: To Be Key In | J4: To Be Key In | R4: qAssetClass | S4: (Multiple Items)
R5: CashMaturity | S5: (Multiple Items)
A6: Name of Institution | B6: CPCode | C6: Rating | D6: QFI/AMB | E6: TMIM | F6: TMIM | G6: Deposit | H6: Money Market | I6: Fund Manager's | J6: Current | K6: Total | L6: Total | M6: Indicator
E7: Limit % | F7: Limit | H7: Instruments (MMI) | I7: Deposit | J7: Account | M7: Within Limit | S7: Data
R8: Issuer | S8: Sum of Deposits | T8: Sum of MoneyMarket | U8: Sum of Bond | V8: Sum of UTBond | W8: Sum of UTDeposit | X8: Sum of MarketValueFC
A9: Commercial + Islamic bank + Investment bank | R9: Bangkok Bank | S9: 62000000 | X9: 62000000
A10: Affin Bank Berhad | C10: AA3 | E10: 5 | F10: =TotalMV*(E10/100) -> 131976618.3 | G10: =SUMIFS(InMstHst!AB:AB,InMstHst!AS:AS,FI_TMIM!B10,InMstHst!AK:AK,"FI",InMstHst!AP:AP,0) -> 0 | H10: =SUMIFS(InMstHst!AC:AC,InMstHst!AS:AS,FI_TMIM!B10,InMstHst!AK:AK,"FI",InMstHst!AP:AP,0) -> 0 | I10: 0 | K10: =G10+H10+I10+J10 -> 0 | R10: Mizuho Bank (Malaysia) Bhd | S10: 15000000 | X10: 15000000
A11: Affin Islamic Bank Berhad | C11: - | E11: 5 | F11: 131976618.3 | G11: =SUMIFS(InMstHst!AB:AB,InMstHst!AS:AS,FI_TMIM!B11,InMstHst!AK:AK,"FI",InMstHst!AP:AP,0) -> 0 | H11: =SUMIFS(InMstHst!AC:AC,InMstHst!AS:AS,FI_TMIM!B11,InMstHst!AK:AK,"FI",InMstHst!AP:AP,0) -> 0 | I11: 0 | K11: =G11+H11+I11+J11 -> 0 | R11: Sumitomo Mitsui Banking Corporation Malaysia Bhd | S11: 41000000 | X11: 41000000
A12: Affin Hwang Investment Bank Berhad | B12: HWANG | C12: AA3 | D12: AMB | E12: 5 | F12: 131976618.3 | G12: =SUMIFS(InMstHst!AB:AB,InMstHst!AS:AS,FI_TMIM!B12,InMstHst!AK:AK,"FI",InMstHst!AP:AP,0) -> 0 | H12: =SUMIFS(InMstHst!AC:AC,InMstHst!AS:AS,FI_TMIM!B12,InMstHst!AK:AK,"FI",InMstHst!AP:AP,0) -> 0 | I12: 0 | K12: 0 | L12: =SUM(K10:K12) -> 0 | M12: =IF(L12=0,"-",IF(L12<F12,"YES","NO")) -> - | R12: Public Bank Berhad | S12: 105000000 | U12: 0 | V12: 25287500 | X12: 130287500
A13: Alliance Bank Malaysia Berhad | C13: A1 | E13: 5 | F13: 131976618.3 | G13: =SUMIFS(InMstHst!AB:AB,InMstHst!AS:AS,FI_TMIM!B13,InMstHst!AK:AK,"FI",InMstHst!AP:AP,0) -> 0 | H13: =SUMIFS(InMstHst!AC:AC,InMstHst!AS:AS,FI_TMIM!B13,InMstHst!AK:AK,"FI",InMstHst!AP:AP,0) -> 0 | I13: 31165741.05 | J13: 1032812.1 | K13: 32198553.15 | R13: Malayan Banking Berhad | U13: 0 | V13: 17663400 | X13: 17663400
A14: Alliance Islamic Bank Berhad | C14: - | E14: 5 | F14: 131976618.3 | G14: =SUMIFS(InMstHst!AB:AB,InMstHst!AS:AS,FI_TMIM!B14,InMstHst!AK:AK,"FI",InMstHst!AP:AP,0) -> 0 | H14: =SUMIFS(InMstHst!AC:AC,InMstHst!AS:AS,FI_TMIM!B14,InMstHst!AK:AK,"FI",InMstHst!AP:AP,0) -> 0 | I14: 0 | J14: 0 | K14: 0 | R14: CIMB Bank Berhad | U14: 0 | V14: 5209950 | X14: 5209950
A15: Alliance Investment Bank Berhad | C15: - | D15: AMB | E15: 5 | F15: 131976618.3 | G15: =SUMIFS(InMstHst!AB:AB,InMstHst!AS:AS,FI_TMIM!B15,InMstHst!AK:AK,"FI",InMstHst!AP:AP,0) -> 0 | H15: =SUMIFS(InMstHst!AC:AC,InMstHst!AS:AS,FI_TMIM!B15,InMstHst!AK:AK,"FI",InMstHst!AP:AP,0) -> 0 | I15: 0 | J15: 0 | K15: 0 | L15: =SUM(K13:K15) -> 32198553.15 | M15: =IF(L15=0,"-",IF(L15<F15,"YES","NO")) -> YES | R15: RHB Investment Bank Berhad | U15: 0 | V15: 20246800 | X15: 20246800
A16: AmBank (M) Berhad | B16: AMBB | C16: AA2 | E16: 15 | F16: 395929855 | G16: =SUMIFS(InMstHst!AB:AB,InMstHst!AS:AS,FI_TMIM!B16,InMstHst!AK:AK,"FI",InMstHst!AP:AP,0) -> 0 | H16: =SUMIFS(InMstHst!AC:AC,InMstHst!AS:AS,FI_TMIM!B16,InMstHst!AK:AK,"FI",InMstHst!AP:AP,0) -> 0 | I16: 0 | J16: 292117.66 | K16: 292117.66 | R16: RHB Bank Berhad | S16: 152871414.5 | T16: 83000000 | U16: 0 | V16: 9833800 | X16: 245705214.5
A17: AmIslamic Bank Berhad | C17: AA2 | E17: 15 | F17: 395929855 | G17: =SUMIFS(InMstHst!AB:AB,InMstHst!AS:AS,FI_TMIM!B17,InMstHst!AK:AK,"FI",InMstHst!AP:AP,0) -> 0 | H17: =SUMIFS(InMstHst!AC:AC,InMstHst!AS:AS,FI_TMIM!B17,InMstHst!AK:AK,"FI",InMstHst!AP:AP,0) -> 0 | I17: 0 | J17: 0 | K17: 0 | R17: RHB Islamic Bank Berhad | U17: 0 | V17: 10192000 | X17: 10192000
A18: AmInvestment Bank Berhad | C18: AA2 | D18: QFI | E18: 15 | F18: 395929855 | G18: =SUMIFS(InMstHst!AB:AB,InMstHst!AS:AS,FI_TMIM!B18,InMstHst!AK:AK,"FI",InMstHst!AP:AP,0) -> 0 | H18: =SUMIFS(InMstHst!AC:AC,InMstHst!AS:AS,FI_TMIM!B18,InMstHst!AK:AK,"FI",InMstHst!AP:AP,0) -> 0 | I18: 0 | J18: 0 | K18: 0 | L18: =SUM(K16:K18) -> 292117.66 | M18: =IF(L18=0,"-",IF(L18<F16,"YES","NO")) -> YES | R18: Public Islamic Bank Berhad | U18: 0 | V18: 15174450 | X18: 15174450
A19: CIMB Bank Berhad | B19: CIMBB | C19: AAA | E19: 15 | F19: 395929855 | G19: =SUMIFS(InMstHst!AB:AB,InMstHst!AS:AS,FI_TMIM!B19,InMstHst!AK:AK,"FI",InMstHst!AP:AP,0) -> 0 | H19: =SUMIFS(InMstHst!AC:AC,InMstHst!AS:AS,FI_TMIM!B19,InMstHst!AK:AK,"FI",InMstHst!AP:AP,0) -> 0 | I19: 0 | J19: 3088027 | K19: 3088027 | R19: BANK SIMPANAN NASIONAL BERHAD | U19: 0 | V19: 4963650 | X19: 4963650
A20: CIMB Islamic Bank Berhad | C20: AAA | E20: 15 | F20: 395929855 | G20: =SUMIFS(InMstHst!AB:AB,InMstHst!AS:AS,FI_TMIM!B20,InMstHst!AK:AK,"FI",InMstHst!AP:AP,0) -> 0 | H20: =SUMIFS(InMstHst!AC:AC,InMstHst!AS:AS,FI_TMIM!B20,InMstHst!AK:AK,"FI",InMstHst!AP:AP,0) -> 0 | I20: 0 | J20: 0 | K20: 0 | R20: Grand Total | S20: 375871414.5 | T20: 83000000 | U20: 0 | V20: 108571550 | X20: 567442964.5
A21: CIMB Investment Bank Berhad | C21: AAA | D21: QFI | E21: 15 | F21: 395929855 | G21: =SUMIFS(InMstHst!AB:AB,InMstHst!AS:AS,FI_TMIM!B21,InMstHst!AK:AK,"FI",InMstHst!AP:AP,0) -> 0 | H21: =SUMIFS(InMstHst!AC:AC,InMstHst!AS:AS,FI_TMIM!B21,InMstHst!AK:AK,"FI",InMstHst!AP:AP,0) -> 0 | I21: 0 | J21: 0 | K21: 0 | L21: =SUM(K19:K21) -> 3088027 | M21: =IF(L21=0,"-",IF(L21<F19,"YES","NO")) -> YES
A22: HSBC Bank Malaysia Berhad | C22: AAA | E22: 15 | F22: 395929855 | G22: =SUMIFS(InMstHst!AB:AB,InMstHst!AS:AS,FI_TMIM!B22,InMstHst!AK:AK,"FI",InMstHst!AP:AP,0) -> 0 | H22: =SUMIFS(InMstHst!AC:AC,InMstHst!AS:AS,FI_TMIM!B22,InMstHst!AK:AK,"FI",InMstHst!AP:AP,0) -> 0 | I22: 0 | J22: 54509.35 | K22: 54509.35
A23: HSBC Amanah Malaysia Berhad | C23: AAA | D23: QFI | E23: 15 | F23: 395929855 | G23: =SUMIFS(InMstHst!AB:AB,InMstHst!AS:AS,FI_TMIM!B23,InMstHst!AK:AK,"FI",InMstHst!AP:AP,0) -> 0 | H23: =SUMIFS(InMstHst!AC:AC,InMstHst!AS:AS,FI_TMIM!B23,InMstHst!AK:AK,"FI",InMstHst!AP:AP,0) -> 0 | I23: 0 | J23: 0 | K23: 0 | L23: =SUM(K22:K23) -> 54509.35 | M23: =IF(L23=0,"-",IF(L23<F22,"YES","NO")) -> YES
A24: Hong Leong Bank Berhad | B24: HLB | C24: AA1 | E24: 15 | F24: 395929855 | G24: =SUMIFS(InMstHst!AB:AB,InMstHst!AS:AS,FI_TMIM!B24,InMstHst!AK:AK,"FI",InMstHst!AP:AP,0) -> 0 | H24: =SUMIFS(InMstHst!AC:AC,InMstHst!AS:AS,FI_TMIM!B24,InMstHst!AK:AK,"FI",InMstHst!AP:AP,0) -> 0 | I24: 0 | J24: 533027.15 | K24: 533027.15
A25: Hong Leong Islamic Bank Berhad | C25: AA1 | E25: 15 | F25: 395929855 | G25: =SUMIFS(InMstHst!AB:AB,InMstHst!AS:AS,FI_TMIM!B25,InMstHst!AK:AK,"FI",InMstHst!AP:AP,0) -> 0 | H25: =SUMIFS(InMstHst!AC:AC,InMstHst!AS:AS,FI_TMIM!B25,InMstHst!AK:AK,"FI",InMstHst!AP:AP,0) -> 0 | I25: 0 | J25: 0 | K25: 0
A26: Hong Leong Investment Bank Berhad | C26: - | D26: QFI | E26: 5 | F26: 131976618.3 | G26: =SUMIFS(InMstHst!AB:AB,InMstHst!AS:AS,FI_TMIM!B26,InMstHst!AK:AK,"FI",InMstHst!AP:AP,0) -> 0 | H26: =SUMIFS(InMstHst!AC:AC,InMstHst!AS:AS,FI_TMIM!B26,InMstHst!AK:AK,"FI",InMstHst!AP:AP,0) -> 0 | I26: 58586758.34 | J26: 0 | K26: 58586758.34 | L26: =SUM(K24:K26) -> 59119785.49 | M26: =IF(L26=0,"-",IF(L26<F24,"YES","NO")) -> YES
A27: Malayan Banking Berhad | B27: MBB, MBBAG, MBBWG | C27: AAA | E27: 15 | F27: 395929855 | G27: =SUMIFS(InMstHst!AB:AB,InMstHst!AS:AS,"MBB*",InMstHst!AK:AK,"FI",InMstHst!AP:AP,0) -> 0 | H27: =SUMIFS(InMstHst!AC:AC,InMstHst!AS:AS,"MBB*",InMstHst!AK:AK,"FI",InMstHst!AP:AP,0) -> 0 | I27: 0 | J27: 13344198.45 | K27: 13344198.45
A28: Maybank Islamic Berhad | C28: AAA | E28: 15 | F28: 395929855 | G28: =SUMIFS(InMstHst!AB:AB,InMstHst!AS:AS,FI_TMIM!B28,InMstHst!AK:AK,"FI",InMstHst!AP:AP,0) -> 0 | H28: =SUMIFS(InMstHst!AC:AC,InMstHst!AS:AS,FI_TMIM!B28,InMstHst!AK:AK,"FI",InMstHst!AP:AP,0) -> 0 | I28: 0 | J28: 0 | K28: 0
A29: Maybank Investment Bank Berhad | C29: AAA | D29: QFI | E29: 15 | F29: 395929855 | G29: =SUMIFS(InMstHst!AB:AB,InMstHst!AS:AS,FI_TMIM!B29,InMstHst!AK:AK,"FI",InMstHst!AP:AP,0) -> 0 | H29: =SUMIFS(InMstHst!AC:AC,InMstHst!AS:AS,FI_TMIM!B29,InMstHst!AK:AK,"FI",InMstHst!AP:AP,0) -> 0 | I29: 0 | J29: 0 | K29: 0 | L29: =SUM(K27:K29) -> 13344198.45 | M29: =IF(L29=0,"-",IF(L29<F27,"YES","NO")) -> YES
A30: OCBC Bank (Malaysia) Berhad | B30: OCBC | C30: AAA | E30: 15 | F30: 395929855 | G30: =SUMIFS(InMstHst!AB:AB,InMstHst!AS:AS,FI_TMIM!B30,InMstHst!AK:AK,"FI",InMstHst!AP:AP,0) -> 0 | H30: =SUMIFS(InMstHst!AC:AC,InMstHst!AS:AS,FI_TMIM!B30,InMstHst!AK:AK,"FI",InMstHst!AP:AP,0) -> 0 | I30: 0 | J30: 0 | K30: 0
A31: OCBC Al-Amin Bank Berhad | C31: AAA | D31: QFI | E31: 15 | F31: 395929855 | G31: =SUMIFS(InMstHst!AB:AB,InMstHst!AS:AS,FI_TMIM!B31,InMstHst!AK:AK,"FI",InMstHst!AP:AP,0) -> 0 | H31: =SUMIFS(InMstHst!AC:AC,InMstHst!AS:AS,FI_TMIM!B31,InMstHst!AK:AK,"FI",InMstHst!AP:AP,0) -> 0 | I31: 0 | J31: 0 | K31: 0 | L31: =SUM(K30:K31) -> 0 | M31: =IF(L31=0,"-",IF(L31<F30,"YES","NO")) -> -
A32: Public Bank Berhad | B32: PBB | C32: AAA | E32: 15 | F32: 395929855 | G32: =SUMIFS(InMstHst!AB:AB,InMstHst!AS:AS,FI_TMIM!B32,InMstHst!AK:AK,"FI",InMstHst!AP:AP,0) -> 105000000 | H32: =SUMIFS(InMstHst!AC:AC,InMstHst!AS:AS,FI_TMIM!B32,InMstHst!AK:AK,"FI",InMstHst!AP:AP,0) -> 0 | I32: 0 | J32: 5211788.42 | K32: 110211788.4
A33: Public Islamic Bank Berhad | C33: AAA | E33: 15 | F33: 395929855 | G33: =SUMIFS(InMstHst!AB:AB,InMstHst!AS:AS,FI_TMIM!B33,InMstHst!AK:AK,"FI",InMstHst!AP:AP,0) -> 0 | H33: =SUMIFS(InMstHst!AC:AC,InMstHst!AS:AS,FI_TMIM!B33,InMstHst!AK:AK,"FI",InMstHst!AP:AP,0) -> 0 | I33: 0 | J33: 0 | K33: 0
A34: Public Investment Bank Berhad | C34: - | D34: QFI | E34: 5 | F34: 131976618.3 | G34: =SUMIFS(InMstHst!AB:AB,InMstHst!AS:AS,FI_TMIM!B34,InMstHst!AK:AK,"FI",InMstHst!AP:AP,0) -> 0 | H34: =SUMIFS(InMstHst!AC:AC,InMstHst!AS:AS,FI_TMIM!B34,InMstHst!AK:AK,"FI",InMstHst!AP:AP,0) -> 0 | I34: 26429011.24 | J34: 0 | K34: 26429011.24 | L34: =SUM(K32:K34) -> 136640799.7 | M34: =IF(L34=0,"-",IF(L34<F32,"YES","NO")) -> YES
A35: RHB Bank Berhad | B35: RHBBB | C35: AA2 | E35: 15 | F35: 395929855 | G35: =SUMIFS(InMstHst!AB:AB,InMstHst!AS:AS,FI_TMIM!B35,InMstHst!AK:AK,"FI",InMstHst!AP:AP,0) -> 152871414.5 | H35: =SUMIFS(InMstHst!AC:AC,InMstHst!AS:AS,FI_TMIM!B35,InMstHst!AK:AK,"FI",InMstHst!AP:AP,0) -> 83000000 | I35: 0 | J35: 3406988.61 | K35: 239278403.1
A36: RHB Islamic Bank Berhad | C36: AA2 | E36: 15 | F36: 395929855 | G36: =SUMIFS(InMstHst!AB:AB,InMstHst!AS:AS,FI_TMIM!B36,InMstHst!AK:AK,"FI",InMstHst!AP:AP,0) -> 0 | H36: =SUMIFS(InMstHst!AC:AC,InMstHst!AS:AS,FI_TMIM!B36,InMstHst!AK:AK,"FI",InMstHst!AP:AP,0) -> 0 | I36: 0 | J36: 0 | K36: 0
A37: RHB Investment Bank Berhad | C37: AA2 | D37: QFI | E37: 15 | F37: 395929855 | G37: =SUMIFS(InMstHst!AB:AB,InMstHst!AS:AS,FI_TMIM!B37,InMstHst!AK:AK,"FI",InMstHst!AP:AP,0) -> 0 | H37: =SUMIFS(InMstHst!AC:AC,InMstHst!AS:AS,FI_TMIM!B37,InMstHst!AK:AK,"FI",InMstHst!AP:AP,0) -> 0 | I37: 0 | J37: 0 | K37: 0 | L37: =SUM(K35:K37) -> 239278403.1 | M37: =IF(L37=0,"-",IF(L37<F35,"YES","NO")) -> YES
A38: Standard Chartered Bank Malaysia Berhad | C38: AAA | E38: 15 | F38: 395929855 | G38: =SUMIFS(InMstHst!AB:AB,InMstHst!AS:AS,FI_TMIM!B38,InMstHst!AK:AK,"FI",InMstHst!AP:AP,0) -> 0 | H38: =SUMIFS(InMstHst!AC:AC,InMstHst!AS:AS,FI_TMIM!B38,InMstHst!AK:AK,"FI",InMstHst!AP:AP,0) -> 0 | I38: 0 | J38: 800995.21 | K38: 800995.21
A39: Standard Chartered Saadiq Berhad | C39: AAA | D39: QFI | E39: 15 | F39: 395929855 | G39: =SUMIFS(InMstHst!AB:AB,InMstHst!AS:AS,FI_TMIM!B39,InMstHst!AK:AK,"FI",InMstHst!AP:AP,0) -> 0 | H39: =SUMIFS(InMstHst!AC:AC,InMstHst!AS:AS,FI_TMIM!B39,InMstHst!AK:AK,"FI",InMstHst!AP:AP,0) -> 0 | I39: 0 | J39: 0 | K39: 0 | L39: =SUM(K38:K39) -> 800995.21 | M39: =IF(L39=0,"-",IF(L39<F38,"YES","NO")) -> YES
I40: 0 | J40: 0
A41: Commercial Bank | I41: 0 | J41: 0
A42: BNP Paribas Malaysia Berhad | C42: AA2 | D42: QFI | E42: 15 | F42: 395929855 | G42: =SUMIFS(InMstHst!AB:AB,InMstHst!AS:AS,FI_TMIM!B42,InMstHst!AK:AK,"FI",InMstHst!AP:AP,0) -> 0 | H42: =SUMIFS(InMstHst!AC:AC,InMstHst!AS:AS,FI_TMIM!B42,InMstHst!AK:AK,"FI",InMstHst!AP:AP,0) -> 0 | I42: 0 | J42: 0 | K42: 0 | L42: =K42 -> 0 | M42: =IF(L42=0,"-",IF(L42<F42,"YES","NO")) -> -
A43: Bangkok Bank Berhad | B43: BKK | C43: - | D43: AMB | E43: 5 | F43: 131976618.3 | G43: =SUMIFS(InMstHst!AB:AB,InMstHst!AS:AS,FI_TMIM!B43,InMstHst!AK:AK,"FI",InMstHst!AP:AP,0) -> 62000000 | H43: =SUMIFS(InMstHst!AC:AC,InMstHst!AS:AS,FI_TMIM!B43,InMstHst!AK:AK,"FI",InMstHst!AP:AP,0) -> 0 | I43: 0 | J43: 0 | K43: 62000000 | L43: =K43 -> 62000000 | M43: YES
A44: Bank of America Malaysia Berhad | C44: - | D44: AMB | E44: 5 | F44: 131976618.3 | G44: =SUMIFS(InMstHst!AB:AB,InMstHst!AS:AS,FI_TMIM!B44,InMstHst!AK:AK,"FI",InMstHst!AP:AP,0) -> 0 | H44: =SUMIFS(InMstHst!AC:AC,InMstHst!AS:AS,FI_TMIM!B44,InMstHst!AK:AK,"FI",InMstHst!AP:AP,0) -> 0 | I44: 0 | J44: 0 | K44: 0 | L44: 0 | M44: -
A45: Bank of China (Malaysia) Berhad | C45: AA2 | D45: QFI | E45: 15 | F45: 395929855 | G45: =SUMIFS(InMstHst!AB:AB,InMstHst!AS:AS,FI_TMIM!B45,InMstHst!AK:AK,"FI",InMstHst!AP:AP,0) -> 0 | H45: =SUMIFS(InMstHst!AC:AC,InMstHst!AS:AS,FI_TMIM!B45,InMstHst!AK:AK,"FI",InMstHst!AP:AP,0) -> 0 | I45: 0 | J45: 39408.3 | K45: 39408.3 | L45: 39408.3 | M45: YES
A46: Bank of Tokyo-Mitsubishi UFJ (Malaysia) Berhad | B46: BTMUFJ | C46: AA1 | D46: QFI | E46: 15 | F46: 395929855 | G46: =SUMIFS(InMstHst!AB:AB,InMstHst!AS:AS,FI_TMIM!B46,InMstHst!AK:AK,"FI",InMstHst!AP:AP,0) -> 0 | H46: =SUMIFS(InMstHst!AC:AC,InMstHst!AS:AS,FI_TMIM!B46,InMstHst!AK:AK,"FI",InMstHst!AP:AP,0) -> 0 | I46: 0 | J46: 8004436.07 | K46: 8004436.07 | L46: 8004436.07 | M46: YES
A47: Citibank Berhad | C47: AAA | D47: QFI | E47: 15 | F47: 395929855 | G47: =SUMIFS(InMstHst!AB:AB,InMstHst!AS:AS,FI_TMIM!B47,InMstHst!AK:AK,"FI",InMstHst!AP:AP,0) -> 0 | H47: =SUMIFS(InMstHst!AC:AC,InMstHst!AS:AS,FI_TMIM!B47,InMstHst!AK:AK,"FI",InMstHst!AP:AP,0) -> 0 | I47: 0 | J47: 8762995.5 | K47: 8762995.5 | L47: 8762995.5 | M47: YES
A48: Deutsche Bank (Malaysia) Berhad | C48: - | D48: AMB | E48: 5 | F48: 131976618.3 | G48: =SUMIFS(InMstHst!AB:AB,InMstHst!AS:AS,FI_TMIM!B48,InMstHst!AK:AK,"FI",InMstHst!AP:AP,0) -> 0 | H48: =SUMIFS(InMstHst!AC:AC,InMstHst!AS:AS,FI_TMIM!B48,InMstHst!AK:AK,"FI",InMstHst!AP:AP,0) -> 0 | I48: 0 | J48: 0 | K48: 0 | L48: 0 | M48: -
A49: India International Bank (Malaysia) Berhad | C49: - | D49: AMB | E49: 5 | F49: 131976618.3 | G49: =SUMIFS(InMstHst!AB:AB,InMstHst!AS:AS,FI_TMIM!B49,InMstHst!AK:AK,"FI",InMstHst!AP:AP,0) -> 0 | H49: =SUMIFS(InMstHst!AC:AC,InMstHst!AS:AS,FI_TMIM!B49,InMstHst!AK:AK,"FI",InMstHst!AP:AP,0) -> 0 | I49: 0 | J49: 0 | K49: 0 | L49: 0 | M49: -
A50: Industrial and Commercial Bank of China (Malaysia) Berhad | B50: ICBOC | C50: - | D50: AMB | E50: 5 | F50: 131976618.3 | G50: =SUMIFS(InMstHst!AB:AB,InMstHst!AS:AS,FI_TMIM!B50,InMstHst!AK:AK,"FI",InMstHst!AP:AP,0) -> 0 | H50: =SUMIFS(InMstHst!AC:AC,InMstHst!AS:AS,FI_TMIM!B50,InMstHst!AK:AK,"FI",InMstHst!AP:AP,0) -> 0 | I50: 0 | J50: 4828.9 | K50: 4828.9 | L50: 4828.9 | M50: YES
A51: J.P. Morgan Chase Bank Berhad | C51: - | D51: AMB | E51: 5 | F51: 131976618.3 | G51: =SUMIFS(InMstHst!AB:AB,InMstHst!AS:AS,FI_TMIM!B51,InMstHst!AK:AK,"FI",InMstHst!AP:AP,0) -> 0 | H51: =SUMIFS(InMstHst!AC:AC,InMstHst!AS:AS,FI_TMIM!B51,InMstHst!AK:AK,"FI",InMstHst!AP:AP,0) -> 0 | I51: 0 | J51: 0 | K51: 0 | L51: 0 | M51: -
A52: Mizuho Bank (Malaysia) Berhad | B52: MBMB | C52: AAA | D52: na | E52: na | F52: 50000000 | G52: =SUMIFS(InMstHst!AB:AB,InMstHst!AS:AS,FI_TMIM!B52,InMstHst!AK:AK,"FI",InMstHst!AP:AP,0) -> 15000000 | H52: =SUMIFS(InMstHst!AC:AC,InMstHst!AS:AS,FI_TMIM!B52,InMstHst!AK:AK,"FI",InMstHst!AP:AP,0) -> 0 | I52: 0 | J52: 0 | K52: 15000000 | L52: 15000000 | M52: YES
A53: Sumitomo Mitsui Banking Corporation Malaysia Berhad | B53: SMBCMB | C53: - | D53: AMB | E53: 5 | F53: 131976618.3 | G53: =SUMIFS(InMstHst!AB:AB,InMstHst!AS:AS,FI_TMIM!B53,InMstHst!AK:AK,"FI",InMstHst!AP:AP,0) -> 41000000 | H53: =SUMIFS(InMstHst!AC:AC,InMstHst!AS:AS,FI_TMIM!B53,InMstHst!AK:AK,"FI",InMstHst!AP:AP,0) -> 0 | I53: 0 | J53: 0 | K53: 41000000 | L53: 41000000 | M53: YES
A54: The Bank of Nova Scotia Berhad | C54: - | D54: AMB | E54: 5 | F54: 131976618.3 | G54: =SUMIFS(InMstHst!AB:AB,InMstHst!AS:AS,FI_TMIM!B54,InMstHst!AK:AK,"FI",InMstHst!AP:AP,0) -> 0 | H54: =SUMIFS(InMstHst!AC:AC,InMstHst!AS:AS,FI_TMIM!B54,InMstHst!AK:AK,"FI",InMstHst!AP:AP,0) -> 0 | I54: 0 | J54: 0 | K54: 0 | L54: 0 | M54: -
A55: The Royal Bank of Scotland Berhad | C55: - | D55: AMB | E55: 5 | F55: 131976618.3 | G55: =SUMIFS(InMstHst!AB:AB,InMstHst!AS:AS,FI_TMIM!B55,InMstHst!AK:AK,"FI",InMstHst!AP:AP,0) -> 0 | H55: =SUMIFS(InMstHst!AC:AC,InMstHst!AS:AS,FI_TMIM!B55,InMstHst!AK:AK,"FI",InMstHst!AP:AP,0) -> 0 | I55: 0 | J55: 127409.36 | K55: 127409.36 | L55: 127409.36 | M55: YES
A56: United Overseas Bank (Malaysia) Bhd | C56: AAA | D56: QFI | E56: 15 | F56: 395929855 | G56: =SUMIFS(InMstHst!AB:AB,InMstHst!AS:AS,FI_TMIM!B56,InMstHst!AK:AK,"FI",InMstHst!AP:AP,0) -> 0 | H56: =SUMIFS(InMstHst!AC:AC,InMstHst!AS:AS,FI_TMIM!B56,InMstHst!AK:AK,"FI",InMstHst!AP:AP,0) -> 0 | I56: 0 | J56: 0 | K56: 0 | L56: 0 | M56: -
I57: 0 | J57: 0
A58: Investment Bank | I58: 0 | J58: 0
A59: KAF Investment Bank Berhad | C59: - | D59: AMB | E59: 5 | F59: 131976618.3 | G59: =SUMIFS(InMstHst!AB:AB,InMstHst!AS:AS,FI_TMIM!B59,InMstHst!AK:AK,"FI",InMstHst!AP:AP,0) -> 0 | H59: =SUMIFS(InMstHst!AC:AC,InMstHst!AS:AS,FI_TMIM!B59,InMstHst!AK:AK,"FI",InMstHst!AP:AP,0) -> 0 | I59: 0 | J59: 0 | K59: 0 | L59: 0 | M59: =IF(L59=0,"-",IF(L59<F59,"YES","NO")) -> -
A60: Kenanga Investment Bank Berhad | C60: A3 | D60: AMB | E60: 5 | F60: 131976618.3 | G60: =SUMIFS(InMstHst!AB:AB,InMstHst!AS:AS,FI_TMIM!B60,InMstHst!AK:AK,"FI",InMstHst!AP:AP,0) -> 0 | H60: =SUMIFS(InMstHst!AC:AC,InMstHst!AS:AS,FI_TMIM!B60,InMstHst!AK:AK,"FI",InMstHst!AP:AP,0) -> 0 | I60: 0 | J60: 0 | K60: 0 | L60: 0 | M60: =IF(L60=0,"-",IF(L60<F60,"YES","NO")) -> -
A61: MIDF Amanah Investment Bank Berhad | C61: - | D61: AMB | E61: 5 | F61: 131976618.3 | G61: =SUMIFS(InMstHst!AB:AB,InMstHst!AS:AS,FI_TMIM!B61,InMstHst!AK:AK,"FI",InMstHst!AP:AP,0) -> 0 | H61: =SUMIFS(InMstHst!AC:AC,InMstHst!AS:AS,FI_TMIM!B61,InMstHst!AK:AK,"FI",InMstHst!AP:AP,0) -> 0 | I61: 0 | J61: 0 | K61: 0 | L61: 0 | M61: =IF(L61=0,"-",IF(L61<F61,"YES","NO")) -> -
I62: 0 | J62: 0
A63: Islamic Bank | I63: 0 | J63: 0
A64: Al Rajhi Banking & Investment Corporation (Malaysia) Berhad | C64: - | D64: AMB | E64: 5 | F64: 131976618.3 | G64: =SUMIFS(InMstHst!AB:AB,InMstHst!AS:AS,FI_TMIM!B64,InMstHst!AK:AK,"FI",InMstHst!AP:AP,0) -> 0 | H64: =SUMIFS(InMstHst!AC:AC,InMstHst!AS:AS,FI_TMIM!B64,InMstHst!AK:AK,"FI",InMstHst!AP:AP,0) -> 0 | I64: 0 | J64: 0 | K64: 0 | L64: 0 | M64: =IF(L64=0,"-",IF(L64<F64,"YES","NO")) -> -
A65: Asian Finance Bank Berhad | C65: - | D65: AMB | E65: 5 | F65: 131976618.3 | G65: =SUMIFS(InMstHst!AB:AB,InMstHst!AS:AS,FI_TMIM!B65,InMstHst!AK:AK,"FI",InMstHst!AP:AP,0) -> 0 | H65: =SUMIFS(InMstHst!AC:AC,InMstHst!AS:AS,FI_TMIM!B65,InMstHst!AK:AK,"FI",InMstHst!AP:AP,0) -> 0 | I65: 0 | J65: 0 | K65: 0 | L65: 0 | M65: -
A66: Bank Islam Malaysia Berhad | C66: AA3 | D66: AMB | E66: 5 | F66: 131976618.3 | G66: =SUMIFS(InMstHst!AB:AB,InMstHst!AS:AS,FI_TMIM!B66,InMstHst!AK:AK,"FI",InMstHst!AP:AP,0) -> 0 | H66: =SUMIFS(InMstHst!AC:AC,InMstHst!AS:AS,FI_TMIM!B66,InMstHst!AK:AK,"FI",InMstHst!AP:AP,0) -> 0 | I66: 0 | J66: 0 | K66: 0 | L66: 0 | M66: -
A67: Bank Muamalat Malaysia Berhad | C67: A2 | D67: AMB | E67: 5 | F67: 131976618.3 | G67: =SUMIFS(InMstHst!AB:AB,InMstHst!AS:AS,FI_TMIM!B67,InMstHst!AK:AK,"FI",InMstHst!AP:AP,0) -> 0 | H67: =SUMIFS(InMstHst!AC:AC,InMstHst!AS:AS,FI_TMIM!B67,InMstHst!AK:AK,"FI",InMstHst!AP:AP,0) -> 0 | I67: 0 | J67: 0 | K67: 0 | L67: 0 | M67: -
A68: Kuwait Finance House (Malaysia) Berhad | C68: AA+ | D68: QFI | E68: 15 | F68: 395929855 | G68: =SUMIFS(InMstHst!AB:AB,InMstHst!AS:AS,FI_TMIM!B68,InMstHst!AK:AK,"FI",InMstHst!AP:AP,0) -> 0 | H68: =SUMIFS(InMstHst!AC:AC,InMstHst!AS:AS,FI_TMIM!B68,InMstHst!AK:AK,"FI",InMstHst!AP:AP,0) -> 0 | I68: 0 | J68: 0 | K68: 0 | L68: 0 | M68: -
A69: National Bank of Abu Dhabi Malaysia Berhad | C69: - | D69: AMB | E69: 5 | F69: 131976618.3 | G69: =SUMIFS(InMstHst!AB:AB,InMstHst!AS:AS,FI_TMIM!B69,InMstHst!AK:AK,"FI",InMstHst!AP:AP,0) -> 0 | H69: =SUMIFS(InMstHst!AC:AC,InMstHst!AS:AS,FI_TMIM!B69,InMstHst!AK:AK,"FI",InMstHst!AP:AP,0) -> 0 | I69: 0 | J69: 0 | K69: 0 | L69: 0 | M69: -
I70: 0 | J70: 0
A71: Development bank | I71: 0 | J71: 0
A72: Bank Pembangunan Malaysia Berhad | D72: AMB | E72: 5 | F72: 131976618.3 | G72: =SUMIFS(InMstHst!AB:AB,InMstHst!AS:AS,FI_TMIM!B72,InMstHst!AK:AK,"FI",InMstHst!AP:AP,0) -> 0 | H72: =SUMIFS(InMstHst!AC:AC,InMstHst!AS:AS,FI_TMIM!B72,InMstHst!AK:AK,"FI",InMstHst!AP:AP,0) -> 0 | I72: 0 | J72: 0 | K72: 0 | L72: 0 | M72: =IF(L72=0,"-",IF(L72<F72,"YES","NO")) -> -
A73: Bank Perusahaan Kecil & Sederhana Malaysia Berhad (SME Bank) | D73: AMB | E73: 5 | F73: 131976618.3 | G73: =SUMIFS(InMstHst!AB:AB,InMstHst!AS:AS,FI_TMIM!B73,InMstHst!AK:AK,"FI",InMstHst!AP:AP,0) -> 0 | H73: =SUMIFS(InMstHst!AC:AC,InMstHst!AS:AS,FI_TMIM!B73,InMstHst!AK:AK,"FI",InMstHst!AP:AP,0) -> 0 | I73: 0 | J73: 0 | K73: 0 | L73: 0 | M73: -
A74: Export-Import Bank of Malaysia Berhad (EXIM Bank) | D74: AMB | E74: 5 | F74: =TotalMV*(E74/100) -> 131976618.3 | G74: =SUMIFS(InMstHst!AB:AB,InMstHst!AS:AS,FI_TMIM!B74,InMstHst!AK:AK,"FI",InMstHst!AP:AP,0) -> 0 | H74: =SUMIFS(InMstHst!AC:AC,InMstHst!AS:AS,FI_TMIM!B74,InMstHst!AK:AK,"FI",InMstHst!AP:AP,0) -> 0 | I74: 0 | J74: 0 | K74: 0 | L74: 0 | M74: -
A75: Bank Kerjasama Rakyat Malaysia Berhad | D75: AMB | E75: 5 | F75: =TotalMV*(E75/100) -> 131976618.3 | G75: =SUMIFS(InMstHst!AB:AB,InMstHst!AS:AS,FI_TMIM!B75,InMstHst!AK:AK,"FI",InMstHst!AP:AP,0) -> 0 | H75: =SUMIFS(InMstHst!AC:AC,InMstHst!AS:AS,FI_TMIM!B75,InMstHst!AK:AK,"FI",InMstHst!AP:AP,0) -> 0 | I75: 0 | J75: 0 | K75: =G75+H75+I75+J75 -> 0 | L75: 0 | M75: -
A76: Bank Simpanan Nasional | B76: BSNB | D76: AMB | E76: 5 | F76: =TotalMV*(E76/100) -> 131976618.3 | G76: =SUMIFS(InMstHst!AB:AB,InMstHst!AS:AS,FI_TMIM!B76,InMstHst!AK:AK,"FI",InMstHst!AP:AP,0) -> 0 | H76: =SUMIFS(InMstHst!AC:AC,InMstHst!AS:AS,FI_TMIM!B76,InMstHst!AK:AK,"FI",InMstHst!AP:AP,0) -> 0 | I76: 0 | J76: 0 | K76: =G76+H76+I76+J76 -> 0 | L76: 0 | M76: -
A77: Bank Pertanian Malaysia Berhad (Agrobank) | D77: AMB | E77: 5 | F77: =TotalMV*(E77/100) -> 131976618.3 | G77: =SUMIFS(InMstHst!AB:AB,InMstHst!AS:AS,FI_TMIM!B77,InMstHst!AK:AK,"FI",InMstHst!AP:AP,0) -> 0 | H77: =SUMIFS(InMstHst!AC:AC,InMstHst!AS:AS,FI_TMIM!B77,InMstHst!AK:AK,"FI",InMstHst!AP:AP,0) -> 0 | K77: =G77+H77+I77+J77 -> 0 | L77: 0 | M77: -
G78: =SUM(G8:G77) -> 375871414.5 | H78: =SUM(H8:H77) -> 83000000 | I78: =SUM(I8:I77) -> 116181510.6 | J78: =SUM(J8:J77) -> 44703542.08

Sheet NoFI_TMIM (hidden)
A1: TOKIO MARINE INSURANS (MALAYSIA) BERHAD. (Company No. 149520-U) | M1: Total Asset | N1: =TotalMV -> 2639532366
A3: EXPOSURE TO NON FINANCIAL INSTITUTIONS (BONDS)-PER TMIM INVESTMENT GUIDELINES | M3: Attribute | N3: (Multiple Items)
M4: qAssetClass | N4: (Multiple Items)
D5: Total Holding | E5: Actual Exposure | F5: Actual Exposure | G5: Concentration | H5: Indicator | M5: Rating | N5: (Multiple Items) | T5: Asset Class | U5: Actual | V5: Asset Class
A6: Name of Institution | B6: Bonds | C6: Unit Trust | D6: as at | E6: on Total Assets | F6: on Total Assets | G6: Limit | H6: Within Limit | U6: Exposure | V6: Limit
B7: (RM) | C7: (RM) | D7: =TEXT(ReportDate,"dd.mm.yyyy") -> 28.02.2022 | E7: Without Unit Trust | F7: With Unit Trust | N7: Data | T7: Money Market Instruments | U7: =SUM(SUMIFS(InMstHst!J:J,InMstHst!AK:AK,"FI",InMstHst!AG:AG,"CSH",InMstHst!G:G,"R*",InMstHst!AS:AS,0))/TotalAsset -> 0 | V7: 0.1
M8: Issuer | N8: Sum of Bond | O8: Sum of UnitTrust | P8: Sum of MarketValueFC
A9: CIMB Group Holdings Berhad | C9: 36191162 | D9: =B9+C9 -> 36191162 | E9: =((B9)/N1) -> 0 | F9: =((D9)/N1) -> 0.0137112022 | G9: 0.05 | H9: YES | M9: CIMB Group Holdings Berhad | N9: 0 | O9: 36191162 | P9: 36191162 | T9: Non Government Related Bonds | U9: =SUM(SUMIFS(InMstHst!J:J,InMstHst!AN:AN,{"BDCO","BDCP"},InMstHst!AG:AG,"BND"))/TotalAsset -> 0 | V9: 0.25
A10: Hong Leong Financial Group Berhad | C10: 40748400 | D10: 40748400 | E10: =((B10)/N1) -> 0 | F10: =((D10)/N1) -> 0.01543773455 | G10: 0.05 | H10: YES | M10: Hong Leong Financial Group Berhad | N10: 0 | O10: 40748400 | P10: 40748400
A11: IJM Corporation Berhad | C11: 15392050 | D11: 15392050 | E11: =((B11)/N1) -> 0 | F11: =((D11)/N1) -> 0.005831354901 | G11: 0.05 | H11: YES | M11: IJM Corporation Berhad | N11: 0 | O11: 15392050 | P11: 15392050
A12: Westports Holdings Berhad | C12: 5023000 | D12: 5023000 | E12: =((B12)/N1) -> 0 | F12: =((D12)/N1) -> 0.001902988599 | G12: 0.05 | H12: YES | M12: Westports Holdings Berhad | N12: 0 | O12: 5023000 | P12: 5023000
A13: Tenaga Nasional Berhad | C13: 14947800 | D13: 14947800 | E13: =((B13)/N1) -> 0 | F13: =((D13)/N1) -> 0.005663048573 | G13: 0.05 | H13: YES | M13: Tenaga Nasional Berhad | N13: 0 | O13: 14947800 | P13: 14947800
A14: Gamuda Berhad | C14: 7475700 | D14: 7475700 | E14: =((B14)/N1) -> 0 | F14: =((D14)/N1) -> 0.002832206225 | G14: 0.05 | H14: YES | M14: Gamuda Berhad | N14: 0 | O14: 7475700 | P14: 7475700 | T14: Asset Class | U14: Book Value | V14: Market Value | W14: Difference
A15: Sime Darby Berhad | C15: 4850200 | D15: 4850200 | E15: =((B15)/N1) -> 0 | F15: =((D15)/N1) -> 0.001837522457 | G15: 0.05 | H15: YES | M15: Sime Darby Berhad | N15: 0 | O15: 4850200 | P15: 4850200
A16: Telekom Malaysia Berhad | C16: 10272200 | D16: 10272200 | E16: =((B16)/N1) -> 0 | F16: =((D16)/N1) -> 0.003891674196 | G16: 0.05 | H16: YES | M16: Telekom Malaysia Berhad | N16: 0 | O16: 10272200 | P16: 10272200 | T16: Deposits | U16: =SUM(SUMIFS(InMstHst!J:J,InMstHst!AK:AK,"FI",InMstHst!AG:AG,"CSH",InMstHst!G:G,"F*",InMstHst!AS:AS,0)) -> 0 | V16: =SUM(SUMIFS(InMstHst!J:J,InMstHst!AK:AK,"FI",InMstHst!AG:AG,"CSH",InMstHst!G:G,"F*",InMstHst!AS:AS,0)) -> 0 | W16: =V16-U16 -> 0
A17: Small Medium Enterprise Development Bank Malaysia Berhad | C17: 13691580 | D17: 13691580 | E17: =((B17)/N1) -> 0 | F17: =((D17)/N1) -> 0.005187123361 | G17: 0.05 | H17: YES | M17: Small Medium Enterprise Development Bank Malaysia Berhad | N17: 0 | O17: 13691580 | P17: 13691580 | T17: MMI | U17: =SUM(SUMIFS(InMstHst!J:J,InMstHst!AK:AK,"FI",InMstHst!AG:AG,"CSH",InMstHst!G:G,"R*",InMstHst!AS:AS,0)) -> 0 | V17: =SUM(SUMIFS(InMstHst!J:J,InMstHst!AK:AK,"FI",InMstHst!AG:AG,"CSH",InMstHst!G:G,"R*",InMstHst!AS:AS,0)) -> 0 | W17: 0
A18: Pengurusan Air SPV Berhad | C18: 37997475 | D18: 37997475 | E18: =((B18)/N1) -> 0 | F18: =((D18)/N1) -> 0.01439553289 | G18: 0.05 | H18: YES | M18: Pengurusan Air SPV Berhad | N18: 0 | O18: 37997475 | P18: 37997475 | T18: Bonds (FI) | U18: =SUM(SUMIFS(InMstHst!J:J,InMstHst!AK:AK,"FI",InMstHst!AG:AG,"BND")) -> 108571550 | V18: =SUM(SUMIFS(InMstHst!J:J,InMstHst!AK:AK,"FI",InMstHst!AG:AG,"BND")) -> 108571550 | W18: 0
A19: Imtiaz Sukuk II Berhad | C19: 9832200 | D19: 9832200 | E19: =((B19)/N1) -> 0 | F19: =((D19)/N1) -> 0.003724978002 | G19: 0.05 | H19: YES | M19: Imtiaz Sukuk II Berhad | N19: 0 | O19: 9832200 | P19: 9832200 | T19: Bonds (Non FI) | U19: =SUM(SUMIFS(InMstHst!J:J,InMstHst!AK:AK,{"NonFI","NFI"},InMstHst!AG:AG,"BND")) -> 1404993254 | V19: =SUM(SUMIFS(InMstHst!J:J,InMstHst!AK:AK,{"NonFI","NFI"},InMstHst!AG:AG,"BND")) -> 1404993254 | W19: 0
A20: Bumitama Agri Ltd | C20: 10181200 | D20: 10181200 | E20: =((B20)/N1) -> 0 | F20: =((D20)/N1) -> 0.003857198392 | G20: 0.05 | H20: YES | M20: Bumitama Agri Ltd | N20: 0 | O20: 10181200 | P20: 10181200 | T20: Other Assets | U20: =U21-U16-U17-U18-U19 -> 1125967562 | V20: =V21-V16-V17-V18-V19 -> 1125967562 | W20: 0
A21: Sepangar Bay Power Corporation Sdn Berhad | C21: 5285250 | D21: 5285250 | E21: =((B21)/N1) -> 0 | F21: =((D21)/N1) -> 0.002002343319 | G21: 0.05 | H21: YES | M21: Sepangar Bay Power Corporation Sdn Berhad | N21: 0 | O21: 5285250 | P21: 5285250 | U21: =TotalAsset -> 2639532366 | V21: =TotalMV -> 2639532366 | W21: 0
A22: Abu Dhabi National Energy Company PJSC | C22: 5000600 | D22: 5000600 | E22: =((B22)/N1) -> 0 | F22: =((D22)/N1) -> 0.001894502247 | G22: 0.05 | H22: YES | M22: Abu Dhabi National Energy Company PJSC | N22: 0 | O22: 5000600 | P22: 5000600
A23: UEM Sunrise Berhad | C23: 5088750 | D23: 5088750 | E23: =((B23)/N1) -> 0 | F23: =((D23)/N1) -> 0.001927898314 | G23: 0.05 | H23: YES | M23: UEM Sunrise Berhad | N23: 0 | O23: 5088750 | P23: 5088750
A24: Rantau Abang Capital Berhad | C24: 10787200 | D24: 10787200 | E24: =((B24)/N1) -> 0 | F24: =((D24)/N1) -> 0.004086784514 | G24: 0.05 | H24: YES | M24: Rantau Abang Capital Berhad | N24: 0 | O24: 10787200 | P24: 10787200
A25: Projek Lebuhraya Usahasama Berhad | C25: 21247600 | D25: 21247600 | E25: =((B25)/N1) -> 0 | F25: =((D25)/N1) -> 0.008049759219 | G25: 0.05 | H25: YES | M25: Projek Lebuhraya Usahasama Berhad | N25: 0 | O25: 21247600 | P25: 21247600
A26: Bank Pembangunan Malaysia Berhad | C26: 12998875 | D26: 12998875 | E26: =((B26)/N1) -> 0 | F26: =((D26)/N1) -> 0.004924688617 | G26: 0.05 | H26: YES | M26: Bank Pembangunan Malaysia Berhad | N26: 0 | O26: 12998875 | P26: 12998875
A27: Malaysia Airport Holdings Berhad | C27: 25163550 | D27: 25163550 | E27: =((B27)/N1) -> 0 | F27: =((D27)/N1) -> 0.009533336405 | G27: 0.05 | H27: YES | M27: Malaysia Airport Holdings Berhad | N27: 0 | O27: 25163550 | P27: 25163550
A28: BGSM Management Sdn Berhad | C28: 41948100 | D28: 41948100 | E28: =((B28)/N1) -> 0 | F28: =((D28)/N1) -> 0.01589224687 | G28: 0.05 | H28: YES | M28: BGSM Management Sdn Berhad | N28: 0 | O28: 41948100 | P28: 41948100
A29: YTL Power International Berhad | C29: 5092300 | D29: 5092300 | E29: =((B29)/N1) -> 0 | F29: =((D29)/N1) -> 0.00192924325 | G29: 0.05 | H29: YES | M29: YTL Power International Berhad | N29: 0 | O29: 5092300 | P29: 5092300
A30: Konsortium Lebuhraya Utara-Timur (KL) Sdn Berhad | C30: 28123210 | D30: 28123210 | E30: =((B30)/N1) -> 0 | F30: =((D30)/N1) -> 0.01065461836 | G30: 0.05 | H30: YES | M30: Konsortium Lebuhraya Utara-Timur (KL) Sdn Berhad | N30: 0 | O30: 28123210 | P30: 28123210
A31: Benih Restu Berhad | C31: 10344400 | D31: 10344400 | E31: =((B31)/N1) -> 0 | F31: =((D31)/N1) -> 0.003919027526 | G31: 0.05 | H31: YES | M31: Benih Restu Berhad | N31: 0 | O31: 10344400 | P31: 10344400
A32: UniTapah Sdn Berhad | C32: 10863600 | D32: 10863600 | E32: =((B32)/N1) -> 0 | F32: =((D32)/N1) -> 0.004115729035 | G32: 0.05 | H32: YES | M32: UniTapah Sdn Berhad | N32: 0 | O32: 10863600 | P32: 10863600
A33: Quill Retail Malls Sdn Berhad | C33: 5990700 | D33: 5990700 | E33: =((B33)/N1) -> 0 | F33: =((D33)/N1) -> 0.00226960657 | G33: 0.05 | H33: YES | M33: Quill Retail Malls Sdn Berhad | N33: 0 | O33: 5990700 | P33: 5990700
A34: Anih Berhad | C34: 10882000 | D34: 10882000 | E34: =((B34)/N1) -> 0 | F34: =((D34)/N1) -> 0.004122699967 | G34: 0.05 | H34: YES | M34: Anih Berhad | N34: 0 | O34: 10882000 | P34: 10882000
A35: Sabah Credit Corporation | C35: 20034400 | D35: 20034400 | E35: =((B35)/N1) -> 0 | F35: =((D35)/N1) -> 0.007590132349 | G35: 0.05 | H35: YES | M35: Sabah Credit Corporation | N35: 0 | O35: 20034400 | P35: 20034400
A36: Sarawak Energy Berhad | C36: 9492200 | D36: 9492200 | E36: =((B36)/N1) -> 0 | F36: =((D36)/N1) -> 0.003596167306 | G36: 0.05 | H36: YES | M36: Sarawak Energy Berhad | N36: 0 | O36: 9492200 | P36: 9492200
A37: Tanjung Bin O&M Berhad | C37: 2641900 | D37: 2641900 | E37: =((B37)/N1) -> 0 | F37: =((D37)/N1) -> 0.00100089699 | G37: 0.05 | H37: YES | M37: Tanjung Bin O&M Berhad | N37: 0 | O37: 2641900 | P37: 2641900
A38: Press Metal Berhad | C38: 2514525 | D38: 2514525 | E38: =((B38)/N1) -> 0 | F38: =((D38)/N1) -> 0.0009526403358 | G38: 0.05 | H38: YES | M38: Press Metal Berhad | N38: 0 | O38: 2514525 | P38: 2514525
A39: Danga Capital Berhad | C39: 5356150 | D39: 5356150 | E39: =((B39)/N1) -> 0 | F39: =((D39)/N1) -> 0.002029204138 | G39: 0.05 | H39: YES | M39: Danga Capital Berhad | N39: 0 | O39: 5356150 | P39: 5356150
A40: YTL Corporation Berhad | C40: 5044700 | D40: 5044700 | E40: =((B40)/N1) -> 0 | F40: =((D40)/N1) -> 0.001911209752 | G40: 0.05 | H40: YES | M40: YTL Corporation Berhad | N40: 0 | O40: 5044700 | P40: 5044700
A41: MEX II Sdn Berhad | C41: 0 | D41: =B41+C41 -> 0 | E41: =((B41)/N1) -> 0 | F41: =((D41)/N1) -> 0 | G41: 0.05 | H41: YES | M41: MEX II Sdn Berhad | N41: 0 | O41: 0 | P41: 0
A42: Al Dzahab Assets Berhad | C42: 15604550 | D42: 15604550 | E42: =((B42)/N1) -> 0 | F42: =((D42)/N1) -> 0.005911861585 | G42: 0.05 | H42: YES | M42: Al Dzahab Assets Berhad | N42: 0 | O42: 15604550 | P42: 15604550
A43: Kesas Sdn Berhad | C43: 5132150 | D43: 5132150 | E43: =((B43)/N1) -> 0 | F43: =((D43)/N1) -> 0.001944340621 | G43: 0.05 | H43: YES | M43: Kesas Sdn Berhad | N43: 0 | O43: 5132150 | P43: 5132150
A44: Khazanah Nasional Berhad | C44: 10303100 | D44: 10303100 | E44: =((B44)/N1) -> 0 | F44: =((D44)/N1) -> 0.003903380815 | G44: 0.05 | H44: YES | M44: Khazanah Nasional Berhad | N44: 0 | O44: 10303100 | P44: 10303100
A45: EKVE Sdn Berhad | C45: 5340600 | D45: 5340600 | E45: =((B45)/N1) -> 0 | F45: =((D45)/N1) -> 0.002023312943 | G45: 0.05 | H45: YES | M45: EKVE Sdn Berhad | N45: 0 | O45: 5340600 | P45: 5340600
A46: GENM CAPITAL BERHAD | C46: 5101000 | D46: 5101000 | E46: =((B46)/N1) -> 0 | F46: =((D46)/N1) -> 0.001932539288 | G46: 0.05 | H46: YES | M46: GENM CAPITAL BERHAD | N46: 0 | O46: 5101000 | P46: 5101000
A47: Northern Gateway Infrastructure Sdn Berhad | C47: 15995300 | D47: 15995300 | E47: =((B47)/N1) -> 0 | F47: =((D47)/N1) -> 0.006059899171 | G47: 0.05 | H47: YES | M47: Northern Gateway Infrastructure Sdn Berhad | N47: 0 | O47: 15995300 | P47: 15995300
A48: PUJIAN BAYU SDN BERHAD | C48: 5200300 | D48: 5200300 | E48: =((B48)/N1) -> 0 | F48: =((D48)/N1) -> 0.001970159588 | G48: 0.05 | H48: YES | M48: PUJIAN BAYU SDN BERHAD | N48: 0 | O48: 5200300 | P48: 5200300
A49: Sabah Development Bank Berhad | C49: 5161150 | D49: 5161150 | E49: =((B49)/N1) -> 0 | F49: =((D49)/N1) -> 0.001955327415 | G49: 0.05 | H49: YES | M49: Sabah Development Bank Berhad | N49: 0 | O49: 5161150 | P49: 5161150
A50: SPR Energy (M) Sdn Berhad | C50: 13378450 | D50: 13378450 | E50: =((B50)/N1) -> 0 | F50: =((D50)/N1) -> 0.005068492499 | G50: 0.05 | H50: YES | M50: SPR Energy (M) Sdn Berhad | N50: 0 | O50: 13378450 | P50: 13378450
A51: TRIplc Medical Sdn Berhad | C51: 5142800 | D51: 5142800 | E51: =((B51)/N1) -> 0 | F51: =((D51)/N1) -> 0.001948375426 | G51: 0.05 | H51: YES | M51: TRIplc Medical Sdn Berhad | N51: 0 | O51: 5142800 | P51: 5142800
A52: Inverfin Sdn Berhad | C52: 15228750 | D52: 15228750 | E52: =((B52)/N1) -> 0 | F52: =((D52)/N1) -> 0.005769487881 | G52: 0.05 | H52: YES | M52: Inverfin Sdn Berhad | N52: 0 | O52: 15228750 | P52: 15228750
A53: Notable Vision Sdn Berhad | C53: 9785400 | D53: 9785400 | E53: =((B53)/N1) -> 0 | F53: =((D53)/N1) -> 0.003707247588 | G53: 0.05 | H53: YES | M53: Notable Vision Sdn Berhad | N53: 0 | O53: 9785400 | P53: 9785400
A54: GLACIER ASSETS BERHAD | C54: 9980000 | D54: 9980000 | E54: =((B54)/N1) -> 0 | F54: =((D54)/N1) -> 0.003780972769 | G54: 0.05 | H54: YES | M54: GLACIER ASSETS BERHAD | N54: 0 | O54: 9980000 | P54: 9980000
A55: Toyota Capital Malaysia Sdn Berhad | C55: 24969500 | D55: 24969500 | E55: =((B55)/N1) -> 0 | F55: =((D55)/N1) -> 0.009459819594 | G55: 0.05 | H55: YES | M55: Toyota Capital Malaysia Sdn Berhad | N55: 0 | O55: 24969500 | P55: 24969500
A56: GENTING RMTN BERHAD | C56: 4752250 | D56: 4752250 | E56: =((B56)/N1) -> 0 | F56: =((D56)/N1) -> 0.001800413611 | G56: 0.05 | H56: YES | M56: GENTING RMTN BERHAD | N56: 0 | O56: 4752250 | P56: 4752250
A57: DIGI TELECOMMUNICATIONS SDN BHD | C57: 9778200 | D57: 9778200 | E57: =((B57)/N1) -> 0 | F57: =((D57)/N1) -> 0.003704519833 | G57: 0.05 | H57: YES | M57: DIGI TELECOMMUNICATIONS SDN BHD | N57: 0 | O57: 9778200 | P57: 9778200
A58: PENGURUSAN AIR SELANGOR SDN BERHAD | C58: 14511550 | D58: 14511550 | E58: =((B58)/N1) -> 0 | F58: =((D58)/N1) -> 0.005497773085 | G58: 0.05 | H58: YES | M58: PENGURUSAN AIR SELANGOR SDN BERHAD | N58: 0 | O58: 14511550 | P58: 14511550
A59: DANAJAMIN NASIONAL BHD | C59: 5059900 | D59: 5059900 | E59: =((B59)/N1) -> 0 | F59: =((D59)/N1) -> 0.001916968348 | G59: 0.05 | H59: YES | M59: DANAJAMIN NASIONAL BHD | N59: 0 | O59: 5059900 | P59: 5059900
A60: ZAMARAD ASSETS BERHAD | C60: 4966900 | D60: 4966900 | E60: =((B60)/N1) -> 0 | F60: =((D60)/N1) -> 0.001881734834 | G60: 0.05 | H60: YES | M60: ZAMARAD ASSETS BERHAD | N60: 0 | O60: 4966900 | P60: 4966900
A61: BATU KAWAN BHD | C61: 5020300 | D61: 5020300 | E61: =((B61)/N1) -> 0 | F61: =((D61)/N1) -> 0.001901965691 | G61: 0.05 | H61: YES | M61: BATU KAWAN BHD | N61: 0 | O61: 5020300 | P61: 5020300
A62: TOP GLOVE CORPORATION BHD | C62: 7473375 | D62: 7473375 | E62: =((B62)/N1) -> 0 | F62: =((D62)/N1) -> 0.002831325387 | G62: 0.05 | H62: YES | M62: TOP GLOVE CORPORATION BHD | N62: 0 | O62: 7473375 | P62: 7473375
A63: Putrajaya Holdings Sdn Berhad | C63: 10083400 | D63: 10083400 | E63: =((B63)/N1) -> 0 | F63: =((D63)/N1) -> 0.003820146375 | G63: 0.05 | H63: YES | M63: Putrajaya Holdings Sdn Berhad | N63: 0 | O63: 10083400 | P63: 10083400
A64: Aman Sukuk Berhad | C64: 15240600 | D64: 15240600 | E64: =((B64)/N1) -> 0 | F64: =((D64)/N1) -> 0.005773977313 | G64: 0.05 | H64: YES | M64: Aman Sukuk Berhad | N64: 0 | O64: 15240600 | P64: 15240600
A65: Celcom Networks Sdn Berhad | C65: 5316900 | D65: 5316900 | E65: =((B65)/N1) -> 0 | F65: =((D65)/N1) -> 0.00201433408 | G65: 0.05 | H65: YES | M65: Celcom Networks Sdn Berhad | N65: 0 | O65: 5316900 | P65: 5316900
A66: MMC Corporation Berhad | C66: 10795350 | D66: 10795350 | E66: =((B66)/N1) -> 0 | F66: =((D66)/N1) -> 0.004089872182 | G66: 0.05 | H66: YES | M66: MMC Corporation Berhad | N66: 0 | O66: 10795350 | P66: 10795350
A67: SARAWAK POWERR GENERATION SDN BHD | C67: 10579200 | D67: 10579200 | E67: =((B67)/N1) -> 0 | F67: =((D67)/N1) -> 0.004007982677 | G67: 0.05 | H67: YES | M67: SARAWAK POWERR GENERATION SDN BHD | N67: 0 | O67: 10579200 | P67: 10579200
A68: Grand Total | C68: 700403952 | D68: 700403952 | M68: Grand Total | N68: 0 | O68: 700403952 | P68: 700403952
C69: 108571550
C70: 704589302.5
C72: =SUM(C68:C71) -> 1513564804
C73: -1529257654
C74: =SUM(C72:C73) -> -15692850

Sheet FI_BNM (hidden)
A1: TOKIO MARINE INSURANS (MALAYSIA) BERHAD. (Company No. 149520-U) | P1: Total Asset | Q1: =TotalMV -> 2639532366
A3: EXPOSURE TO FINANCIAL INSTITUTIONS (DEPOSITS, BONDS & EQUITIES)-PER BNM GUIDELINES | P3: Attribute | Q3: (Multiple Items)
P4: qAssetClass | Q4: (Multiple Items)
C5: Money Market | F5: Unit Trust | G5: Unit Trust | H5: Total Holding | I5: Actual Exposure | J5: Actual Exposure | K5: Regulatory | L5: Indicator | P5: CashMaturity | Q5: (Multiple Items)
A6: Name of Institution | B6: Deposits | C6: Instruments (MMI) | D6: Bonds | E6: Equities | F6: Bonds | G6: Deposits | H6: as at | I6: on Total Assets | J6: on Total Assets | K6: Limit | L6: Within Limit
B7: (RM) | C7: (RM) | D7: (RM) | E7: (RM) | F7: (RM) | G7: (RM) | H7: =TEXT(ReportDate,"dd.mm.yyyy") -> 28.02.2022 | I7: Without Unit Trust | J7: With Unit Trust | Q7: Data
P8: Issuer | Q8: Sum of Deposits | R8: Sum of MoneyMarket | S8: Sum of Bond | T8: Sum of Equity | U8: Sum of BNMUnitTrust | V8: Sum of UTDeposit | W8: Sum of MarketValueFC
A9: Bangkok Bank | B9: 62000000 | H9: =B9+C9+D9+E9+F9+G9 -> 62000000 | I9: =((H9-F9-G9)/Q1) -> 0.02348900919 | J9: =((H9)/Q1) -> 0.02348900919 | K9: 0.2 | L9: YES | P9: Bangkok Bank | Q9: 62000000 | W9: 62000000
A10: Mizuho Bank (Malaysia) Bhd | B10: 15000000 | H10: 15000000 | I10: =((H10-F10-G10)/Q1) -> 0.005682824803 | J10: =((H10)/Q1) -> 0.005682824803 | K10: 0.2 | L10: YES | P10: Mizuho Bank (Malaysia) Bhd | Q10: 15000000 | W10: 15000000
A11: Sumitomo Mitsui Banking Corporation Malaysia Bhd | B11: 41000000 | H11: 41000000 | I11: =((H11-F11-G11)/Q1) -> 0.01553305446 | J11: =((H11)/Q1) -> 0.01553305446 | K11: 0.2 | L11: YES | P11: Sumitomo Mitsui Banking Corporation Malaysia Bhd | Q11: 41000000 | W11: 41000000
A12: Public Bank Berhad | B12: 105000000 | F12: 25287500 | H12: 130287500 | I12: =((H12-F12-G12)/Q1) -> 0.03977977362 | J12: =((H12)/Q1) -> 0.0493600691 | K12: 0.2 | L12: YES | P12: Public Bank Berhad | Q12: 105000000 | S12: 0 | U12: 25287500 | W12: 130287500
A13: Malayan Banking Berhad | F13: 17663400 | H13: 17663400 | I13: =((H13-F13-G13)/Q1) -> 0 | J13: =((H13)/Q1) -> 0.006691867175 | K13: 0.2 | L13: YES | P13: Malayan Banking Berhad | S13: 0 | U13: 17663400 | W13: 17663400
A14: CIMB Bank Berhad | F14: 5209950 | H14: 5209950 | I14: =((H14-F14-G14)/Q1) -> 0 | J14: =((H14)/Q1) -> 0.001973815539 | K14: 0.2 | L14: YES | P14: CIMB Bank Berhad | S14: 0 | U14: 5209950 | W14: 5209950
A15: RHB Investment Bank Berhad | F15: 20246800 | H15: 20246800 | I15: =((H15-F15-G15)/Q1) -> 0 | J15: =((H15)/Q1) -> 0.007670601148 | K15: 0.2 | L15: YES | P15: RHB Investment Bank Berhad | S15: 0 | U15: 20246800 | W15: 20246800
A16: RHB Bank Berhad | B16: 152871414.5 | C16: 83000000 | F16: 9833800 | H16: 245705214.5 | I16: =((H16-F16-G16)/Q1) -> 0.08936106164 | J16: =((H16)/Q1) -> 0.09308664581 | K16: 0.2 | L16: YES | P16: RHB Bank Berhad | Q16: 152871414.5 | R16: 83000000 | S16: 0 | U16: 9833800 | W16: 245705214.5
A17: RHB Islamic Bank Berhad | F17: 10192000 | H17: 10192000 | I17: =((H17-F17-G17)/Q1) -> 0 | J17: =((H17)/Q1) -> 0.003861290026 | K17: 0.2 | L17: YES | P17: RHB Islamic Bank Berhad | S17: 0 | U17: 10192000 | W17: 10192000
A18: Public Islamic Bank Berhad | F18: 15174450 | H18: 15174450 | I18: =((H18-F18-G18)/Q1) -> 0 | J18: =((H18)/Q1) -> 0.005748916055 | K18: 0.2 | L18: YES | P18: Public Islamic Bank Berhad | S18: 0 | U18: 15174450 | W18: 15174450
A19: BANK SIMPANAN NASIONAL BERHAD | F19: 4963650 | H19: 4963650 | I19: =((H19-F19-G19)/Q1) -> 0 | J19: =((H19)/Q1) -> 0.001880503556 | K19: 0.2 | L19: YES | P19: BANK SIMPANAN NASIONAL BERHAD | S19: 0 | U19: 4963650 | W19: 4963650
A20: Grand Total | B20: 375871414.5 | C20: 83000000 | F20: 108571550 | H20: 567442964.5 | P20: Grand Total | Q20: 375871414.5 | R20: 83000000 | S20: 0 | U20: 108571550 | W20: 567442964.5

Sheet NoFI_LBNM (hidden)
A1: TOKIO MARINE INSURANS (MALAYSIA) BERHAD. (Company No. 149520-U) | K1: TotalAsset | L1: =TotalMV -> 2639532366
A3: EXPOSURE TO NON FINANCIAL INSTITUTIONS LISTED ON BURSA -PER BNM GUIDELINES | M3: Attribute | N3: (Multiple Items)
M4: ListedFlag | N4: (Multiple Items)
E5: Total Holding | F5: Actual Exposure | G5: Actual Exposure | H5: Regulatory | I5: Indicator | M5: qAssetClass | N5: (Multiple Items)
A6: Name of Institution | B6: Bonds | C6: Equities | D6: Unit Trust | E6: as at | F6: on Total Assets | G6: on Total Assets | H6: Limit | I6: Within Limit
B7: (RM) | C7: (RM) | D7: (RM) | E7: =TEXT(ReportDate,"dd.mm.yyyy") -> 28.02.2022 | F7: Without Unit Trust | G7: With Unit Trust | N7: Data
M8: Issuer | N8: Sum of Bond | O8: Sum of Equity | P8: Sum of UnitTrust | Q8: Sum of MarketValueFC
A9: CIMB Group Holdings Berhad | D9: 36191162 | E9: =B9+C9+D9 -> 36191162 | F9: =((E9-B9-C9)/L1) -> 0.0137112022 | G9: =((E9)/L1) -> 0.0137112022 | H9: 0.1 | I9: YES | M9: CIMB Group Holdings Berhad | N9: 0 | P9: 36191162 | Q9: 36191162
A10: Hong Leong Financial Group Berhad | D10: 40748400 | E10: 40748400 | F10: =((E10-B10-C10)/L1) -> 0.01543773455 | G10: =((E10)/L1) -> 0.01543773455 | H10: 0.1 | I10: YES | M10: Hong Leong Financial Group Berhad | N10: 0 | P10: 40748400 | Q10: 40748400
A11: IJM Corporation Berhad | D11: 15392050 | E11: 15392050 | F11: =((E11-B11-C11)/L1) -> 0.005831354901 | G11: =((E11)/L1) -> 0.005831354901 | H11: 0.1 | I11: YES | M11: IJM Corporation Berhad | N11: 0 | P11: 15392050 | Q11: 15392050
A12: Westports Holdings Berhad | D12: 5023000 | E12: 5023000 | F12: =((E12-B12-C12)/L1) -> 0.001902988599 | G12: =((E12)/L1) -> 0.001902988599 | H12: 0.1 | I12: YES | M12: Westports Holdings Berhad | N12: 0 | P12: 5023000 | Q12: 5023000
A13: Tenaga Nasional Berhad | D13: 14947800 | E13: 14947800 | F13: =((E13-B13-C13)/L1) -> 0.005663048573 | G13: =((E13)/L1) -> 0.005663048573 | H13: 0.1 | I13: YES | M13: Tenaga Nasional Berhad | N13: 0 | P13: 14947800 | Q13: 14947800
A14: Gamuda Berhad | D14: 7475700 | E14: 7475700 | F14: =((E14-B14-C14)/L1) -> 0.002832206225 | G14: =((E14)/L1) -> 0.002832206225 | H14: 0.1 | I14: YES | M14: Gamuda Berhad | N14: 0 | P14: 7475700 | Q14: 7475700
A15: Telekom Malaysia Berhad | D15: 10272200 | E15: 10272200 | F15: =((E15-B15-C15)/L1) -> 0.003891674196 | G15: =((E15)/L1) -> 0.003891674196 | H15: 0.1 | I15: YES | M15: Telekom Malaysia Berhad | N15: 0 | P15: 10272200 | Q15: 10272200
A16: Malaysia Airport Holdings Berhad | D16: 25163550 | E16: 25163550 | F16: =((E16-B16-C16)/L1) -> 0.009533336405 | G16: =((E16)/L1) -> 0.009533336405 | H16: 0.1 | I16: YES | M16: Malaysia Airport Holdings Berhad | N16: 0 | P16: 25163550 | Q16: 25163550
A17: YTL Power International Berhad | D17: 5092300 | E17: 5092300 | F17: =((E17-B17-C17)/L1) -> 0.00192924325 | G17: =((E17)/L1) -> 0.00192924325 | H17: 0.1 | I17: YES | M17: YTL Power International Berhad | N17: 0 | P17: 5092300 | Q17: 5092300
A18: YTL Corporation Berhad | D18: 5044700 | E18: 5044700 | F18: =((E18-B18-C18)/L1) -> 0.001911209752 | G18: =((E18)/L1) -> 0.001911209752 | H18: 0.1 | I18: YES | M18: YTL Corporation Berhad | N18: 0 | P18: 5044700 | Q18: 5044700
A19: DIGI TELECOMMUNICATIONS SDN BHD | D19: 9778200 | E19: 9778200 | F19: =((E19-B19-C19)/L1) -> 0.003704519833 | G19: =((E19)/L1) -> 0.003704519833 | H19: 0.1 | I19: YES | M19: DIGI TELECOMMUNICATIONS SDN BHD | N19: 0 | P19: 9778200 | Q19: 9778200
A20: BATU KAWAN BHD | D20: 5020300 | E20: 5020300 | F20: =((E20-B20-C20)/L1) -> 0.001901965691 | G20: =((E20)/L1) -> 0.001901965691 | H20: 0.1 | I20: YES | M20: BATU KAWAN BHD | N20: 0 | P20: 5020300 | Q20: 5020300
A21: TOP GLOVE CORPORATION BHD | D21: 7473375 | E21: 7473375 | F21: =((E21-B21-C21)/L1) -> 0.002831325387 | G21: =((E21)/L1) -> 0.002831325387 | H21: 0.1 | I21: YES | M21: TOP GLOVE CORPORATION BHD | N21: 0 | P21: 7473375 | Q21: 7473375
A22: Celcom Networks Sdn Berhad | D22: 5316900 | E22: 5316900 | F22: =((E22-B22-C22)/L1) -> 0.00201433408 | G22: =((E22)/L1) -> 0.00201433408 | H22: 0.1 | I22: YES | M22: Celcom Networks Sdn Berhad | N22: 0 | P22: 5316900 | Q22: 5316900
A23: Grand Total | D23: 192939637 | E23: 192939637 | M23: Grand Total | N23: 0 | P23: 192939637 | Q23: 192939637

Sheet NoFI_NLBNM (hidden)
A1: TOKIO MARINE INSURANS (MALAYSIA) BERHAD. (Company No. 149520-U) | K1: TotalAsset | L1: =TotalMV -> 2639532366
M2: Attribute | N2: (Multiple Items)
A3: EXPOSURE TO OTHER COUNTERPARTIES (NON FINANCIAL INSTITUTIONS NOT LISTED ON BURSA) -PER BNM GUIDELINES | M3: ListedFlag | N3: (Multiple Items)
M4: qAssetClass | N4: (Multiple Items)
E5: Total Holding | F5: Actual Exposure | G5: Actual Exposure | H5: Regulatory | I5: Indicator | M5: Rating | N5: (Multiple Items)
A6: Name of Institution | B6: Bonds | C6: Equities | D6: Unit Trust | E6: as at | F6: on Total Assets | G6: on Total Assets | H6: Limit | I6: Within Limit
B7: (RM) | C7: (RM) | D7: (RM) | E7: =TEXT(ReportDate,"dd.mm.yyyy") -> 28.02.2022 | F7: Without Unit Trust | G7: With Unit Trust | N7: Data
M8: Issuer | N8: Sum of Bond | O8: Sum of Equity | P8: Sum of UnitTrust | Q8: Sum of MarketValueFC
A9: Sime Darby Berhad | D9: 4850200 | E9: =B9+C9+D9 -> 4850200 | F9: =((E9-B9-C9)/L1) -> 0.001837522457 | G9: =((E9)/L1) -> 0.001837522457 | H9: 0.05 | I9: YES | M9: Sime Darby Berhad | N9: 0 | P9: 4850200 | Q9: 4850200
A10: Small Medium Enterprise Development Bank Malaysia Berhad | D10: 13691580 | E10: 13691580 | F10: =((E10-B10-C10)/L1) -> 0.005187123361 | G10: =((E10)/L1) -> 0.005187123361 | H10: 0.05 | I10: YES | M10: Small Medium Enterprise Development Bank Malaysia Berhad | N10: 0 | P10: 13691580 | Q10: 13691580
A11: Pengurusan Air SPV Berhad | D11: 37997475 | E11: 37997475 | F11: =((E11-B11-C11)/L1) -> 0.01439553289 | G11: =((E11)/L1) -> 0.01439553289 | H11: 0.05 | I11: YES | M11: Pengurusan Air SPV Berhad | N11: 0 | P11: 37997475 | Q11: 37997475
A12: Imtiaz Sukuk II Berhad | D12: 9832200 | E12: 9832200 | F12: =((E12-B12-C12)/L1) -> 0.003724978002 | G12: =((E12)/L1) -> 0.003724978002 | H12: 0.05 | I12: YES | M12: Imtiaz Sukuk II Berhad | N12: 0 | P12: 9832200 | Q12: 9832200
A13: Bumitama Agri Ltd | D13: 10181200 | E13: 10181200 | F13: =((E13-B13-C13)/L1) -> 0.003857198392 | G13: =((E13)/L1) -> 0.003857198392 | H13: 0.05 | I13: YES | M13: Bumitama Agri Ltd | N13: 0 | P13: 10181200 | Q13: 10181200
A14: Sepangar Bay Power Corporation Sdn Berhad | D14: 5285250 | E14: 5285250 | F14: =((E14-B14-C14)/L1) -> 0.002002343319 | G14: =((E14)/L1) -> 0.002002343319 | H14: 0.05 | I14: YES | M14: Sepangar Bay Power Corporation Sdn Berhad | N14: 0 | P14: 5285250 | Q14: 5285250
A15: Abu Dhabi National Energy Company PJSC | D15: 5000600 | E15: 5000600 | F15: =((E15-B15-C15)/L1) -> 0.001894502247 | G15: =((E15)/L1) -> 0.001894502247 | H15: 0.05 | I15: YES | M15: Abu Dhabi National Energy Company PJSC | N15: 0 | P15: 5000600 | Q15: 5000600
A16: UEM Sunrise Berhad | D16: 5088750 | E16: 5088750 | F16: =((E16-B16-C16)/L1) -> 0.001927898314 | G16: =((E16)/L1) -> 0.001927898314 | H16: 0.05 | I16: YES | M16: UEM Sunrise Berhad | N16: 0 | P16: 5088750 | Q16: 5088750
A17: Rantau Abang Capital Berhad | D17: 10787200 | E17: 10787200 | F17: =((E17-B17-C17)/L1) -> 0.004086784514 | G17: =((E17)/L1) -> 0.004086784514 | H17: 0.05 | I17: YES | M17: Rantau Abang Capital Berhad | N17: 0 | P17: 10787200 | Q17: 10787200
A18: Projek Lebuhraya Usahasama Berhad | D18: 21247600 | E18: 21247600 | F18: =((E18-B18-C18)/L1) -> 0.008049759219 | G18: =((E18)/L1) -> 0.008049759219 | H18: 0.05 | I18: YES | M18: Projek Lebuhraya Usahasama Berhad | N18: 0 | P18: 21247600 | Q18: 21247600
A19: Bank Pembangunan Malaysia Berhad | D19: 12998875 | E19: 12998875 | F19: =((E19-B19-C19)/L1) -> 0.004924688617 | G19: =((E19)/L1) -> 0.004924688617 | H19: 0.05 | I19: YES | M19: Bank Pembangunan Malaysia Berhad | N19: 0 | P19: 12998875 | Q19: 12998875
A20: BGSM Management Sdn Berhad | D20: 41948100 | E20: 41948100 | F20: =((E20-B20-C20)/L1) -> 0.01589224687 | G20: =((E20)/L1) -> 0.01589224687 | H20: 0.05 | I20: YES | M20: BGSM Management Sdn Berhad | N20: 0 | P20: 41948100 | Q20: 41948100
A21: Konsortium Lebuhraya Utara-Timur (KL) Sdn Berhad | D21: 28123210 | E21: 28123210 | F21: =((E21-B21-C21)/L1) -> 0.01065461836 | G21: =((E21)/L1) -> 0.01065461836 | H21: 0.05 | I21: YES | M21: Konsortium Lebuhraya Utara-Timur (KL) Sdn Berhad | N21: 0 | P21: 28123210 | Q21: 28123210
A22: Benih Restu Berhad | D22: 10344400 | E22: 10344400 | F22: =((E22-B22-C22)/L1) -> 0.003919027526 | G22: =((E22)/L1) -> 0.003919027526 | H22: 0.05 | I22: YES | M22: Benih Restu Berhad | N22: 0 | P22: 10344400 | Q22: 10344400
A23: UniTapah Sdn Berhad | D23: 10863600 | E23: 10863600 | F23: =((E23-B23-C23)/L1) -> 0.004115729035 | G23: =((E23)/L1) -> 0.004115729035 | H23: 0.05 | I23: YES | M23: UniTapah Sdn Berhad | N23: 0 | P23: 10863600 | Q23: 10863600
A24: Quill Retail Malls Sdn Berhad | D24: 5990700 | E24: 5990700 | F24: =((E24-B24-C24)/L1) -> 0.00226960657 | G24: =((E24)/L1) -> 0.00226960657 | H24: 0.05 | I24: YES | M24: Quill Retail Malls Sdn Berhad | N24: 0 | P24: 5990700 | Q24: 5990700
A25: Anih Berhad | D25: 10882000 | E25: 10882000 | F25: =((E25-B25-C25)/L1) -> 0.004122699967 | G25: =((E25)/L1) -> 0.004122699967 | H25: 0.05 | I25: YES | M25: Anih Berhad | N25: 0 | P25: 10882000 | Q25: 10882000
A26: Sabah Credit Corporation | D26: 20034400 | E26: 20034400 | F26: =((E26-B26-C26)/L1) -> 0.007590132349 | G26: =((E26)/L1) -> 0.007590132349 | H26: 0.05 | I26: YES | M26: Sabah Credit Corporation | N26: 0 | P26: 20034400 | Q26: 20034400
A27: Sarawak Energy Berhad | D27: 9492200 | E27: 9492200 | F27: =((E27-B27-C27)/L1) -> 0.003596167306 | G27: =((E27)/L1) -> 0.003596167306 | H27: 0.05 | I27: YES | M27: Sarawak Energy Berhad | N27: 0 | P27: 9492200 | Q27: 9492200
A28: Tanjung Bin O&M Berhad | D28: 2641900 | E28: 2641900 | F28: =((E28-B28-C28)/L1) -> 0.00100089699 | G28: =((E28)/L1) -> 0.00100089699 | H28: 0.05 | I28: YES | M28: Tanjung Bin O&M Berhad | N28: 0 | P28: 2641900 | Q28: 2641900
A29: Press Metal Berhad | D29: 2514525 | E29: 2514525 | F29: =((E29-B29-C29)/L1) -> 0.0009526403358 | G29: =((E29)/L1) -> 0.0009526403358 | H29: 0.05 | I29: YES | M29: Press Metal Berhad | N29: 0 | P29: 2514525 | Q29: 2514525
A30: Danga Capital Berhad | D30: 5356150 | E30: 5356150 | F30: =((E30-B30-C30)/L1) -> 0.002029204138 | G30: =((E30)/L1) -> 0.002029204138 | H30: 0.05 | I30: YES | M30: Danga Capital Berhad | N30: 0 | P30: 5356150 | Q30: 5356150
A31: MEX II Sdn Berhad | D31: 0 | E31: 0 | F31: =((E31-B31-C31)/L1) -> 0 | G31: =((E31)/L1) -> 0 | H31: 0.05 | I31: YES | M31: MEX II Sdn Berhad | N31: 0 | P31: 0 | Q31: 0
A32: Al Dzahab Assets Berhad | D32: 15604550 | E32: 15604550 | F32: =((E32-B32-C32)/L1) -> 0.005911861585 | G32: =((E32)/L1) -> 0.005911861585 | H32: 0.05 | I32: YES | M32: Al Dzahab Assets Berhad | N32: 0 | P32: 15604550 | Q32: 15604550
A33: Kesas Sdn Berhad | D33: 5132150 | E33: 5132150 | F33: =((E33-B33-C33)/L1) -> 0.001944340621 | G33: =((E33)/L1) -> 0.001944340621 | H33: 0.05 | I33: YES | M33: Kesas Sdn Berhad | N33: 0 | P33: 5132150 | Q33: 5132150
A34: Khazanah Nasional Berhad | D34: 10303100 | E34: 10303100 | F34: =((E34-B34-C34)/L1) -> 0.003903380815 | G34: =((E34)/L1) -> 0.003903380815 | H34: 0.05 | I34: YES | M34: Khazanah Nasional Berhad | N34: 0 | P34: 10303100 | Q34: 10303100
A35: EKVE Sdn Berhad | D35: 5340600 | E35: 5340600 | F35: =((E35-B35-C35)/L1) -> 0.002023312943 | G35: =((E35)/L1) -> 0.002023312943 | H35: 0.05 | I35: YES | M35: EKVE Sdn Berhad | N35: 0 | P35: 5340600 | Q35: 5340600
A36: GENM CAPITAL BERHAD | D36: 5101000 | E36: 5101000 | F36: =((E36-B36-C36)/L1) -> 0.001932539288 | G36: =((E36)/L1) -> 0.001932539288 | H36: 0.05 | I36: YES | M36: GENM CAPITAL BERHAD | N36: 0 | P36: 5101000 | Q36: 5101000
A37: Northern Gateway Infrastructure Sdn Berhad | D37: 15995300 | E37: 15995300 | F37: =((E37-B37-C37)/L1) -> 0.006059899171 | G37: =((E37)/L1) -> 0.006059899171 | H37: 0.05 | I37: YES | M37: Northern Gateway Infrastructure Sdn Berhad | N37: 0 | P37: 15995300 | Q37: 15995300
A38: PUJIAN BAYU SDN BERHAD | D38: 5200300 | E38: 5200300 | F38: =((E38-B38-C38)/L1) -> 0.001970159588 | G38: =((E38)/L1) -> 0.001970159588 | H38: 0.05 | I38: YES | M38: PUJIAN BAYU SDN BERHAD | N38: 0 | P38: 5200300 | Q38: 5200300
A39: Sabah Development Bank Berhad | D39: 5161150 | E39: 5161150 | F39: =((E39-B39-C39)/L1) -> 0.001955327415 | G39: =((E39)/L1) -> 0.001955327415 | H39: 0.05 | I39: YES | M39: Sabah Development Bank Berhad | N39: 0 | P39: 5161150 | Q39: 5161150
A40: SPR Energy (M) Sdn Berhad | D40: 13378450 | E40: 13378450 | F40: =((E40-B40-C40)/L1) -> 0.005068492499 | G40: =((E40)/L1) -> 0.005068492499 | H40: 0.05 | I40: YES | M40: SPR Energy (M) Sdn Berhad | N40: 0 | P40: 13378450 | Q40: 13378450
A41: TRIplc Medical Sdn Berhad | D41: 5142800 | E41: 5142800 | F41: =((E41-B41-C41)/L1) -> 0.001948375426 | G41: =((E41)/L1) -> 0.001948375426 | H41: 0.05 | I41: YES | M41: TRIplc Medical Sdn Berhad | N41: 0 | P41: 5142800 | Q41: 5142800
A42: Inverfin Sdn Berhad | D42: 15228750 | E42: 15228750 | F42: =((E42-B42-C42)/L1) -> 0.005769487881 | G42: =((E42)/L1) -> 0.005769487881 | H42: 0.05 | I42: YES | M42: Inverfin Sdn Berhad | N42: 0 | P42: 15228750 | Q42: 15228750
A43: Notable Vision Sdn Berhad | D43: 9785400 | E43: 9785400 | F43: =((E43-B43-C43)/L1) -> 0.003707247588 | G43: =((E43)/L1) -> 0.003707247588 | H43: 0.05 | I43: YES | M43: Notable Vision Sdn Berhad | N43: 0 | P43: 9785400 | Q43: 9785400
A44: GLACIER ASSETS BERHAD | D44: 9980000 | E44: 9980000 | F44: =((E44-B44-C44)/L1) -> 0.003780972769 | G44: =((E44)/L1) -> 0.003780972769 | H44: 0.05 | I44: YES | M44: GLACIER ASSETS BERHAD | N44: 0 | P44: 9980000 | Q44: 9980000
A45: Toyota Capital Malaysia Sdn Berhad | D45: 24969500 | E45: 24969500 | F45: =((E45-B45-C45)/L1) -> 0.009459819594 | G45: =((E45)/L1) -> 0.009459819594 | H45: 0.05 | I45: YES | M45: Toyota Capital Malaysia Sdn Berhad | N45: 0 | P45: 24969500 | Q45: 24969500
A46: GENTING RMTN BERHAD | D46: 4752250 | E46: 4752250 | F46: =((E46-B46-C46)/L1) -> 0.001800413611 | G46: =((E46)/L1) -> 0.001800413611 | H46: 0.05 | I46: YES | M46: GENTING RMTN BERHAD | N46: 0 | P46: 4752250 | Q46: 4752250
A47: PENGURUSAN AIR SELANGOR SDN BERHAD | D47: 14511550 | E47: 14511550 | F47: =((E47-B47-C47)/L1) -> 0.005497773085 | G47: =((E47)/L1) -> 0.005497773085 | H47: 0.05 | I47: YES | M47: PENGURUSAN AIR SELANGOR SDN BERHAD | N47: 0 | P47: 14511550 | Q47: 14511550
A48: DANAJAMIN NASIONAL BHD | D48: 5059900 | E48: 5059900 | F48: =((E48-B48-C48)/L1) -> 0.001916968348 | G48: =((E48)/L1) -> 0.001916968348 | H48: 0.05 | I48: YES | M48: DANAJAMIN NASIONAL BHD | N48: 0 | P48: 5059900 | Q48: 5059900
A49: ZAMARAD ASSETS BERHAD | D49: 4966900 | E49: 4966900 | F49: =((E49-B49-C49)/L1) -> 0.001881734834 | G49: =((E49)/L1) -> 0.001881734834 | H49: 0.05 | I49: YES | M49: ZAMARAD ASSETS BERHAD | N49: 0 | P49: 4966900 | Q49: 4966900
A50: Putrajaya Holdings Sdn Berhad | D50: 10083400 | E50: 10083400 | F50: =((E50-B50-C50)/L1) -> 0.003820146375 | G50: =((E50)/L1) -> 0.003820146375 | H50: 0.05 | I50: YES | M50: Putrajaya Holdings Sdn Berhad | N50: 0 | P50: 10083400 | Q50: 10083400
A51: Aman Sukuk Berhad | D51: 15240600 | E51: 15240600 | F51: =((E51-B51-C51)/L1) -> 0.005773977313 | G51: =((E51)/L1) -> 0.005773977313 | H51: 0.05 | I51: YES | M51: Aman Sukuk Berhad | N51: 0 | P51: 15240600 | Q51: 15240600
A52: MMC Corporation Berhad | D52: 10795350 | E52: 10795350 | F52: =((E52-B52-C52)/L1) -> 0.004089872182 | G52: =((E52)/L1) -> 0.004089872182 | H52: 0.05 | I52: YES | M52: MMC Corporation Berhad | N52: 0 | P52: 10795350 | Q52: 10795350
A53: SARAWAK POWERR GENERATION SDN BHD | D53: 10579200 | E53: 10579200 | F53: =((E53-B53-C53)/L1) -> 0.004007982677 | G53: =((E53)/L1) -> 0.004007982677 | H53: 0.05 | I53: YES | M53: SARAWAK POWERR GENERATION SDN BHD | N53: 0 | P53: 10579200 | Q53: 10579200
A54: Grand Total | D54: 507464315 | E54: 507464315 | M54: Grand Total | N54: 0 | P54: 507464315 | Q54: 507464315
D55: 704589302.5
D56: 192939637
D57: 108571550
D59: =SUM(D54:D58) -> 1513564804
D60: -1529257654
D61: =SUM(D59:D60) -> -15692850

Sheet NoFI_NLBNM_X (hidden)
A1: TOKIO MARINE INSURANS (MALAYSIA) BERHAD. (Company No. 149520-U) | K1: TotalAsset | L1: =TotalMV -> 2639532366
M2: Attribute | N2: (Multiple Items)
A3: EXPOSURE TO NON FINANCIAL INSTITUTIONS NOT LISTED ON BURSA -PER BNM GUIDELINES (X-RATE) | M3: ListedFlag | N3: (Multiple Items)
M4: qAssetClass | N4: (Multiple Items)
E5: Total Holding | F5: Actual Exposure | G5: Actual Exposure | H5: Regulatory | I5: Indicator | M5: Rating | N5: (Multiple Items)
A6: Name of Institution | B6: Bonds | C6: Equities | D6: Unit Trust | E6: as at | F6: on Total Assets | G6: on Total Assets | H6: Limit | I6: Within Limit
B7: (RM) | C7: (RM) | D7: (RM) | E7: =TEXT(ReportDate,"dd.mm.yyyy") -> 28.02.2022 | F7: Without Unit Trust | G7: With Unit Trust | N7: Data
M8: Issuer | N8: Sum of Bond | O8: Sum of Equity | P8: Sum of UnitTrust | Q8: Sum of MarketValueFC
A9: Government of Malaysia | D9: 375017500 | E9: =B9+C9+D9 -> 375017500 | F9: =((E9-B9-C9)/L1) -> 0.14207725 | G9: =((E9)/L1) -> 0.14207725 | H9: 0 | I9: YES | M9: Government of Malaysia | N9: 0 | P9: 375017500 | Q9: 375017500
A10: Small Medium Enterprise Development Bank Malaysia Berhad | D10: 33874020 | E10: 33874020 | F10: =((E10-B10-C10)/L1) -> 0.0128333414 | G10: =((E10)/L1) -> 0.0128333414 | H10: 0 | I10: YES | M10: Small Medium Enterprise Development Bank Malaysia Berhad | N10: 0 | P10: 33874020 | Q10: 33874020
A11: Pengurusan Air SPV Berhad | D11: 20732800 | E11: 20732800 | F11: =((E11-B11-C11)/L1) -> 0.007854724672 | G11: =((E11)/L1) -> 0.007854724672 | H11: 0 | I11: YES | M11: Pengurusan Air SPV Berhad | N11: 0 | P11: 20732800 | Q11: 20732800
A12: Perbadanan Tabung Pendidikan Tinggi Nasional | D12: 30315200 | E12: 30315200 | F12: =((E12-B12-C12)/L1) -> 0.0114850647 | G12: =((E12)/L1) -> 0.0114850647 | H12: 0 | I12: YES | M12: Perbadanan Tabung Pendidikan Tinggi Nasional | N12: 0 | P12: 30315200 | Q12: 30315200
A13: Syarikat Prasarana Negara Berhad | D13: 98288250 | E13: 98288250 | F13: =((E13-B13-C13)/L1) -> 0.03723699366 | G13: =((E13)/L1) -> 0.03723699366 | H13: 0 | I13: YES | M13: Syarikat Prasarana Negara Berhad | N13: 0 | P13: 98288250 | Q13: 98288250
A14: DanaInfra Nasional Berhad | D14: 52070200 | E14: 52070200 | F14: =((E14-B14-C14)/L1) -> 0.01972705494 | G14: =((E14)/L1) -> 0.01972705494 | H14: 0 | I14: YES | M14: DanaInfra Nasional Berhad | N14: 0 | P14: 52070200 | Q14: 52070200
A15: Jambatan Kedua Sdn Bhd | D15: 70978270 | E15: 70978270 | F15: =((E15-B15-C15)/L1) -> 0.02689047155 | G15: =((E15)/L1) -> 0.02689047155 | H15: 0 | I15: YES | M15: Jambatan Kedua Sdn Bhd | N15: 0 | P15: 70978270 | Q15: 70978270
A16: LEMBAGA PEMBIAYAAN PERUMAHAN SEKTOR AWAM | D16: 13916312.5 | E16: 13916312.5 | F16: =((E16-B16-C16)/L1) -> 0.005272264389 | G16: =((E16)/L1) -> 0.005272264389 | H16: 0 | I16: YES | M16: LEMBAGA PEMBIAYAAN PERUMAHAN SEKTOR AWAM | N16: 0 | P16: 13916312.5 | Q16: 13916312.5
A17: MALAYSIA RAIL LINK SDN BERHAD | D17: 9396750 | E17: 9396750 | F17: =((E17-B17-C17)/L1) -> 0.003560005598 | G17: =((E17)/L1) -> 0.003560005598 | H17: 0 | I17: YES | M17: MALAYSIA RAIL LINK SDN BERHAD | N17: 0 | P17: 9396750 | Q17: 9396750
A18: Grand Total | D18: 704589302.5 | E18: 704589302.5 | M18: Grand Total | N18: 0 | P18: 704589302.5 | Q18: 704589302.5
E19: 0 | F19: =((E19-B19-C19)/L1) -> 0 | G19: =((E19)/L1) -> 0 | H19: 0 | I19: YES

Sheet MainMarket (hidden)
A1: TOKIO MARINE INSURANS (MALAYSIA) BERHAD. (Company No. 149520-U) | J1: Total Asset | K1: =TotalAsset -> 2639532366
J2: qAssetClass | K2: (Multiple Items)
A3: ="EXPOSURE TO COUNTERPARTIES LISTED ON MAIN MARKET, BURSA AS AT " & TEXT(ReportDate,"dd.mm.yyyy") -> EXPOSURE TO COUNTERPARTIES LISTED ON MAIN MARKET, BURSA AS AT 28.02.2022 | J3: BOARD | K3: (Multiple Items)
L5: Data
A6: DESCRIPTION | B6: EQUITIES | C6: BONDS | D6: TOTAL | E6: Actual Exposure | F6: Regulatory | J6: SectorName | K6: Issuer | L6: Sum of Equity | M6: Sum of Bond | N6: Sum of MarketValueFC
B7: NBV | C7: NBV | D7: HOLDINGS | E7: on Total Assets | F7: Limit | J7: Grand Total
B8: (RM) | C8: (RM) | D8: (RM)
A10: QUOTED SHARES
A11: MAIN BOARD

Sheet Asset (hidden)
A2: INVESTMENT ASSET ALLOCATION
A4: ="As at " & TEXT(ReportDate,"dd.mm.yyyy") -> As at 28.02.2022
B6: Target Asset | C6: % | D6: At | E6: % | F6: At | G6: Unrealised G/L
A7: Investment Type | B7: Allocation | C7: of Total Inv | D7: NBV (RM) | E7: of Total Inv | F7: Market Value (RM) | G7: (Market Value - Total cost)
A9: Fixed Deposit | C9: =D9/D24 -> 0.1759868251 | D9: =SUM(SUMIFS(InMstHst!I:I,InMstHst!F:F,{"AFS","HTM","HFT","SHF"},InMstHst!AG:AG,"CSH",InMstHst!G:G,"F*")) -> 375871414.5 | E9: =F9/F24 -> 0.1746378348 | F9: =SUM(SUMIFS(InMstHst!J:J,InMstHst!F:F,{"AFS","HTM","HFT","SHF"},InMstHst!AG:AG,"CSH",InMstHst!G:G,"F*")) -> 375871414.5
A10: Money Market Deposit | C10: =D10/D24 -> 0.03886144549 | D10: =SUM(SUMIFS(InMstHst!I:I,InMstHst!F:F,{"AFS","HTM","HFT","SHF"},InMstHst!AG:AG,"CSH",InMstHst!G:G,"R*")) -> 83000000 | E10: =F10/F24 -> 0.03856356117 | F10: =SUM(SUMIFS(InMstHst!J:J,InMstHst!F:F,{"AFS","HTM","HFT","SHF"},InMstHst!AG:AG,"CSH",InMstHst!G:G,"R*")) -> 83000000
A11: Total Deposits | B11: 0.15 | C11: =SUM(C9:C10) -> 0.2148482706 | D11: =SUM(D9:D10) -> 458871414.5 | E11: =SUM(E9:E10) -> 0.2132013959 | F11: =SUM(F9:F10) -> 458871414.5
A13: Opus Low Risk Asset Fund | C13: =D13/D24 -> 0.3043366213 | D13: =SUMIF(InMstHst!G:G,"OLRAF",InMstHst!I:I) -> 650000000 | E13: =F13/F24 -> 0.3059051135 | F13: =SUMIF(InMstHst!G:G,"OLRAF",InMstHst!J:J) -> 658396778 | G13: =F13-D13 -> 8396778.04
A14: Aiiman Income Extra Fund | C14: =D14/D24 -> 0.009364870772 | D14: =SUMIF(InMstHst!G:G,"AIEF",InMstHst!I:I) -> 20001424.66 | E14: =F14/F24 -> 0.009312712677 | F14: =SUMIF(InMstHst!G:G,"AIEF",InMstHst!J:J) -> 20043666.32 | G14: =F14-D14 -> 42241.66
A15: Nomura Income Fund 2 | C15: =D15/D24 -> 0.01872840746 | D15: =SUMIF(InMstHst!G:G,"NIF2",InMstHst!I:I) -> 40000000 | E15: =F15/F24 -> 0.01866141415 | F15: =SUMIF(InMstHst!G:G,"NIF2",InMstHst!J:J) -> 40164791 | G15: 164791
A16: Hong Leong Income Fund | C16: =D16/D24 -> 0.009375384727 | D16: =SUMIF(InMstHst!G:G,"HLIF",InMstHst!I:I) -> 20023880.29 | E16: =F16/F24 -> 0.009299802345 | F16: =SUMIF(InMstHst!G:G,"HLIF",InMstHst!J:J) -> 20015879.53 | G16: -8000.76
A17: Total MGS | B17: 0.35 | C17: =SUM(C13:C16) -> 0.3418052843 | D17: =SUM(D13:D16) -> 730025304.9 | E17: =SUM(E13:E16) -> 0.3431790427 | F17: =SUM(F13:F16) -> 738621114.9 | G17: 8595809.94
G18: 0
A19: Opus Specific Income Fund | C19: =D19/D24 -> 0.002283461277 | D19: =SUMIF(InMstHst!G:G,"OSPEC",InMstHst!I:I) -> 4877000.42 | E19: =F19/F24 -> 0.002377896199 | F19: =SUMIF(InMstHst!G:G,"OSPEC",InMstHst!J:J) -> 5117924.24 | G19: 240923.82
A20: Opus Income Fund | C20: =D20/D24 -> 0.2771894186 | D20: =SUMIF(InMstHst!G:G,"OIF",InMstHst!I:I) -> 592019196.7 | E20: =F20/F24 -> 0.2781688577 | F20: =SUMIF(InMstHst!G:G,"OIF",InMstHst!J:J) -> 598700288.2 | G20: 6681091.51
A21: Affin Hwang Income Fund 6 | C21: =D21/D24 -> 0.1638735653 | D21: =SUMIF(InMstHst!G:G,"HWIF6",InMstHst!I:I) -> 350000000 | E21: =F21/F24 -> 0.1630728075 | F21: =SUMIF(InMstHst!G:G,"HWIF6",InMstHst!J:J) -> 350980112.1 | G21: =F21-D21 -> 980112.06
A22: Total Corporate Bonds | B22: 0.5 | C22: =SUM(C19:C21) -> 0.4433464451 | D22: =SUM(D19:D21) -> 946896197.1 | E22: =SUM(E19:E21) -> 0.4436195613 | F22: =SUM(F19:F21) -> 954798324.5 | G22: 7902127.39
G23: 0
A24: Total Investments | B24: 1 | C24: =C11+C17+C22 -> 1 | D24: =D11+D17+D22 -> 2135792917 | E24: =E11+E17+E22 -> 1 | F24: =F11+F17+F22 -> 2152290854 | G24: 16497937.33
A25: Total Assets | D25: =TotalAsset -> 2639532366 | F25: =TotalMV -> 2639532366
A26: Total Investments/Total Assets | D26: =D24/D25 -> 0.8091557973 | F26: =F24/F25 -> 0.8154061232
D29: mth | E29: =MONTH(ReportDate) -> 2
B30: =EOMONTH(ReportDate,-MONTH(ReportDate)) -> 2021-12-31 | C30: ="Actual (" & TEXT(ReportDate,"mmm yyyy") &")" -> Actual (Feb 2022)
A31: Investment Type | B31: Market Value (RM) | C31: Asset (RM) | D31: Income (Current) | E31: Income (YTD) | F31: Yield (Ann)
A33: Fixed Deposit | B33: =SUM(SUMIFS(InLstMstHst!J:J,InLstMstHst!F:F,{"AFS","HTM","HFT","SHF"},InLstMstHst!AG:AG,"CSH",InLstMstHst!G:G,"F*")) -> 584871414.5 | C33: =SUM(SUMIFS(InMstHst!J:J,InMstHst!F:F,{"AFS","HTM","HFT","SHF"},InMstHst!AG:AG,"CSH",InMstHst!G:G,"F*")) -> 375871414.5 | D33: =-SUM(SUMIFS(InPL!E:E,InPL!A:A,"Mth",InPL!B:B,"HFT",InPL!C:C,{"630000","639000","939000"},InPL!D:D,"220")) -> 725804.12 | E33: =-SUM(SUMIFS(InPL!E:E,InPL!A:A,"YTD",InPL!B:B,"HFT",InPL!C:C,{"630000","639000","939000"},InPL!D:D,"220")) -> 1626452.08
A34: Money Market Deposit | B34: =SUM(SUMIFS(InLstMstHst!J:J,InLstMstHst!F:F,{"AFS","HTM","HFT","SHF"},InLstMstHst!AG:AG,"CSH",InLstMstHst!G:G,"R*")) -> 48000000 | C34: =SUM(SUMIFS(InMstHst!J:J,InMstHst!F:F,{"AFS","HTM","HFT","SHF"},InMstHst!AG:AG,"CSH",InMstHst!G:G,"R*")) -> 83000000 | D34: =-SUM(SUMIFS(InPL!E:E,InPL!A:A,"Mth",InPL!B:B,"HFT",InPL!C:C,{"630000","639000","939000"},InPL!D:D,"210")) -> 49712.32 | E34: =-SUM(SUMIFS(InPL!E:E,InPL!A:A,"YTD",InPL!B:B,"HFT",InPL!C:C,{"630000","639000","939000"},InPL!D:D,"210")) -> 122230.12
A35: Total Deposits | B35: =SUM(B33:B34) -> 632871414.5 | C35: =SUM(C33:C34) -> 458871414.5 | D35: =SUM(D33:D34) -> 775516.44 | E35: =SUM(E33:E34) -> 1748682.2 | F35: =+E35/((B35+C35)/2)*12/$E$29 -> 0.0192208145
A37: Opus Low Risk Asset Fund | B37: =SUMIF(InLstMstHst!G:G,"OLRAF",InLstMstHst!J:J) -> 661948001.2 | C37: =SUMIF(InMstHst!G:G,"OLRAF",InMstHst!J:J) -> 658396778 | D37: =SUMIFS(InTrn!H:H,InTrn!C:C,"OLRAF",InTrn!A:A,"MTH",InTrn!F:F,"SI") -> 2195301.6 | E37: =SUMIFS(InTrn!H:H,InTrn!C:C,"OLRAF",InTrn!A:A,"YTD",InTrn!F:F,"SI") -> 4196900.12
A38: Aiiman Income Extra Fund | B38: =SUMIF(InLstMstHst!G:G,"AIEF",InLstMstHst!J:J) -> 20026385.64 | C38: =SUMIF(InMstHst!G:G,"AIEF",InMstHst!J:J) -> 20043666.32 | D38: =SUMIFS(InTrn!H:H,InTrn!C:C,"AIEF",InTrn!A:A,"MTH",InTrn!F:F,"SI") -> 23040.91 | E38: =SUMIFS(InTrn!H:H,InTrn!C:C,"AIEF",InTrn!A:A,"YTD",InTrn!F:F,"SI") -> 42241.66
A39: Nomura Income Fund 2 | B39: =SUMIF(InLstMstHst!G:G,"NIF2",InLstMstHst!J:J) -> 40148713.83 | C39: =SUMIF(InMstHst!G:G,"NIF2",InMstHst!J:J) -> 40164791 | D39: =SUMIFS(InTrn!H:H,InTrn!C:C,"NIF2",InTrn!A:A,"MTH",InTrn!F:F,"SI") -> 0 | E39: =SUMIFS(InTrn!H:H,InTrn!C:C,"NIF2",InTrn!A:A,"YTD",InTrn!F:F,"SI") -> 0
A40: Hong Leong Income Fund | B40: =SUMIF(InLstMstHst!G:G,"HLIF",InLstMstHst!J:J) -> 20031847.62 | C40: =SUMIF(InMstHst!G:G,"HLIF",InMstHst!J:J) -> 20015879.53 | D40: =SUMIFS(InTrn!H:H,InTrn!C:C,"HLIF",InTrn!A:A,"MTH",InTrn!F:F,"SI") -> 52404.92 | E40: =SUMIFS(InTrn!H:H,InTrn!C:C,"HLIF",InTrn!A:A,"YTD",InTrn!F:F,"SI") -> 80888.1
A41: Total MGS | B41: =SUM(B37:B40) -> 742154948.3 | C41: =SUM(C37:C40) -> 738621114.9 | D41: =SUM(D37:D40) -> 2270747.43 | E41: =SUM(E37:E40) -> 4320029.88 | F41: =+E41/((B41+C41)/2)*12/$E$29 -> 0.03500891178
A43: Opus Specific Income Fund | B43: =SUMIF(InLstMstHst!G:G,"OSPEC",InLstMstHst!J:J) -> 5106707.14 | C43: =SUMIF(InMstHst!G:G,"OSPEC",InMstHst!J:J) -> 5117924.24 | D43: =SUMIFS(InTrn!H:H,InTrn!C:C,"OSPEC",InTrn!A:A,"MTH",InTrn!F:F,"SI") -> 0 | E43: =SUMIFS(InTrn!H:H,InTrn!C:C,"OSPEC",InTrn!A:A,"YTD",InTrn!F:F,"SI") -> 0
A44: Opus Income Fund | B44: =SUMIF(InLstMstHst!G:G,"OIF",InLstMstHst!J:J) -> 749605601.9 | C44: =SUMIF(InMstHst!G:G,"OIF",InMstHst!J:J) -> 598700288.2 | D44: =SUMIFS(InTrn!H:H,InTrn!C:C,"OIF",InTrn!A:A,"MTH",InTrn!F:F,"SI") -> 2066315.95 | E44: =SUMIFS(InTrn!H:H,InTrn!C:C,"OIF",InTrn!A:A,"YTD",InTrn!F:F,"SI") -> 4191669.5
A45: Affin Hwang Income Fund 6 | B45: =SUMIF(InLstMstHst!G:G,"HWIF6",InLstMstHst!J:J) -> 0 | C45: =SUMIF(InMstHst!G:G,"HWIF6",InMstHst!J:J) -> 350980112.1 | D45: =SUMIFS(InTrn!H:H,InTrn!C:C,"HWIF6",InTrn!A:A,"MTH",InTrn!F:F,"SI") -> 0 | E45: =SUMIFS(InTrn!H:H,InTrn!C:C,"HWIF6",InTrn!A:A,"YTD",InTrn!F:F,"SI") -> 0
A46: Total Corporate Bonds | B46: =SUM(B43:B45) -> 754712309 | C46: =SUM(C43:C45) -> 954798324.5 | D46: =SUM(D43:D45) -> 2066315.95 | E46: =SUM(E43:E45) -> 4191669.5 | F46: =+E46/((B46+C46)/2)*12/$E$29 -> 0.029423645
A48: Total Investments | B48: =+B35+B41+B46 -> 2129738672 | C48: =+C35+C41+C46 -> 2152290854 | D48: =+D46+D41+D35 -> 5112579.82 | E48: =+E46+E41+E35 -> 10260381.58 | F48: =+E48/((B48+C48)/2)*12/$E$29 -> 0.02875379028

Sheet InvestRisk (hidden)
A1: ="D. INVESTMENT RISK @ " & TEXT(ReportDate,"dd MMM yyyy") -> D. INVESTMENT RISK @ 28 Feb 2022 | D1: =TotalMV -> 2639532366 | E1: 2251301502
A3: Table 9: Investment Strategic Asset Allocation
B4: Target | C4: Min | D4: Max | E4: ="Actual @ " & TEXT(ReportDate,"dd.mm.yyyy") -> Actual @ 28.02.2022
A6: Deposits | B6: 0.3 | C6: 0.25 | D6: 0.35 | E6: =Asset!C11 -> 0.2148482706
A7: MGS | B7: 0.33 | C7: 0.28 | D7: 0.38 | E7: =Asset!C17 -> 0.3418052843
A8: Corporate Bonds | B8: 0.3 | C8: 0.25 | D8: 0.35 | E8: =Asset!C22 -> 0.4433464451
A9: Equities | B9: 0.07 | C9: 0.02 | D9: 0.12 | E9: 0
A11: Table 10: Credit Rating
A12: A. Money Market Instruments (MMI) | C12: Limit (Count) | D12: ="Actual @ " & TEXT(ReportDate,"dd.mm.yyyy") -> Actual @ 28.02.2022
D13: Count | E13: Total Amount
A14: P2 (RAM) or MARC-2 (MARC) & above | C14: n/a | D14: =SUM(COUNTIFS(InInvRisk!H:H,"MM",InInvRisk!N:N,{"P1","P2"},InInvRisk!T:T,0)) -> 0 | E14: =SUM(SUMIFS(InInvRisk!E:E,InInvRisk!H:H,"MM",InInvRisk!N:N,{"P1","P2"},InInvRisk!T:T,0)) -> 0
A15: Below P2 (RAM) or MARC-2 (MARC) | C15: 0 | D15: =SUM(COUNTIFS(InInvRisk!H:H,"MM",InInvRisk!N:N,{"P3","NP"},InInvRisk!T:T,0)) -> 0 | E15: =SUM(SUMIFS(InInvRisk!E:E,InInvRisk!H:H,"MM",InInvRisk!N:N,{"P3","NP"},InInvRisk!T:T,0)) -> 0
A17: B. Malaysian Corporate Bonds | C17: Limit (Count) | D17: ="Actual @ " & TEXT(ReportDate,"dd.mm.yyyy") -> Actual @ 28.02.2022
D18: Count | E18: Total Amount
A19: A3 (RAM) or MARC A- (MARC) & above | C19: n/a | D19: =SUM(COUNTIFS(InInvRisk!D:D,{"AISF","CIMBBF","OIF","OSPEC"},InInvRisk!N:N,{"A*"},InInvRisk!Q:Q,"MYR")) -> 69 | E19: =SUM(SUMIFS(InInvRisk!E:E,InInvRisk!D:D,{"AISF","CIMBBF","OIF","OSPEC"},InInvRisk!N:N,{"A*"},InInvRisk!Q:Q,"MYR")) -> 535919327
A20: Below A3 (RAM) or MARC A- (MARC) | C20: 0 | D20: =SUM(COUNTIFS(InInvRisk!D:D,{"AISF","CIMBBF","OIF","OSPEC"},InInvRisk!N:N,{"N/A"},InInvRisk!Q:Q,"MYR")) -> 1 | E20: =SUM(SUMIFS(InInvRisk!E:E,InInvRisk!D:D,{"AISF","CIMBBF","OIF","OSPEC"},InInvRisk!N:N,{"N/A"},InInvRisk!Q:Q,"MYR")) -> 5000600
A22: C. Foreign Corporate Bonds | C22: Limit (Count) | D22: ="Actual @ " & TEXT(ReportDate,"dd.mm.yyyy") -> Actual @ 28.02.2022
D23: Count | E23: Total Amount
A24: Baa2 (Moody's) or BBB (S&P) & above | C24: n/a | D24: =SUM(COUNTIFS(InInvRisk!I:I,"110",InInvRisk!N:N,{"A*","BBB1"},InInvRisk!Q:Q,"<>MYR",InInvRisk!H:H,"BND"))+SUM(COUNTIFS(InInvRisk!I:I,"120",InInvRisk!N:N,{"A*","BBB1"},InInvRisk!Q:Q,"<>MYR",InInvRisk!H:H,"BND")) -> 0 | E24: =SUM(SUMIFS(InInvRisk!E:E,InInvRisk!I:I,"110",InInvRisk!N:N,{"A*","BBB1"},InInvRisk!Q:Q,"<>MYR",InInvRisk!H:H,"BND"))+SUM(SUMIFS(InInvRisk!E:E,InInvRisk!I:I,"120",InInvRisk!N:N,{"A*","BBB1"},InInvRisk!Q:Q,"<>MYR",InInvRisk!H:H,"BND")) -> 0
A25: Below Baa2 (Moody's) or BBB (S&P) | C25: 0 | D25: =(SUM(COUNTIFS(InInvRisk!I:I,"110",InInvRisk!N:N,{"B*","C*","D*"},InInvRisk!Q:Q,"<>MYR",InInvRisk!H:H,"BND"))+SUM(COUNTIFS(InInvRisk!I:I,"120",InInvRisk!N:N,{"B*","C*","D*"},InInvRisk!Q:Q,"<>MYR",InInvRisk!H:H,"BND")))-SUM(COUNTIFS(InInvRisk!I:I,{"110","120"},InInvRisk!N:N,{"BBB1"},InInvRisk!Q:Q,"<>MYR",InInvRisk!H:H,"BND")) -> 0 | E25: =(SUM(SUMIFS(InInvRisk!E:E,InInvRisk!I:I,"110",InInvRisk!N:N,{"B*","C*","D*"},InInvRisk!Q:Q,"<>MYR",InInvRisk!H:H,"BND"))+SUM(SUMIFS(InInvRisk!E:E,InInvRisk!I:I,"120",InInvRisk!N:N,{"B*","C*","D*"},InInvRisk!Q:Q,"<>MYR",InInvRisk!H:H,"BND")))-SUM(SUMIFS(InInvRisk!E:E,InInvRisk!I:I,{"110","120"},InInvRisk!N:N,{"BBB1"},InInvRisk!Q:Q,"<>MYR",InInvRisk!H:H,"BND")) -> 0
A27: Table 11: Corporate Bond Exposure by Credit Rating
C28: Limit | D28: ="Actual @ " & TEXT(ReportDate,"dd.mm.yyyy") -> Actual @ 28.02.2022
D29: Total Exposure | E29: % of Inv. Asset
A30: AA3/AA- (RAM/MARC) & above | C30: n/a | D30: =SUM(SUMIFS(InInvRisk!E:E,InInvRisk!D:D,{"AISF","CIMBBF","OIF","OSPEC"},InInvRisk!N:N,{"AA*"})) -> 535919327 | E30: =(D30/TotalAsset) -> 0.2030357096
A31: Below AA3/AA- (RAM/MARC) | C31: 0.1 | D31: =SUM(SUMIFS(InInvRisk!E:E,InInvRisk!D:D,{"AISF","CIMBBF","OIF","OSPEC"},InInvRisk!N:N,{"N/A"}))+SUM(SUMIFS(InInvRisk!E:E,InInvRisk!D:D,{"AISF","CIMBBF","OIF","OSPEC"},InInvRisk!N:N,{"A1"}))+SUM(SUMIFS(InInvRisk!E:E,InInvRisk!D:D,{"AISF","CIMBBF","OIF","OSPEC"},InInvRisk!N:N,{"A2"}))+SUM(SUMIFS(InInvRisk!E:E,InInvRisk!D:D,{"AISF","CIMBBF","OIF","OSPEC"},InInvRisk!N:N,{"A3"})) -> 5000600 | E31: =(D31/TotalAsset) -> 0.001894502247
A33: Table 12: Tenure/Average Duration of Assets
A34: A. Deposits | B34: Limit (Count) | C34: ="Actual @ " & TEXT(ReportDate,"dd.mm.yyyy") -> Actual @ 28.02.2022
C35: Count | D35: Total Amount
A36: 1 year & below | B36: n/a | C36: =SUM(COUNTIFS(InInvRisk!H:H,"CSH",InInvRisk!J:J,"<=1",InInvRisk!T:T,0)) -> 28 | D36: =SUM(SUMIFS(InInvRisk!E:E,InInvRisk!H:H,"CSH",InInvRisk!J:J,"<=1",InInvRisk!T:T,0)) -> 458871414.5
A37: > 1 year | B37: 0 | C37: =SUM(COUNTIFS(InInvRisk!H:H,"CSH",InInvRisk!J:J,">1",InInvRisk!T:T,0)) -> 0 | D37: =SUM(SUMIFS(InInvRisk!E:E,InInvRisk!H:H,"CSH",InInvRisk!J:J,">1",InInvRisk!T:T,0)) -> 0
A39: B. Government Bonds - Sovereign Fund | B39: Limit (Count) | C39: ="Actual @ " & TEXT(ReportDate,"dd.mm.yyyy") -> Actual @ 28.02.2022
C40: Count | D40: Total Amount
A41: 10 years & below | B41: n/a | C41: =SUM(COUNTIFS(InInvRisk!D:D,{"AMCF","HWECF","OLRAF"},InInvRisk!N:N,{"X"},InInvRisk!J:J,"<=10")) -> 34 | D41: =SUM(SUMIFS(InInvRisk!E:E,InInvRisk!D:D,{"AMCF","HWECF","OLRAF"},InInvRisk!N:N,{"X"},InInvRisk!J:J,"<=10")) -> 633910202.5
A42: > 10 years | B42: 0 | C42: =SUM(COUNTIFS(InInvRisk!D:D,{"AMCF","HWECF","OLRAF"},InInvRisk!N:N,{"X"},InInvRisk!J:J,">10")) -> 0 | D42: =SUM(SUMIFS(InInvRisk!E:E,InInvRisk!D:D,{"AMCF","HWECF","OLRAF"},InInvRisk!N:N,{"X"},InInvRisk!J:J,">10")) -> 0
A44: C. Corporate Bonds Fund | B44: Limit (Count) | C44: ="Actual @ " & TEXT(ReportDate,"dd.mm.yyyy") -> Actual @ 28.02.2022
C45: Count | D45: Total Amount
A46: 15 years & below | B46: n/a | C46: =SUM(COUNTIFS(InInvRisk!D:D,{"AISF","CIMBBF","OIF","OSPEC"},InInvRisk!J:J,"<=15")) -> 81 | D46: =SUM(SUMIFS(InInvRisk!E:E,InInvRisk!D:D,{"AISF","CIMBBF","OIF","OSPEC"},InInvRisk!J:J,"<=15")) -> 581232027
A47: > 15 years | B47: 0 | C47: =SUM(COUNTIFS(InInvRisk!D:D,{"AISF","CIMBBF","OIF","OSPEC"},InInvRisk!J:J,">15")) -> 0 | D47: =SUM(SUMIFS(InInvRisk!E:E,InInvRisk!D:D,{"AISF","CIMBBF","OIF","OSPEC"},InInvRisk!J:J,">15")) -> 0
A50: Table 13: Total Exposure per Equity Issuer
A51: No. of Issuer | B51: Limit | C51: ="Actual @ " & TEXT(ReportDate,"dd.mm.yyyy") -> Actual @ 28.02.2022
A53: 5% & below | B53: n/a
A54: > 5% | B54: 0 | C54: n/a
A57: Table 14: Total Exposure (Deposits & MMI) per Institution
A58: No. of Issuer | B58: Limit | C58: ="Actual @ " & TEXT(ReportDate,"dd.mm.yyyy") -> Actual @ 28.02.2022
A60: Financial Institution
A61: 15% & below | B61: n/a | C61: =SUM(SUMIFS(FI_TMIM!C:C,FI_TMIM!J:J,"<=15"))+SUM(SUMIFS(FI_TMIM!D:D,FI_TMIM!J:J,"<=15")) -> 0
A62: > 15% | B62: 0 | C62: =SUM(SUMIFS(FI_TMIM!C:C,FI_TMIM!J:J,">15"))+SUM(SUMIFS(FI_TMIM!D:D,FI_TMIM!J:J,">15")) -> 0
A63: Non-Financial Institution
A64: 5% & below | B64: n/a | C64: n/a
A65: > 5% | B65: 0 | C65: n/a
A68: Table 15: Total Exposure (Deposits, MMI & Corporate Bonds) per Institution
A69: No. of Issuer | B69: Limit | C69: ="Actual @ " & TEXT(ReportDate,"dd.mm.yyyy") -> Actual @ 28.02.2022
A71: Financial Institution
A72: 20% & below | B72: n/a | C72: =SUM(SUMIFS(FI_TMIM!H:H,FI_TMIM!J:J,"<=20")) -> 0
A73: > 20% | B73: 0 | C73: =SUM(SUMIFS(FI_TMIM!H:H,FI_TMIM!J:J,">20")) -> 166000000
A74: Non-Financial Institution
A75: 5% & below | B75: n/a | C75: =SUM(SUMIFS(NoFI_TMIM!D:D,NoFI_TMIM!F:F,"<=5")) -> 700403952
A76: > 5% | B76: 0 | C76: =SUM(SUMIFS(NoFI_TMIM!D:D,NoFI_TMIM!F:F,">5")) -> 0

Sheet newInvestRisk (hidden)
B1: ="D. INVESTMENT RISK @ " & TEXT(ReportDate,"dd MMM yyyy") -> D. INVESTMENT RISK @ 28 Feb 2022 | F1: =TotalMV -> 2639532366
B3: Investment Strategic Asset Allocation
C4: Target | D4: Min | E4: Max | F4: ="Actual @ " & TEXT(ReportDate,"dd/MM/yyyy") -> Actual @ 28/02/2022
B6: Deposits | C6: 0.15 | D6: =C6-5% -> 0.1 | E6: =C6+10% -> 0.25 | F6: =Asset!C11 -> 0.2148482706
B7: MGS | C7: 0.35 | D7: =C7-10% -> 0.25 | E7: =C7+5% -> 0.4 | F7: =Asset!C17 -> 0.3418052843
B8: Corporate Bonds | C8: 0.5 | D8: =C8-10% -> 0.4 | E8: =C8+5% -> 0.55 | F8: =Asset!C22 -> 0.4433464451
B9: Equities | C9: 0 | D9: 0 | E9: 0 | F9: 0
B10: Asian Bond | C10: 0 | D10: 0 | E10: 0 | F10: 0
A12: REFERENCE ( To IG) | B12: COMPLIANCE PARAMETERS | D12: LIMIT AMOUNT/ LIMIT AMOUNT PER CONTERPARTY | E12: ACTUAL AMOUNT/ HIGHEST SINGLE COUNTERPARTY AMOUNT | F12: INDICATOR WITHIN LIMIT (Y/N)
B14: Investment Principles
A15: 1.2.6 | B15: The company shall not invest in (i) 100% coal fired power generation project and (ii) 100% coal mining projects with the exception granted for those investment which are already in the investment holdings as of 31 December 2020. | D15: =SUM(K16:K21) -> 30000000 | E15: =SUM(SUMIFS(InMstHst!H:H,InMstHst!F:F,"OIF",InMstHst!AT:AT,{"MYBVO1203236","MYBVN1200796","MYBPO1400016","MYBPS1400108","MYBVK1502866","MYBVK1502874","MYBVD2100913"})) -> 0 | F15: =IF(D15>=E15,"Y","N") -> Y
J16: MYBVO1203236 | K16: 5000000
B17: Internally managed fund | J17: MYBVN1200796 | K17: 5000000
B18: Deposits | J18: MYBPO1400016 | K18: 5000000
A19: 2.3.1.2 | B19: Deposits with tenure less than a year | D19: NA | E19: =SUM(SUMIFS(InMstHst!J:J,InMstHst!F:F,{"AFS","HTM","HFT","SHF"},InMstHst!AG:AG,"CSH",InMstHst!G:G,"F*",InInvRisk!J:J,"<=1"))+SUM(SUMIFS(InMstHst!J:J,InMstHst!F:F,{"AFS","HTM","HFT","SHF"},InMstHst!AG:AG,"CSH",InMstHst!G:G,"R*",InInvRisk!J:J,"<=1")) -> 458871414.5 | F19: =IF(E19<>0,"Y","N") -> Y | J19: MYBPS1400108 | K19: 5000000
B20: Deposits with tenure more than a year | D20: NA | E20: =SUM(SUMIFS(InMstHst!J:J,InMstHst!F:F,{"AFS","HTM","HFT","SHF"},InMstHst!AG:AG,"CSH",InMstHst!G:G,"F*",InInvRisk!J:J,">1"))+SUM(SUMIFS(InMstHst!J:J,InMstHst!F:F,{"AFS","HTM","HFT","SHF"},InMstHst!AG:AG,"CSH",InMstHst!G:G,"R*",InInvRisk!J:J,">1")) -> 0 | F20: =IF(E20<>0,"N","Y") -> Y | J20: MYBVK1502866 | K20: 5000000
J21: MYBVK1502874 | K21: 5000000
B22: Government Bonds (exclude unit trusts)
A23: 2.3.3.2 | B23: Bonds with tenure less than 5 years from the date of purchase | D23: NA | E23: 0 | F23: Y
B24: Bonds with tenure more than 5 years from the date of purchase | D24: NA | E24: 0 | F24: Y
B26: Corporate Bonds (exlcude unit trusts)
A27: 2.3.4.1.a | B27: Rated AA2(RAM) or AA(MARC) and above | D27: NA | E27: 0 | F27: Y
A28: 2.3.4.1.b | B28: Rated Baa2(Moody's) or BBB(S & P) and above | D28: NA | E28: 0 | F28: Y
A29: 2.3.4.2 | B29: Bonds with tenure less than 5 years from the date of purchase | D29: NA | E29: 0 | F29: Y
B31: Outsourced fund
B32: Deposits (Applicable to Money Market Fund Only)
A33: 2.3.1.2 | B33: Deposits with tenure less than a year | D33: NA | E33: =SUM(SUMIFS(InMstHst!J:J,InMstHst!G:G,{"NOMICF","HLMMF","HEDF","PIDF"},InMstHst!AP:AP,"<=1")) -> 0 | F33: Y
B34: Deposits with tenure more than a year | D34: NA | E34: =SUM(SUMIFS(InMstHst!J:J,InMstHst!G:G,{"NOMICF","HLMMF","HEDF","PIDF"},InMstHst!AP:AP,">1")) -> 0 | F34: =IF(E34<>0,"N","Y") -> Y
B36: Government Bonds Fund
A37: 2.3.3.2 | B37: Bonds with tenure less than 20 years from the date of purchase | D37: NA | E37: =SUM(SUMIFS(InInvRisk!E:E,InInvRisk!D:D,{"OLRAF"},InInvRisk!N:N,{"X"},InInvRisk!J:J,"<=20"))+SUM(SUMIFS(InInvRisk!E:E,InInvRisk!U:U,{"AIEF","NIF2","HLIF"},InInvRisk!J:J,"<=20")) -> 714134539.4 | F37: =IF(E37<>0,"Y","N") -> Y
B38: Bonds with tenure more than 20 years from the date of purchase | D38: NA | E38: =SUM(SUMIFS(InInvRisk!E:E,InInvRisk!D:D,{"OLRAF"},InInvRisk!N:N,{"X"},InInvRisk!J:J,">20"))+SUM(SUMIFS(InInvRisk!E:E,InInvRisk!U:U,{"AIEF","NIF2","HLIF"},InInvRisk!J:J,">20")) -> 0 | F38: =IF(E38<>0,"N","Y") -> Y
B40: Corporate Bonds Fund
A41: 2.3.4.1.a | B41: Rated AA3 (RAM) or AA- (MARC) and above | D41: =SUM(SUMIFS(InInvRisk!E:E,InInvRisk!D:D,{"OIF"}))+SUM(SUMIFS(InInvRisk!E:E,InInvRisk!D:D,{"HWIF6"})) -> 890346852 | E41: =SUM(SUMIFS(InInvRisk!E:E,InInvRisk!D:D,{"OIF"},InInvRisk!N:N,{"AA*","X","P1","P2"}))+SUM(SUMIFS(InInvRisk!E:E,InInvRisk!D:D,{"HWIF6"},InInvRisk!N:N,{"AA*","X","P1","P2"})) -> 890346852 | F41: =IF(E41<D41,"N","Y") -> Y
A42: 2.3.4.1.b | B42: Rated Baa3(Moody's) or BBB - (S & P) and above | D42: =SUM(SUMIFS(InInvRisk!E:E,InInvRisk!D:D,"VN120068")) -> 0 | E42: =SUM(SUMIFS(InInvRisk!E:E,InInvRisk!D:D,"VN120068")) -> 0 | F42: =IF(InvestRisk!E25<>0,"N","Y") -> Y
A43: 2.3.4.2 | B43: Bonds with tenure less than 15 years from the date of purchase | D43: =SUM(SUMIFS(InInvRisk!E:E,InInvRisk!D:D,{"OIF"},InInvRisk!J:J,"<=15"))+SUM(SUMIFS(InInvRisk!E:E,InInvRisk!D:D,{"HWIF6"},InInvRisk!J:J,"<=15")) -> 890346852 | E43: =SUM(SUMIFS(InInvRisk!E:E,InInvRisk!D:D,{"OIF"},InInvRisk!J:J,"<=15"))+SUM(SUMIFS(InInvRisk!E:E,InInvRisk!D:D,{"HWIF6"},InInvRisk!J:J,"<=15")) -> 890346852 | F43: =IF(E43<>0,"Y","N") -> Y
B44: Bonds with tenure more than 15 years from the date of purchase | D44: =SUM(SUMIFS(InInvRisk!E:E,InInvRisk!D:D,{"OIF"},InInvRisk!J:J,">15")) -> 0 | E44: =SUM(SUMIFS(InInvRisk!E:E,InInvRisk!D:D,{"OIF","OSPEC"},InInvRisk!J:J,">15")) -> 0 | F44: =IF(E44<>0,"N","Y") -> Y
B47: Concentration Limit (Combination of internally managed and outsourced funds)
B49: Bond
A51: 2.4.1.1.a | B51: 100% limit where the Issure/Guarantor is Federal Government or BNM including special | E51: =SUM(SUMIFS(InInvRisk!E:E,InInvRisk!D:D,{"OIF","OLRAF","OSPEC","HWIF6"},InInvRisk!N:N,{"X"}))+SUM(SUMIFS(InInvRisk!E:E,InInvRisk!U:U,{"AIEF","NIF2","HLIF"})) -> 784813639.4 | F51: =IF(E51<>0,"Y","N") -> Y
B52: purpose vehicles established by the Federal Government or BNM
A53: 2.4.1.2.b | B53: 5% Where the Issuer/Guarantor does not fall under (a) above | E53: =SUM(SUMIFS(InInvRisk!E:E,InInvRisk!D:D,{"OIF","OLRAF","OSPEC","HWIF6"},InInvRisk!N:N,"<>X")) -> 824668352 | F53: =IF(IFERROR((VLOOKUP("NO",NoFI_NLBNM!I:J,2,FALSE)),"Y")=0,"N","Y") -> Y
B55: Deposits and MMI
A57: 2.4.1.2.a | B57: Total deposits and current account below 15% of Total Assets where Financial Institution is QFI | D57: =0.15*F1 -> 395929855 | E57: =MAX(IF(FI_TMIM!D:D="QFI",FI_TMIM!L:L)) -> 239278403.1 | F57: =IF(E57>D57,"N","Y") -> Y
A58: 2.4.1.2.b | B58: Total deposits and current account below 5% of Total Assets where Financial Institution is AMB | D58: =0.05*F1 -> 131976618.3 | E58: =MAX(IF(FI_TMIM!D:D="AMB",FI_TMIM!L:L)) -> 62000000 | F58: =IF(E58>D58,"N","Y") -> Y
A59: 2.4.1.2.c | B59: Total deposits where Financial Institution is non-QFI and non-AMB, BOD's approved
B60: limit of RM50 million for the following Financial Institutions:
B61: - Mizuho Bank (Malaysia) Berhad | D61: 50000000 | E61: =SUM(SUMIFS(InMstHst!J:J,InMstHst!AG:AG,"csh",InMstHst!F:F,{"AFS","HTM","HFT","SHF","TMLHFT"},InMstHst!AS:AS,"MBMB")) -> 15000000 | F61: =IF(E61>D61,"N","Y") -> Y
A62: 2.4.1.3 | B62: BOD's approved limit for short term sovereign fund of RM150 million per Fund Manager:
B63: - Affin Hwang Asset Management | D63: 150000000 | E63: =SUM(SUMIFS(InMstHst!J:J,InMstHst!G:G,{"AIEF"})) -> 20043666.32 | F63: =IF(E63>D63,"N","Y") -> Y
B64: - Nomura Asset Management | D64: 150000000 | E64: =SUMIFS(InMstHst!J:J,InMstHst!G:G,"NIF2") -> 40164791 | F64: =IF(E64>D64,"N","Y") -> Y
B65: - Hong Leong Asset Management Bhd | D65: 150000000 | E65: =SUMIFS(InMstHst!J:J,InMstHst!G:G,"HLIF") -> 20015879.53 | F65: =IF(E65>D65,"N","Y") -> Y
A67: Addendum | B67: Legacy securities (below the permissible grade and to hold until maturity or disposed off) | E67: =SUM(SUMIFS(InInvRisk!E:E,InInvRisk!D:D,{"OSPEC"})) -> 5000600 | F67: =IF(E67>=0,"Y","N") -> Y

Sheet Limit (hidden)
A1: Institution | B1: Limit | C1: Main Market
A2: Besraya (M) Sdn Berhad | B2: 20
A3: Bangkok Bank | B3: 20
A4: Bank of Tokyo-Mitsubishi UFJ (M) Bhd | B4: 20
A5: CIMB | B5: 20
A6: Hong Leong Bank Berhad | B6: 20
A7: HWANG Investment Bank | B7: 20
A8: Industrial And Commercial Bank Of China (M) Bhd | B8: 20
A9: Kimanis Power Sdn Berhad | B9: 20
A10: Malayan Banking Bhd | B10: 20
A11: Mizuho Bank (Malaysia) Bhd | B11: 20
A12: OCBC | B12: 20
A13: PBB | B13: 20
A14: Rantau Abang Capital Berhad | B14: 20
A15: RHB Bank Berhad | B15: 20
A16: RHBBB | B16: 20
A17: Sumitomo Mitsui Banking Corporation Malaysia Bhd | B17: 20
A18: Tanjung Bin Energy Issuer Berhad | B18: 20
A19: Weststar Capital Sdn Berhad | B19: 20
A20: Gabungan Aqrs Berhad | C20: 10
A21: Gamuda Berhad | C21: 10
A22: Hock Seng Lee Berhad | C22: 10
A23: IJM Corporation Berhad | C23: 10
A24: Carlsberg Brewery Malaysia Berhad | C24: 10
A25: Faser & Neave Holdings Berhad | C25: 10
A26: Karex Berhad | C26: 10
A27: NTPM Holdings Berhad | C27: 10
A28: Padini Holdings Berhad | C28: 10
A29: QL Resources Berhad | C29: 10
A30: AEON Credit Service (M) Berhad | C30: 10
A31: Allianz Malaysia Berhad | C31: 10
A32: Bursa Malaysia Berhad | C32: 10
A33: CIMB Group Holdings Berhad | C33: 10
A34: Hong Leong Bank Berhad | C34: 10
A35: Hong Leong Financial Group Berhad | C35: 10
A36: Malayan Banking Berhad | C36: 10
A37: Public Bank Berhad | C37: 10
A38: RHB Capital Berhad | C38: 10
A39: Coastal Contracts Berhad | C39: 10
A40: Petronas Gas Berhad | C40: 10
A41: United U-Li Corporation Berhad | C41: 10
A42: Digi.com Berhad | C42: 10
A43: Lingkaran Trans Kota Holding Berhad | C43: 10
A44: Genting Plantation Berhad | C44: 10
A45: IJM Plantations Berhad | C45: 10
A46: Sarawak Oil Palms Berhad | C46: 10
A47: Eco World Development Group Berhad | C47: 10
A48: IGB Corporation Berhad | C48: 10
A49: IJM Land Berhad | C49: 10
A50: KSL Holdings Berhad | C50: 10
A51: Malaysia Resources Corporation Berhad | C51: 10
A52: Naim Holdings Berhad | C52: 10
A53: Selangor Properties Berhad | C53: 10
A54: Astro Malaysia Holdings Berhad | C54: 10
A55: Axiata Group Berhad | C55: 10
A56: Berjaya Auto Berhad | C56: 10
A57: Berjaya Food Berhad | C57: 10
A58: Bumi Armada Berhad | C58: 10
A59: EngTek Group Berhad | C59: 10
A60: Esthetics Intl Group Bhd | C60: 10
A61: Faber Group Berhad | C61: 10
A62: Gas Malaysia Berhad | C62: 10
A63: Genting Berhad | C63: 10
A64: Genting Malaysia Berhad | C64: 10
A65: Integrax Berhad | C65: 10
A66: Misc Berhad | C66: 10
A67: MY E.G. Services Berhad | C67: 10
A68: Pantech Group Holdings Berhad | C68: 10
A69: Perdana Petroleum Berhad | C69: 10
A70: Perisai Petroleum Teknology Berhad | C70: 10
A71: Pestech International Berhad | C71: 10
A72: Petronas Dagangan Berhad | C72: 10
A73: Sime Darby Berhad | C73: 10
A74: Telekom Malaysia Berhad | C74: 10
A75: Tenaga Nasional Berhad | C75: 10
A76: UMW Oil & Gas Corporation Berhad | C76: 10
A77: Westports Holdings Berhad | C77: 10
A78: Genting Plantations Berhad - WRT | C78: 10
A79: I-Berhad WRT | C79: 10
A80: Tan Chong International | C80: 5

Sheet InInvRisk (hidden)
A1: UTFlag | B1: PreAcqSC | C1: BookValue | D1: qFundCode | E1: MarketValueFC | F1: AccruedInterest | G1: qProductType | H1: qAssetClass | I1: qAssetAccType | J1: interval | K1: qIntSector | L1: qBondType | M1: Exchange | N1: RatingUsed | O1: Inactive | P1: rating | Q1: StockCurrency | R1: Attribute | S1: maturitydate | T1: CashMaturity | U1: qstockcode
A2: 0 | B2: 0 | C2: 30000000 | D2: HFT | E2: 30000000 | F2: 260876.71 | G2: CSH | H2: CSH | I2: 220 | J2: 0.083333 | K2: 0 | P2: 1 | Q2: MYR | R2: FI | S2: 2022-03-14 | T2: 0 | U2: FDC*MYR*BKK
A3: 0 | B3: 0 | C3: 12000000 | D3: HFT | E3: 12000000 | F3: 82109.59 | G3: CSH | H3: CSH | I3: 220 | J3: 0.083333 | K3: 0 | P3: 1 | Q3: MYR | R3: FI | S3: 2022-03-10 | T3: 0 | U3: FDC*MYR*BKK
A4: 0 | B4: 0 | C4: 20000000 | D4: HFT | E4: 20000000 | F4: 40273.97 | G4: CSH | H4: CSH | I4: 220 | J4: 0.083333 | K4: 0 | P4: 1 | Q4: MYR | R4: FI | S4: 2022-03-25 | T4: 0 | U4: FDC*MYR*BKK
A5: 0 | B5: 0 | C5: 15000000 | D5: HFT | E5: 15000000 | F5: 152794.52 | G5: CSH | H5: CSH | I5: 220 | J5: 0.333333 | K5: 0 | P5: 1 | Q5: MYR | R5: FI | S5: 2022-06-13 | T5: 0 | U5: FDC*MYR*MBMB
A6: 0 | B6: 0 | C6: 15000000 | D6: HFT | E6: 15000000 | F6: 396123.29 | G6: CSH | H6: CSH | I6: 220 | J6: 0.083333 | K6: 0 | P6: 1 | Q6: MYR | R6: FI | S6: 2022-03-09 | T6: 0 | U6: FDC*MYR*PBB
A7: 0 | B7: 0 | C7: 10000000 | D7: HFT | E7: 10000000 | F7: 242630.14 | G7: CSH | H7: CSH | I7: 220 | J7: 0.166666 | K7: 0 | P7: 1 | Q7: MYR | R7: FI | S7: 2022-04-07 | T7: 0 | U7: FDC*MYR*PBB
A8: 0 | B8: 0 | C8: 10000000 | D8: HFT | E8: 10000000 | F8: 218219.18 | G8: CSH | H8: CSH | I8: 220 | J8: 0.25 | K8: 0 | P8: 1 | Q8: MYR | R8: FI | S8: 2022-05-10 | T8: 0 | U8: FDC*MYR*PBB
A9: 0 | B9: 0 | C9: 10000000 | D9: HFT | E9: 10000000 | F9: 195287.67 | G9: CSH | H9: CSH | I9: 220 | J9: 0.333333 | K9: 0 | P9: 1 | Q9: MYR | R9: FI | S9: 2022-06-10 | T9: 0 | U9: FDC*MYR*PBB
A10: 0 | B10: 0 | C10: 13000000 | D10: HFT | E10: 13000000 | F10: 194252.05 | G10: CSH | H10: CSH | I10: 220 | J10: 0.5 | K10: 0 | P10: 1 | Q10: MYR | R10: FI | S10: 2022-08-11 | T10: 0 | U10: FDC*MYR*PBB
A11: 0 | B11: 0 | C11: 13000000 | D11: HFT | E11: 13000000 | F11: 166364.38 | G11: CSH | H11: CSH | I11: 220 | J11: 0.583333 | K11: 0 | P11: 1 | Q11: MYR | R11: FI | S11: 2022-09-09 | T11: 0 | U11: FDC*MYR*PBB
A12: 0 | B12: 0 | C12: 10000000 | D12: HFT | E12: 10000000 | F12: 108000 | G12: CSH | H12: CSH | I12: 220 | J12: 0.666666 | K12: 0 | P12: 1 | Q12: MYR | R12: FI | S12: 2022-10-06 | T12: 0 | U12: FDC*MYR*PBB
A13: 0 | B13: 0 | C13: 10000000 | D13: HFT | E13: 10000000 | F13: 82109.59 | G13: CSH | H13: CSH | I13: 220 | J13: 0.75 | K13: 0 | P13: 1 | Q13: MYR | R13: FI | S13: 2022-11-10 | T13: 0 | U13: FDC*MYR*PBB
A14: 0 | B14: 0 | C14: 14000000 | D14: HFT | E14: 14000000 | F14: 85956.16 | G14: CSH | H14: CSH | I14: 220 | J14: 0.833333 | K14: 0 | P14: 1 | Q14: MYR | R14: FI | S14: 2022-12-08 | T14: 0 | U14: FDC*MYR*PBB
A15: 0 | B15: 0 | C15: 10000000 | D15: HFT | E15: 10000000 | F15: 214246.58 | G15: CSH | H15: CSH | I15: 220 | J15: 0.083333 | K15: 0 | P15: 1 | Q15: MYR | R15: FI | S15: 2022-03-26 | T15: 0 | U15: FDC*MYR*RHBBB
A16: 0 | B16: 0 | C16: 18000000 | D16: HFT | E16: 18000000 | F16: 369764.38 | G16: CSH | H16: CSH | I16: 220 | J16: 0.166666 | K16: 0 | P16: 1 | Q16: MYR | R16: FI | S16: 2022-04-09 | T16: 0 | U16: FDC*MYR*RHBBB
A17: 0 | B17: 0 | C17: 12000000 | D17: HFT | E17: 12000000 | F17: 156230.14 | G17: CSH | H17: CSH | I17: 220 | J17: 0.416666 | K17: 0 | P17: 1 | Q17: MYR | R17: FI | S17: 2022-07-28 | T17: 0 | U17: FDC*MYR*RHBBB
A18: 0 | B18: 0 | C18: 20000000 | D18: HFT | E18: 20000000 | F18: 243506.85 | G18: CSH | H18: CSH | I18: 220 | J18: 0.25 | K18: 0 | P18: 1 | Q18: MYR | R18: FI | S18: 2022-05-11 | T18: 0 | U18: FDC*MYR*RHBBB
A19: 0 | B19: 0 | C19: 15000000 | D19: HFT | E19: 15000000 | F19: 169972.6 | G19: CSH | H19: CSH | I19: 220 | J19: 0.25 | K19: 0 | P19: 1 | Q19: MYR | R19: FI | S19: 2022-05-25 | T19: 0 | U19: FDC*MYR*RHBBB
A20: 0 | B20: 0 | C20: 20000000 | D20: HFT | E20: 20000000 | F20: 203726.03 | G20: CSH | H20: CSH | I20: 220 | J20: 0.333333 | K20: 0 | P20: 1 | Q20: MYR | R20: FI | S20: 2022-06-13 | T20: 0 | U20: FDC*MYR*RHBBB
A21: 0 | B21: 0 | C21: 20000000 | D21: HFT | E21: 20000000 | F21: 69315.07 | G21: CSH | H21: CSH | I21: 220 | J21: 0.916666 | K21: 0 | P21: 1 | Q21: MYR | R21: FI | S21: 2023-01-05 | T21: 0 | U21: FDC*MYR*RHBBB
A22: 0 | B22: 0 | C22: 12000000 | D22: HFT | E22: 12000000 | F22: 37068.49 | G22: CSH | H22: CSH | I22: 220 | J22: 0.166666 | K22: 0 | P22: 1 | Q22: MYR | R22: FI | S22: 2022-04-05 | T22: 0 | U22: FDC*MYR*RHBBB
A23: 0 | B23: 0 | C23: 15000000 | D23: HFT | E23: 15000000 | F23: 15226.03 | G23: CSH | H23: CSH | I23: 220 | J23: 0.083333 | K23: 0 | P23: 1 | Q23: MYR | R23: FI | S23: 2022-03-10 | T23: 0 | U23: FDC*MYR*RHBBB
A24: 0 | B24: 0 | C24: 41000000 | D24: HFT | E24: 41000000 | F24: 519295.89 | G24: CSH | H24: CSH | I24: 220 | J24: 0.5 | K24: 0 | P24: 1 | Q24: MYR | R24: FI | S24: 2022-08-12 | T24: 0 | U24: FDC*MYR*SMBCMB
A25: 0 | B25: 0 | C25: 14000000 | D25: HFT | E25: 14000000 | F25: 4027.4 | G25: CSH | H25: CSH | I25: 210 | J25: 0.083333 | K25: 0 | P25: 1 | Q25: MYR | R25: FI | S25: 2022-03-08 | T25: 0 | U25: RPC*MYR*RHBBB
A26: 0 | B26: 0 | C26: 8000000 | D26: HFT | E26: 8000000 | F26: 1643.84 | G26: CSH | H26: CSH | I26: 210 | J26: 0.083333 | K26: 0 | P26: 1 | Q26: MYR | R26: FI | S26: 2022-03-10 | T26: 0 | U26: RPC*MYR*RHBBB
A27: 0 | B27: 0 | C27: 61000000 | D27: HFT | E27: 61000000 | F27: 10027.4 | G27: CSH | H27: CSH | I27: 210 | J27: 0.083333 | K27: 0 | P27: 1 | Q27: MYR | R27: FI | S27: 2022-03-09 | T27: 0 | U27: RPC*MYR*RHBBB
A28: 0 | B28: 0 | C28: 5349800 | D28: HWIF6 | E28: 5349800 | F28: 0 | G28: BND | H28: BND | I28: 110 | J28: 3.833333 | K28: 0 | L28: 5 | N28: AA2 | O28: 0 | P28: 0 | Q28: MYR | R28: NonFI | S28: 2025-12-12 | T28: 0 | U28: DO140029
A29: 0 | B29: 0 | C29: 9997000 | D29: HWIF6 | E29: 9997000 | F29: 0 | G29: BND | H29: BND | I29: 131 | J29: 5.583333 | K29: 0 | L29: 5 | N29: X | O29: 0 | P29: 0 | Q29: MYR | R29: NonFI | S29: 2027-09-30 | T29: 0 | U29: GL200001
A30: 0 | B30: 0 | C30: 10445000 | D30: HWIF6 | E30: 10445000 | F30: 0 | G30: BND | H30: BND | I30: 140 | J30: 6.666666 | K30: 0 | L30: 5 | N30: X | O30: 0 | P30: 0 | Q30: MYR | R30: NonFI | S30: 2028-10-31 | T30: 0 | U30: GO180002
A31: 0 | B31: 0 | C31: 9925000 | D31: HWIF6 | E31: 9925000 | F31: 0 | G31: BND | H31: BND | I31: 140 | J31: 9.416666 | K31: 0 | L31: 5 | N31: X | O31: 0 | P31: 0 | Q31: MYR | R31: NonFI | S31: 2032-07-15 | T31: 0 | U31: MO220001
A32: 0 | B32: 0 | C32: 10192000 | D32: HWIF6 | E32: 10192000 | F32: 0 | G32: BND | H32: BND | I32: 110 | J32: 2.25 | K32: 0 | L32: 5 | N32: AA3 | O32: 0 | P32: 0 | Q32: MYR | R32: FI | S32: 2029-05-21 | T32: 0 | U32: PN190004
A33: 0 | B33: 0 | C33: 5052150 | D33: HWIF6 | E33: 5052150 | F33: 0 | G33: BND | H33: BND | I33: 110 | J33: 2.75 | K33: 0 | L33: 5 | N33: AA2 | O33: 0 | P33: 0 | Q33: MYR | R33: NonFI | S33: 2029-11-23 | T33: 0 | U33: PN190015
A34: 0 | B34: 0 | C34: 10362400 | D34: HWIF6 | E34: 10362400 | F34: 0 | G34: BND | H34: BND | I34: 110 | J34: 2.583333 | K34: 0 | L34: 5 | N34: AA2 | O34: 0 | P34: 0 | Q34: MYR | R34: NonFI | S34: 2029-09-13 | T34: 0 | U34: PO180006
A35: 0 | B35: 0 | C35: 7473375 | D35: HWIF6 | E35: 7473375 | F35: 0 | G35: BND | H35: BND | I35: 110 | J35: 3 | K35: 0 | L35: 5 | N35: AA3 | O35: 0 | P35: 0 | Q35: MYR | R35: NonFI | S35: 2120-02-27 | T35: 0 | U35: PZ200004
A36: 0 | B36: 0 | C36: 5044700 | D36: HWIF6 | E36: 5044700 | F36: 0 | G36: BND | H36: BND | I36: 110 | J36: 1.166666 | K36: 0 | L36: 5 | N36: AA1 | O36: 0 | P36: 0 | Q36: MYR | R36: NonFI | S36: 2023-04-25 | T36: 0 | U36: UN130048
A37: 0 | B37: 0 | C37: 15280650 | D37: HWIF6 | E37: 15280650 | F37: 0 | G37: BND | H37: BND | I37: 110 | J37: 2.333333 | K37: 0 | L37: 5 | N37: AA2 | O37: 0 | P37: 0 | Q37: MYR | R37: NonFI | S37: 2029-06-14 | T37: 0 | U37: UN190218
A38: 0 | B38: 0 | C38: 5084500 | D38: HWIF6 | E38: 5084500 | F38: 0 | G38: BND | H38: BND | I38: 110 | J38: 2.416666 | K38: 6 | L38: 30 | N38: AA1 | O38: 0 | P38: 0 | Q38: MYR | R38: FI | S38: 2029-07-27 | T38: 0 | U38: UN190256
A39: 0 | B39: 0 | C39: 10101500 | D39: HWIF6 | E39: 10101500 | F39: 0 | G39: BND | H39: BND | I39: 110 | J39: 2.833333 | K39: 6 | L39: 30 | N39: AA1 | O39: 0 | P39: 0 | Q39: MYR | R39: FI | S39: 2029-12-18 | T39: 0 | U39: UN190380
A40: 0 | B40: 0 | C40: 4883850 | D40: HWIF6 | E40: 4883850 | F40: 0 | G40: BND | H40: BND | I40: 110 | J40: 3.75 | K40: 0 | L40: 5 | N40: AA3 | O40: 0 | P40: 0 | Q40: MYR | R40: FI | S40: 2030-11-20 | T40: 0 | U40: UN200272
A41: 0 | B41: 0 | C41: 5006800 | D41: HWIF6 | E41: 5006800 | F41: 0 | G41: BND | H41: BND | I41: 110 | J41: 2.833333 | K41: 0 | L41: 5 | N41: AAA | O41: 0 | P41: 0 | Q41: MYR | R41: NonFI | S41: 2024-12-24 | T41: 0 | U41: VG220099
A42: 0 | B42: 0 | C42: 5026700 | D42: HWIF6 | E42: 5026700 | F42: 0 | G42: BND | H42: BND | I42: 110 | J42: 0.25 | K42: 0 | L42: 5 | N42: AA2 | O42: 0 | P42: 0 | Q42: MYR | R42: NonFI | S42: 2022-05-27 | T42: 0 | U42: VI170168
A43: 0 | B43: 0 | C43: 5138250 | D43: HWIF6 | E43: 5138250 | F43: 0 | G43: BND | H43: BND | I43: 110 | J43: 1.583333 | K43: 0 | L43: 5 | N43: AA3 | O43: 0 | P43: 0 | Q43: MYR | R43: NonFI | S43: 2023-09-28 | T43: 0 | U43: VI180273
A44: 0 | B44: 0 | C44: 10181200 | D44: HWIF6 | E44: 10181200 | F44: 0 | G44: BND | H44: BND | I44: 110 | J44: 2.416666 | K44: 0 | L44: 5 | N44: AA2 | O44: 0 | P44: 0 | Q44: MYR | R44: NonFI | S44: 2024-07-22 | T44: 0 | U44: VI190119
A45: 0 | B45: 0 | C45: 10009900 | D45: HWIF6 | E45: 10009900 | F45: 0 | G45: BND | H45: BND | I45: 110 | J45: 4.916666 | K45: 0 | L45: 5 | N45: AA1 | O45: 0 | P45: 0 | Q45: MYR | R45: NonFI | S45: 2027-01-25 | T45: 0 | U45: VI220037
A46: 0 | B46: 0 | C46: 10083400 | D46: HWIF6 | E46: 10083400 | F46: 0 | G46: BND | H46: BND | I46: 110 | J46: 0.416666 | K46: 0 | L46: 5 | N46: AAA | O46: 0 | P46: 0 | Q46: MYR | R46: NonFI | S46: 2022-07-29 | T46: 0 | U46: VK150151
A47: 0 | B47: 0 | C47: 5088750 | D47: HWIF6 | E47: 5088750 | F47: 0 | G47: BND | H47: BND | I47: 110 | J47: 1.25 | K47: 0 | L47: 5 | N47: AA3 | O47: 0 | P47: 0 | Q47: MYR | R47: NonFI | S47: 2023-05-19 | T47: 0 | U47: VK160146
A48: 0 | B48: 0 | C48: 4805500 | D48: HWIF6 | E48: 4805500 | F48: 0 | G48: BND | H48: BND | I48: 110 | J48: 5.666666 | K48: 0 | L48: 5 | N48: AA2 | O48: 0 | P48: 0 | Q48: MYR | R48: NonFI | S48: 2027-10-07 | T48: 0 | U48: VK200216
A49: 0 | B49: 0 | C49: 9645000 | D49: HWIF6 | E49: 9645000 | F49: 0 | G49: BND | H49: BND | I49: 110 | J49: 5.75 | K49: 0 | L49: 5 | N49: AAA | O49: 0 | P49: 0 | Q49: MYR | R49: NonFI | S49: 2027-11-05 | T49: 0 | U49: VK200302
A50: 0 | B50: 0 | C50: 4850200 | D50: HWIF6 | E50: 4850200 | F50: 0 | G50: BND | H50: BND | I50: 110 | J50: 5.833333 | K50: 0 | L50: 5 | N50: AA1 | O50: 0 | P50: 0 | Q50: MYR | R50: NonFI | S50: 2027-12-03 | T50: 0 | U50: VK200335
A51: 0 | B51: 0 | C51: 5020300 | D51: HWIF6 | E51: 5020300 | F51: 0 | G51: BND | H51: BND | I51: 110 | J51: 7 | K51: 0 | L51: 5 | N51: AA1 | O51: 0 | P51: 0 | Q51: MYR | R51: NonFI | S51: 2029-02-09 | T51: 0 | U51: VK220083
A52: 0 | B52: 0 | C52: 10438500 | D52: HWIF6 | E52: 10438500 | F52: 0 | G52: BND | H52: BND | I52: 110 | J52: 3.5 | K52: 0 | L52: 5 | N52: AA3 | O52: 0 | P52: 0 | Q52: MYR | R52: NonFI | S52: 2025-08-29 | T52: 0 | U52: VL170240
A53: 0 | B53: 0 | C53: 10063500 | D53: HWIF6 | E53: 10063500 | F53: 0 | G53: BND | H53: BND | I53: 110 | J53: 0.5 | K53: 0 | L53: 5 | N53: AAA | O53: 0 | P53: 0 | Q53: MYR | R53: NonFI | S53: 2022-08-05 | T53: 0 | U53: VN120286
A54: 0 | B54: 0 | C54: 15240600 | D54: HWIF6 | E54: 15240600 | F54: 0 | G54: BND | H54: BND | I54: 110 | J54: 1.083333 | K54: 0 | L54: 5 | N54: AAA | O54: 0 | P54: 0 | Q54: MYR | R54: NonFI | S54: 2023-03-08 | T54: 0 | U54: VN130094
A55: 0 | B55: 0 | C55: 10344400 | D55: HWIF6 | E55: 10344400 | F55: 0 | G55: BND | H55: BND | I55: 110 | J55: 3.333333 | K55: 0 | L55: 5 | N55: AA2 | O55: 0 | P55: 0 | Q55: MYR | R55: NonFI | S55: 2025-06-05 | T55: 0 | U55: VN150132
A56: 0 | B56: 0 | C56: 5316900 | D56: HWIF6 | E56: 5316900 | F56: 0 | G56: BND | H56: BND | I56: 110 | J56: 5.5 | K56: 0 | L56: 5 | N56: AA1 | O56: 0 | P56: 0 | Q56: MYR | R56: NonFI | S56: 2027-08-27 | T56: 0 | U56: VN170244
A57: 0 | B57: 0 | C57: 5368800 | D57: HWIF6 | E57: 5368800 | F57: 0 | G57: BND | H57: BND | I57: 110 | J57: 6.083333 | K57: 0 | L57: 5 | N57: AA3 | O57: 0 | P57: 0 | Q57: MYR | R57: NonFI | S57: 2028-03-24 | T57: 0 | U57: VN180095
A58: 0 | B58: 0 | C58: 5228750 | D58: HWIF6 | E58: 5228750 | F58: 0 | G58: BND | H58: BND | I58: 110 | J58: 6.5 | K58: 0 | L58: 5 | N58: AA3 | O58: 0 | P58: 0 | Q58: MYR | R58: NonFI | S58: 2028-08-18 | T58: 0 | U58: VN180242
A59: 0 | B59: 0 | C59: 5131100 | D59: HWIF6 | E59: 5131100 | F59: 0 | G59: BND | H59: BND | I59: 110 | J59: 7.166666 | K59: 0 | L59: 5 | N59: AA3 | O59: 0 | P59: 0 | Q59: MYR | R59: NonFI | S59: 2029-04-10 | T59: 0 | U59: VN190085
A60: 0 | B60: 0 | C60: 9778200 | D60: HWIF6 | E60: 9778200 | F60: 0 | G60: BND | H60: BND | I60: 110 | J60: 7.583333 | K60: 0 | L60: 5 | N60: AAA | O60: 0 | P60: 0 | Q60: MYR | R60: NonFI | S60: 2029-09-20 | T60: 0 | U60: VN190184
A61: 0 | B61: 0 | C61: 7475700 | D61: HWIF6 | E61: 7475700 | F61: 0 | G61: BND | H61: BND | I61: 110 | J61: 7.75 | K61: 0 | L61: 5 | N61: AA3 | O61: 0 | P61: 0 | Q61: MYR | R61: NonFI | S61: 2029-11-16 | T61: 0 | U61: VN190236
A62: 0 | B62: 0 | C62: 9492200 | D62: HWIF6 | E62: 9492200 | F62: 0 | G62: BND | H62: BND | I62: 110 | J62: 8.333333 | K62: 0 | L62: 5 | N62: AA1 | O62: 0 | P62: 0 | Q62: MYR | R62: NonFI | S62: 2030-06-14 | T62: 0 | U62: VN200089
A63: 0 | B63: 0 | C63: 4982600 | D63: HWIF6 | E63: 4982600 | F63: 0 | G63: BND | H63: BND | I63: 110 | J63: 9.75 | K63: 0 | L63: 5 | N63: AAA | O63: 0 | P63: 0 | Q63: MYR | R63: NonFI | S63: 2031-11-25 | T63: 0 | U63: VN210441
A64: 0 | B64: 0 | C64: 5023000 | D64: HWIF6 | E64: 5023000 | F64: 0 | G64: BND | H64: BND | I64: 110 | J64: 0.25 | K64: 0 | L64: 5 | N64: AA1 | O64: 0 | P64: 0 | Q64: MYR | R64: NonFI | S64: 2022-05-03 | T64: 0 | U64: VO110051
A65: 0 | B65: 0 | C65: 10177500 | D65: HWIF6 | E65: 10177500 | F65: 0 | G65: BND | H65: BND | I65: 110 | J65: 0.916666 | K65: 0 | L65: 5 | N65: AAA | O65: 0 | P65: 0 | Q65: MYR | S65: 2023-01-12 | T65: 0 | U65: VO120010
A66: 0 | B66: 0 | C66: 5426550 | D66: HWIF6 | E66: 5426550 | F66: 0 | G66: BND | H66: BND | I66: 110 | J66: 5.75 | K66: 0 | L66: 5 | N66: AA3 | O66: 0 | P66: 0 | Q66: MYR | R66: NonFI | S66: 2027-11-12 | T66: 0 | U66: VP150259
A67: 0 | B67: 0 | C67: 10579200 | D67: HWIF6 | E67: 10579200 | F67: 0 | G67: BND | H67: BND | I67: 110 | J67: 9.166666 | K67: 0 | L67: 5 | N67: AA3 | O67: 0 | P67: 0 | Q67: MYR | R67: NonFI | S67: 2031-04-30 | T67: 0 | U67: VR170359
A68: 0 | B68: 0 | C68: 5513800 | D68: OIF | E68: 5513800 | F68: 0 | G68: BND | H68: BND | I68: 110 | J68: 6.333333 | K68: 0 | L68: 5 | N68: AA2 | O68: 0 | P68: 0 | Q68: MYR | R68: NonFI | S68: 2028-06-12 | T68: 0 | U68: DR140026
A69: 0 | B69: 0 | C69: 9820000 | D69: OIF | E69: 9820000 | F69: 0 | G69: BND | H69: BND | I69: 140 | J69: 12.416666 | K69: 0 | L69: 5 | N69: X | O69: 0 | P69: 0 | Q69: MYR | R69: NonFI | S69: 2034-07-05 | T69: 0 | U69: MS190004
A70: 0 | B70: 0 | C70: 5142800 | D70: OIF | E70: 5142800 | F70: 0 | G70: BND | H70: BND | I70: 110 | J70: 1.666666 | K70: 0 | L70: 5 | N70: AA1 | O70: 0 | P70: 0 | Q70: MYR | R70: NonFI | S70: 2023-10-23 | T70: 0 | U70: PJ170012
A71: 0 | B71: 0 | C71: 5990700 | D71: OIF | E71: 5990700 | F71: 0 | G71: BND | H71: BND | I71: 110 | J71: 2.083333 | K71: 0 | L71: 5 | N71: AA3 | O71: 0 | P71: 0 | Q71: MYR | R71: NonFI | S71: 2022-03-31 | T71: 0 | U71: PK170006
A72: 0 | B72: 0 | C72: 20776612 | D72: OIF | E72: 20776612 | F72: 0 | G72: BND | H72: BND | I72: 110 | J72: 2.583333 | K72: 0 | L72: 5 | N72: AA2 | O72: 0 | P72: 0 | Q72: MYR | R72: NonFI | S72: 2024-09-13 | T72: 0 | U72: PO180006
A73: 0 | B73: 0 | C73: 5285250 | D73: OIF | E73: 5285250 | F73: 0 | G73: BND | H73: BND | I73: 110 | J73: 4.416666 | K73: 0 | L73: 5 | N73: AA1 | O73: 0 | P73: 0 | Q73: MYR | R73: NonFI | S73: 2026-07-03 | T73: 0 | U73: PP140040
A74: 0 | B74: 0 | C74: 9980000 | D74: OIF | E74: 9980000 | F74: 0 | G74: BND | H74: BND | I74: 110 | J74: 3.083333 | K74: 0 | L74: 5 | N74: AAA | O74: 0 | P74: 0 | Q74: MYR | R74: NonFI | S74: 2025-03-24 | T74: 0 | U74: UH210111
A75: 0 | B75: 0 | C75: 9957700 | D75: OIF | E75: 9957700 | F75: 0 | G75: BND | H75: BND | I75: 110 | J75: 2.666666 | K75: 0 | L75: 5 | N75: AAA | O75: 0 | P75: 0 | Q75: MYR | R75: NonFI | S75: 2024-10-18 | T75: 0 | U75: UH210181
A76: 0 | B76: 0 | C76: 9785400 | D76: OIF | E76: 9785400 | F76: 0 | G76: BND | H76: BND | I76: 110 | J76: 2.416666 | K76: 0 | L76: 5 | N76: AAA | O76: 0 | P76: 0 | Q76: MYR | R76: NonFI | S76: 2024-07-12 | T76: 0 | U76: UI190238
A77: 0 | B77: 0 | C77: 10005000 | D77: OIF | E77: 10005000 | F77: 0 | G77: BND | H77: BND | I77: 110 | J77: 2.916666 | K77: 0 | L77: 5 | N77: AAA | O77: 0 | P77: 0 | Q77: MYR | R77: NonFI | S77: 2025-01-30 | T77: 0 | U77: UI200031
A78: 0 | B78: 0 | C78: 15228750 | D78: OIF | E78: 15228750 | F78: 0 | G78: BND | H78: BND | I78: 110 | J78: 1 | K78: 0 | L78: 5 | N78: AAA | O78: 0 | P78: 0 | Q78: MYR | R78: NonFI | S78: 2023-02-28 | T78: 0 | U78: UJ180024
A79: 0 | B79: 0 | C79: 5161150 | D79: OIF | E79: 5161150 | F79: 0 | G79: BND | H79: BND | I79: 110 | J79: 4 | K79: 0 | L79: 5 | N79: AA1 | O79: 0 | P79: 0 | Q79: MYR | R79: NonFI | S79: 2026-02-27 | T79: 0 | U79: UK190029
A80: 0 | B80: 0 | C80: 5092300 | D80: OIF | E80: 5092300 | F80: 0 | G80: BND | H80: BND | I80: 110 | J80: 2.666666 | K80: 0 | L80: 5 | N80: AA1 | O80: 0 | P80: 0 | Q80: MYR | R80: NonFI | S80: 2024-10-11 | T80: 0 | U80: UN140148
A81: 0 | B81: 0 | C81: 5101000 | D81: OIF | E81: 5101000 | F81: 0 | G81: BND | H81: BND | I81: 110 | J81: 3.5 | K81: 0 | L81: 5 | N81: AAA | O81: 0 | P81: 0 | Q81: MYR | R81: NonFI | S81: 2025-08-22 | T81: 0 | U81: UN150064
A82: 0 | B82: 0 | C82: 5209950 | D82: OIF | E82: 5209950 | F82: 0 | G82: BND | H82: BND | I82: 110 | J82: 5.25 | K82: 0 | L82: 5 | N82: AAA | O82: 0 | P82: 0 | Q82: MYR | R82: FI | S82: 2027-05-18 | T82: 0 | U82: UN170079
A83: 0 | B83: 0 | C83: 5274300 | D83: OIF | E83: 5274300 | F83: 0 | G83: BND | H83: BND | I83: 110 | J83: 5.5 | K83: 0 | L83: 5 | N83: AA1 | O83: 0 | P83: 0 | Q83: MYR | R83: NonFI | S83: 2027-08-27 | T83: 0 | U83: UN170131
A84: 0 | B84: 0 | C84: 20246800 | D84: OIF | E84: 20246800 | F84: 0 | G84: BND | H84: BND | I84: 110 | J84: 0.666666 | K84: 0 | L84: 5 | N84: AA3 | O84: 0 | P84: 0 | Q84: MYR | R84: FI | S84: 2022-10-11 | T84: 0 | U84: UN170158
A85: 0 | B85: 0 | C85: 25467750 | D85: OIF | E85: 25467750 | F85: 0 | G85: BND | H85: BND | I85: 110 | J85: 2.333333 | K85: 0 | L85: 5 | N85: AA2 | O85: 0 | P85: 0 | Q85: MYR | R85: NonFI | S85: 2024-06-14 | T85: 0 | U85: UN190218
A86: 0 | B86: 0 | C86: 5200300 | D86: OIF | E86: 5200300 | F86: 0 | G86: BND | H86: BND | I86: 110 | J86: 7.416666 | K86: 0 | L86: 5 | N86: AA3 | O86: 0 | P86: 0 | Q86: MYR | R86: NonFI | S86: 2029-07-31 | T86: 0 | U86: UN190259
A87: 0 | B87: 0 | C87: 4752250 | D87: OIF | E87: 4752250 | F87: 0 | G87: BND | H87: BND | I87: 110 | J87: 7.75 | K87: 0 | L87: 5 | N87: AAA | O87: 0 | P87: 0 | Q87: MYR | R87: NonFI | S87: 2029-11-08 | T87: 0 | U87: UN190345
A88: 0 | B88: 0 | C88: 10101500 | D88: OIF | E88: 10101500 | F88: 0 | G88: BND | H88: BND | I88: 110 | J88: 2.833333 | K88: 6 | L88: 30 | N88: AA1 | O88: 0 | P88: 0 | Q88: MYR | R88: FI | S88: 2024-12-18 | T88: 0 | U88: UN190380
A89: 0 | B89: 0 | C89: 4949950 | D89: OIF | E89: 4949950 | F89: 0 | G89: BND | H89: BND | I89: 110 | J89: 4.166666 | K89: 0 | L89: 5 | N89: AA3 | O89: 0 | P89: 0 | Q89: MYR | R89: FI | S89: 2026-04-28 | T89: 0 | U89: UN210163
A90: 0 | B90: 0 | C90: 10721000 | D90: OIF | E90: 10721000 | F90: 0 | G90: BND | H90: BND | I90: 110 | J90: 8.5 | K90: 0 | L90: 5 | N90: AA1 | O90: 0 | P90: 0 | Q90: MYR | R90: NonFI | S90: 2030-08-29 | T90: 0 | U90: UQ170134
A91: 0 | B91: 0 | C91: 4966900 | D91: OIF | E91: 4966900 | F91: 0 | G91: BND | H91: BND | I91: 110 | J91: 2.416666 | K91: 0 | L91: 5 | N91: AAA | O91: 0 | P91: 0 | Q91: MYR | R91: NonFI | S91: 2024-07-08 | T91: 0 | U91: VG210262
A92: 0 | B92: 0 | C92: 0 | D92: OIF | E92: 0 | F92: 0 | G92: BND | H92: BND | I92: 110 | J92: -0.5 | K92: 0 | L92: 5 | N92: D | O92: 0 | P92: 0 | Q92: MYR | R92: NonFI | S92: 2022-04-29 | T92: 0 | U92: VI160132
A93: 0 | B93: 0 | C93: 4877550 | D93: OIF | E93: 4877550 | F93: 0 | G93: BND | H93: BND | I93: 110 | J93: 3.833333 | K93: 0 | L93: 5 | N93: AAA | O93: 0 | P93: 0 | Q93: MYR | R93: NonFI | S93: 2025-12-23 | T93: 0 | U93: VI200352
A94: 0 | B94: 0 | C94: 13691580 | D94: OIF | E94: 13691580 | F94: 0 | G94: BND | H94: BND | I94: 110 | J94: 4.416666 | K94: 0 | L94: 5 | N94: AAA | O94: 0 | P94: 0 | Q94: MYR | R94: NonFI | S94: 2026-07-31 | T94: 0 | U94: VI210292
A95: 0 | B95: 0 | C95: 4963650 | D95: OIF | E95: 4963650 | F95: 0 | G95: BND | H95: BND | I95: 110 | J95: 4.666666 | K95: 0 | L95: 5 | N95: AAA | O95: 0 | P95: 0 | Q95: MYR | R95: FI | S95: 2026-10-21 | T95: 0 | U95: VI210377
A96: 0 | B96: 0 | C96: 5004950 | D96: OIF | E96: 5004950 | F96: 0 | G96: BND | H96: BND | I96: 110 | J96: 4.916666 | K96: 0 | L96: 5 | N96: AA1 | O96: 0 | P96: 0 | Q96: MYR | R96: NonFI | S96: 2027-01-25 | T96: 0 | U96: VI220037
A97: 0 | B97: 0 | C97: 0 | D97: OIF | E97: 0 | F97: 0 | G97: BND | H97: BND | I97: 110 | J97: 0.166666 | K97: 0 | L97: 5 | N97: D | O97: 0 | P97: 0 | Q97: MYR | R97: NonFI | S97: 2022-04-29 | T97: 0 | U97: VJ160133
A98: 0 | B98: 0 | C98: 2514525 | D98: OIF | E98: 2514525 | F98: 0 | G98: BND | H98: BND | I98: 110 | J98: 5.833333 | K98: 0 | L98: 5 | N98: AA3 | O98: 0 | P98: 0 | Q98: MYR | R98: NonFI | S98: 2027-12-07 | T98: 0 | U98: VJ210459
A99: 0 | B99: 0 | C99: 5019550 | D99: OIF | E99: 5019550 | F99: 0 | G99: BND | H99: BND | I99: 110 | J99: 0.25 | K99: 0 | L99: 5 | N99: AA1 | O99: 0 | P99: 0 | Q99: MYR | R99: NonFI | S99: 2022-05-05 | T99: 0 | U99: VK1500670
A100: 0 | B100: 0 | C100: 5027450 | D100: OIF | E100: 5027450 | F100: 0 | G100: BND | H100: BND | I100: 110 | J100: 0.333333 | K100: 0 | L100: 5 | N100: AAA | O100: 0 | P100: 0 | Q100: MYR | R100: NonFI | S100: 2022-06-10 | T100: 0 | U100: VK150133
A101: 0 | B101: 0 | C101: 5172350 | D101: OIF | E101: 5172350 | F101: 0 | G101: BND | H101: BND | I101: 110 | J101: 1.333333 | K101: 0 | L101: 5 | N101: AAA | O101: 0 | P101: 0 | Q101: MYR | R101: NonFI | S101: 2023-06-21 | T101: 0 | U101: VK160180
A102: 0 | B102: 0 | C102: 5178200 | D102: OIF | E102: 5178200 | F102: 0 | G102: BND | H102: BND | I102: 110 | J102: 2.083333 | K102: 0 | L102: 5 | N102: AAA | O102: 0 | P102: 0 | Q102: MYR | R102: NonFI | S102: 2024-03-29 | T102: 0 | U102: VK170137
A103: 0 | B103: 0 | C103: 3082650 | D103: OIF | E103: 3082650 | F103: 0 | G103: BND | H103: BND | I103: 110 | J103: 2.416666 | K103: 0 | L103: 5 | N103: AA3 | O103: 0 | P103: 0 | Q103: MYR | R103: NonFI | S103: 2024-07-17 | T103: 0 | U103: VK170191
A104: 0 | B104: 0 | C104: 10303100 | D104: OIF | E104: 10303100 | F104: 0 | G104: BND | H104: BND | I104: 110 | J104: 4 | K104: 0 | L104: 5 | N104: AAA | O104: 0 | P104: 0 | Q104: MYR | R104: NonFI | S104: 2026-02-13 | T104: 0 | U104: VK190031
A105: 0 | B105: 0 | C105: 5016600 | D105: OIF | E105: 5016600 | F105: 0 | G105: BND | H105: BND | I105: 110 | J105: 4.666666 | K105: 0 | L105: 5 | N105: AAA | O105: 0 | P105: 0 | Q105: MYR | R105: NonFI | S105: 2026-10-30 | T105: 0 | U105: VK190230
A106: 0 | B106: 0 | C106: 7341075 | D106: OIF | E106: 7341075 | F106: 0 | G106: BND | H106: BND | I106: 110 | J106: 5.333333 | K106: 0 | L106: 5 | N106: AAA | O106: 0 | P106: 0 | Q106: MYR | R106: NonFI | S106: 2027-06-04 | T106: 0 | U106: VK200085
A107: 0 | B107: 0 | C107: 9634000 | D107: OIF | E107: 9634000 | F107: 0 | G107: BND | H107: BND | I107: 110 | J107: 5.833333 | K107: 0 | L107: 5 | N107: AAA | O107: 0 | P107: 0 | Q107: MYR | R107: NonFI | S107: 2027-12-23 | T107: 0 | U107: VK200351
A108: 0 | B108: 0 | C108: 5032200 | D108: OIF | E108: 5032200 | F108: 0 | G108: BND | H108: BND | I108: 110 | J108: 0.333333 | K108: 0 | L108: 5 | N108: AA3 | O108: 0 | P108: 0 | Q108: MYR | R108: NonFI | S108: 2022-06-10 | T108: 0 | U108: VL140150
A109: 0 | B109: 0 | C109: 10295800 | D109: OIF | E109: 10295800 | F109: 0 | G109: BND | H109: BND | I109: 110 | J109: 3.416666 | K109: 0 | L109: 5 | N109: AA3 | O109: 0 | P109: 0 | Q109: MYR | R109: NonFI | S109: 2025-07-17 | T109: 0 | U109: VL170192
A110: 0 | B110: 0 | C110: 5219250 | D110: OIF | E110: 5219250 | F110: 0 | G110: BND | H110: BND | I110: 110 | J110: 3.5 | K110: 0 | L110: 5 | N110: AA3 | O110: 0 | P110: 0 | Q110: MYR | R110: NonFI | S110: 2025-08-29 | T110: 0 | U110: VL170240
A111: 0 | B111: 0 | C111: 4716650 | D111: OIF | E111: 4716650 | F111: 0 | G111: BND | H111: BND | I111: 130 | J111: 6.666666 | K111: 0 | L111: 5 | N111: X | O111: 0 | P111: 0 | Q111: MYR | R111: NonFI | S111: 2028-10-27 | T111: 0 | U111: VL2002765
A112: 0 | B112: 0 | C112: 5040750 | D112: OIF | E112: 5040750 | F112: 0 | G112: BND | H112: BND | I112: 110 | J112: 0.833333 | K112: 0 | L112: 5 | N112: AA3 | O112: 0 | P112: 0 | Q112: MYR | R112: NonFI | S112: 2022-12-02 | T112: 0 | U112: VM130299
A113: 0 | B113: 0 | C113: 5132150 | D113: OIF | E113: 5132150 | F113: 0 | G113: BND | H113: BND | I113: 110 | J113: 1.5 | K113: 0 | L113: 5 | N113: AA2 | O113: 0 | P113: 0 | Q113: MYR | R113: NonFI | S113: 2023-08-10 | T113: 0 | U113: VM140347
A114: 0 | B114: 0 | C114: 5254000 | D114: OIF | E114: 5254000 | F114: 0 | G114: BND | H114: BND | I114: 110 | J114: 1.333333 | K114: 0 | L114: 5 | N114: AA2 | O114: 0 | P114: 0 | Q114: MYR | R114: NonFI | S114: 2023-06-21 | T114: 0 | U114: VM160181
A115: 0 | B115: 0 | C115: 5251050 | D115: OIF | E115: 5251050 | F115: 0 | G115: BND | H115: BND | I115: 110 | J115: 2.333333 | K115: 0 | L115: 5 | N115: AA3 | O115: 0 | P115: 0 | Q115: MYR | R115: NonFI | S115: 2024-06-28 | T115: 0 | U115: VN140164
A116: 0 | B116: 0 | C116: 15901050 | D116: OIF | E116: 15901050 | F116: 0 | G116: BND | H116: BND | I116: 110 | J116: 4.083333 | K116: 0 | L116: 5 | N116: AA3 | O116: 0 | P116: 0 | Q116: MYR | R116: NonFI | S116: 2026-03-09 | T116: 0 | U116: VN160032
A117: 0 | B117: 0 | C117: 5045750 | D117: OIF | E117: 5045750 | F117: 0 | G117: BND | H117: BND | I117: 110 | J117: 0.5 | K117: 0 | L117: 5 | N117: AA1 | O117: 0 | P117: 0 | Q117: MYR | R117: FI | S117: 2022-08-03 | T117: 0 | U117: VN170225
A118: 0 | B118: 0 | C118: 5059900 | D118: OIF | E118: 5059900 | F118: 0 | G118: BND | H118: BND | I118: 110 | J118: 0.666666 | K118: 0 | L118: 5 | N118: AA1 | O118: 0 | P118: 0 | Q118: MYR | R118: NonFI | S118: 2022-10-06 | T118: 0 | U118: VN170286
A119: 0 | B119: 0 | C119: 5244750 | D119: OIF | E119: 5244750 | F119: 0 | G119: BND | H119: BND | I119: 110 | J119: 6.666666 | K119: 0 | L119: 5 | N119: AAA | O119: 0 | P119: 0 | Q119: MYR | R119: NonFI | S119: 2028-10-31 | T119: 0 | U119: VN180302
A120: 0 | B120: 0 | C120: 2576100 | D120: OIF | E120: 2576100 | F120: 0 | G120: BND | H120: BND | I120: 110 | J120: 1.916666 | K120: 0 | L120: 5 | N120: AA1 | O120: 0 | P120: 0 | Q120: MYR | R120: FI | S120: 2024-01-31 | T120: 0 | U120: VN190017
A121: 0 | B121: 0 | C121: 15576300 | D121: OIF | E121: 15576300 | F121: 0 | G121: BND | H121: BND | I121: 110 | J121: 7 | K121: 0 | L121: 5 | N121: AAA | O121: 0 | P121: 0 | Q121: MYR | R121: NonFI | S121: 2029-02-23 | T121: 0 | U121: VN190036
A122: 0 | B122: 0 | C122: 5123950 | D122: OIF | E122: 5123950 | F122: 0 | G122: BND | H122: BND | I122: 110 | J122: 7.083333 | K122: 0 | L122: 5 | N122: X | O122: 0 | P122: 0 | Q122: MYR | R122: NonFI | S122: 2029-03-12 | T122: 0 | U122: VN190052
A123: 0 | B123: 0 | C123: 10128700 | D123: OIF | E123: 10128700 | F123: 0 | G123: BND | H123: BND | I123: 110 | J123: 2.666666 | K123: 0 | L123: 5 | N123: AA1 | O123: 0 | P123: 0 | Q123: MYR | R123: FI | S123: 2024-10-31 | T123: 0 | U123: VN190233
A124: 0 | B124: 0 | C124: 4904500 | D124: OIF | E124: 4904500 | F124: 0 | G124: BND | H124: BND | I124: 110 | J124: 3.666666 | K124: 0 | L124: 5 | N124: AA1 | O124: 0 | P124: 0 | Q124: MYR | R124: FI | S124: 2025-10-09 | T124: 0 | U124: VN200219
A125: 0 | B125: 0 | C125: 4992850 | D125: OIF | E125: 4992850 | F125: 0 | G125: BND | H125: BND | I125: 110 | J125: 9.333333 | K125: 0 | L125: 5 | N125: AAA | O125: 0 | P125: 0 | Q125: MYR | R125: NonFI | S125: 2031-06-06 | T125: 0 | U125: VN210218
A126: 0 | B126: 0 | C126: 9965200 | D126: OIF | E126: 9965200 | F126: 0 | G126: BND | H126: BND | I126: 110 | J126: 9.75 | K126: 0 | L126: 5 | N126: AAA | O126: 0 | P126: 0 | Q126: MYR | R126: NonFI | S126: 2031-11-25 | T126: 0 | U126: VN210441
A127: 0 | B127: 0 | C127: 5096800 | D127: OIF | E127: 5096800 | F127: 0 | G127: BND | H127: BND | I127: 110 | J127: 2.833333 | K127: 0 | L127: 5 | N127: AA3 | O127: 0 | P127: 0 | Q127: MYR | R127: NonFI | S127: 2024-12-02 | T127: 0 | U127: VO130301
A128: 0 | B128: 0 | C128: 5340600 | D128: OIF | E128: 5340600 | F128: 0 | G128: BND | H128: BND | I128: 110 | J128: 4.916666 | K128: 0 | L128: 5 | N128: AAA | O128: 0 | P128: 0 | Q128: MYR | R128: NonFI | S128: 2027-01-29 | T128: 0 | U128: VO160014
A129: 0 | B129: 0 | C129: 5070550 | D129: OIF | E129: 5070550 | F129: 0 | G129: BND | H129: BND | I129: 110 | J129: 3.833333 | K129: 0 | L129: 5 | N129: AA3 | O129: 0 | P129: 0 | Q129: MYR | R129: NonFI | S129: 2025-12-02 | T129: 0 | U129: VP130302
A130: 0 | B130: 0 | C130: 2641900 | D130: OIF | E130: 2641900 | F130: 0 | G130: BND | H130: BND | I130: 110 | J130: 4.416666 | K130: 0 | L130: 5 | N130: AA3 | O130: 0 | P130: 0 | Q130: MYR | R130: NonFI | S130: 2026-07-01 | T130: 0 | U130: VQ130187
A131: 0 | B131: 0 | C131: 3027510 | D131: OIF | E131: 3027510 | F131: 0 | G131: BND | H131: BND | I131: 110 | J131: 4.833333 | K131: 0 | L131: 5 | N131: AA3 | O131: 0 | P131: 0 | Q131: MYR | R131: NonFI | S131: 2026-12-02 | T131: 0 | U131: VQ130303
A132: 0 | B132: 0 | C132: 0 | D132: OIF | E132: 0 | F132: 0 | G132: BND | H132: BND | I132: 110 | J132: 8.166666 | K132: 0 | L132: 5 | N132: D | O132: 0 | P132: 0 | Q132: MYR | R132: NonFI | S132: 2030-04-29 | T132: 0 | U132: VR160140
A133: 0 | B133: 0 | C133: 5254600 | D133: OIF | E133: 5254600 | F133: 0 | G133: BND | H133: BND | I133: 110 | J133: 6.666666 | K133: 0 | L133: 5 | N133: X | O133: 0 | P133: 0 | Q133: MYR | R133: NonFI | S133: 2028-10-31 | T133: 0 | U133: VS130277
A134: 0 | B134: 0 | C134: 10787200 | D134: OIF | E134: 10787200 | F134: 0 | G134: BND | H134: BND | I134: 110 | J134: 7.083333 | K134: 0 | L134: 5 | N134: AAA | O134: 0 | P134: 0 | Q134: MYR | R134: NonFI | S134: 2029-03-26 | T134: 0 | U134: VS140056
A135: 0 | B135: 0 | C135: 0 | D135: OIF | E135: 0 | F135: 0 | G135: BND | H135: BND | I135: 110 | J135: 9.166666 | K135: 0 | L135: 5 | N135: D | O135: 0 | P135: 0 | Q135: MYR | R135: NonFI | S135: 2031-04-29 | T135: 0 | U135: VS160141
A136: 0 | B136: 0 | C136: 8006025 | D136: OIF | E136: 8006025 | F136: 0 | G136: BND | H136: BND | I136: 110 | J136: 10.083333 | K136: 0 | L136: 5 | N136: AAA | O136: 0 | P136: 0 | Q136: MYR | R136: NonFI | S136: 2032-03-02 | T136: 0 | U136: VS170042
A137: 0 | B137: 0 | C137: 5397100 | D137: OIF | E137: 5397100 | F137: 0 | G137: BND | H137: BND | I137: 110 | J137: 10.5 | K137: 0 | L137: 5 | N137: X | O137: 0 | P137: 0 | Q137: MYR | R137: NonFI | S137: 2032-08-17 | T137: 0 | U137: VS170237
A138: 0 | B138: 0 | C138: 4663550 | D138: OIF | E138: 4663550 | F138: 0 | G138: BND | H138: BND | I138: 110 | J138: 13.416666 | K138: 0 | L138: 5 | N138: X | O138: 0 | P138: 0 | Q138: MYR | R138: NonFI | S138: 2035-07-06 | T138: 0 | U138: VS200116
A139: 0 | B139: 0 | C139: 10882000 | D139: OIF | E139: 10882000 | F139: 0 | G139: BND | H139: BND | I139: 110 | J139: 5.75 | K139: 0 | L139: 5 | N139: AA2 | O139: 0 | P139: 0 | Q139: MYR | R139: NonFI | S139: 2027-11-29 | T139: 0 | U139: VT110452
A140: 0 | B140: 0 | C140: 10589300 | D140: OIF | E140: 10589300 | F140: 0 | G140: BND | H140: BND | I140: 110 | J140: 5.916666 | K140: 0 | L140: 5 | N140: AAA | O140: 0 | P140: 0 | Q140: MYR | R140: NonFI | S140: 2028-01-12 | T140: 0 | U140: VT120015
A141: 0 | B141: 0 | C141: 9887600 | D141: OIF | E141: 9887600 | F141: 0 | G141: BND | H141: BND | I141: 110 | J141: 7.75 | K141: 0 | L141: 5 | N141: AA3 | O141: 0 | P141: 0 | Q141: MYR | R141: NonFI | S141: 2029-11-30 | T141: 0 | U141: VT130306
A142: 0 | B142: 0 | C142: 5356150 | D142: OIF | E142: 5356150 | F142: 0 | G142: BND | H142: BND | I142: 110 | J142: 11.583333 | K142: 0 | L142: 5 | N142: AAA | O142: 0 | P142: 0 | Q142: MYR | R142: NonFI | S142: 2033-09-21 | T142: 0 | U142: VT180093
A143: 0 | B143: 0 | C143: 5515350 | D143: OIF | E143: 5515350 | F143: 0 | G143: BND | H143: BND | I143: 110 | J143: 6.75 | K143: 0 | L143: 5 | N143: AA2 | O143: 0 | P143: 0 | Q143: MYR | S143: 2028-11-29 | T143: 0 | U143: VU110453
A144: 0 | B144: 0 | C144: 10658300 | D144: OIF | E144: 10658300 | F144: 0 | G144: BND | H144: BND | I144: 110 | J144: 6.916666 | K144: 0 | L144: 5 | N144: AAA | O144: 0 | P144: 0 | Q144: MYR | R144: NonFI | S144: 2029-01-12 | T144: 0 | U144: VU120016
A145: 0 | B145: 0 | C145: 5336250 | D145: OIF | E145: 5336250 | F145: 0 | G145: BND | H145: BND | I145: 110 | J145: 11.666666 | K145: 0 | L145: 5 | N145: X | O145: 0 | P145: 0 | Q145: MYR | R145: NonFI | S145: 2033-10-31 | T145: 0 | U145: VX130278
A146: 0 | B146: 0 | C146: 15518550 | D146: OIF | E146: 15518550 | F146: 0 | G146: BND | H146: BND | I146: 110 | J146: 2.833333 | K146: 0 | L146: 5 | N146: AA2 | O146: 0 | P146: 0 | Q146: MYR | R146: NonFI | S146: 2024-12-13 | T146: 0 | U146: VZ140395
A147: 0 | B147: 0 | C147: 10182800 | D147: OIF | E147: 10182800 | F147: 0 | G147: BND | H147: BND | I147: 110 | J147: 2.583333 | K147: 6 | L147: 30 | N147: AA3 | O147: 0 | P147: 0 | Q147: MYR | R147: FI | S147: 2024-09-25 | T147: 0 | U147: VZ190186
A148: 0 | B148: 0 | C148: 27442800 | D148: OLRAF | E148: 27442800 | F148: 0 | G148: BND | H148: BND | I148: 140 | J148: 4.083333 | K148: 0 | L148: 5 | N148: X | O148: 0 | P148: 0 | Q148: MYR | R148: NonFI | S148: 2026-03-31 | T148: 0 | U148: GK190003
A149: 0 | B149: 0 | C149: 64980500 | D149: OLRAF | E149: 64980500 | F149: 0 | G149: BND | H149: BND | I149: 131 | J149: 5.583333 | K149: 0 | L149: 5 | N149: X | O149: 0 | P149: 0 | Q149: MYR | R149: NonFI | S149: 2027-09-30 | T149: 0 | U149: GL200001
A150: 0 | B150: 0 | C150: 10306500 | D150: OLRAF | E150: 10306500 | F150: 0 | G150: BND | H150: BND | I150: 140 | J150: 4.583333 | K150: 0 | L150: 5 | N150: X | O150: 0 | P150: 0 | Q150: MYR | R150: NonFI | S150: 2026-09-30 | T150: 0 | U150: GO160003
A151: 0 | B151: 0 | C151: 44391250 | D151: OLRAF | E151: 44391250 | F151: 0 | G151: BND | H151: BND | I151: 140 | J151: 6.666666 | K151: 0 | L151: 5 | N151: X | O151: 0 | P151: 0 | Q151: MYR | R151: NonFI | S151: 2028-10-31 | T151: 0 | U151: GO180002
A152: 0 | B152: 0 | C152: 19620000 | D152: OLRAF | E152: 19620000 | F152: 0 | G152: BND | H152: BND | I152: 131 | J152: 6.666666 | K152: 0 | L152: 5 | N152: X | O152: 0 | P152: 0 | Q152: MYR | R152: NonFI | S152: 2030-10-15 | T152: 0 | U152: GO200002
A153: 0 | B153: 0 | C153: 41064000 | D153: OLRAF | E153: 41064000 | F153: 0 | G153: BND | H153: BND | I153: 140 | J153: 4.75 | K153: 0 | L153: 5 | N153: X | O153: 0 | P153: 0 | Q153: MYR | R153: NonFI | S153: 2026-11-30 | T153: 0 | U153: MO160003
A154: 0 | B154: 0 | C154: 80892000 | D154: OLRAF | E154: 80892000 | F154: 0 | G154: BND | H154: BND | I154: 140 | J154: 6.333333 | K154: 0 | L154: 5 | N154: X | O154: 0 | P154: 0 | Q154: MYR | R154: NonFI | S154: 2028-06-15 | T154: 0 | U154: MS130005
A155: 0 | B155: 0 | C155: 25102250 | D155: OLRAF | E155: 25102250 | F155: 0 | G155: BND | H155: BND | I155: 140 | J155: 5.25 | K155: 0 | L155: 5 | N155: X | O155: 0 | P155: 0 | Q155: MYR | R155: NonFI | S155: 2027-05-31 | T155: 0 | U155: MX070003
A156: 0 | B156: 0 | C156: 21031200 | D156: OLRAF | E156: 21031200 | F156: 0 | G156: BND | H156: BND | I156: 140 | J156: 8.166666 | K156: 0 | L156: 5 | N156: X | O156: 0 | P156: 0 | Q156: MYR | R156: NonFI | S156: 2030-04-15 | T156: 0 | U156: MX100003
A157: 0 | B157: 0 | C157: 14007420 | D157: OLRAF | E157: 14007420 | F157: 0 | G157: BND | H157: BND | I157: 110 | J157: 0.083333 | K157: 0 | L157: 5 | N157: X | O157: 0 | P157: 0 | Q157: MYR | R157: NonFI | S157: 2022-03-09 | T157: 0 | U157: VI170105
A158: 0 | B158: 0 | C158: 19866600 | D158: OLRAF | E158: 19866600 | F158: 0 | G158: BND | H158: BND | I158: 110 | J158: 3.166666 | K158: 0 | L158: 5 | N158: X | O158: 0 | P158: 0 | Q158: MYR | R158: NonFI | S158: 2025-04-23 | T158: 0 | U158: VI200063
A159: 0 | B159: 0 | C159: 4898450 | D159: OLRAF | E159: 4898450 | F159: 0 | G159: BND | H159: BND | I159: 110 | J159: 4.5 | K159: 0 | L159: 5 | N159: X | O159: 0 | P159: 0 | Q159: MYR | R159: NonFI | S159: 2026-08-27 | T159: 0 | U159: VI210330
A160: 0 | B160: 0 | C160: 5101150 | D160: OLRAF | E160: 5101150 | F160: 0 | G160: BND | H160: BND | I160: 130 | J160: 1.416666 | K160: 0 | L160: 5 | N160: X | O160: 0 | P160: 0 | Q160: MYR | R160: NonFI | S160: 2023-07-27 | T160: 0 | U160: VK160230
A161: 0 | B161: 0 | C161: 34679320 | D161: OLRAF | E161: 34679320 | F161: 0 | G161: BND | H161: BND | I161: 130 | J161: 1.416666 | K161: 0 | L161: 5 | N161: X | O161: 0 | P161: 0 | Q161: MYR | R161: NonFI | S161: 2023-07-28 | T161: 0 | U161: VK160234
A162: 0 | B162: 0 | C162: 10214500 | D162: OLRAF | E162: 10214500 | F162: 0 | G162: BND | H162: BND | I162: 110 | J162: 1.666666 | K162: 0 | L162: 5 | N162: X | O162: 0 | P162: 0 | Q162: MYR | R162: NonFI | S162: 2023-10-20 | T162: 0 | U162: VK160318
A163: 0 | B163: 0 | C163: 3673912.5 | D163: OLRAF | E163: 3673912.5 | F163: 0 | G163: BND | H163: BND | I163: 130 | J163: 6.583333 | K163: 0 | L163: 5 | N163: X | O163: 0 | P163: 0 | Q163: MYR | R163: NonFI | S163: 2028-09-01 | T163: 0 | U163: VK210335
A164: 0 | B164: 0 | C164: 4716650 | D164: OLRAF | E164: 4716650 | F164: 0 | G164: BND | H164: BND | I164: 130 | J164: 6.666666 | K164: 0 | L164: 5 | N164: X | O164: 0 | P164: 0 | Q164: MYR | R164: NonFI | S164: 2028-10-27 | T164: 0 | U164: VL2002765
A165: 0 | B165: 0 | C165: 35878850 | D165: OLRAF | E165: 35878850 | F165: 0 | G165: BND | H165: BND | I165: 110 | J165: 1.5 | K165: 0 | L165: 5 | N165: X | O165: 0 | P165: 0 | Q165: MYR | R165: NonFI | S165: 2023-08-29 | T165: 0 | U165: VN130240
A166: 0 | B166: 0 | C166: 10266100 | D166: OLRAF | E166: 10266100 | F166: 0 | G166: BND | H166: BND | I166: 110 | J166: 1.666666 | K166: 0 | L166: 5 | N166: X | O166: 0 | P166: 0 | Q166: MYR | R166: NonFI | S166: 2023-10-31 | T166: 0 | U166: VN130276
A167: 0 | B167: 0 | C167: 15564000 | D167: OLRAF | E167: 15564000 | F167: 0 | G167: BND | H167: BND | I167: 130 | J167: 4.333333 | K167: 0 | L167: 5 | N167: X | O167: 0 | P167: 0 | Q167: MYR | R167: NonFI | S167: 2026-06-17 | T167: 0 | U167: VN160158
A168: 0 | B168: 0 | C168: 5157850 | D168: OLRAF | E168: 5157850 | F168: 0 | G168: BND | H168: BND | I168: 130 | J168: 4.416666 | K168: 0 | L168: 5 | N168: X | O168: 0 | P168: 0 | Q168: MYR | R168: NonFI | S168: 2026-07-27 | T168: 0 | U168: VN160231
A169: 0 | B169: 0 | C169: 20626800 | D169: OLRAF | E169: 20626800 | F169: 0 | G169: BND | H169: BND | I169: 130 | J169: 4.416666 | K169: 0 | L169: 5 | N169: X | O169: 0 | P169: 0 | Q169: MYR | R169: NonFI | S169: 2026-07-28 | T169: 0 | U169: VN160235
A170: 0 | B170: 0 | C170: 10242400 | D170: OLRAF | E170: 10242400 | F170: 0 | G170: BND | H170: BND | I170: 130 | J170: 4.583333 | K170: 0 | L170: 5 | N170: X | O170: 0 | P170: 0 | Q170: MYR | R170: NonFI | S170: 2026-09-21 | T170: 0 | U170: VN160279
A171: 0 | B171: 0 | C171: 5234950 | D171: OLRAF | E171: 5234950 | F171: 0 | G171: BND | H171: BND | I171: 110 | J171: 5.083333 | K171: 0 | L171: 5 | N171: X | O171: 0 | P171: 0 | Q171: MYR | R171: NonFI | S171: 2027-03-19 | T171: 0 | U171: VN170118
A172: 0 | B172: 0 | C172: 10495300 | D172: OLRAF | E172: 10495300 | F172: 0 | G172: BND | H172: BND | I172: 110 | J172: 6.083333 | K172: 0 | L172: 5 | N172: X | O172: 0 | P172: 0 | Q172: MYR | R172: NonFI | S172: 2028-03-08 | T172: 0 | U172: VN180081
A173: 0 | B173: 0 | C173: 5168800 | D173: OLRAF | E173: 5168800 | F173: 0 | G173: BND | H173: BND | I173: 110 | J173: 7 | K173: 0 | L173: 5 | N173: X | O173: 0 | P173: 0 | Q173: MYR | R173: NonFI | S173: 2029-02-07 | T173: 0 | U173: VN190019
A174: 0 | B174: 0 | C174: 5123950 | D174: OLRAF | E174: 5123950 | F174: 0 | G174: BND | H174: BND | I174: 110 | J174: 7.083333 | K174: 0 | L174: 5 | N174: X | O174: 0 | P174: 0 | Q174: MYR | R174: NonFI | S174: 2029-03-12 | T174: 0 | U174: VN190052
A175: 0 | B175: 0 | C175: 4733200 | D175: OLRAF | E175: 4733200 | F175: 0 | G175: BND | H175: BND | I175: 110 | J175: 8.416666 | K175: 0 | L175: 5 | N175: X | O175: 0 | P175: 0 | Q175: MYR | R175: NonFI | S175: 2030-07-05 | T175: 0 | U175: VN200115
A176: 0 | B176: 0 | C176: 5225800 | D176: OLRAF | E176: 5225800 | F176: 0 | G176: BND | H176: BND | I176: 130 | J176: 4.5 | K176: 0 | L176: 5 | N176: X | O176: 0 | P176: 0 | Q176: MYR | R176: NonFI | S176: 2026-08-27 | T176: 0 | U176: VP140207
A177: 0 | B177: 0 | C177: 15549300 | D177: OLRAF | E177: 15549300 | F177: 0 | G177: BND | H177: BND | I177: 110 | J177: 4.5 | K177: 0 | L177: 5 | N177: X | O177: 0 | P177: 0 | Q177: MYR | R177: NonFI | S177: 2026-08-04 | T177: 0 | U177: VS110260
A178: 0 | B178: 0 | C178: 15763800 | D178: OLRAF | E178: 15763800 | F178: 0 | G178: BND | H178: BND | I178: 110 | J178: 6.666666 | K178: 0 | L178: 5 | N178: X | O178: 0 | P178: 0 | Q178: MYR | R178: NonFI | S178: 2028-10-31 | T178: 0 | U178: VS130277
A179: 0 | B179: 0 | C179: 5271050 | D179: OLRAF | E179: 5271050 | F179: 0 | G179: BND | H179: BND | I179: 110 | J179: 8.083333 | K179: 0 | L179: 5 | N179: X | O179: 0 | P179: 0 | Q179: MYR | R179: NonFI | S179: 2030-03-22 | T179: 0 | U179: VS150043
A180: 0 | B180: 0 | C180: 15947400 | D180: OLRAF | E180: 15947400 | F180: 0 | G180: BND | H180: BND | I180: 110 | J180: 9 | K180: 0 | L180: 5 | N180: X | O180: 0 | P180: 0 | Q180: MYR | R180: NonFI | S180: 2031-02-26 | T180: 0 | U180: VS160029
A181: 0 | B181: 0 | C181: 15672150 | D181: OLRAF | E181: 15672150 | F181: 0 | G181: BND | H181: BND | I181: 110 | J181: 9.416666 | K181: 0 | L181: 5 | N181: X | O181: 0 | P181: 0 | Q181: MYR | R181: NonFI | S181: 2031-07-28 | T181: 0 | U181: VS160236
A182: 0 | B182: 0 | C182: 5000600 | D182: OSPEC | E182: 5000600 | F182: 0 | G182: BND | H182: BND | I182: 110 | J182: 0.083333 | K182: 0 | L182: 5 | N182: N/A | O182: 0 | P182: 0 | Q182: MYR | R182: NonFI | S182: 2022-03-03 | T182: 0 | U182: VN120068
A183: 0 | B183: 0 | C183: 5629850.36 | D183: SHF | E183: 5629850.36 | F183: 116715.28 | G183: CSH | H183: CSH | I183: 220 | J183: 0.166666 | K183: 0 | P183: 1 | Q183: MYR | R183: FI | S183: 2022-04-06 | T183: 0 | U183: FDC*MYR*RHBBB
A184: 0 | B184: 0 | C184: 5241564.14 | D184: SHF | E184: 5241564.14 | F184: 54282.5 | G184: CSH | H184: CSH | I184: 220 | J184: 0.583333 | K184: 0 | P184: 1 | Q184: MYR | R184: FI | S184: 2022-09-14 | T184: 0 | U184: FDC*MYR*RHBBB
A185: 0 | B185: 0 | C185: 20001424.66 | D185: TMUT | E185: 20043666.32 | F185: 0 | G185: EQT | H185: CIS | I185: 450 | J185: -0.083333 | K185: 0 | M185: KLSE | P185: 0 | Q185: MYR | S185: 3000-01-01 | T185: 0 | U185: AIEF
A186: 0 | B186: 0 | C186: 20023880.29 | D186: TMUT | E186: 20015879.53 | F186: 0 | G186: EQT | H186: CIS | I186: 450 | J186: -0.083333 | K186: 0 | M186: KLSE | P186: 0 | Q186: MYR | S186: 3000-01-01 | T186: 0 | U186: HLIF
A187: 0 | B187: 0 | C187: 350000000 | D187: TMUT | E187: 350980112.1 | F187: 0 | G187: EQT | H187: CIS | I187: 440 | J187: -0.083333 | K187: 0 | M187: KLSE | P187: 0 | Q187: MYR | S187: 3000-01-01 | T187: 0 | U187: HWIF6
A188: 0 | B188: 0 | C188: 40000000 | D188: TMUT | E188: 40164791 | F188: 0 | G188: EQT | H188: CIS | I188: 450 | J188: -0.083333 | K188: 0 | M188: KLSE | P188: 0 | Q188: MYR | S188: 3000-01-01 | T188: 0 | U188: NIF2
A189: 0 | B189: 0 | C189: 592019196.7 | D189: TMUT | E189: 598700288.2 | F189: 0 | G189: EQT | H189: CIS | I189: 440 | J189: -0.083333 | K189: 0 | M189: KLSE | P189: 0 | Q189: MYR | S189: 3000-01-01 | T189: 0 | U189: OIF
A190: 0 | B190: 0 | C190: 650000000 | D190: TMUT | E190: 658396778 | F190: 0 | G190: EQT | H190: CIS | I190: 450 | J190: -0.083333 | K190: 0 | M190: KLSE | P190: 0 | Q190: MYR | S190: 3000-01-01 | T190: 0 | U190: OLRAF
A191: 0 | B191: 0 | C191: 4877000.42 | D191: TMUT | E191: 5117924.24 | F191: 0 | G191: EQT | H191: CIS | I191: 440 | J191: -0.083333 | K191: 0 | M191: KLSE | P191: 0 | Q191: MYR | S191: 3000-01-01 | T191: 0 | U191: OSPEC

Sheet InTrn (hidden)
A1: stype | B1: qFundCode | C1: qStockCode | D1: qAssetClass | E1: qProductType | F1: qTrnCode | G1: TranIncome | H1: FCNetProceed
A2: YTD | B2: TMUT | C2: AIEF | D2: CIS | E2: EQT | F2: SI | G2: 0 | H2: 19200.75
A3: YTD | B3: TMUT | C3: AIEF | D3: CIS | E3: EQT | F3: SI | G3: 0 | H3: 23040.91
A4: YTD | B4: HFT | C4: CAP*MYR | D4: CAP | E4: CSH | F4: CN | G4: 0 | H4: -10000000
A5: YTD | B5: TMUT | C5: CAP*MYR | D5: CAP | E5: CSH | F5: CN | G5: 0 | H5: -2195301.6
A6: YTD | B6: HFT | C6: CAP*MYR | D6: CAP | E6: CSH | F6: CR | G6: 0 | H6: 2195301.6
A7: YTD | B7: TMUT | C7: CAP*MYR | D7: CAP | E7: CSH | F7: CN | G7: 0 | H7: -2066315.95
A8: YTD | B8: HFT | C8: CAP*MYR | D8: CAP | E8: CSH | F8: CR | G8: 0 | H8: 2066315.95
A9: YTD | B9: TMUT | C9: CAP*MYR | D9: CAP | E9: CSH | F9: CN | G9: 0 | H9: -52404.92
A10: YTD | B10: HFT | C10: CAP*MYR | D10: CAP | E10: CSH | F10: CR | G10: 0 | H10: 52404.92
A11: YTD | B11: HFT | C11: CAP*MYR | D11: CAP | E11: CSH | F11: CR | G11: 0 | H11: 4000000
A12: YTD | B12: HFT | C12: CAP*MYR | D12: CAP | E12: CSH | F12: CR | G12: 0 | H12: 4000000
A13: YTD | B13: TMUT | C13: CAP*MYR | D13: CAP | E13: CSH | F13: CN | G13: 0 | H13: -2551.39
A14: YTD | B14: HFT | C14: CAP*MYR | D14: CAP | E14: CSH | F14: CR | G14: 0 | H14: 2551.39
A15: YTD | B15: TMUT | C15: CAP*MYR | D15: CAP | E15: CSH | F15: CN | G15: 0 | H15: -658.7
A16: YTD | B16: HFT | C16: CAP*MYR | D16: CAP | E16: CSH | F16: CR | G16: 0 | H16: 658.7
A17: YTD | B17: TMUT | C17: CAP*MYR | D17: CAP | E17: CSH | F17: CN | G17: 0 | H17: -23040.91
A18: YTD | B18: HFT | C18: CAP*MYR | D18: CAP | E18: CSH | F18: CR | G18: 0 | H18: 23040.91
A19: YTD | B19: HFT | C19: CAP*MYR | D19: CAP | E19: CSH | F19: CN | G19: 0 | H19: -5000000
A20: YTD | B20: HFT | C20: CAP*MYR | D20: CAP | E20: CSH | F20: CN | G20: 0 | H20: -5000000
A21: YTD | B21: HFT | C21: CAP*MYR | D21: CAP | E21: CSH | F21: CR | G21: 0 | H21: 8000000
A22: YTD | B22: HFT | C22: CAP*MYR | D22: CAP | E22: CSH | F22: CN | G22: 0 | H22: -100000000
A23: YTD | B23: TMUT | C23: CAP*MYR | D23: CAP | E23: CSH | F23: CR | G23: 0 | H23: 100000000
A24: YTD | B24: TMUT | C24: CAP*MYR | D24: CAP | E24: CSH | F24: CN | G24: 0 | H24: -50000000
A25: YTD | B25: HFT | C25: CAP*MYR | D25: CAP | E25: CSH | F25: CR | G25: 0 | H25: 50000000
A26: YTD | B26: HFT | C26: CAP*MYR | D26: CAP | E26: CSH | F26: CN | G26: 0 | H26: -100000000
A27: YTD | B27: TMUT | C27: CAP*MYR | D27: CAP | E27: CSH | F27: CR | G27: 0 | H27: 100000000
A28: YTD | B28: TMUT | C28: CAP*MYR | D28: CAP | E28: CSH | F28: CN | G28: 0 | H28: -100000000
A29: YTD | B29: HFT | C29: CAP*MYR | D29: CAP | E29: CSH | F29: CR | G29: 0 | H29: 100000000
A30: YTD | B30: TMUT | C30: CAP*MYR | D30: CAP | E30: CSH | F30: CR | G30: 0 | H30: 100000000
A31: YTD | B31: HFT | C31: CAP*MYR | D31: CAP | E31: CSH | F31: CN | G31: 0 | H31: -100000000
A32: YTD | B32: TMUT | C32: CAP*MYR | D32: CAP | E32: CSH | F32: CN | G32: 0 | H32: -100000000
A33: YTD | B33: HFT | C33: CAP*MYR | D33: CAP | E33: CSH | F33: CR | G33: 0 | H33: 100000000
A34: YTD | B34: HFT | C34: CAP*MYR | D34: CAP | E34: CSH | F34: CR | G34: 0 | H34: 6000000
A35: YTD | B35: TMUT | C35: CAP*MYR | D35: CAP | E35: CSH | F35: CN | G35: 0 | H35: -5103.39
A36: YTD | B36: HFT | C36: CAP*MYR | D36: CAP | E36: CSH | F36: CR | G36: 0 | H36: 5103.39
A37: YTD | B37: TMUT | C37: CAP*MYR | D37: CAP | E37: CSH | F37: CN | G37: 0 | H37: -2550.15
A38: YTD | B38: HFT | C38: CAP*MYR | D38: CAP | E38: CSH | F38: CR | G38: 0 | H38: 2550.15
A39: YTD | B39: HFT | C39: CAP*MYR | D39: CAP | E39: CSH | F39: CN | G39: 0 | H39: -5000000
A40: YTD | B40: HFT | C40: CAP*MYR | D40: CAP | E40: CSH | F40: CN | G40: 0 | H40: -5000000
A41: YTD | B41: HFT | C41: CAP*MYR | D41: CAP | E41: CSH | F41: CR | G41: 0 | H41: 2000000
A42: YTD | B42: HFT | C42: CAP*MYR | D42: CAP | E42: CSH | F42: CR | G42: 0 | H42: 6000000
A43: YTD | B43: TMUT | C43: CAP*MYR | D43: CAP | E43: CSH | F43: CN | G43: 0 | H43: -2125353.55
A44: YTD | B44: HFT | C44: CAP*MYR | D44: CAP | E44: CSH | F44: CR | G44: 0 | H44: 2125353.55
A45: YTD | B45: TMUT | C45: CAP*MYR | D45: CAP | E45: CSH | F45: CN | G45: 0 | H45: -2001598.52
A46: YTD | B46: HFT | C46: CAP*MYR | D46: CAP | E46: CSH | F46: CR | G46: 0 | H46: 2001598.52
A47: YTD | B47: TMUT | C47: CAP*MYR | D47: CAP | E47: CSH | F47: CN | G47: 0 | H47: -28483.18
A48: YTD | B48: HFT | C48: CAP*MYR | D48: CAP | E48: CSH | F48: CR | G48: 0 | H48: 28483.18
A49: YTD | B49: HFT | C49: CAP*MYR | D49: CAP | E49: CSH | F49: CN | G49: 0 | H49: -50000000
A50: YTD | B50: TMUT | C50: CAP*MYR | D50: CAP | E50: CSH | F50: CR | G50: 0 | H50: 50000000
A51: YTD | B51: HFT | C51: CAP*MYR | D51: CAP | E51: CSH | F51: CN | G51: 0 | H51: -100000000
A52: YTD | B52: TMUT | C52: CAP*MYR | D52: CAP | E52: CSH | F52: CR | G52: 0 | H52: 100000000
A53: YTD | B53: TMUT | C53: CAP*MYR | D53: CAP | E53: CSH | F53: CN | G53: 0 | H53: -19200.75
A54: YTD | B54: HFT | C54: CAP*MYR | D54: CAP | E54: CSH | F54: CR | G54: 0 | H54: 19200.75
A55: YTD | B55: HFT | C55: CAP*MYR | D55: CAP | E55: CSH | F55: CR | G55: 0 | H55: 10000000
A56: YTD | B56: HFT | C56: CUR*MYR | D56: CAP | E56: CSH | F56: CW | G56: 0 | H56: -13350994.99
A57: YTD | B57: HFT | C57: CUR*MYR | D57: CAP | E57: CSH | F57: CI | G57: 0 | H57: 13350994.99
A58: YTD | B58: HFT | C58: CUR*MYR | D58: CAP | E58: CSH | F58: CW | G58: 0 | H58: -20068515.57
A59: YTD | B59: HFT | C59: CUR*MYR | D59: CAP | E59: CSH | F59: CI | G59: 0 | H59: 20068515.57
A60: YTD | B60: HFT | C60: CUR*MYR | D60: CAP | E60: CSH | F60: CW | G60: 0 | H60: -10269994.99
A61: YTD | B61: HFT | C61: CUR*MYR | D61: CAP | E61: CSH | F61: CI | G61: 0 | H61: 10269994.99
A62: YTD | B62: HFT | C62: FDC*MYR*BKK | D62: CSH | E62: CSH | F62: FM | G62: 180849.32 | H62: 35180849.32
A63: YTD | B63: HFT | C63: FDC*MYR*BKK | D63: CSH | E63: CSH | F63: FP | G63: 0 | H63: -20000000
A64: YTD | B64: HFT | C64: FDC*MYR*MBMB | D64: CSH | E64: CSH | F64: FM | G64: 339000 | H64: 15339000
A65: YTD | B65: HFT | C65: FDC*MYR*PBB | D65: CSH | E65: CSH | F65: FM | G65: 269999.99 | H65: 10269999.99
A66: YTD | B66: HFT | C66: FDC*MYR*PBB | D66: CSH | E66: CSH | F66: FM | G66: 350999.99 | H66: 13350999.99
A67: YTD | B67: HFT | C67: FDC*MYR*PBB | D67: CSH | E67: CSH | F67: FM | G67: 68520.57 | H67: 20068520.57
A68: YTD | B68: HFT | C68: FDC*MYR*RHBBB | D68: CSH | E68: CSH | F68: FM | G68: 61545.21 | H68: 36061545.21
A69: YTD | B69: HFT | C69: FDC*MYR*RHBBB | D69: CSH | E69: CSH | F69: FM | G69: 340931.51 | H69: 102340931.5
A70: YTD | B70: HFT | C70: FDC*MYR*RHBBB | D70: CSH | E70: CSH | F70: FP | G70: 0 | H70: -20000000
A71: YTD | B71: HFT | C71: FDC*MYR*RHBBB | D71: CSH | E71: CSH | F71: FP | G71: 0 | H71: -12000000
A72: YTD | B72: HFT | C72: FDC*MYR*RHBBB | D72: CSH | E72: CSH | F72: FM | G72: 237575.34 | H72: 45237575.34
A73: YTD | B73: HFT | C73: FDC*MYR*RHBBB | D73: CSH | E73: CSH | F73: FP | G73: 0 | H73: -31000000
A74: YTD | B74: HFT | C74: FDC*MYR*RHBBB | D74: CSH | E74: CSH | F74: FP | G74: 0 | H74: -15000000
A75: YTD | B75: HFT | C75: FDC*MYR*RHBBB | D75: CSH | E75: CSH | F75: FM | G75: 51341.1 | H75: 31051341.1
A76: YTD | B76: TMUT | C76: HLIF | D76: CIS | E76: EQT | F76: SI | G76: 0 | H76: 52404.92
A77: YTD | B77: TMUT | C77: HLIF | D77: CIS | E77: EQT | F77: SI | G77: 0 | H77: 28483.18
A78: YTD | B78: TMUT | C78: HLIF | D78: CIS | E78: EQT | F78: SS | G78: 0 | H78: 20023880.29
A79: YTD | B79: HFT | C79: HLIF | D79: CIS | E79: EQT | F79: SP | G79: 0 | H79: -20023880.29
A80: YTD | B80: HFT | C80: HLIF | D80: CIS | E80: EQT | F80: SP | G80: 0 | H80: 20023880.29
A81: YTD | B81: TMUT | C81: HLIF | D81: CIS | E81: EQT | F81: SP | G81: 0 | H81: -20023880.29
A82: YTD | B82: TMUT | C82: HWIF6 | D82: CIS | E82: EQT | F82: SP | G82: 0 | H82: -50000000
A83: YTD | B83: TMUT | C83: HWIF6 | D83: CIS | E83: EQT | F83: SP | G83: 0 | H83: -100000000
A84: YTD | B84: TMUT | C84: HWIF6 | D84: CIS | E84: EQT | F84: SP | G84: 0 | H84: -100000000
A85: YTD | B85: TMUT | C85: HWIF6 | D85: CIS | E85: EQT | F85: SP | G85: 0 | H85: -100000000
A86: YTD | B86: TMUT | C86: OIF | D86: CIS | E86: EQT | F86: SS | G86: 0 | H86: 50000000
A87: YTD | B87: TMUT | C87: OIF | D87: CIS | E87: EQT | F87: SI | G87: 0 | H87: 2066315.95
A88: YTD | B88: TMUT | C88: OIF | D88: CIS | E88: EQT | F88: SI | G88: 0 | H88: 2125353.55
A89: YTD | B89: TMUT | C89: OIF | D89: CIS | E89: EQT | F89: SS | G89: 0 | H89: 100000000
A90: YTD | B90: TMUT | C90: OLRAF | D90: CIS | E90: EQT | F90: SI | G90: 0 | H90: 2001598.52
A91: YTD | B91: TMUT | C91: OLRAF | D91: CIS | E91: EQT | F91: SI | G91: 0 | H91: 2195301.6
A92: YTD | B92: HFT | C92: RPC*MYR*RHBBB | D92: CSH | E92: CSH | F92: RM | G92: 13808.22 | H92: 24013808.22
A93: YTD | B93: HFT | C93: RPC*MYR*RHBBB | D93: CSH | E93: CSH | F93: RP | G93: 0 | H93: -14000000
A94: YTD | B94: HFT | C94: RPC*MYR*RHBBB | D94: CSH | E94: CSH | F94: RM | G94: 1068.49 | H94: 30001068.49
A95: YTD | B95: HFT | C95: RPC*MYR*RHBBB | D95: CSH | E95: CSH | F95: RP | G95: 0 | H95: -61000000
A96: YTD | B96: HFT | C96: RPC*MYR*RHBBB | D96: CSH | E96: CSH | F96: RM | G96: 5753.42 | H96: 10005753.42
A97: YTD | B97: HFT | C97: RPC*MYR*RHBBB | D97: CSH | E97: CSH | F97: RM | G97: 2684.93 | H97: 10002684.93
A98: YTD | B98: HFT | C98: RPC*MYR*RHBBB | D98: CSH | E98: CSH | F98: RP | G98: 0 | H98: -8000000
A99: YTD | B99: HFT | C99: RPC*MYR*RHBBB | D99: CSH | E99: CSH | F99: RP | G99: 0 | H99: -30000000
A100: YTD | B100: HFT | C100: RPC*MYR*RHBBB | D100: CSH | E100: CSH | F100: RP | G100: 0 | H100: -10000000
A101: YTD | B101: HFT | C101: RPC*MYR*RHBBB | D101: CSH | E101: CSH | F101: RP | G101: 0 | H101: -45000000
A102: YTD | B102: HFT | C102: RPC*MYR*RHBBB | D102: CSH | E102: CSH | F102: RM | G102: 3452.05 | H102: 6003452.05
A103: YTD | B103: HFT | C103: RPC*MYR*RHBBB | D103: CSH | E103: CSH | F103: RM | G103: 7890.41 | H103: 16007890.41
A104: YTD | B104: HFT | C104: RPC*MYR*RHBBB | D104: CSH | E104: CSH | F104: RM | G104: 7123.29 | H104: 50007123.29
A105: YTD | B105: HFT | C105: RPC*MYR*RHBBB | D105: CSH | E105: CSH | F105: RM | G105: 1602.74 | H105: 45001602.74
A106: YTD | B106: HFT | C106: RPC*MYR*RHBBB | D106: CSH | E106: CSH | F106: RM | G106: 5753.42 | H106: 10005753.42
A107: YTD | B107: HFT | C107: RPC*MYR*RHBBB | D107: CSH | E107: CSH | F107: RM | G107: 1246.58 | H107: 35001246.58
A108: YTD | B108: HFT | C108: RPC*MYR*RHBBB | D108: CSH | E108: CSH | F108: RP | G108: 0 | H108: -50000000
A109: YTD | B109: HFT | C109: RPC*MYR*RHBBB | D109: CSH | E109: CSH | F109: RP | G109: 0 | H109: -24000000
A110: YTD | B110: HFT | C110: RPC*MYR*RHBBB | D110: CSH | E110: CSH | F110: RP | G110: 0 | H110: -35000000
A111: YTD | B111: HFT | C111: RPC*MYR*RHBBB | D111: CSH | E111: CSH | F111: RP | G111: 0 | H111: -24000000
A112: YTD | B112: HFT | C112: RPC*MYR*RHBBB | D112: CSH | E112: CSH | F112: RP | G112: 0 | H112: -10000000
A113: YTD | B113: HFT | C113: RPC*MYR*RHBBB | D113: CSH | E113: CSH | F113: RM | G113: 2876.71 | H113: 5002876.71
A114: YTD | B114: HFT | C114: RPC*MYR*RHBBB | D114: CSH | E114: CSH | F114: RM | G114: 712.33 | H114: 10000712.33
A115: YTD | B115: HFT | C115: RPC*MYR*RHBBB | D115: CSH | E115: CSH | F115: RP | G115: 0 | H115: -5000000
A116: YTD | B116: HFT | C116: RPC*MYR*RHBBB | D116: CSH | E116: CSH | F116: RM | G116: 6575.34 | H116: 10006575.34
A117: YTD | B117: HFT | C117: RPC*MYR*RHBBB | D117: CSH | E117: CSH | F117: RP | G117: 0 | H117: -10000000
A118: YTD | B118: HFT | C118: RPC*MYR*RHBBB | D118: CSH | E118: CSH | F118: RM | G118: 13808.22 | H118: 24013808.22
A119: YTD | B119: HFT | C119: RPC*MYR*RHBBB | D119: CSH | E119: CSH | F119: RM | G119: 5753.42 | H119: 10005753.42
A120: YTD | B120: HFT | C120: RPC*MYR*RHBBB | D120: CSH | E120: CSH | F120: RP | G120: 0 | H120: -10000000
A121: YTD | B121: HFT | C121: RPC*MYR*RHBBB | D121: CSH | E121: CSH | F121: RM | G121: 4602.74 | H121: 8004602.74
A122: YTD | B122: HFT | C122: RPC*MYR*RHBBB | D122: CSH | E122: CSH | F122: RM | G122: 2301.37 | H122: 10002301.37
A123: YTD | B123: HFT | C123: RPC*MYR*RHBBB | D123: CSH | E123: CSH | F123: RP | G123: 0 | H123: -36000000
A124: YTD | B124: HFT | C124: RPC*MYR*RHBBB | D124: CSH | E124: CSH | F124: RP | G124: 0 | H124: -50000000
A125: YTD | B125: HFT | C125: RPC*MYR*RHBBB | D125: CSH | E125: CSH | F125: RP | G125: 0 | H125: -6000000
A126: YTD | B126: HFT | C126: RPC*MYR*RHBBB | D126: CSH | E126: CSH | F126: RM | G126: 5753.42 | H126: 10005753.42
A127: YTD | B127: HFT | C127: RPC*MYR*RHBBB | D127: CSH | E127: CSH | F127: RP | G127: 0 | H127: -10000000
A128: YTD | B128: HFT | C128: RPC*MYR*RHBBB | D128: CSH | E128: CSH | F128: RM | G128: 5753.42 | H128: 10005753.42
A129: YTD | B129: HFT | C129: RPC*MYR*RHBBB | D129: CSH | E129: CSH | F129: RM | G129: 3846.58 | H129: 36003846.58
A130: YTD | B130: HFT | C130: RPC*MYR*RHBBB | D130: CSH | E130: CSH | F130: RM | G130: 3561.64 | H130: 50003561.64
A131: YTD | B131: HFT | C131: RPC*MYR*RHBBB | D131: CSH | E131: CSH | F131: RP | G131: 0 | H131: -16000000
A132: YTD | B132: HFT | C132: RPC*MYR*RHBBB | D132: CSH | E132: CSH | F132: RM | G132: 6164.38 | H132: 10006164.38
A133: YTD | B133: HFT | C133: RPC*MYR*RHBBB | D133: CSH | E133: CSH | F133: RM | G133: 7123.29 | H133: 100007123.3
A134: YTD | B134: HFT | C134: RPC*MYR*RHBBB | D134: CSH | E134: CSH | F134: RP | G134: 0 | H134: -10000000
A135: YTD | B135: HFT | C135: RPC*MYR*RHBBB | D135: CSH | E135: CSH | F135: RP | G135: 0 | H135: -100000000
A136: MTH | B136: TMUT | C136: AIEF | D136: CIS | E136: EQT | F136: SI | G136: 0 | H136: 23040.91
A137: MTH | B137: HFT | C137: CAP*MYR | D137: CAP | E137: CSH | F137: CN | G137: 0 | H137: -10000000
A138: MTH | B138: HFT | C138: CAP*MYR | D138: CAP | E138: CSH | F138: CN | G138: 0 | H138: -5000000
A139: MTH | B139: HFT | C139: CAP*MYR | D139: CAP | E139: CSH | F139: CN | G139: 0 | H139: -5000000
A140: MTH | B140: TMUT | C140: CAP*MYR | D140: CAP | E140: CSH | F140: CN | G140: 0 | H140: -2195301.6
A141: MTH | B141: HFT | C141: CAP*MYR | D141: CAP | E141: CSH | F141: CR | G141: 0 | H141: 2195301.6
A142: MTH | B142: TMUT | C142: CAP*MYR | D142: CAP | E142: CSH | F142: CN | G142: 0 | H142: -2066315.95
A143: MTH | B143: HFT | C143: CAP*MYR | D143: CAP | E143: CSH | F143: CR | G143: 0 | H143: 2066315.95
A144: MTH | B144: TMUT | C144: CAP*MYR | D144: CAP | E144: CSH | F144: CN | G144: 0 | H144: -52404.92
A145: MTH | B145: HFT | C145: CAP*MYR | D145: CAP | E145: CSH | F145: CR | G145: 0 | H145: 52404.92
A146: MTH | B146: HFT | C146: CAP*MYR | D146: CAP | E146: CSH | F146: CR | G146: 0 | H146: 4000000
A147: MTH | B147: HFT | C147: CAP*MYR | D147: CAP | E147: CSH | F147: CR | G147: 0 | H147: 4000000
A148: MTH | B148: HFT | C148: CAP*MYR | D148: CAP | E148: CSH | F148: CR | G148: 0 | H148: 10000000
A149: MTH | B149: TMUT | C149: CAP*MYR | D149: CAP | E149: CSH | F149: CN | G149: 0 | H149: -2551.39
A150: MTH | B150: HFT | C150: CAP*MYR | D150: CAP | E150: CSH | F150: CR | G150: 0 | H150: 2551.39
A151: MTH | B151: TMUT | C151: CAP*MYR | D151: CAP | E151: CSH | F151: CN | G151: 0 | H151: -658.7
A152: MTH | B152: HFT | C152: CAP*MYR | D152: CAP | E152: CSH | F152: CR | G152: 0 | H152: 658.7
A153: MTH | B153: TMUT | C153: CAP*MYR | D153: CAP | E153: CSH | F153: CN | G153: 0 | H153: -23040.91
A154: MTH | B154: HFT | C154: CAP*MYR | D154: CAP | E154: CSH | F154: CR | G154: 0 | H154: 23040.91
A155: MTH | B155: HFT | C155: CUR*MYR | D155: CAP | E155: CSH | F155: CW | G155: 0 | H155: -10269994.99
A156: MTH | B156: HFT | C156: CUR*MYR | D156: CAP | E156: CSH | F156: CI | G156: 0 | H156: 10269994.99
A157: MTH | B157: HFT | C157: FDC*MYR*MBMB | D157: CSH | E157: CSH | F157: FM | G157: 339000 | H157: 15339000
A158: MTH | B158: HFT | C158: FDC*MYR*PBB | D158: CSH | E158: CSH | F158: FM | G158: 269999.99 | H158: 10269999.99
A159: MTH | B159: HFT | C159: FDC*MYR*RHBBB | D159: CSH | E159: CSH | F159: FM | G159: 51341.1 | H159: 31051341.1
A160: MTH | B160: HFT | C160: FDC*MYR*RHBBB | D160: CSH | E160: CSH | F160: FP | G160: 0 | H160: -15000000
A161: MTH | B161: TMUT | C161: HLIF | D161: CIS | E161: EQT | F161: SI | G161: 0 | H161: 52404.92
A162: MTH | B162: TMUT | C162: OIF | D162: CIS | E162: EQT | F162: SI | G162: 0 | H162: 2066315.95
A163: MTH | B163: TMUT | C163: OLRAF | D163: CIS | E163: EQT | F163: SI | G163: 0 | H163: 2195301.6
A164: MTH | B164: HFT | C164: RPC*MYR*RHBBB | D164: CSH | E164: CSH | F164: RM | G164: 13808.22 | H164: 24013808.22
A165: MTH | B165: HFT | C165: RPC*MYR*RHBBB | D165: CSH | E165: CSH | F165: RP | G165: 0 | H165: -14000000
A166: MTH | B166: HFT | C166: RPC*MYR*RHBBB | D166: CSH | E166: CSH | F166: RM | G166: 2684.93 | H166: 10002684.93
A167: MTH | B167: HFT | C167: RPC*MYR*RHBBB | D167: CSH | E167: CSH | F167: RP | G167: 0 | H167: -8000000
A168: MTH | B168: HFT | C168: RPC*MYR*RHBBB | D168: CSH | E168: CSH | F168: RP | G168: 0 | H168: -30000000
A169: MTH | B169: HFT | C169: RPC*MYR*RHBBB | D169: CSH | E169: CSH | F169: RM | G169: 1068.49 | H169: 30001068.49
A170: MTH | B170: HFT | C170: RPC*MYR*RHBBB | D170: CSH | E170: CSH | F170: RP | G170: 0 | H170: -61000000
A171: MTH | B171: HFT | C171: RPC*MYR*RHBBB | D171: CSH | E171: CSH | F171: RP | G171: 0 | H171: -10000000
A172: MTH | B172: HFT | C172: RPC*MYR*RHBBB | D172: CSH | E172: CSH | F172: RP | G172: 0 | H172: -24000000
A173: MTH | B173: HFT | C173: RPC*MYR*RHBBB | D173: CSH | E173: CSH | F173: RP | G173: 0 | H173: -10000000
A174: MTH | B174: HFT | C174: RPC*MYR*RHBBB | D174: CSH | E174: CSH | F174: RM | G174: 2876.71 | H174: 5002876.71
A175: MTH | B175: HFT | C175: RPC*MYR*RHBBB | D175: CSH | E175: CSH | F175: RM | G175: 712.33 | H175: 10000712.33
A176: MTH | B176: HFT | C176: RPC*MYR*RHBBB | D176: CSH | E176: CSH | F176: RM | G176: 5753.42 | H176: 10005753.42
A177: MTH | B177: HFT | C177: RPC*MYR*RHBBB | D177: CSH | E177: CSH | F177: RM | G177: 6575.34 | H177: 10006575.34
A178: MTH | B178: HFT | C178: RPC*MYR*RHBBB | D178: CSH | E178: CSH | F178: RP | G178: 0 | H178: -10000000
A179: MTH | B179: HFT | C179: RPC*MYR*RHBBB | D179: CSH | E179: CSH | F179: RM | G179: 13808.22 | H179: 24013808.22

Sheet InLstMstHst (hidden)
A1: MarketValueDate | B1: qMasterID | C1: qProductType | D1: PurchaseDate | E1: MaturityDate | F1: qFundCode | G1: qStockCode | H1: UnitFaceValue | I1: CostFC | J1: MarketValueFC | K1: MarketValueSC | L1: LastMarketValue | M1: UnrealisedGainsStock | N1: PriceCurr | O1: PurchaseYTM | P1: ValueYTM | Q1: AccruedInterest | R1: AmortAccreation | S1: PreAcqSC | T1: StockCurrency | U1: SectorName | V1: InternalSectorName | W1: Issuer | X1: ProductTypeDesc | Y1: FundCurrency | Z1: CountryName | AA1: IssuerGrpName | AB1: Deposits | AC1: MoneyMarket | AD1: Bond | AE1: UTDeposit | AF1: UTBond | AG1: qAssetClass | AH1: Equity | AI1: ListedFlag | AJ1: UnitTrust | AK1: Attribute | AL1: BOARD | AM1: QUOTED | AN1: qAssetAccType | AO1: BNMUnitTrust | AP1: CashMaturity | AQ1: Rating | AR1: tenor | AS1: qCPCode | AT1: isincode
A2: 2021-12-31 | B2: CSH*211000039 | C2: CSH | D2: 2021-10-14 | E2: 2022-03-14 | F2: HFT | G2: FDC*MYR*BKK | H2: 30000000 | I2: 30000000 | J2: 30000000 | K2: 30149342.47 | L2: 0 | M2: 0 | N2: 0 | O2: 0.023 | P2: 0 | Q2: 149342.47 | R2: 0 | S2: 0 | T2: MYR | U2: CASH | V2: CASH | W2: Bangkok Bank | X2: Money Market | Y2: MYR | Z2: CASH | AA2: N/A | AB2: 30000000 | AG2: CSH | AI2: 0 | AK2: FI | AM2: QUOTED SHARES | AN2: 220 | AP2: 0 | AR2: 151 | AS2: BKK | AT2: N/A
A3: 2021-12-31 | B3: CSH*211000052 | C3: CSH | D3: 2021-10-20 | E3: 2022-01-20 | F3: HFT | G3: FDC*MYR*BKK | H3: 35000000 | I3: 35000000 | J3: 35000000 | K3: 35143500 | L3: 0 | M3: 0 | N3: 0 | O3: 0.0205 | P3: 0 | Q3: 143500 | R3: 0 | S3: 0 | T3: MYR | U3: CASH | V3: CASH | W3: Bangkok Bank | X3: Money Market | Y3: MYR | Z3: CASH | AA3: N/A | AB3: 35000000 | AG3: CSH | AI3: 0 | AK3: FI | AM3: QUOTED SHARES | AN3: 220 | AP3: 1 | AR3: 92 | AS3: BKK | AT3: N/A
A4: 2021-12-31 | B4: CSH*211100031 | C4: CSH | D4: 2021-11-10 | E4: 2022-03-10 | F4: HFT | G4: FDC*MYR*BKK | H4: 12000000 | I4: 12000000 | J4: 12000000 | K4: 12038465.75 | L4: 0 | M4: 0 | N4: 0 | O4: 0.0225 | P4: 0 | Q4: 38465.75 | R4: 0 | S4: 0 | T4: MYR | U4: CASH | V4: CASH | W4: Bangkok Bank | X4: Money Market | Y4: MYR | Z4: CASH | AA4: N/A | AB4: 12000000 | AG4: CSH | AI4: 0 | AK4: FI | AM4: QUOTED SHARES | AN4: 220 | AP4: 0 | AR4: 120 | AS4: BKK | AT4: N/A
A5: 2021-12-31 | B5: CSH*210200057 | C5: CSH | D5: 2021-02-24 | E5: 2022-02-24 | F5: HFT | G5: FDC*MYR*MBMB | H5: 15000000 | I5: 15000000 | J5: 15000000 | K5: 15288846.58 | L5: 0 | M5: 0 | N5: 0 | O5: 0.0226 | P5: 0 | Q5: 288846.58 | R5: 0 | S5: 0 | T5: MYR | U5: CASH | V5: CASH | W5: Mizuho Bank (Malaysia) Bhd | X5: Money Market | Y5: MYR | Z5: CASH | AA5: N/A | AB5: 15000000 | AG5: CSH | AI5: 0 | AK5: FI | AM5: QUOTED SHARES | AN5: 220 | AP5: 1 | AR5: 365 | AS5: MBMB | AT5: N/A
A6: 2021-12-31 | B6: CSH*210900036 | C6: CSH | D6: 2021-09-13 | E6: 2022-06-13 | F6: HFT | G6: FDC*MYR*MBMB | H6: 15000000 | I6: 15000000 | J6: 15000000 | K6: 15099452.05 | L6: 0 | M6: 0 | N6: 0 | O6: 0.022 | P6: 0 | Q6: 99452.05 | R6: 0 | S6: 0 | T6: MYR | U6: CASH | V6: CASH | W6: Mizuho Bank (Malaysia) Bhd | X6: Money Market | Y6: MYR | Z6: CASH | AA6: N/A | AB6: 15000000 | AG6: CSH | AI6: 0 | AK6: FI | AM6: QUOTED SHARES | AN6: 220 | AP6: 0 | AR6: 273 | AS6: MBMB | AT6: N/A
A7: 2021-12-31 | B7: CSH*210100030 | C7: CSH | D7: 2021-01-21 | E7: 2022-01-21 | F7: HFT | G7: FDC*MYR*PBB | H7: 13000000 | I7: 13000000 | J7: 13000000 | K7: 13331767.12 | L7: 0 | M7: 0 | N7: 0 | O7: 0.027 | P7: 0 | Q7: 331767.12 | R7: 0 | S7: 0 | T7: MYR | U7: CASH | V7: CASH | W7: Public Bank Berhad | X7: Money Market | Y7: MYR | Z7: CASH | AA7: N/A | AB7: 13000000 | AG7: CSH | AI7: 0 | AK7: FI | AM7: QUOTED SHARES | AN7: 220 | AP7: 1 | AR7: 365 | AS7: PBB | AT7: N/A
A8: 2021-12-31 | B8: CSH*210200040 | C8: CSH | D8: 2021-02-17 | E8: 2022-02-17 | F8: HFT | G8: FDC*MYR*PBB | H8: 10000000 | I8: 10000000 | J8: 10000000 | K8: 10235232.88 | L8: 0 | M8: 0 | N8: 0 | O8: 0.027 | P8: 0 | Q8: 235232.88 | R8: 0 | S8: 0 | T8: MYR | U8: CASH | V8: CASH | W8: Public Bank Berhad | X8: Money Market | Y8: MYR | Z8: CASH | AA8: N/A | AB8: 10000000 | AG8: CSH | AI8: 0 | AK8: FI | AM8: QUOTED SHARES | AN8: 220 | AP8: 1 | AR8: 365 | AS8: PBB | AT8: N/A
A9: 2021-12-31 | B9: CSH*210300024 | C9: CSH | D9: 2021-03-09 | E9: 2022-03-09 | F9: HFT | G9: FDC*MYR*PBB | H9: 15000000 | I9: 15000000 | J9: 15000000 | K9: 15330657.53 | L9: 0 | M9: 0 | N9: 0 | O9: 0.027 | P9: 0 | Q9: 330657.53 | R9: 0 | S9: 0 | T9: MYR | U9: CASH | V9: CASH | W9: Public Bank Berhad | X9: Money Market | Y9: MYR | Z9: CASH | AA9: N/A | AB9: 15000000 | AG9: CSH | AI9: 0 | AK9: FI | AM9: QUOTED SHARES | AN9: 220 | AP9: 0 | AR9: 365 | AS9: PBB | AT9: N/A
A10: 2021-12-31 | B10: CSH*210400021 | C10: CSH | D10: 2021-04-07 | E10: 2022-04-07 | F10: HFT | G10: FDC*MYR*PBB | H10: 10000000 | I10: 10000000 | J10: 10000000 | K10: 10198986.3 | L10: 0 | M10: 0 | N10: 0 | O10: 0.027 | P10: 0 | Q10: 198986.3 | R10: 0 | S10: 0 | T10: MYR | U10: CASH | V10: CASH | W10: Public Bank Berhad | X10: Money Market | Y10: MYR | Z10: CASH | AA10: N/A | AB10: 10000000 | AG10: CSH | AI10: 0 | AK10: FI | AM10: QUOTED SHARES | AN10: 220 | AP10: 0 | AR10: 365 | AS10: PBB | AT10: N/A
A11: 2021-12-31 | B11: CSH*210500025 | C11: CSH | D11: 2021-05-10 | E11: 2022-05-10 | F11: HFT | G11: FDC*MYR*PBB | H11: 10000000 | I11: 10000000 | J11: 10000000 | K11: 10174575.34 | L11: 0 | M11: 0 | N11: 0 | O11: 0.027 | P11: 0 | Q11: 174575.34 | R11: 0 | S11: 0 | T11: MYR | U11: CASH | V11: CASH | W11: Public Bank Berhad | X11: Money Market | Y11: MYR | Z11: CASH | AA11: N/A | AB11: 10000000 | AG11: CSH | AI11: 0 | AK11: FI | AM11: QUOTED SHARES | AN11: 220 | AP11: 0 | AR11: 365 | AS11: PBB | AT11: N/A
A12: 2021-12-31 | B12: CSH*210600017 | C12: CSH | D12: 2021-06-10 | E12: 2022-06-10 | F12: HFT | G12: FDC*MYR*PBB | H12: 10000000 | I12: 10000000 | J12: 10000000 | K12: 10151643.84 | L12: 0 | M12: 0 | N12: 0 | O12: 0.027 | P12: 0 | Q12: 151643.84 | R12: 0 | S12: 0 | T12: MYR | U12: CASH | V12: CASH | W12: Public Bank Berhad | X12: Money Market | Y12: MYR | Z12: CASH | AA12: N/A | AB12: 10000000 | AG12: CSH | AI12: 0 | AK12: FI | AM12: QUOTED SHARES | AN12: 220 | AP12: 0 | AR12: 365 | AS12: PBB | AT12: N/A
A13: 2021-12-31 | B13: CSH*210800022 | C13: CSH | D13: 2021-08-11 | E13: 2022-08-11 | F13: HFT | G13: FDC*MYR*PBB | H13: 13000000 | I13: 13000000 | J13: 13000000 | K13: 13137515.07 | L13: 0 | M13: 0 | N13: 0 | O13: 0.027 | P13: 0 | Q13: 137515.07 | R13: 0 | S13: 0 | T13: MYR | U13: CASH | V13: CASH | W13: Public Bank Berhad | X13: Money Market | Y13: MYR | Z13: CASH | AA13: N/A | AB13: 13000000 | AG13: CSH | AI13: 0 | AK13: FI | AM13: QUOTED SHARES | AN13: 220 | AP13: 0 | AR13: 365 | AS13: PBB | AT13: N/A
A14: 2021-12-31 | B14: CSH*210900022 | C14: CSH | D14: 2021-09-09 | E14: 2022-09-09 | F14: HFT | G14: FDC*MYR*PBB | H14: 13000000 | I14: 13000000 | J14: 13000000 | K14: 13109627.4 | L14: 0 | M14: 0 | N14: 0 | O14: 0.027 | P14: 0 | Q14: 109627.4 | R14: 0 | S14: 0 | T14: MYR | U14: CASH | V14: CASH | W14: Public Bank Berhad | X14: Money Market | Y14: MYR | Z14: CASH | AA14: N/A | AB14: 13000000 | AG14: CSH | AI14: 0 | AK14: FI | AM14: QUOTED SHARES | AN14: 220 | AP14: 0 | AR14: 365 | AS14: PBB | AT14: N/A
A15: 2021-12-31 | B15: CSH*211000012 | C15: CSH | D15: 2021-10-06 | E15: 2022-10-06 | F15: HFT | G15: FDC*MYR*PBB | H15: 10000000 | I15: 10000000 | J15: 10000000 | K15: 10064356.16 | L15: 0 | M15: 0 | N15: 0 | O15: 0.027 | P15: 0 | Q15: 64356.16 | R15: 0 | S15: 0 | T15: MYR | U15: CASH | V15: CASH | W15: Public Bank Berhad | X15: Money Market | Y15: MYR | Z15: CASH | AA15: N/A | AB15: 10000000 | AG15: CSH | AI15: 0 | AK15: FI | AM15: QUOTED SHARES | AN15: 220 | AP15: 0 | AR15: 365 | AS15: PBB | AT15: N/A
A16: 2021-12-31 | B16: CSH*211100030 | C16: CSH | D16: 2021-11-10 | E16: 2022-11-10 | F16: HFT | G16: FDC*MYR*PBB | H16: 10000000 | I16: 10000000 | J16: 10000000 | K16: 10038465.75 | L16: 0 | M16: 0 | N16: 0 | O16: 0.027 | P16: 0 | Q16: 38465.75 | R16: 0 | S16: 0 | T16: MYR | U16: CASH | V16: CASH | W16: Public Bank Berhad | X16: Money Market | Y16: MYR | Z16: CASH | AA16: N/A | AB16: 10000000 | AG16: CSH | AI16: 0 | AK16: FI | AM16: QUOTED SHARES | AN16: 220 | AP16: 0 | AR16: 365 | AS16: PBB | AT16: N/A
A17: 2021-12-31 | B17: CSH*211100041 | C17: CSH | D17: 2021-11-12 | E17: 2022-01-12 | F17: HFT | G17: FDC*MYR*PBB | H17: 20000000 | I17: 20000000 | J17: 20000000 | K17: 20056164.38 | L17: 0 | M17: 0 | N17: 0 | O17: 0.0205 | P17: 0 | Q17: 56164.38 | R17: 0 | S17: 0 | T17: MYR | U17: CASH | V17: CASH | W17: Public Bank Berhad | X17: Money Market | Y17: MYR | Z17: CASH | AA17: N/A | AB17: 20000000 | AG17: CSH | AI17: 0 | AK17: FI | AM17: QUOTED SHARES | AN17: 220 | AP17: 1 | AR17: 61 | AS17: PBB | AT17: N/A
A18: 2021-12-31 | B18: CSH*211200018 | C18: CSH | D18: 2021-12-08 | E18: 2022-12-08 | F18: HFT | G18: FDC*MYR*PBB | H18: 14000000 | I18: 14000000 | J18: 14000000 | K18: 14024854.79 | L18: 0 | M18: 0 | N18: 0 | O18: 0.027 | P18: 0 | Q18: 24854.79 | R18: 0 | S18: 0 | T18: MYR | U18: CASH | V18: CASH | W18: Public Bank Berhad | X18: Money Market | Y18: MYR | Z18: CASH | AA18: N/A | AB18: 14000000 | AG18: CSH | AI18: 0 | AK18: FI | AM18: QUOTED SHARES | AN18: 220 | AP18: 0 | AR18: 365 | AS18: PBB | AT18: N/A
A19: 2021-12-31 | B19: CSH*210300073 | C19: CSH | D19: 2021-03-26 | E19: 2022-03-26 | F19: HFT | G19: FDC*MYR*RHBBB | H19: 10000000 | I19: 10000000 | J19: 10000000 | K19: 10177068.49 | L19: 0 | M19: 0 | N19: 0 | O19: 0.023 | P19: 0 | Q19: 177068.49 | R19: 0 | S19: 0 | T19: MYR | U19: CASH | V19: CASH | W19: RHB Bank Berhad | X19: Money Market | Y19: MYR | Z19: CASH | AA19: N/A | AB19: 10000000 | AG19: CSH | AI19: 0 | AK19: FI | AM19: QUOTED SHARES | AN19: 220 | AP19: 0 | AR19: 365 | AS19: RHBBB | AT19: N/A
A20: 2021-12-31 | B20: CSH*210400028 | C20: CSH | D20: 2021-04-09 | E20: 2022-04-09 | F20: HFT | G20: FDC*MYR*RHBBB | H20: 18000000 | I20: 18000000 | J20: 18000000 | K20: 18302843.84 | L20: 0 | M20: 0 | N20: 0 | O20: 0.023 | P20: 0 | Q20: 302843.84 | R20: 0 | S20: 0 | T20: MYR | U20: CASH | V20: CASH | W20: RHB Bank Berhad | X20: Money Market | Y20: MYR | Z20: CASH | AA20: N/A | AB20: 18000000 | AG20: CSH | AI20: 0 | AK20: FI | AM20: QUOTED SHARES | AN20: 220 | AP20: 0 | AR20: 365 | AS20: RHBBB | AT20: N/A
A21: 2021-12-31 | B21: CSH*210700052 | C21: CSH | D21: 2021-07-28 | E21: 2022-07-28 | F21: HFT | G21: FDC*MYR*RHBBB | H21: 12000000 | I21: 12000000 | J21: 12000000 | K21: 12113556.16 | L21: 0 | M21: 0 | N21: 0 | O21: 0.022 | P21: 0 | Q21: 113556.16 | R21: 0 | S21: 0 | T21: MYR | U21: CASH | V21: CASH | W21: RHB Bank Berhad | X21: Money Market | Y21: MYR | Z21: CASH | AA21: N/A | AB21: 12000000 | AG21: CSH | AI21: 0 | AK21: FI | AM21: QUOTED SHARES | AN21: 220 | AP21: 0 | AR21: 365 | AS21: RHBBB | AT21: N/A
A22: 2021-12-31 | B22: CSH*210800023 | C22: CSH | D22: 2021-08-11 | E22: 2022-05-11 | F22: HFT | G22: FDC*MYR*RHBBB | H22: 20000000 | I22: 20000000 | J22: 20000000 | K22: 20172383.56 | L22: 0 | M22: 0 | N22: 0 | O22: 0.022 | P22: 0 | Q22: 172383.56 | R22: 0 | S22: 0 | T22: MYR | U22: CASH | V22: CASH | W22: RHB Bank Berhad | X22: Money Market | Y22: MYR | Z22: CASH | AA22: N/A | AB22: 20000000 | AG22: CSH | AI22: 0 | AK22: FI | AM22: QUOTED SHARES | AN22: 220 | AP22: 0 | AR22: 273 | AS22: RHBBB | AT22: N/A
A23: 2021-12-31 | B23: CSH*210800050 | C23: CSH | D23: 2021-08-25 | E23: 2022-05-25 | F23: HFT | G23: FDC*MYR*RHBBB | H23: 15000000 | I23: 15000000 | J23: 15000000 | K23: 15116630.14 | L23: 0 | M23: 0 | N23: 0 | O23: 0.022 | P23: 0 | Q23: 116630.14 | R23: 0 | S23: 0 | T23: MYR | U23: CASH | V23: CASH | W23: RHB Bank Berhad | X23: Money Market | Y23: MYR | Z23: CASH | AA23: N/A | AB23: 15000000 | AG23: CSH | AI23: 0 | AK23: FI | AM23: QUOTED SHARES | AN23: 220 | AP23: 0 | AR23: 273 | AS23: RHBBB | AT23: N/A
A24: 2021-12-31 | B24: CSH*210900035 | C24: CSH | D24: 2021-09-13 | E24: 2022-06-13 | F24: HFT | G24: FDC*MYR*RHBBB | H24: 20000000 | I24: 20000000 | J24: 20000000 | K24: 20132602.74 | L24: 0 | M24: 0 | N24: 0 | O24: 0.022 | P24: 0 | Q24: 132602.74 | R24: 0 | S24: 0 | T24: MYR | U24: CASH | V24: CASH | W24: RHB Bank Berhad | X24: Money Market | Y24: MYR | Z24: CASH | AA24: N/A | AB24: 20000000 | AG24: CSH | AI24: 0 | AK24: FI | AM24: QUOTED SHARES | AN24: 220 | AP24: 0 | AR24: 273 | AS24: RHBBB | AT24: N/A
A25: 2021-12-31 | B25: CSH*211000067 | C25: CSH | D25: 2021-10-22 | E25: 2022-01-22 | F25: HFT | G25: FDC*MYR*RHBBB | H25: 45000000 | I25: 45000000 | J25: 45000000 | K25: 45179445.21 | L25: 0 | M25: 0 | N25: 0 | O25: 0.0205 | P25: 0 | Q25: 179445.21 | R25: 0 | S25: 0 | T25: MYR | U25: CASH | V25: CASH | W25: RHB Bank Berhad | X25: Money Market | Y25: MYR | Z25: CASH | AA25: N/A | AB25: 45000000 | AG25: CSH | AI25: 0 | AK25: FI | AM25: QUOTED SHARES | AN25: 220 | AP25: 1 | AR25: 92 | AS25: RHBBB | AT25: N/A
A26: 2021-12-31 | B26: CSH*211100017 | C26: CSH | D26: 2021-11-05 | E26: 2022-01-05 | F26: HFT | G26: FDC*MYR*RHBBB | H26: 102000000 | I26: 102000000 | J26: 102000000 | K26: 102318575.3 | L26: 0 | M26: 0 | N26: 0 | O26: 0.02 | P26: 0 | Q26: 318575.34 | R26: 0 | S26: 0 | T26: MYR | U26: CASH | V26: CASH | W26: RHB Bank Berhad | X26: Money Market | Y26: MYR | Z26: CASH | AA26: N/A | AB26: 102000000 | AG26: CSH | AI26: 0 | AK26: FI | AM26: QUOTED SHARES | AN26: 220 | AP26: 1 | AR26: 61 | AS26: RHBBB | AT26: N/A
A27: 2021-12-31 | B27: CSH*211200026 | C27: CSH | D27: 2021-12-09 | E27: 2022-01-09 | F27: HFT | G27: FDC*MYR*RHBBB | H27: 36000000 | I27: 36000000 | J27: 36000000 | K27: 36044235.62 | L27: 0 | M27: 0 | N27: 0 | O27: 0.0195 | P27: 0 | Q27: 44235.62 | R27: 0 | S27: 0 | T27: MYR | U27: CASH | V27: CASH | W27: RHB Bank Berhad | X27: Money Market | Y27: MYR | Z27: CASH | AA27: N/A | AB27: 36000000 | AG27: CSH | AI27: 0 | AK27: FI | AM27: QUOTED SHARES | AN27: 220 | AP27: 1 | AR27: 31 | AS27: RHBBB | AT27: N/A
A28: 2021-12-31 | B28: CSH*210800027 | C28: CSH | D28: 2021-08-12 | E28: 2022-08-12 | F28: HFT | G28: FDC*MYR*SMBCMB | H28: 41000000 | I28: 41000000 | J28: 41000000 | K28: 41366865.75 | L28: 0 | M28: 0 | N28: 0 | O28: 0.023 | P28: 0 | Q28: 366865.75 | R28: 0 | S28: 0 | T28: MYR | U28: CASH | V28: CASH | W28: Sumitomo Mitsui Banking Corporation Malaysia Bhd | X28: Money Market | Y28: MYR | Z28: CASH | AA28: N/A | AB28: 41000000 | AG28: CSH | AI28: 0 | AK28: FI | AM28: QUOTED SHARES | AN28: 220 | AP28: 0 | AR28: 365 | AS28: SMBCMB | AT28: N/A
A29: 2021-12-31 | B29: CSH*211200040 | C29: CSH | D29: 2021-12-21 | E29: 2022-01-04 | F29: HFT | G29: RPC*MYR*RHBBB | H29: 10000000 | I29: 10000000 | J29: 10000000 | K29: 10004520.55 | L29: 0 | M29: 0 | N29: 0 | O29: 0.015 | P29: 0 | Q29: 4520.55 | R29: 0 | S29: 0 | T29: MYR | U29: CASH | V29: CASH | W29: RHB Bank Berhad | X29: Money Market | Y29: MYR | Z29: CASH | AA29: N/A | AC29: 10000000 | AG29: CSH | AI29: 0 | AK29: FI | AM29: QUOTED SHARES | AN29: 210 | AP29: 1 | AR29: 14 | AS29: RHBBB | AT29: N/A
A30: 2021-12-31 | B30: CSH*211200043 | C30: CSH | D30: 2021-12-22 | E30: 2022-01-05 | F30: HFT | G30: RPC*MYR*RHBBB | H30: 8000000 | I30: 8000000 | J30: 8000000 | K30: 8003287.67 | L30: 0 | M30: 0 | N30: 0 | O30: 0.015 | P30: 0 | Q30: 3287.67 | R30: 0 | S30: 0 | T30: MYR | U30: CASH | V30: CASH | W30: RHB Bank Berhad | X30: Money Market | Y30: MYR | Z30: CASH | AA30: N/A | AC30: 8000000 | AG30: CSH | AI30: 0 | AK30: FI | AM30: QUOTED SHARES | AN30: 210 | AP30: 1 | AR30: 14 | AS30: RHBBB | AT30: N/A
A31: 2021-12-31 | B31: CSH*211200051 | C31: CSH | D31: 2021-12-24 | E31: 2022-01-07 | F31: HFT | G31: RPC*MYR*RHBBB | H31: 10000000 | I31: 10000000 | J31: 10000000 | K31: 10003287.67 | L31: 0 | M31: 0 | N31: 0 | O31: 0.015 | P31: 0 | Q31: 3287.67 | R31: 0 | S31: 0 | T31: MYR | U31: CASH | V31: CASH | W31: RHB Bank Berhad | X31: Money Market | Y31: MYR | Z31: CASH | AA31: N/A | AC31: 10000000 | AG31: CSH | AI31: 0 | AK31: FI | AM31: QUOTED SHARES | AN31: 210 | AP31: 1 | AR31: 14 | AS31: RHBBB | AT31: N/A
A32: 2021-12-31 | B32: CSH*211200059 | C32: CSH | D32: 2021-12-30 | E32: 2022-01-13 | F32: HFT | G32: RPC*MYR*RHBBB | H32: 10000000 | I32: 10000000 | J32: 10000000 | K32: 10000821.92 | L32: 0 | M32: 0 | N32: 0 | O32: 0.015 | P32: 0 | Q32: 821.92 | R32: 0 | S32: 0 | T32: MYR | U32: CASH | V32: CASH | W32: RHB Bank Berhad | X32: Money Market | Y32: MYR | Z32: CASH | AA32: N/A | AC32: 10000000 | AG32: CSH | AI32: 0 | AK32: FI | AM32: QUOTED SHARES | AN32: 210 | AP32: 1 | AR32: 14 | AS32: RHBBB | AT32: N/A
A33: 2021-12-31 | B33: CSH*211200060 | C33: CSH | D33: 2021-12-30 | E33: 2022-01-05 | F33: HFT | G33: RPC*MYR*RHBBB | H33: 10000000 | I33: 10000000 | J33: 10000000 | K33: 10000767.12 | L33: 0 | M33: 0 | N33: 0 | O33: 0.014 | P33: 0 | Q33: 767.12 | R33: 0 | S33: 0 | T33: MYR | U33: CASH | V33: CASH | W33: RHB Bank Berhad | X33: Money Market | Y33: MYR | Z33: CASH | AA33: N/A | AC33: 10000000 | AG33: CSH | AI33: 0 | AK33: FI | AM33: QUOTED SHARES | AN33: 210 | AP33: 1 | AR33: 6 | AS33: RHBBB | AT33: N/A
A34: 2021-12-31 | B34: ULN*220100067 | C34: BND | D34: 2021-12-31 | E34: 2028-06-12 | F34: OIF | G34: DR140026 | H34: 5000000 | I34: 5432500 | J34: 5532050 | K34: 5532050 | L34: 0 | M34: 0 | N34: 110.641 | O34: 4.027 | P34: 4.027 | Q34: 0 | R34: 0 | S34: 0 | T34: MYR | U34: Others | V34: Others | W34: UniTapah Sdn Berhad | X34: Bond | Y34: MYR | Z34: Malaysia | AA34: N/A | AD34: 0 | AF34: 5532050 | AG34: BND | AI34: 0 | AJ34: 5532050 | AK34: NonFI | AM34: QUOTED SHARES | AN34: 110 | AO34: 5532050 | AP34: 0 | AQ34: AA2 | AR34: 2355 | AT34: MYBDR1400262
A35: 2021-12-31 | B35: ULN*220100004 | C35: BND | D35: 2021-12-31 | E35: 2034-07-05 | F35: OIF | G35: MS190004 | H35: 10000000 | I35: 10625000 | J35: 9933300 | K35: 9933300 | L35: 0 | M35: 0 | N35: 99.333 | O35: 3.896 | P35: 3.896 | Q35: 0 | R35: 0 | S35: 0 | T35: MYR | U35: Others | V35: Others | W35: Government of Malaysia | X35: Bond | Y35: MYR | Z35: Malaysia | AA35: N/A | AD35: 0 | AF35: 9933300 | AG35: BND | AI35: 0 | AJ35: 9933300 | AK35: NonFI | AM35: QUOTED SHARES | AN35: 140 | AO35: 9933300 | AP35: 0 | AQ35: X | AR35: 4569 | AT35: MYBMS1900047
A36: 2021-12-31 | B36: ULN*220100066 | C36: BND | D36: 2021-12-31 | E36: 2023-10-23 | F36: OIF | G36: PJ170012 | H36: 5000000 | I36: 5025500 | J36: 5159150 | K36: 5159150 | L36: 0 | M36: 0 | N36: 103.183 | O36: 2.971 | P36: 2.971 | Q36: 0 | R36: 0 | S36: 0 | T36: MYR | U36: Others | V36: Others | W36: TRIplc Medical Sdn Berhad | X36: Bond | Y36: MYR | Z36: Malaysia | AA36: N/A | AD36: 0 | AF36: 5159150 | AG36: BND | AI36: 0 | AJ36: 5159150 | AK36: NonFI | AM36: QUOTED SHARES | AN36: 110 | AO36: 5159150 | AP36: 0 | AQ36: AA1 | AR36: 661 | AT36: MYBPJ1700126
A37: 2021-12-31 | B37: ULN*220100081 | C37: BND | D37: 2021-12-31 | E37: 2022-03-31 | F37: OIF | G37: PK170006 | H37: 6000000 | I37: 5937000 | J37: 5973600 | K37: 5973600 | L37: 0 | M37: 0 | N37: 99.56 | O37: 7.59 | P37: 7.59 | Q37: 0 | R37: 0 | S37: 0 | T37: MYR | U37: Others | V37: Others | W37: Quill Retail Malls Sdn Berhad | X37: Bond | Y37: MYR | Z37: Malaysia | AA37: N/A | AD37: 0 | AF37: 5973600 | AG37: BND | AI37: 0 | AJ37: 5973600 | AK37: NonFI | AM37: QUOTED SHARES | AN37: 110 | AO37: 5973600 | AP37: 0 | AQ37: AA3 | AR37: 90 | AT37: MYBPK1700066
A38: 2021-12-31 | B38: ULN*220100084 | C38: BND | D38: 2021-12-31 | E38: 2022-04-27 | F38: OIF | G38: PN170009 | H38: 5000000 | I38: 5067500 | J38: 5035450 | K38: 5035450 | L38: 0 | M38: 0 | N38: 100.709 | O38: 2.579 | P38: 2.579 | Q38: 0 | R38: 0 | S38: 0 | T38: MYR | U38: Others | V38: Others | W38: RHB Islamic Bank Berhad | X38: Bond | Y38: MYR | Z38: Malaysia | AA38: N/A | AD38: 0 | AF38: 5035450 | AG38: BND | AI38: 0 | AJ38: 5035450 | AK38: FI | AM38: QUOTED SHARES | AN38: 110 | AO38: 5035450 | AP38: 0 | AQ38: AA3 | AR38: 117 | AT38: MYBPN1700094
A39: 2021-12-31 | B39: ULN*220100071 | C39: BND | D39: 2021-12-31 | E39: 2024-09-13 | F39: OIF | G39: PO180006 | H39: 25050000 | I39: 26016910 | J39: 25980858 | K39: 25980858 | L39: 0 | M39: 0 | N39: 103.716 | O39: 3.422 | P39: 3.422 | Q39: 0 | R39: 0 | S39: 0 | T39: MYR | U39: Others | V39: Others | W39: CIMB Group Holdings Berhad | X39: Bond | Y39: MYR | Z39: Malaysia | AA39: CIMB | AD39: 0 | AF39: 25980858 | AG39: BND | AI39: 1 | AJ39: 25980858 | AK39: NonFI | AM39: QUOTED SHARES | AN39: 110 | AO39: 25980858 | AP39: 0 | AQ39: AA | AR39: 987 | AT39: MYBPO1800066
A40: 2021-12-31 | B40: ULN*220100055 | C40: BND | D40: 2021-12-31 | E40: 2026-07-03 | F40: OIF | G40: PP140040 | H40: 5000000 | I40: 5088500 | J40: 5306900 | K40: 5306900 | L40: 0 | M40: 0 | N40: 106.138 | O40: 3.61 | P40: 3.61 | Q40: 0 | R40: 0 | S40: 0 | T40: MYR | U40: Others | V40: Others | W40: Sepangar Bay Power Corporation Sdn Berhad | X40: Bond | Y40: MYR | Z40: Malaysia | AA40: N/A | AD40: 0 | AF40: 5306900 | AG40: BND | AI40: 0 | AJ40: 5306900 | AK40: NonFI | AM40: QUOTED SHARES | AN40: 110 | AO40: 5306900 | AP40: 0 | AQ40: AA1 | AR40: 1645 | AT40: MYBPP1400401
A41: 2021-12-31 | B41: ULN*220100059 | C41: BND | D41: 2021-12-31 | E41: 2022-12-27 | F41: OIF | G41: UG190397 | H41: 5000000 | I41: 5063500 | J41: 5048450 | K41: 5048450 | L41: 0 | M41: 0 | N41: 100.969 | O41: 2.99 | P41: 2.99 | Q41: 0 | R41: 0 | S41: 0 | T41: MYR | U41: Others | V41: Others | W41: STARBRIGHT CAPITAL BERHAD | X41: Bond | Y41: MYR | Z41: Malaysia | AA41: N/A | AD41: 0 | AF41: 5048450 | AG41: BND | AI41: 0 | AJ41: 5048450 | AK41: NonFI | AM41: QUOTED SHARES | AN41: 110 | AO41: 5048450 | AP41: 0 | AQ41: AAA | AR41: 361 | AT41: MYBUG1903973
A42: 2021-12-31 | B42: ULN*220100028 | C42: BND | D42: 2021-12-31 | E42: 2025-03-24 | F42: OIF | G42: UH210111 | H42: 10000000 | I42: 10000000 | J42: 9967700 | K42: 9967700 | L42: 0 | M42: 0 | N42: 99.677 | O42: 3.956 | P42: 3.956 | Q42: 0 | R42: 0 | S42: 0 | T42: MYR | U42: Others | V42: Others | W42: GLACIER ASSETS BERHAD | X42: Bond | Y42: MYR | Z42: Malaysia | AA42: N/A | AD42: 0 | AF42: 9967700 | AG42: BND | AI42: 0 | AJ42: 9967700 | AK42: NonFI | AM42: QUOTED SHARES | AN42: 110 | AO42: 9967700 | AP42: 0 | AQ42: AAA | AR42: 1179 | AT42: MYBUH2101112
A43: 2021-12-31 | B43: ULN*220100064 | C43: BND | D43: 2021-12-31 | E43: 2024-10-18 | F43: OIF | G43: UH210181 | H43: 10000000 | I43: 10016000 | J43: 9961500 | K43: 9961500 | L43: 0 | M43: 0 | N43: 99.615 | O43: 3.646 | P43: 3.646 | Q43: 0 | R43: 0 | S43: 0 | T43: MYR | U43: Others | V43: Others | W43: Toyota Capital Malaysia Sdn Berhad | X43: Bond | Y43: MYR | Z43: Malaysia | AA43: N/A | AD43: 0 | AF43: 9961500 | AG43: BND | AI43: 0 | AJ43: 9961500 | AK43: NonFI | AM43: QUOTED SHARES | AN43: 110 | AO43: 9961500 | AP43: 0 | AQ43: AAA | AR43: 1022 | AT43: MYBUH2101815
A44: 2021-12-31 | B44: ULN*220100026 | C44: BND | D44: 2021-12-31 | E44: 2023-07-11 | F44: OIF | G44: UI180083 | H44: 18000000 | I44: 18099200 | J44: 18304920 | K44: 18304920 | L44: 0 | M44: 0 | N44: 101.694 | O44: 3.82 | P44: 3.82 | Q44: 0 | R44: 0 | S44: 0 | T44: MYR | U44: Others | V44: Others | W44: GENM CAPITAL BERHAD | X44: Bond | Y44: MYR | Z44: Malaysia | AA44: N/A | AD44: 0 | AF44: 18304920 | AG44: BND | AI44: 0 | AJ44: 18304920 | AK44: NonFI | AM44: QUOTED SHARES | AN44: 110 | AO44: 18304920 | AP44: 0 | AQ44: AAA | AR44: 557 | AT44: MYBUI1800837
A45: 2021-12-31 | B45: ULN*220100077 | C45: BND | D45: 2021-12-31 | E45: 2024-07-12 | F45: OIF | G45: UI190238 | H45: 10000000 | I45: 10022000 | J45: 9767500 | K45: 9767500 | L45: 0 | M45: 0 | N45: 97.675 | O45: 5.855 | P45: 5.855 | Q45: 0 | R45: 0 | S45: 0 | T45: MYR | U45: Others | V45: Others | W45: Notable Vision Sdn Berhad | X45: Bond | Y45: MYR | Z45: Malaysia | AA45: N/A | AD45: 0 | AF45: 9767500 | AG45: BND | AI45: 0 | AJ45: 9767500 | AK45: NonFI | AM45: QUOTED SHARES | AN45: 110 | AO45: 9767500 | AP45: 0 | AQ45: AAA | AR45: 924 | AT45: MYBUI1902385
A46: 2021-12-31 | B46: ULN*220100065 | C46: BND | D46: 2021-12-31 | E46: 2025-01-30 | F46: OIF | G46: UI200031 | H46: 10000000 | I46: 10045000 | J46: 10013000 | K46: 10013000 | L46: 0 | M46: 0 | N46: 100.13 | O46: 3.754 | P46: 3.754 | Q46: 0 | R46: 0 | S46: 0 | T46: MYR | U46: Others | V46: Others | W46: Toyota Capital Malaysia Sdn Berhad | X46: Bond | Y46: MYR | Z46: Malaysia | AA46: N/A | AD46: 0 | AF46: 10013000 | AG46: BND | AI46: 0 | AJ46: 10013000 | AK46: NonFI | AM46: QUOTED SHARES | AN46: 110 | AO46: 10013000 | AP46: 0 | AQ46: AAA | AR46: 1126 | AT46: MYBUI2000312
A47: 2021-12-31 | B47: ULN*220100072 | C47: BND | D47: 2021-12-31 | E47: 2023-02-28 | F47: OIF | G47: UJ180024 | H47: 15000000 | I47: 14965500 | J47: 15288750 | K47: 15288750 | L47: 0 | M47: 0 | N47: 101.925 | O47: 3.256 | P47: 3.256 | Q47: 0 | R47: 0 | S47: 0 | T47: MYR | U47: Others | V47: Others | W47: Inverfin Sdn Berhad | X47: Bond | Y47: MYR | Z47: Malaysia | AA47: N/A | AD47: 0 | AF47: 15288750 | AG47: BND | AI47: 0 | AJ47: 15288750 | AK47: NonFI | AM47: QUOTED SHARES | AN47: 110 | AO47: 15288750 | AP47: 0 | AQ47: AAA | AR47: 424 | AT47: MYBUJ1800249
A48: 2021-12-31 | B48: ULN*220100068 | C48: BND | D48: 2021-12-31 | E48: 2024-10-11 | F48: OIF | G48: UN140148 | H48: 5000000 | I48: 5091833.33 | J48: 5102700 | K48: 5102700 | L48: 0 | M48: 0 | N48: 102.054 | O48: 4.155 | P48: 4.155 | Q48: 0 | R48: 0 | S48: 0 | T48: MYR | U48: Others | V48: Others | W48: YTL Power International Berhad | X48: Bond | Y48: MYR | Z48: Malaysia | AA48: N/A | AD48: 0 | AF48: 5102700 | AG48: BND | AI48: 1 | AJ48: 5102700 | AK48: NonFI | AM48: QUOTED SHARES | AN48: 110 | AO48: 5102700 | AP48: 0 | AQ48: AA1 | AR48: 1015 | AT48: MYBUN1401487
A49: 2021-12-31 | B49: ULN*220100025 | C49: BND | D49: 2021-12-31 | E49: 2025-08-22 | F49: OIF | G49: UN150064 | H49: 5000000 | I49: 5045500 | J49: 5091750 | K49: 5091750 | L49: 0 | M49: 0 | N49: 101.835 | O49: 4.347 | P49: 4.347 | Q49: 0 | R49: 0 | S49: 0 | T49: MYR | U49: Others | V49: Others | W49: GENM CAPITAL BERHAD | X49: Bond | Y49: MYR | Z49: Malaysia | AA49: N/A | AD49: 0 | AF49: 5091750 | AG49: BND | AI49: 0 | AJ49: 5091750 | AK49: NonFI | AM49: QUOTED SHARES | AN49: 110 | AO49: 5091750 | AP49: 0 | AQ49: AAA | AR49: 1330 | AT49: MYBUN1500643
A50: 2021-12-31 | B50: ULN*220100020 | C50: BND | D50: 2021-12-31 | E50: 2027-05-18 | F50: OIF | G50: UN170079 | H50: 5000000 | I50: 5505500 | J50: 5243700 | K50: 5243700 | L50: 0 | M50: 0 | N50: 104.874 | O50: 3.691 | P50: 3.691 | Q50: 0 | R50: 0 | S50: 0 | T50: MYR | U50: Others | V50: Others | W50: CIMB Bank Berhad | X50: Bond | Y50: MYR | Z50: Malaysia | AA50: N/A | AD50: 0 | AF50: 5243700 | AG50: BND | AI50: 0 | AJ50: 5243700 | AK50: FI | AM50: QUOTED SHARES | AN50: 110 | AO50: 5243700 | AP50: 0 | AQ50: AAA | AR50: 1964 | AT50: MYBUN1700797
A51: 2021-12-31 | B51: ULN*220100042 | C51: BND | D51: 2021-12-31 | E51: 2027-08-27 | F51: OIF | G51: UN170131 | H51: 5000000 | I51: 5256000 | J51: 5297750 | K51: 5297750 | L51: 0 | M51: 0 | N51: 105.955 | O51: 3.865 | P51: 3.865 | Q51: 0 | R51: 0 | S51: 0 | T51: MYR | U51: Others | V51: Others | W51: Northern Gateway Infrastructure Sdn Berhad | X51: Bond | Y51: MYR | Z51: Malaysia | AA51: N/A | AD51: 0 | AF51: 5297750 | AG51: BND | AI51: 0 | AJ51: 5297750 | AK51: NonFI | AM51: QUOTED SHARES | AN51: 110 | AO51: 5297750 | AP51: 0 | AQ51: AA1 | AR51: 2065 | AT51: MYBUN1701316
A52: 2021-12-31 | B52: ULN*220100083 | C52: BND | D52: 2021-12-31 | E52: 2022-10-11 | F52: OIF | G52: UN170158 | H52: 25000000 | I52: 25117500 | J52: 25391000 | K52: 25391000 | L52: 0 | M52: 0 | N52: 101.564 | O52: 2.826 | P52: 2.826 | Q52: 0 | R52: 0 | S52: 0 | T52: MYR | U52: Others | V52: Others | W52: RHB Investment Bank Berhad | X52: Bond | Y52: MYR | Z52: Malaysia | AA52: N/A | AD52: 0 | AF52: 25391000 | AG52: BND | AI52: 0 | AJ52: 25391000 | AK52: FI | AM52: QUOTED SHARES | AN52: 110 | AO52: 25391000 | AP52: 0 | AQ52: AA3 | AR52: 284 | AT52: MYBUN1701589
A53: 2021-12-31 | B53: ULN*220100029 | C53: BND | D53: 2021-12-31 | E53: 2024-06-14 | F53: OIF | G53: UN190218 | H53: 30000000 | I53: 30754000 | J53: 30648300 | K53: 30648300 | L53: 0 | M53: 0 | N53: 102.161 | O53: 3.371 | P53: 3.371 | Q53: 0 | R53: 0 | S53: 0 | T53: MYR | U53: Others | V53: Others | W53: Hong Leong Financial Group Berhad | X53: Bond | Y53: MYR | Z53: Malaysia | AA53: N/A | AD53: 0 | AF53: 30648300 | AG53: BND | AI53: 1 | AJ53: 30648300 | AK53: NonFI | AM53: QUOTED SHARES | AN53: 110 | AO53: 30648300 | AP53: 0 | AQ53: AA2 | AR53: 896 | AT53: MYBUN1902187
A54: 2021-12-31 | B54: ULN*220100052 | C54: BND | D54: 2021-12-31 | E54: 2029-07-31 | F54: OIF | G54: UN190259 | H54: 5000000 | I54: 5000000 | J54: 5182000 | K54: 5182000 | L54: 0 | M54: 0 | N54: 103.64 | O54: 5.456 | P54: 5.456 | Q54: 0 | R54: 0 | S54: 0 | T54: MYR | U54: Others | V54: Others | W54: PUJIAN BAYU SDN BERHAD | X54: Bond | Y54: MYR | Z54: Malaysia | AA54: N/A | AD54: 0 | AF54: 5182000 | AG54: BND | AI54: 0 | AJ54: 5182000 | AK54: NonFI | AM54: QUOTED SHARES | AN54: 110 | AO54: 5182000 | AP54: 0 | AQ54: AA3 | AR54: 2769 | AT54: MYBUN1902591
A55: 2021-12-31 | B55: ULN*220100027 | C55: BND | D55: 2021-12-31 | E55: 2029-11-08 | F55: OIF | G55: UN190345 | H55: 5000000 | I55: 5000000 | J55: 4703450 | K55: 4703450 | L55: 0 | M55: 0 | N55: 94.069 | O55: 5.106 | P55: 5.106 | Q55: 0 | R55: 0 | S55: 0 | T55: MYR | U55: Others | V55: Others | W55: GENTING RMTN BERHAD | X55: Bond | Y55: MYR | Z55: Malaysia | AA55: N/A | AD55: 0 | AF55: 4703450 | AG55: BND | AI55: 0 | AJ55: 4703450 | AK55: NonFI | AM55: QUOTED SHARES | AN55: 110 | AO55: 4703450 | AP55: 0 | AQ55: AAA | AR55: 2869 | AT55: MYBUN1903458
A56: 2021-12-31 | B56: ULN*220100078 | C56: BND | D56: 2021-12-31 | E56: 2024-12-18 | F56: OIF | G56: UN190380 | H56: 10000000 | I56: 10215000 | J56: 10094800 | K56: 10094800 | L56: 0 | M56: 0 | N56: 100.948 | O56: 3.38 | P56: 3.38 | Q56: 0 | R56: 0 | S56: 0 | T56: MYR | U56: Others | V56: Commercial Banks | W56: Public Bank Berhad | X56: Bond | Y56: MYR | Z56: Malaysia | AA56: N/A | AD56: 0 | AF56: 10094800 | AG56: BND | AI56: 1 | AJ56: 10094800 | AK56: FI | AL56: MAIN BOARD | AM56: QUOTED SHARES | AN56: 110 | AO56: 10094800 | AP56: 0 | AQ56: AA1 | AR56: 1083 | AT56: MYBUN1903805
A57: 2021-12-31 | B57: ULN*220100082 | C57: BND | D57: 2021-12-31 | E57: 2026-04-28 | F57: OIF | G57: UN210163 | H57: 5000000 | I57: 5000000 | J57: 4953900 | K57: 4953900 | L57: 0 | M57: 0 | N57: 99.078 | O57: 3.883 | P57: 3.883 | Q57: 0 | R57: 0 | S57: 0 | T57: MYR | U57: Others | V57: Others | W57: RHB Bank Berhad | X57: Bond | Y57: MYR | Z57: Malaysia | AA57: N/A | AD57: 0 | AF57: 4953900 | AG57: BND | AI57: 0 | AJ57: 4953900 | AK57: FI | AM57: QUOTED SHARES | AN57: 110 | AO57: 4953900 | AP57: 0 | AQ57: AA3 | AR57: 1579 | AT57: MYBUN2101631
A58: 2021-12-31 | B58: ULN*220100043 | C58: BND | D58: 2021-12-31 | E58: 2030-08-29 | F58: OIF | G58: UQ170134 | H58: 10000000 | I58: 10962000 | J58: 10728800 | K58: 10728800 | L58: 0 | M58: 0 | N58: 107.288 | O58: 4.236 | P58: 4.236 | Q58: 0 | R58: 0 | S58: 0 | T58: MYR | U58: Others | V58: Others | W58: Northern Gateway Infrastructure Sdn Berhad | X58: Bond | Y58: MYR | Z58: Malaysia | AA58: N/A | AD58: 0 | AF58: 10728800 | AG58: BND | AI58: 0 | AJ58: 10728800 | AK58: NonFI | AM58: QUOTED SHARES | AN58: 110 | AO58: 10728800 | AP58: 0 | AQ58: AA1 | AR58: 3163 | AT58: MYBUQ1701343
A59: 2021-12-31 | B59: ULN*220100069 | C59: BND | D59: 2021-12-31 | E59: 2024-07-08 | F59: OIF | G59: VG210262 | H59: 5000000 | I59: 5000000 | J59: 4959500 | K59: 4959500 | L59: 0 | M59: 0 | N59: 99.19 | O59: 3.942 | P59: 3.942 | Q59: 0 | R59: 0 | S59: 0 | T59: MYR | U59: Others | V59: Others | W59: ZAMARAD ASSETS BERHAD | X59: Bond | Y59: MYR | Z59: Malaysia | AA59: N/A | AD59: 0 | AF59: 4959500 | AG59: BND | AI59: 0 | AJ59: 4959500 | AK59: NonFI | AM59: QUOTED SHARES | AN59: 110 | AO59: 4959500 | AP59: 0 | AQ59: AAA | AR59: 920 | AT59: MYBVG2102623
A60: 2021-12-31 | B60: ULN*220100038 | C60: BND | D60: 2021-12-31 | E60: 2022-04-29 | F60: OIF | G60: VI160132 | H60: 5000000 | I60: 5032500 | J60: 0 | K60: 0 | L60: 0 | M60: 0 | N60: 0 | O60: 0 | P60: 0 | Q60: 0 | R60: 0 | S60: 0 | T60: MYR | U60: Others | V60: Others | W60: MEX II Sdn Berhad | X60: Bond | Y60: MYR | Z60: Malaysia | AA60: N/A | AD60: 0 | AF60: 0 | AG60: BND | AI60: 0 | AJ60: 0 | AK60: NonFI | AM60: QUOTED SHARES | AN60: 110 | AO60: 0 | AP60: 0 | AQ60: D | AR60: 119 | AT60: MYBVI1601324
A61: 2021-12-31 | B61: ULN*220100010 | C61: BND | D61: 2021-12-31 | E61: 2025-12-23 | F61: OIF | G61: VI200352 | H61: 5000000 | I61: 5000000 | J61: 4882400 | K61: 4882400 | L61: 0 | M61: 0 | N61: 97.648 | O61: 3.53 | P61: 3.53 | Q61: 0 | R61: 0 | S61: 0 | T61: MYR | U61: Others | V61: Others | W61: PENGURUSAN AIR SELANGOR SDN BERHAD | X61: Bond | Y61: MYR | Z61: Malaysia | AA61: N/A | AD61: 0 | AF61: 4882400 | AG61: BND | AI61: 0 | AJ61: 4882400 | AK61: NonFI | AM61: QUOTED SHARES | AN61: 110 | AO61: 4882400 | AP61: 0 | AQ61: AAA | AR61: 1453 | AT61: MYBVI2003520
A62: 2021-12-31 | B62: ULN*220100056 | C62: BND | D62: 2021-12-31 | E62: 2026-07-31 | F62: OIF | G62: VI210292 | H62: 14000000 | I62: 14000000 | J62: 13702780 | K62: 13702780 | L62: 0 | M62: 0 | N62: 97.877 | O62: 3.607 | P62: 3.607 | Q62: 0 | R62: 0 | S62: 0 | T62: MYR | U62: Others | V62: Others | W62: Small Medium Enterprise Development Bank Malaysia Berhad | X62: Bond | Y62: MYR | Z62: Malaysia | AA62: N/A | AD62: 0 | AF62: 13702780 | AG62: BND | AI62: 0 | AJ62: 13702780 | AK62: NonFI | AM62: QUOTED SHARES | AN62: 110 | AO62: 13702780 | AP62: 0 | AQ62: AAA | AR62: 1673 | AT62: MYBVI2102926
A63: 2021-12-31 | B63: ULN*220100019 | C63: BND | D63: 2021-12-31 | E63: 2026-10-21 | F63: OIF | G63: VI210377 | H63: 5000000 | I63: 5000000 | J63: 4977500 | K63: 4977500 | L63: 0 | M63: 0 | N63: 99.55 | O63: 3.572 | P63: 3.572 | Q63: 0 | R63: 0 | S63: 0 | T63: MYR | U63: Others | V63: Others | W63: BANK SIMPANAN NASIONAL BERHAD | X63: Bond | Y63: MYR | Z63: Malaysia | AA63: N/A | AD63: 0 | AF63: 4977500 | AG63: BND | AI63: 0 | AJ63: 4977500 | AK63: FI | AM63: QUOTED SHARES | AN63: 110 | AO63: 4977500 | AP63: 0 | AQ63: AAA | AR63: 1755 | AT63: MYBVI2103775
A64: 2021-12-31 | B64: ULN*220100039 | C64: BND | D64: 2021-12-31 | E64: 2022-04-29 | F64: OIF | G64: VJ160133 | H64: 2000000 | I64: 2015200 | J64: 0 | K64: 0 | L64: 0 | M64: 0 | N64: 0 | O64: 0 | P64: 0 | Q64: 0 | R64: 0 | S64: 0 | T64: MYR | U64: Others | V64: Others | W64: MEX II Sdn Berhad | X64: Bond | Y64: MYR | Z64: Malaysia | AA64: N/A | AD64: 0 | AF64: 0 | AG64: BND | AI64: 0 | AJ64: 0 | AK64: NonFI | AM64: QUOTED SHARES | AN64: 110 | AO64: 0 | AP64: 0 | AQ64: D | AR64: 119 | AT64: MYBVJ1601330
A65: 2021-12-31 | B65: ULN*220100051 | C65: BND | D65: 2021-12-31 | E65: 2027-12-07 | F65: OIF | G65: VJ210459 | H65: 2500000 | I65: 2507750 | J65: 2505550 | K65: 2505550 | L65: 0 | M65: 0 | N65: 100.222 | O65: 4.646 | P65: 4.646 | Q65: 0 | R65: 0 | S65: 0 | T65: MYR | U65: Others | V65: Others | W65: Press Metal Berhad | X65: Bond | Y65: MYR | Z65: Malaysia | AA65: N/A | AD65: 0 | AF65: 2505550 | AG65: BND | AI65: 0 | AJ65: 2505550 | AK65: NonFI | AM65: QUOTED SHARES | AN65: 110 | AO65: 2505550 | AP65: 0 | AQ65: AA3 | AR65: 2167 | AT65: MYBVJ2104599
A66: 2021-12-31 | B66: ULN*220100054 | C66: BND | D66: 2021-12-31 | E66: 2022-05-05 | F66: OIF | G66: VK1500670 | H66: 5000000 | I66: 5150500 | J66: 5037550 | K66: 5037550 | L66: 0 | M66: 0 | N66: 100.751 | O66: 2.512 | P66: 2.512 | Q66: 0 | R66: 0 | S66: 0 | T66: MYR | U66: Others | V66: Others | W66: Sabah Credit Corporation | X66: Bond | Y66: MYR | Z66: Malaysia | AA66: N/A | AD66: 0 | AF66: 5037550 | AG66: BND | AI66: 0 | AJ66: 5037550 | AK66: NonFI | AM66: QUOTED SHARES | AN66: 110 | AO66: 5037550 | AP66: 0 | AQ66: AA1 | AR66: 125 | AT66: MYBVK1500670
A67: 2021-12-31 | B67: ULN*220100061 | C67: BND | D67: 2021-12-31 | E67: 2022-06-10 | F67: OIF | G67: VK150133 | H67: 5000000 | I67: 5135250 | J67: 5045950 | K67: 5045950 | L67: 0 | M67: 0 | N67: 100.919 | O67: 2.089 | P67: 2.089 | Q67: 0 | R67: 0 | S67: 0 | T67: MYR | U67: Others | V67: Others | W67: Telekom Malaysia Berhad | X67: Bond | Y67: MYR | Z67: Malaysia | AA67: N/A | AD67: 0 | AF67: 5045950 | AG67: BND | AI67: 1 | AJ67: 5045950 | AK67: NonFI | AM67: QUOTED SHARES | AN67: 110 | AO67: 5045950 | AP67: 0 | AQ67: AAA | AR67: 161 | AT67: MYBVK1501330
A68: 2021-12-31 | B68: ULN*220100012 | C68: BND | D68: 2021-12-31 | E68: 2023-06-21 | F68: OIF | G68: VK160180 | H68: 5000000 | I68: 5000000 | J68: 5200400 | K68: 5200400 | L68: 0 | M68: 0 | N68: 104.008 | O68: 2.884 | P68: 2.884 | Q68: 0 | R68: 0 | S68: 0 | T68: MYR | U68: Others | V68: Others | W68: Al Dzahab Assets Berhad | X68: Bond | Y68: MYR | Z68: Malaysia | AA68: N/A | AD68: 0 | AF68: 5200400 | AG68: BND | AI68: 0 | AJ68: 5200400 | AK68: NonFI | AM68: QUOTED SHARES | AN68: 110 | AO68: 5200400 | AP68: 0 | AQ68: AAA | AR68: 537 | AT68: MYBVK1601809
A69: 2021-12-31 | B69: ULN*220100013 | C69: BND | D69: 2021-12-31 | E69: 2024-03-29 | F69: OIF | G69: VK170137 | H69: 5000000 | I69: 5000000 | J69: 5190750 | K69: 5190750 | L69: 0 | M69: 0 | N69: 103.815 | O69: 3.363 | P69: 3.363 | Q69: 0 | R69: 0 | S69: 0 | T69: MYR | U69: Others | V69: Others | W69: Al Dzahab Assets Berhad | X69: Bond | Y69: MYR | Z69: Malaysia | AA69: N/A | AD69: 0 | AF69: 5190750 | AG69: BND | AI69: 0 | AJ69: 5190750 | AK69: NonFI | AM69: QUOTED SHARES | AN69: 110 | AO69: 5190750 | AP69: 0 | AQ69: AAA | AR69: 819 | AT69: MYBVK1701377
A70: 2021-12-31 | B70: ULN*220100057 | C70: BND | D70: 2021-12-31 | E70: 2024-07-17 | F70: OIF | G70: VK170191 | H70: 3000000 | I70: 3012600 | J70: 3088500 | K70: 3088500 | L70: 0 | M70: 0 | N70: 102.95 | O70: 3.758 | P70: 3.758 | Q70: 0 | R70: 0 | S70: 0 | T70: MYR | U70: Others | V70: Others | W70: SPR Energy (M) Sdn Berhad | X70: Bond | Y70: MYR | Z70: Malaysia | AA70: N/A | AD70: 0 | AF70: 3088500 | AG70: BND | AI70: 0 | AJ70: 3088500 | AK70: NonFI | AM70: QUOTED SHARES | AN70: 110 | AO70: 3088500 | AP70: 0 | AQ70: AA3 | AR70: 929 | AT70: MYBVK1701914
A71: 2021-12-31 | B71: ULN*220100023 | C71: BND | D71: 2021-12-31 | E71: 2026-02-13 | F71: OIF | G71: VK190031 | H71: 10000000 | I71: 10000000 | J71: 10338200 | K71: 10338200 | L71: 0 | M71: 0 | N71: 103.382 | O71: 3.41 | P71: 3.41 | Q71: 0 | R71: 0 | S71: 0 | T71: MYR | U71: Others | V71: Others | W71: Khazanah Nasional Berhad | X71: Bond | Y71: MYR | Z71: Malaysia | AA71: N/A | AD71: 0 | AF71: 10338200 | AG71: BND | AI71: 0 | AJ71: 10338200 | AK71: NonFI | AM71: QUOTED SHARES | AN71: 110 | AO71: 10338200 | AP71: 0 | AQ71: AAA | AR71: 1505 | AT71: MYBVK1900318
A72: 2021-12-31 | B72: ULN*220100046 | C72: BND | D72: 2021-12-31 | E72: 2026-10-30 | F72: OIF | G72: VK190230 | H72: 5000000 | I72: 5000000 | J72: 5042150 | K72: 5042150 | L72: 0 | M72: 0 | N72: 100.843 | O72: 3.607 | P72: 3.607 | Q72: 0 | R72: 0 | S72: 0 | T72: MYR | U72: Others | V72: Others | W72: Pengurusan Air SPV Berhad | X72: Bond | Y72: MYR | Z72: Malaysia | AA72: N/A | AD72: 0 | AF72: 5042150 | AG72: BND | AI72: 0 | AJ72: 5042150 | AK72: NonFI | AM72: QUOTED SHARES | AN72: 110 | AO72: 5042150 | AP72: 0 | AQ72: AAA | AR72: 1764 | AT72: MYBVK1902306
A73: 2021-12-31 | B73: ULN*220100044 | C73: BND | D73: 2021-12-31 | E73: 2027-06-04 | F73: OIF | G73: VK200085 | H73: 7500000 | I73: 7703250 | J73: 7365450 | K73: 7365450 | L73: 0 | M73: 0 | N73: 98.206 | O73: 3.688 | P73: 3.688 | Q73: 0 | R73: 0 | S73: 0 | T73: MYR | U73: Others | V73: Others | W73: Pengurusan Air SPV Berhad | X73: Bond | Y73: MYR | Z73: Malaysia | AA73: N/A | AD73: 0 | AF73: 7365450 | AG73: BND | AI73: 0 | AJ73: 7365450 | AK73: NonFI | AM73: QUOTED SHARES | AN73: 110 | AO73: 7365450 | AP73: 0 | AQ73: AAA | AR73: 1981 | AT73: MYBVK2000852
A74: 2021-12-31 | B74: ULN*220100011 | C74: BND | D74: 2021-12-31 | E74: 2027-12-23 | F74: OIF | G74: VK200351 | H74: 10000000 | I74: 10000000 | J74: 9649300 | K74: 9649300 | L74: 0 | M74: 0 | N74: 96.493 | O74: 3.904 | P74: 3.904 | Q74: 0 | R74: 0 | S74: 0 | T74: MYR | U74: Others | V74: Others | W74: PENGURUSAN AIR SELANGOR SDN BERHAD | X74: Bond | Y74: MYR | Z74: Malaysia | AA74: N/A | AD74: 0 | AF74: 9649300 | AG74: BND | AI74: 0 | AJ74: 9649300 | AK74: NonFI | AM74: QUOTED SHARES | AN74: 110 | AO74: 9649300 | AP74: 0 | AQ74: AAA | AR74: 2183 | AT74: MYBVK2003518
A75: 2021-12-31 | B75: ULN*220100045 | C75: BND | D75: 2021-12-31 | E75: 2028-06-02 | F75: OIF | G75: VK210216 | H75: 2500000 | I75: 2504500 | J75: 2487525 | K75: 2487525 | L75: 0 | M75: 0 | N75: 99.501 | O75: 3.818 | P75: 3.818 | Q75: 0 | R75: 0 | S75: 0 | T75: MYR | U75: Others | V75: Others | W75: Pengurusan Air SPV Berhad | X75: Bond | Y75: MYR | Z75: Malaysia | AA75: N/A | AD75: 0 | AF75: 2487525 | AG75: BND | AI75: 0 | AJ75: 2487525 | AK75: NonFI | AM75: QUOTED SHARES | AN75: 110 | AO75: 2487525 | AP75: 0 | AQ75: AAA | AR75: 2345 | AT75: MYBVK2102161
A76: 2021-12-31 | B76: ULN*220100030 | C76: BND | D76: 2021-12-31 | E76: 2022-06-10 | F76: OIF | G76: VL140150 | H76: 5000000 | I76: 5032000 | J76: 5051400 | K76: 5051400 | L76: 0 | M76: 0 | N76: 101.028 | O76: 2.429 | P76: 2.429 | Q76: 0 | R76: 0 | S76: 0 | T76: MYR | U76: Others | V76: Others | W76: IJM Corporation Berhad | X76: Bond | Y76: MYR | Z76: Malaysia | AA76: N/A | AD76: 0 | AF76: 5051400 | AG76: BND | AI76: 1 | AJ76: 5051400 | AK76: NonFI | AM76: QUOTED SHARES | AN76: 110 | AO76: 5051400 | AP76: 0 | AQ76: AA3 | AR76: 161 | AT76: MYBVL1401505
A77: 2021-12-31 | B77: ULN*220100058 | C77: BND | D77: 2021-12-31 | E77: 2025-07-17 | F77: OIF | G77: VL170192 | H77: 10000000 | I77: 10044500 | J77: 10308200 | K77: 10308200 | L77: 0 | M77: 0 | N77: 103.082 | O77: 4.094 | P77: 4.094 | Q77: 0 | R77: 0 | S77: 0 | T77: MYR | U77: Others | V77: Others | W77: SPR Energy (M) Sdn Berhad | X77: Bond | Y77: MYR | Z77: Malaysia | AA77: N/A | AD77: 0 | AF77: 10308200 | AG77: BND | AI77: 0 | AJ77: 10308200 | AK77: NonFI | AM77: QUOTED SHARES | AN77: 110 | AO77: 10308200 | AP77: 0 | AQ77: AA3 | AR77: 1294 | AT77: MYBVL1701920
A78: 2021-12-31 | B78: ULN*220100016 | C78: BND | D78: 2021-12-31 | E78: 2025-08-29 | F78: OIF | G78: VL170240 | H78: 5000000 | I78: 5440000 | J78: 5230700 | K78: 5230700 | L78: 0 | M78: 0 | N78: 104.614 | O78: 3.563 | P78: 3.563 | Q78: 0 | R78: 0 | S78: 0 | T78: MYR | U78: Others | V78: Others | W78: BGSM Management Sdn Berhad | X78: Bond | Y78: MYR | Z78: Malaysia | AA78: N/A | AD78: 0 | AF78: 5230700 | AG78: BND | AI78: 0 | AJ78: 5230700 | AK78: NonFI | AM78: QUOTED SHARES | AN78: 110 | AO78: 5230700 | AP78: 0 | AQ78: AA3 | AR78: 1337 | AT78: MYBVL1702407
A79: 2021-12-31 | B79: ULN*220100008 | C79: BND | D79: 2021-12-31 | E79: 2028-10-27 | F79: OIF | G79: VL2002765 | H79: 5000000 | I79: 5000000 | J79: 4713650 | K79: 4713650 | L79: 0 | M79: 0 | N79: 94.273 | O79: 3.729 | P79: 3.729 | Q79: 0 | R79: 0 | S79: 0 | T79: MYR | U79: Others | V79: Others | W79: Perbadanan Tabung Pendidikan Tinggi Nasional | X79: Bond | Y79: MYR | Z79: Malaysia | AA79: N/A | AD79: 0 | AF79: 4713650 | AG79: BND | AI79: 0 | AJ79: 4713650 | AK79: NonFI | AM79: QUOTED SHARES | AN79: 130 | AO79: 4713650 | AP79: 0 | AQ79: X | AR79: 2492 | AT79: MYBVL2002765
A80: 2021-12-31 | B80: ULN*220100032 | C80: BND | D80: 2021-12-31 | E80: 2022-12-02 | F80: OIF | G80: VM130299 | H80: 5000000 | I80: 4976000 | J80: 5049450 | K80: 5049450 | L80: 0 | M80: 0 | N80: 100.989 | O80: 3.139 | P80: 3.139 | Q80: 0 | R80: 0 | S80: 0 | T80: MYR | U80: Others | V80: Others | W80: Konsortium Lebuhraya Utara-Timur (KL) Sdn Berhad | X80: Bond | Y80: MYR | Z80: Malaysia | AA80: N/A | AD80: 0 | AF80: 5049450 | AG80: BND | AI80: 0 | AJ80: 5049450 | AK80: NonFI | AM80: QUOTED SHARES | AN80: 110 | AO80: 5049450 | AP80: 0 | AQ80: AA- | AR80: 336 | AT80: MYBVM1302990
A81: 2021-12-31 | B81: ULN*220100031 | C81: BND | D81: 2021-12-31 | E81: 2023-08-10 | F81: OIF | G81: VM140347 | H81: 5000000 | I81: 5068000 | J81: 5149900 | K81: 5149900 | L81: 0 | M81: 0 | N81: 102.998 | O81: 2.918 | P81: 2.918 | Q81: 0 | R81: 0 | S81: 0 | T81: MYR | U81: Others | V81: Others | W81: Kesas Sdn Berhad | X81: Bond | Y81: MYR | Z81: Malaysia | AA81: N/A | AD81: 0 | AF81: 5149900 | AG81: BND | AI81: 0 | AJ81: 5149900 | AK81: NonFI | AM81: QUOTED SHARES | AN81: 110 | AO81: 5149900 | AP81: 0 | AQ81: AA2 | AR81: 587 | AT81: MYBVM1403475
A82: 2021-12-31 | B82: ULN*220100070 | C82: BND | D82: 2021-12-31 | E82: 2023-06-21 | F82: OIF | G82: VM160181 | H82: 5000000 | I82: 5516400 | J82: 5291800 | K82: 5291800 | L82: 0 | M82: 0 | N82: 105.836 | O82: 2.896 | P82: 2.896 | Q82: 0 | R82: 0 | S82: 0 | T82: MYR | U82: Others | V82: Others | W82: Al Dzahab Assets Berhad | X82: Bond | Y82: MYR | Z82: Malaysia | AA82: N/A | AD82: 0 | AF82: 5291800 | AG82: BND | AI82: 0 | AJ82: 5291800 | AK82: NonFI | AM82: QUOTED SHARES | AN82: 110 | AO82: 5291800 | AP82: 0 | AQ82: AA2 | AR82: 537 | AT82: MYBVM1601813
A83: 2021-12-31 | B83: ULN*220100018 | C83: BND | D83: 2021-12-31 | E83: 2024-06-28 | F83: OIF | G83: VN140164 | H83: 5000000 | I83: 5439500 | J83: 5266500 | K83: 5266500 | L83: 0 | M83: 0 | N83: 105.33 | O83: 3.2 | P83: 3.2 | Q83: 0 | R83: 0 | S83: 0 | T83: MYR | U83: Others | V83: Others | W83: BGSM Management Sdn Berhad | X83: Bond | Y83: MYR | Z83: Malaysia | AA83: N/A | AD83: 0 | AF83: 5266500 | AG83: BND | AI83: 0 | AJ83: 5266500 | AK83: NonFI | AM83: QUOTED SHARES | AN83: 110 | AO83: 5266500 | AP83: 0 | AQ83: AA3 | AR83: 910 | AT83: MYBVN1401642
A84: 2021-12-31 | B84: ULN*220100017 | C84: BND | D84: 2021-12-31 | E84: 2026-03-09 | F84: OIF | G84: VN160032 | H84: 15000000 | I84: 15441000 | J84: 15946500 | K84: 15946500 | L84: 0 | M84: 0 | N84: 106.31 | O84: 3.706 | P84: 3.706 | Q84: 0 | R84: 0 | S84: 0 | T84: MYR | U84: Others | V84: Others | W84: BGSM Management Sdn Berhad | X84: Bond | Y84: MYR | Z84: Malaysia | AA84: N/A | AD84: 0 | AF84: 15946500 | AG84: BND | AI84: 0 | AJ84: 15946500 | AK84: NonFI | AM84: QUOTED SHARES | AN84: 110 | AO84: 15946500 | AP84: 0 | AQ84: AA3 | AR84: 1529 | AT84: MYBVN1600326
A85: 2021-12-31 | B85: ULN*220100080 | C85: BND | D85: 2021-12-31 | E85: 2022-08-03 | F85: OIF | G85: VN170225 | H85: 10000000 | I85: 10310000 | J85: 10124400 | K85: 10124400 | L85: 0 | M85: 0 | N85: 101.244 | O85: 2.476 | P85: 2.476 | Q85: 0 | R85: 0 | S85: 0 | T85: MYR | U85: Others | V85: Others | W85: Public Islamic Bank Berhad | X85: Bond | Y85: MYR | Z85: Malaysia | AA85: N/A | AD85: 0 | AF85: 10124400 | AG85: BND | AI85: 0 | AJ85: 10124400 | AK85: FI | AM85: QUOTED SHARES | AN85: 110 | AO85: 10124400 | AP85: 0 | AQ85: AA1 | AR85: 215 | AT85: MYBVN1702254
A86: 2021-12-31 | B86: ULN*220100021 | C86: BND | D86: 2021-12-31 | E86: 2022-10-06 | F86: OIF | G86: VN170286 | H86: 5000000 | I86: 5120500 | J86: 5079400 | K86: 5079400 | L86: 0 | M86: 0 | N86: 101.588 | O86: 2.659 | P86: 2.659 | Q86: 0 | R86: 0 | S86: 0 | T86: MYR | U86: Others | V86: Others | W86: DANAJAMIN NASIONAL BHD | X86: Bond | Y86: MYR | Z86: Malaysia | AA86: N/A | AD86: 0 | AF86: 5079400 | AG86: BND | AI86: 0 | AJ86: 5079400 | AK86: NonFI | AM86: QUOTED SHARES | AN86: 110 | AO86: 5079400 | AP86: 0 | AQ86: AA1 | AR86: 279 | AT86: MYBVN1702866
A87: 2021-12-31 | B87: ULN*220100062 | C87: BND | D87: 2021-12-31 | E87: 2028-10-31 | F87: OIF | G87: VN180302 | H87: 5000000 | I87: 5011900 | J87: 5254650 | K87: 5254650 | L87: 0 | M87: 0 | N87: 105.093 | O87: 3.826 | P87: 3.826 | Q87: 0 | R87: 0 | S87: 0 | T87: MYR | U87: Others | V87: Others | W87: Telekom Malaysia Berhad | X87: Bond | Y87: MYR | Z87: Malaysia | AA87: N/A | AD87: 0 | AF87: 5254650 | AG87: BND | AI87: 1 | AJ87: 5254650 | AK87: NonFI | AM87: QUOTED SHARES | AN87: 110 | AO87: 5254650 | AP87: 0 | AQ87: AAA | AR87: 2496 | AT87: MYBVN1803029
A88: 2021-12-31 | B88: ULN*220100076 | C88: BND | D88: 2021-12-31 | E88: 2024-01-31 | F88: OIF | G88: VN190017 | H88: 2500000 | I88: 2608000 | J88: 2578050 | K88: 2578050 | L88: 0 | M88: 0 | N88: 103.122 | O88: 3.063 | P88: 3.063 | Q88: 0 | R88: 0 | S88: 0 | T88: MYR | U88: Others | V88: Others | W88: Malayan Banking Berhad | X88: Bond | Y88: MYR | Z88: Malaysia | AA88: N/A | AD88: 0 | AF88: 2578050 | AG88: BND | AI88: 0 | AJ88: 2578050 | AK88: FI | AM88: QUOTED SHARES | AN88: 110 | AO88: 2578050 | AP88: 0 | AQ88: AA1 | AR88: 761 | AT88: MYBVN1900171
A89: 2021-12-31 | B89: ULN*220100006 | C89: BND | D89: 2021-12-31 | E89: 2029-02-07 | F89: OIF | G89: VN190019 | H89: 5000000 | I89: 5254000 | J89: 5182050 | K89: 5182050 | L89: 0 | M89: 0 | N89: 103.641 | O89: 3.75 | P89: 3.75 | Q89: 0 | R89: 0 | S89: 0 | T89: MYR | U89: Others | V89: Others | W89: Pengurusan Air SPV Berhad | X89: Bond | Y89: MYR | Z89: Malaysia | AA89: N/A | AD89: 0 | AF89: 5182050 | AG89: BND | AI89: 0 | AJ89: 5182050 | AK89: NonFI | AM89: QUOTED SHARES | AN89: 110 | AO89: 5182050 | AP89: 0 | AQ89: X | AR89: 2595 | AT89: MYBVN1900197
A90: 2021-12-31 | B90: ULN*220100047 | C90: BND | D90: 2021-12-31 | E90: 2029-02-23 | F90: OIF | G90: VN190036 | H90: 15000000 | I90: 15000000 | J90: 15542100 | K90: 15542100 | L90: 0 | M90: 0 | N90: 103.614 | O90: 3.953 | P90: 3.953 | Q90: 0 | R90: 0 | S90: 0 | T90: MYR | U90: Others | V90: Others | W90: Pengurusan Air SPV Berhad | X90: Bond | Y90: MYR | Z90: Malaysia | AA90: N/A | AD90: 0 | AF90: 15542100 | AG90: BND | AI90: 0 | AJ90: 15542100 | AK90: NonFI | AM90: QUOTED SHARES | AN90: 110 | AO90: 15542100 | AP90: 0 | AQ90: AAA | AR90: 2611 | AT90: MYBVN1900361
A91: 2021-12-31 | B91: ULN*220100007 | C91: BND | D91: 2021-12-31 | E91: 2029-03-12 | F91: OIF | G91: VN190052 | H91: 5000000 | I91: 5526500 | J91: 5135650 | K91: 5135650 | L91: 0 | M91: 0 | N91: 102.713 | O91: 3.765 | P91: 3.765 | Q91: 0 | R91: 0 | S91: 0 | T91: MYR | U91: Others | V91: Others | W91: Syarikat Prasarana Negara Berhad | X91: Bond | Y91: MYR | Z91: Malaysia | AA91: N/A | AD91: 0 | AF91: 5135650 | AG91: BND | AI91: 0 | AJ91: 5135650 | AK91: NonFI | AM91: QUOTED SHARES | AN91: 110 | AO91: 5135650 | AP91: 0 | AQ91: X | AR91: 2628 | AT91: MYBVN1900528
A92: 2021-12-31 | B92: ULN*220100079 | C92: BND | D92: 2021-12-31 | E92: 2024-10-31 | F92: OIF | G92: VN190233 | H92: 10000000 | I92: 10235000 | J92: 10128000 | K92: 10128000 | L92: 0 | M92: 0 | N92: 101.28 | O92: 3.274 | P92: 3.274 | Q92: 0 | R92: 0 | S92: 0 | T92: MYR | U92: Others | V92: Others | W92: Public Islamic Bank Berhad | X92: Bond | Y92: MYR | Z92: Malaysia | AA92: N/A | AD92: 0 | AF92: 10128000 | AG92: BND | AI92: 0 | AJ92: 10128000 | AK92: FI | AM92: QUOTED SHARES | AN92: 110 | AO92: 10128000 | AP92: 0 | AQ92: AA1 | AR92: 1035 | AT92: MYBVN1902334
A93: 2021-12-31 | B93: ULN*220100075 | C93: BND | D93: 2021-12-31 | E93: 2025-10-09 | F93: OIF | G93: VN200219 | H93: 5000000 | I93: 4935000 | J93: 4878500 | K93: 4878500 | L93: 0 | M93: 0 | N93: 97.57 | O93: 3.595 | P93: 3.595 | Q93: 0 | R93: 0 | S93: 0 | T93: MYR | U93: Others | V93: Others | W93: Malayan Banking Berhad | X93: Bond | Y93: MYR | Z93: Malaysia | AA93: N/A | AD93: 0 | AF93: 4878500 | AG93: BND | AI93: 0 | AJ93: 4878500 | AK93: FI | AM93: QUOTED SHARES | AN93: 110 | AO93: 4878500 | AP93: 0 | AQ93: AA1 | AR93: 1378 | AT93: MYBVN2002191
A94: 2021-12-31 | B94: ULN*220100014 | C94: BND | D94: 2021-12-31 | E94: 2031-06-06 | F94: OIF | G94: VN210218 | H94: 5000000 | I94: 5000000 | J94: 4983600 | K94: 4983600 | L94: 0 | M94: 0 | N94: 99.672 | O94: 4.092 | P94: 4.092 | Q94: 0 | R94: 0 | S94: 0 | T94: MYR | U94: Others | V94: Others | W94: Bank Pembangunan Malaysia Berhad | X94: Bond | Y94: MYR | Z94: Malaysia | AA94: N/A | AD94: 0 | AF94: 4983600 | AG94: BND | AI94: 0 | AJ94: 4983600 | AK94: NonFI | AM94: QUOTED SHARES | AN94: 110 | AO94: 4983600 | AP94: 0 | AQ94: AAA | AR94: 3444 | AT94: MYBVN2102181
A95: 2021-12-31 | B95: ULN*220100063 | C95: BND | D95: 2021-12-31 | E95: 2031-11-25 | F95: OIF | G95: VN210441 | H95: 10000000 | I95: 10000000 | J95: 10040900 | K95: 10040900 | L95: 0 | M95: 0 | N95: 100.409 | O95: 4.029 | P95: 4.029 | Q95: 0 | R95: 0 | S95: 0 | T95: MYR | U95: Others | V95: Others | W95: Tenaga Nasional Berhad | X95: Bond | Y95: MYR | Z95: Malaysia | AA95: N/A | AD95: 0 | AF95: 10040900 | AG95: BND | AI95: 1 | AJ95: 10040900 | AK95: NonFI | AM95: QUOTED SHARES | AN95: 110 | AO95: 10040900 | AP95: 0 | AQ95: AAA | AR95: 3616 | AT95: MYBVN2104419
A96: 2021-12-31 | B96: ULN*220100033 | C96: BND | D96: 2021-12-31 | E96: 2024-12-02 | F96: OIF | G96: VO130301 | H96: 5000000 | I96: 5208500 | J96: 5096600 | K96: 5096600 | L96: 0 | M96: 0 | N96: 101.932 | O96: 4.039 | P96: 4.039 | Q96: 0 | R96: 0 | S96: 0 | T96: MYR | U96: Others | V96: Others | W96: Konsortium Lebuhraya Utara-Timur (KL) Sdn Berhad | X96: Bond | Y96: MYR | Z96: Malaysia | AA96: N/A | AD96: 0 | AF96: 5096600 | AG96: BND | AI96: 0 | AJ96: 5096600 | AK96: NonFI | AM96: QUOTED SHARES | AN96: 110 | AO96: 5096600 | AP96: 0 | AQ96: AA- | AR96: 1067 | AT96: MYBVO1303010
A97: 2021-12-31 | B97: ULN*220100024 | C97: BND | D97: 2021-12-31 | E97: 2027-01-29 | F97: OIF | G97: VO160014 | H97: 5000000 | I97: 5292000 | J97: 5368300 | K97: 5368300 | L97: 0 | M97: 0 | N97: 107.366 | O97: 3.74 | P97: 3.74 | Q97: 0 | R97: 0 | S97: 0 | T97: MYR | U97: Others | V97: Others | W97: EKVE Sdn Berhad | X97: Bond | Y97: MYR | Z97: Malaysia | AA97: N/A | AD97: 0 | AF97: 5368300 | AG97: BND | AI97: 0 | AJ97: 5368300 | AK97: NonFI | AM97: QUOTED SHARES | AN97: 110 | AO97: 5368300 | AP97: 0 | AQ97: AAA | AR97: 1855 | AT97: MYBVO1600142
A98: 2021-12-31 | B98: ULN*220100034 | C98: BND | D98: 2021-12-31 | E98: 2025-12-02 | F98: OIF | G98: VP130302 | H98: 5000000 | I98: 4919000 | J98: 5073400 | K98: 5073400 | L98: 0 | M98: 0 | N98: 101.468 | O98: 4.337 | P98: 4.337 | Q98: 0 | R98: 0 | S98: 0 | T98: MYR | U98: Others | V98: Others | W98: Konsortium Lebuhraya Utara-Timur (KL) Sdn Berhad | X98: Bond | Y98: MYR | Z98: Malaysia | AA98: N/A | AD98: 0 | AF98: 5073400 | AG98: BND | AI98: 0 | AJ98: 5073400 | AK98: NonFI | AM98: QUOTED SHARES | AN98: 110 | AO98: 5073400 | AP98: 0 | AQ98: AA- | AR98: 1432 | AT98: MYBVP1303025
A99: 2021-12-31 | B99: ULN*220100060 | C99: BND | D99: 2021-12-31 | E99: 2026-07-01 | F99: OIF | G99: VQ130187 | H99: 2500000 | I99: 2575500 | J99: 2651700 | K99: 2651700 | L99: 0 | M99: 0 | N99: 106.068 | O99: 3.789 | P99: 3.789 | Q99: 0 | R99: 0 | S99: 0 | T99: MYR | U99: Others | V99: Others | W99: Tanjung Bin O&M Berhad | X99: Bond | Y99: MYR | Z99: Malaysia | AA99: N/A | AD99: 0 | AF99: 2651700 | AG99: BND | AI99: 0 | AJ99: 2651700 | AK99: NonFI | AM99: QUOTED SHARES | AN99: 110 | AO99: 2651700 | AP99: 0 | AQ99: AA- | AR99: 1643 | AT99: MYBVQ1301878
A100: 2021-12-31 | B100: ULN*220100035 | C100: BND | D100: 2021-12-31 | E100: 2026-12-02 | F100: OIF | G100: VQ130303 | H100: 3000000 | I100: 2935500 | J100: 3033930 | K100: 3033930 | L100: 0 | M100: 0 | N100: 101.131 | O100: 4.49 | P100: 4.49 | Q100: 0 | R100: 0 | S100: 0 | T100: MYR | U100: Others | V100: Others | W100: Konsortium Lebuhraya Utara-Timur (KL) Sdn Berhad | X100: Bond | Y100: MYR | Z100: Malaysia | AA100: N/A | AD100: 0 | AF100: 3033930 | AG100: BND | AI100: 0 | AJ100: 3033930 | AK100: NonFI | AM100: QUOTED SHARES | AN100: 110 | AO100: 3033930 | AP100: 0 | AQ100: AA- | AR100: 1797 | AT100: MYBVQ1303031
A101: 2021-12-31 | B101: ULN*220100036 | C101: BND | D101: 2021-12-31 | E101: 2027-12-02 | F101: OIF | G101: VR130304 | H101: 6000000 | I101: 5764800 | J101: 6034140 | K101: 6034140 | L101: 0 | M101: 0 | N101: 100.569 | O101: 4.638 | P101: 4.638 | Q101: 0 | R101: 0 | S101: 0 | T101: MYR | U101: Others | V101: Others | W101: Konsortium Lebuhraya Utara-Timur (KL) Sdn Berhad | X101: Bond | Y101: MYR | Z101: Malaysia | AA101: N/A | AD101: 0 | AF101: 6034140 | AG101: BND | AI101: 0 | AJ101: 6034140 | AK101: NonFI | AM101: QUOTED SHARES | AN101: 110 | AO101: 6034140 | AP101: 0 | AQ101: AA- | AR101: 2162 | AT101: MYBVR1303047
A102: 2021-12-31 | B102: ULN*220100040 | C102: BND | D102: 2021-12-31 | E102: 2030-04-29 | F102: OIF | G102: VR160140 | H102: 5000000 | I102: 5447500 | J102: 0 | K102: 0 | L102: 0 | M102: 0 | N102: 0 | O102: 0 | P102: 0 | Q102: 0 | R102: 0 | S102: 0 | T102: MYR | U102: Others | V102: Others | W102: MEX II Sdn Berhad | X102: Bond | Y102: MYR | Z102: Malaysia | AA102: N/A | AD102: 0 | AF102: 0 | AG102: BND | AI102: 0 | AJ102: 0 | AK102: NonFI | AM102: QUOTED SHARES | AN102: 110 | AO102: 0 | AP102: 0 | AQ102: D | AR102: 3041 | AT102: MYBVR1601408
A103: 2021-12-31 | B103: ULN*220100048 | C103: BND | D103: 2021-12-31 | E103: 2027-01-12 | F103: OIF | G103: VS120014 | H103: 5000000 | I103: 5103500 | J103: 5290500 | K103: 5290500 | L103: 0 | M103: 0 | N103: 105.81 | O103: 3.527 | P103: 3.527 | Q103: 0 | R103: 0 | S103: 0 | T103: MYR | U103: Others | V103: Others | W103: Projek Lebuhraya Usahasama Berhad | X103: Bond | Y103: MYR | Z103: Malaysia | AA103: N/A | AD103: 0 | AF103: 5290500 | AG103: BND | AI103: 0 | AJ103: 5290500 | AK103: NonFI | AM103: QUOTED SHARES | AN103: 110 | AO103: 5290500 | AP103: 0 | AQ103: AAA | AR103: 1838 | AT103: MYBVS1200142
A104: 2021-12-31 | B104: ULN*220100001 | C104: BND | D104: 2021-12-31 | E104: 2028-10-31 | F104: OIF | G104: VS130277 | H104: 5000000 | I104: 5512000 | J104: 5266300 | K104: 5266300 | L104: 0 | M104: 0 | N104: 105.326 | O104: 3.691 | P104: 3.691 | Q104: 0 | R104: 0 | S104: 0 | T104: MYR | U104: Others | V104: Others | W104: DanaInfra Nasional Berhad | X104: Bond | Y104: MYR | Z104: Malaysia | AA104: N/A | AD104: 0 | AF104: 5266300 | AG104: BND | AI104: 0 | AJ104: 5266300 | AK104: NonFI | AM104: QUOTED SHARES | AN104: 110 | AO104: 5266300 | AP104: 0 | AQ104: X | AR104: 2496 | AT104: MYBVS1302773
A105: 2021-12-31 | B105: ULN*220100053 | C105: BND | D105: 2021-12-31 | E105: 2029-03-26 | F105: OIF | G105: VS140056 | H105: 10000000 | I105: 10487850 | J105: 10820400 | K105: 10820400 | L105: 0 | M105: 0 | N105: 108.204 | O105: 3.886 | P105: 3.886 | Q105: 0 | R105: 0 | S105: 0 | T105: MYR | U105: Others | V105: Others | W105: Rantau Abang Capital Berhad | X105: Bond | Y105: MYR | Z105: Malaysia | AA105: N/A | AD105: 0 | AF105: 10820400 | AG105: BND | AI105: 0 | AJ105: 10820400 | AK105: NonFI | AM105: QUOTED SHARES | AN105: 110 | AO105: 10820400 | AP105: 0 | AQ105: AAA | AR105: 2642 | AT105: MYBVS1400569
A106: 2021-12-31 | B106: ULN*220100041 | C106: BND | D106: 2021-12-31 | E106: 2031-04-29 | F106: OIF | G106: VS160141 | H106: 5000000 | I106: 5381000 | J106: 0 | K106: 0 | L106: 0 | M106: 0 | N106: 0 | O106: 0 | P106: 0 | Q106: 0 | R106: 0 | S106: 0 | T106: MYR | U106: Others | V106: Others | W106: MEX II Sdn Berhad | X106: Bond | Y106: MYR | Z106: Malaysia | AA106: N/A | AD106: 0 | AF106: 0 | AG106: BND | AI106: 0 | AJ106: 0 | AK106: NonFI | AM106: QUOTED SHARES | AN106: 110 | AO106: 0 | AP106: 0 | AQ106: D | AR106: 3406 | AT106: MYBVS1601414
A107: 2021-12-31 | B107: ULN*220100003 | C107: BND | D107: 2021-12-31 | E107: 2031-07-28 | F107: OIF | G107: VS160236 | H107: 15000000 | I107: 15000000 | J107: 15706800 | K107: 15706800 | L107: 0 | M107: 0 | N107: 104.712 | O107: 3.924 | P107: 3.924 | Q107: 0 | R107: 0 | S107: 0 | T107: MYR | U107: Others | V107: Others | W107: Jambatan Kedua Sdn Bhd | X107: Bond | Y107: MYR | Z107: Malaysia | AA107: N/A | AD107: 0 | AF107: 15706800 | AG107: BND | AI107: 0 | AJ107: 15706800 | AK107: NonFI | AM107: QUOTED SHARES | AN107: 110 | AO107: 15706800 | AP107: 0 | AQ107: X | AR107: 3496 | AT107: MYBVS1602362
A108: 2021-12-31 | B108: ULN*220100015 | C108: BND | D108: 2021-12-31 | E108: 2032-03-02 | F108: OIF | G108: VS170042 | H108: 7500000 | I108: 7529750 | J108: 8024250 | K108: 8024250 | L108: 0 | M108: 0 | N108: 106.99 | O108: 4.13 | P108: 4.13 | Q108: 0 | R108: 0 | S108: 0 | T108: MYR | U108: Others | V108: Others | W108: Bank Pembangunan Malaysia Berhad | X108: Bond | Y108: MYR | Z108: Malaysia | AA108: N/A | AD108: 0 | AF108: 8024250 | AG108: BND | AI108: 0 | AJ108: 8024250 | AK108: NonFI | AM108: QUOTED SHARES | AN108: 110 | AO108: 8024250 | AP108: 0 | AQ108: AAA | AR108: 3714 | AT108: MYBVS1700422
A109: 2021-12-31 | B109: ULN*220100009 | C109: BND | D109: 2021-12-31 | E109: 2032-08-17 | F109: OIF | G109: VS170237 | H109: 5000000 | I109: 5742500 | J109: 5417350 | K109: 5417350 | L109: 0 | M109: 0 | N109: 108.347 | O109: 3.959 | P109: 3.959 | Q109: 0 | R109: 0 | S109: 0 | T109: MYR | U109: Others | V109: Others | W109: Perbadanan Tabung Pendidikan Tinggi Nasional | X109: Bond | Y109: MYR | Z109: Malaysia | AA109: N/A | AD109: 0 | AF109: 5417350 | AG109: BND | AI109: 0 | AJ109: 5417350 | AK109: NonFI | AM109: QUOTED SHARES | AN109: 110 | AO109: 5417350 | AP109: 0 | AQ109: X | AR109: 3882 | AT109: MYBVS1702378
A110: 2021-12-31 | B110: ULN*220100005 | C110: BND | D110: 2021-12-31 | E110: 2035-07-06 | F110: OIF | G110: VS200116 | H110: 5000000 | I110: 5000000 | J110: 4706150 | K110: 4706150 | L110: 0 | M110: 0 | N110: 94.123 | O110: 4.153 | P110: 4.153 | Q110: 0 | R110: 0 | S110: 0 | T110: MYR | U110: Others | V110: Others | W110: MALAYSIA RAIL LINK SDN BERHAD | X110: Bond | Y110: MYR | Z110: Malaysia | AA110: N/A | AD110: 0 | AF110: 4706150 | AG110: BND | AI110: 0 | AJ110: 4706150 | AK110: NonFI | AM110: QUOTED SHARES | AN110: 110 | AO110: 4706150 | AP110: 0 | AQ110: X | AR110: 4935 | AT110: MYBVS2001168
A111: 2021-12-31 | B111: ULN*220100049 | C111: BND | D111: 2021-12-31 | E111: 2028-01-12 | F111: OIF | G111: VT120015 | H111: 15000000 | I111: 15685500 | J111: 15943200 | K111: 15943200 | L111: 0 | M111: 0 | N111: 106.288 | O111: 3.705 | P111: 3.705 | Q111: 0 | R111: 0 | S111: 0 | T111: MYR | U111: Others | V111: Others | W111: Projek Lebuhraya Usahasama Berhad | X111: Bond | Y111: MYR | Z111: Malaysia | AA111: N/A | AD111: 0 | AF111: 15943200 | AG111: BND | AI111: 0 | AJ111: 15943200 | AK111: NonFI | AM111: QUOTED SHARES | AN111: 110 | AO111: 15943200 | AP111: 0 | AQ111: AAA | AR111: 2203 | AT111: MYBVT1200157
A112: 2021-12-31 | B112: ULN*220100037 | C112: BND | D112: 2021-12-31 | E112: 2029-11-30 | F112: OIF | G112: VT130306 | H112: 10000000 | I112: 9805000 | J112: 9899600 | K112: 9899600 | L112: 0 | M112: 0 | N112: 98.996 | O112: 4.904 | P112: 4.904 | Q112: 0 | R112: 0 | S112: 0 | T112: MYR | U112: Others | V112: Others | W112: Konsortium Lebuhraya Utara-Timur (KL) Sdn Berhad | X112: Bond | Y112: MYR | Z112: Malaysia | AA112: N/A | AD112: 0 | AF112: 9899600 | AG112: BND | AI112: 0 | AJ112: 9899600 | AK112: NonFI | AM112: QUOTED SHARES | AN112: 110 | AO112: 9899600 | AP112: 0 | AQ112: AA- | AR112: 2891 | AT112: MYBVT1303068
A113: 2021-12-31 | B113: ULN*220100022 | C113: BND | D113: 2021-12-31 | E113: 2033-09-21 | F113: OIF | G113: VT180093 | H113: 5000000 | I113: 5643500 | J113: 5411150 | K113: 5411150 | L113: 0 | M113: 0 | N113: 108.223 | O113: 4.127 | P113: 4.127 | Q113: 0 | R113: 0 | S113: 0 | T113: MYR | U113: Others | V113: Others | W113: Danga Capital Berhad | X113: Bond | Y113: MYR | Z113: Malaysia | AA113: N/A | AD113: 0 | AF113: 5411150 | AG113: BND | AI113: 0 | AJ113: 5411150 | AK113: NonFI | AM113: QUOTED SHARES | AN113: 110 | AO113: 5411150 | AP113: 0 | AQ113: AAA | AR113: 4282 | AT113: MYBVT1800931
A114: 2021-12-31 | B114: ULN*220100050 | C114: BND | D114: 2021-12-31 | E114: 2029-01-12 | F114: OIF | G114: VU120016 | H114: 10000000 | I114: 10715750 | J114: 10658100 | K114: 10658100 | L114: 0 | M114: 0 | N114: 106.581 | O114: 3.88 | P114: 3.88 | Q114: 0 | R114: 0 | S114: 0 | T114: MYR | U114: Others | V114: Others | W114: Projek Lebuhraya Usahasama Berhad | X114: Bond | Y114: MYR | Z114: Malaysia | AA114: N/A | AD114: 0 | AF114: 10658100 | AG114: BND | AI114: 0 | AJ114: 10658100 | AK114: NonFI | AM114: QUOTED SHARES | AN114: 110 | AO114: 10658100 | AP114: 0 | AQ114: AAA | AR114: 2569 | AT114: MYBVU1200163
A115: 2021-12-31 | B115: ULN*220100002 | C115: BND | D115: 2021-12-31 | E115: 2033-10-31 | F115: OIF | G115: VX130278 | H115: 5000000 | I115: 5774750 | J115: 5367900 | K115: 5367900 | L115: 0 | M115: 0 | N115: 107.358 | O115: 4.013 | P115: 4.013 | Q115: 0 | R115: 0 | S115: 0 | T115: MYR | U115: Others | V115: Others | W115: DanaInfra Nasional Berhad | X115: Bond | Y115: MYR | Z115: Malaysia | AA115: N/A | AD115: 0 | AF115: 5367900 | AG115: BND | AI115: 0 | AJ115: 5367900 | AK115: NonFI | AM115: QUOTED SHARES | AN115: 110 | AO115: 5367900 | AP115: 0 | AQ115: X | AR115: 4322 | AT115: MYBVX1302781
A116: 2021-12-31 | B116: ULN*220100073 | C116: BND | D116: 2021-12-31 | E116: 2024-12-13 | F116: OIF | G116: VZ140395 | H116: 15000000 | I116: 15659000 | J116: 15526500 | K116: 15526500 | L116: 0 | M116: 0 | N116: 103.51 | O116: 4.464 | P116: 4.464 | Q116: 0 | R116: 0 | S116: 0 | T116: MYR | U116: Others | V116: Others | W116: Malaysia Airport Holdings Berhad | X116: Bond | Y116: MYR | Z116: Malaysia | AA116: N/A | AD116: 0 | AF116: 15526500 | AG116: BND | AI116: 1 | AJ116: 15526500 | AK116: NonFI | AM116: QUOTED SHARES | AN116: 110 | AO116: 15526500 | AP116: 0 | AQ116: AA2 | AR116: 1078 | AT116: MYBVZ1403956
A117: 2021-12-31 | B117: ULN*220100074 | C117: BND | D117: 2021-12-31 | E117: 2024-09-25 | F117: OIF | G117: VZ190186 | H117: 10000000 | I117: 10000000 | J117: 10133400 | K117: 10133400 | L117: 0 | M117: 0 | N117: 101.334 | O117: 3.561 | P117: 3.561 | Q117: 0 | R117: 0 | S117: 0 | T117: MYR | U117: Others | V117: Commercial Banks | W117: Malayan Banking Berhad | X117: Bond | Y117: MYR | Z117: Malaysia | AA117: N/A | AD117: 0 | AF117: 10133400 | AG117: BND | AI117: 0 | AJ117: 10133400 | AK117: FI | AL117: MAIN BOARD | AM117: QUOTED SHARES | AN117: 110 | AO117: 10133400 | AP117: 0 | AQ117: AA3 | AR117: 999 | AT117: MYBVZ1901868
A118: 2021-12-31 | B118: ULN*220100093 | C118: BND | D118: 2021-12-31 | E118: 2026-03-31 | F118: OLRAF | G118: GK190003 | H118: 30000000 | I118: 31682351.65 | J118: 30613800 | K118: 30613800 | L118: 0 | M118: 0 | N118: 102.046 | O118: 3.205 | P118: 3.205 | Q118: 0 | R118: 0 | S118: 0 | T118: MYR | U118: Others | V118: Others | W118: Government of Malaysia | X118: Bond | Y118: MYR | Z118: Malaysia | AA118: N/A | AD118: 0 | AF118: 30613800 | AG118: BND | AI118: 0 | AJ118: 30613800 | AK118: NonFI | AM118: QUOTED SHARES | AN118: 140 | AO118: 30613800 | AP118: 0 | AQ118: X | AR118: 1551 | AT118: MYBGK1900038
A119: 2021-12-31 | B119: ULN*220100091 | C119: BND | D119: 2021-12-31 | E119: 2027-09-30 | F119: OLRAF | G119: GL200001 | H119: 45000000 | I119: 46434666.67 | J119: 45199800 | K119: 45199800 | L119: 0 | M119: 0 | N119: 100.444 | O119: 3.337 | P119: 3.337 | Q119: 0 | R119: 0 | S119: 0 | T119: MYR | U119: Others | V119: Others | W119: Government of Malaysia | X119: Bond | Y119: MYR | Z119: Malaysia | AA119: N/A | AD119: 0 | AF119: 45199800 | AG119: BND | AI119: 0 | AJ119: 45199800 | AK119: NonFI | AM119: QUOTED SHARES | AN119: 131 | AO119: 45199800 | AP119: 0 | AQ119: X | AR119: 2099 | AT119: MYBGL2000018
A120: 2021-12-31 | B120: ULN*220100094 | C120: BND | D120: 2021-12-31 | E120: 2026-09-30 | F120: OLRAF | G120: GO160003 | H120: 10000000 | I120: 9968375 | J120: 10367700 | K120: 10367700 | L120: 0 | M120: 0 | N120: 103.677 | O120: 3.226 | P120: 3.226 | Q120: 0 | R120: 0 | S120: 0 | T120: MYR | U120: Others | V120: Others | W120: Government of Malaysia | X120: Bond | Y120: MYR | Z120: Malaysia | AA120: N/A | AD120: 0 | AF120: 10367700 | AG120: BND | AI120: 0 | AJ120: 10367700 | AK120: NonFI | AM120: QUOTED SHARES | AN120: 140 | AO120: 10367700 | AP120: 0 | AQ120: X | AR120: 1734 | AT120: MYBGO1600036
A121: 2021-12-31 | B121: ULN*220100095 | C121: BND | D121: 2021-12-31 | E121: 2028-10-31 | F121: OLRAF | G121: GO180002 | H121: 12500000 | I121: 13487250 | J121: 13208125 | K121: 13208125 | L121: 0 | M121: 0 | N121: 105.665 | O121: 3.43 | P121: 3.43 | Q121: 0 | R121: 0 | S121: 0 | T121: MYR | U121: Others | V121: Others | W121: Government of Malaysia | X121: Bond | Y121: MYR | Z121: Malaysia | AA121: N/A | AD121: 0 | AF121: 13208125 | AG121: BND | AI121: 0 | AJ121: 13208125 | AK121: NonFI | AM121: QUOTED SHARES | AN121: 140 | AO121: 13208125 | AP121: 0 | AQ121: X | AR121: 2496 | AT121: MYBGO1800024
A122: 2021-12-31 | B122: ULN*220100092 | C122: BND | D122: 2021-12-31 | E122: 2030-10-15 | F122: OLRAF | G122: GO200002 | H122: 20000000 | I122: 20269937.62 | J122: 19763400 | K122: 19763400 | L122: 0 | M122: 0 | N122: 98.817 | O122: 3.623 | P122: 3.623 | Q122: 0 | R122: 0 | S122: 0 | T122: MYR | U122: Others | V122: Others | W122: Government of Malaysia | X122: Bond | Y122: MYR | Z122: Malaysia | AA122: N/A | AD122: 0 | AF122: 19763400 | AG122: BND | AI122: 0 | AJ122: 19763400 | AK122: NonFI | AM122: QUOTED SHARES | AN122: 131 | AO122: 19763400 | AP122: 0 | AQ122: X | AR122: 3210 | AT122: MYBGO2000020
A123: 2021-12-31 | B123: ULN*220100101 | C123: BND | D123: 2021-12-31 | E123: 2026-11-30 | F123: OLRAF | G123: MO160003 | H123: 40000000 | I123: 42482250 | J123: 41340000 | K123: 41340000 | L123: 0 | M123: 0 | N123: 103.35 | O123: 3.157 | P123: 3.157 | Q123: 0 | R123: 0 | S123: 0 | T123: MYR | U123: Others | V123: Others | W123: Government of Malaysia | X123: Bond | Y123: MYR | Z123: Malaysia | AA123: N/A | AD123: 0 | AF123: 41340000 | AG123: BND | AI123: 0 | AJ123: 41340000 | AK123: NonFI | AM123: QUOTED SHARES | AN123: 140 | AO123: 41340000 | AP123: 0 | AQ123: X | AR123: 1795 | AT123: MYBMO1600034
A124: 2021-12-31 | B124: ULN*220100100 | C124: BND | D124: 2021-12-31 | E124: 2028-06-15 | F124: OLRAF | G124: MS130005 | H124: 60250000 | I124: 63015343.75 | J124: 61455000 | K124: 61455000 | L124: 0 | M124: 0 | N124: 102 | O124: 3.385 | P124: 3.385 | Q124: 0 | R124: 0 | S124: 0 | T124: MYR | U124: Others | V124: Others | W124: Government of Malaysia | X124: Bond | Y124: MYR | Z124: Malaysia | AA124: N/A | AD124: 0 | AF124: 61455000 | AG124: BND | AI124: 0 | AJ124: 61455000 | AK124: NonFI | AM124: QUOTED SHARES | AN124: 140 | AO124: 61455000 | AP124: 0 | AQ124: X | AR124: 2358 | AT124: MYBMS1300057
A125: 2021-12-31 | B125: ULN*220100102 | C125: BND | D125: 2021-12-31 | E125: 2027-05-31 | F125: OLRAF | G125: MX070003 | H125: 25000000 | I125: 26613000 | J125: 25328250 | K125: 25328250 | L125: 0 | M125: 0 | N125: 101.313 | O125: 3.235 | P125: 3.235 | Q125: 0 | R125: 0 | S125: 0 | T125: MYR | U125: Others | V125: Others | W125: Government of Malaysia | X125: Bond | Y125: MYR | Z125: Malaysia | AA125: N/A | AD125: 0 | AF125: 25328250 | AG125: BND | AI125: 0 | AJ125: 25328250 | AK125: NonFI | AM125: QUOTED SHARES | AN125: 140 | AO125: 25328250 | AP125: 0 | AQ125: X | AR125: 1977 | AT125: MYBMX0700034
A126: 2021-12-31 | B126: ULN*220100103 | C126: BND | D126: 2021-12-31 | E126: 2030-04-15 | F126: OLRAF | G126: MX100003 | H126: 20000000 | I126: 21910000 | J126: 21243200 | K126: 21243200 | L126: 0 | M126: 0 | N126: 106.216 | O126: 3.622 | P126: 3.622 | Q126: 0 | R126: 0 | S126: 0 | T126: MYR | U126: Others | V126: Others | W126: Government of Malaysia | X126: Bond | Y126: MYR | Z126: Malaysia | AA126: N/A | AD126: 0 | AF126: 21243200 | AG126: BND | AI126: 0 | AJ126: 21243200 | AK126: NonFI | AM126: QUOTED SHARES | AN126: 140 | AO126: 21243200 | AP126: 0 | AQ126: X | AR126: 3027 | AT126: MYBMX1000038
A127: 2021-12-31 | B127: ULN*220100119 | C127: BND | D127: 2021-12-31 | E127: 2022-03-09 | F127: OLRAF | G127: VI170105 | H127: 14000000 | I127: 13994866.67 | J127: 14054180 | K127: 14054180 | L127: 0 | M127: 0 | N127: 100.387 | O127: 1.944 | P127: 1.944 | Q127: 0 | R127: 0 | S127: 0 | T127: MYR | U127: Others | V127: Others | W127: Small Medium Enterprise Development Bank Malaysia Berhad | X127: Bond | Y127: MYR | Z127: Malaysia | AA127: N/A | AD127: 0 | AF127: 14054180 | AG127: BND | AI127: 0 | AJ127: 14054180 | AK127: NonFI | AM127: QUOTED SHARES | AN127: 110 | AO127: 14054180 | AP127: 0 | AQ127: X | AR127: 68 | AT127: MYBVI1701058
A128: 2021-12-31 | B128: ULN*220100118 | C128: BND | D128: 2021-12-31 | E128: 2025-04-23 | F128: OLRAF | G128: VI200063 | H128: 20000000 | I128: 20168000 | J128: 19834800 | K128: 19834800 | L128: 0 | M128: 0 | N128: 99.174 | O128: 3.285 | P128: 3.285 | Q128: 0 | R128: 0 | S128: 0 | T128: MYR | U128: Others | V128: Others | W128: Small Medium Enterprise Development Bank Malaysia Berhad | X128: Bond | Y128: MYR | Z128: Malaysia | AA128: N/A | AD128: 0 | AF128: 19834800 | AG128: BND | AI128: 0 | AJ128: 19834800 | AK128: NonFI | AM128: QUOTED SHARES | AN128: 110 | AO128: 19834800 | AP128: 0 | AQ128: X | AR128: 1209 | AT128: MYBVI2000633
A129: 2021-12-31 | B129: ULN*220100106 | C129: BND | D129: 2021-12-31 | E129: 2026-08-27 | F129: OLRAF | G129: VI210330 | H129: 5000000 | I129: 5000000 | J129: 4906100 | K129: 4906100 | L129: 0 | M129: 0 | N129: 98.122 | O129: 3.42 | P129: 3.42 | Q129: 0 | R129: 0 | S129: 0 | T129: MYR | U129: Others | V129: Others | W129: Syarikat Prasarana Negara Berhad | X129: Bond | Y129: MYR | Z129: Malaysia | AA129: N/A | AD129: 0 | AF129: 4906100 | AG129: BND | AI129: 0 | AJ129: 4906100 | AK129: NonFI | AM129: QUOTED SHARES | AN129: 110 | AO129: 4906100 | AP129: 0 | AQ129: X | AR129: 1700 | AT129: MYBVI2103304
A130: 2021-12-31 | B130: ULN*220100088 | C130: BND | D130: 2021-12-31 | E130: 2022-11-11 | F130: OLRAF | G130: VK150253 | H130: 5000000 | I130: 5118166.67 | J130: 5102700 | K130: 5102700 | L130: 0 | M130: 0 | N130: 102.054 | O130: 2.012 | P130: 2.012 | Q130: 0 | R130: 0 | S130: 0 | T130: MYR | U130: Others | V130: Others | W130: DanaInfra Nasional Berhad | X130: Bond | Y130: MYR | Z130: Malaysia | AA130: N/A | AD130: 0 | AF130: 5102700 | AG130: BND | AI130: 0 | AJ130: 5102700 | AK130: NonFI | AM130: QUOTED SHARES | AN130: 110 | AO130: 5102700 | AP130: 0 | AQ130: X | AR130: 315 | AT130: MYBVK1502536
A131: 2021-12-31 | B131: ULN*220100109 | C131: BND | D131: 2021-12-31 | E131: 2023-02-24 | F131: OLRAF | G131: VK160027 | H131: 5000000 | I131: 5000000 | J131: 5122900 | K131: 5122900 | L131: 0 | M131: 0 | N131: 102.458 | O131: 2.092 | P131: 2.092 | Q131: 0 | R131: 0 | S131: 0 | T131: MYR | U131: Others | V131: Others | W131: Syarikat Prasarana Negara Berhad | X131: Bond | Y131: MYR | Z131: Malaysia | AA131: N/A | AD131: 0 | AF131: 5122900 | AG131: BND | AI131: 0 | AJ131: 5122900 | AK131: NonFI | AM131: QUOTED SHARES | AN131: 110 | AO131: 5122900 | AP131: 0 | AQ131: X | AR131: 420 | AT131: MYBVK1600272
A132: 2021-12-31 | B132: ULN*220100115 | C132: BND | D132: 2021-12-31 | E132: 2023-07-27 | F132: OLRAF | G132: VK160230 | H132: 5000000 | I132: 5000000 | J132: 5119400 | K132: 5119400 | L132: 0 | M132: 0 | N132: 102.388 | O132: 2.333 | P132: 2.333 | Q132: 0 | R132: 0 | S132: 0 | T132: MYR | U132: Others | V132: Others | W132: Perbadanan Tabung Pendidikan Tinggi Nasional | X132: Bond | Y132: MYR | Z132: Malaysia | AA132: N/A | AD132: 0 | AF132: 5119400 | AG132: BND | AI132: 0 | AJ132: 5119400 | AK132: NonFI | AM132: QUOTED SHARES | AN132: 130 | AO132: 5119400 | AP132: 0 | AQ132: X | AR132: 573 | AT132: MYBVK1602302
A133: 2021-12-31 | B133: ULN*220100096 | C133: BND | D133: 2021-12-31 | E133: 2023-07-28 | F133: OLRAF | G133: VK160234 | H133: 35000000 | I133: 35105000 | J133: 35828450 | K133: 35828450 | L133: 0 | M133: 0 | N133: 102.367 | O133: 2.359 | P133: 2.359 | Q133: 0 | R133: 0 | S133: 0 | T133: MYR | U133: Others | V133: Others | W133: Jambatan Kedua Sdn Bhd | X133: Bond | Y133: MYR | Z133: Malaysia | AA133: N/A | AD133: 0 | AF133: 35828450 | AG133: BND | AI133: 0 | AJ133: 35828450 | AK133: NonFI | AM133: QUOTED SHARES | AN133: 130 | AO133: 35828450 | AP133: 0 | AQ133: X | AR133: 574 | AT133: MYBVK1602344
A134: 2021-12-31 | B134: ULN*220100085 | C134: BND | D134: 2021-12-31 | E134: 2023-10-20 | F134: OLRAF | G134: VK160318 | H134: 10000000 | I134: 10000000 | J134: 10240300 | K134: 10240300 | L134: 0 | M134: 0 | N134: 102.403 | O134: 2.54 | P134: 2.54 | Q134: 0 | R134: 0 | S134: 0 | T134: MYR | U134: Others | V134: Others | W134: DanaInfra Nasional Berhad | X134: Bond | Y134: MYR | Z134: Malaysia | AA134: N/A | AD134: 0 | AF134: 10240300 | AG134: BND | AI134: 0 | AJ134: 10240300 | AK134: NonFI | AM134: QUOTED SHARES | AN134: 110 | AO134: 10240300 | AP134: 0 | AQ134: X | AR134: 658 | AT134: MYBVK1603185
A135: 2021-12-31 | B135: ULN*220100098 | C135: BND | D135: 2021-12-31 | E135: 2028-09-01 | F135: OLRAF | G135: VK210335 | H135: 3750000 | I135: 3750000 | J135: 3674287.5 | K135: 3674287.5 | L135: 0 | M135: 0 | N135: 97.981 | O135: 3.684 | P135: 3.684 | Q135: 0 | R135: 0 | S135: 0 | T135: MYR | U135: Others | V135: Others | W135: LEMBAGA PEMBIAYAAN PERUMAHAN SEKTOR AWAM | X135: Bond | Y135: MYR | Z135: Malaysia | AA135: N/A | AD135: 0 | AF135: 3674287.5 | AG135: BND | AI135: 0 | AJ135: 3674287.5 | AK135: NonFI | AM135: QUOTED SHARES | AN135: 130 | AO135: 3674287.5 | AP135: 0 | AQ135: X | AR135: 2436 | AT135: MYBVK2103359
A136: 2021-12-31 | B136: ULN*220100114 | C136: BND | D136: 2021-12-31 | E136: 2028-10-27 | F136: OLRAF | G136: VL2002765 | H136: 5000000 | I136: 5000000 | J136: 4713650 | K136: 4713650 | L136: 0 | M136: 0 | N136: 94.273 | O136: 3.729 | P136: 3.729 | Q136: 0 | R136: 0 | S136: 0 | T136: MYR | U136: Others | V136: Others | W136: Perbadanan Tabung Pendidikan Tinggi Nasional | X136: Bond | Y136: MYR | Z136: Malaysia | AA136: N/A | AD136: 0 | AF136: 4713650 | AG136: BND | AI136: 0 | AJ136: 4713650 | AK136: NonFI | AM136: QUOTED SHARES | AN136: 130 | AO136: 4713650 | AP136: 0 | AQ136: X | AR136: 2492 | AT136: MYBVL2002765
A137: 2021-12-31 | B137: ULN*220100120 | C137: BND | D137: 2021-12-31 | E137: 2022-11-18 | F137: OLRAF | G137: VN120393 | H137: 19000000 | I137: 18834700 | J137: 19279870 | K137: 19279870 | L137: 0 | M137: 0 | N137: 101.473 | O137: 2.029 | P137: 2.029 | Q137: 0 | R137: 0 | S137: 0 | T137: MYR | U137: Others | V137: Others | W137: Turus Pesawat Sdn Berhad | X137: Bond | Y137: MYR | Z137: Malaysia | AA137: N/A | AD137: 0 | AF137: 19279870 | AG137: BND | AI137: 0 | AJ137: 19279870 | AK137: NonFI | AM137: QUOTED SHARES | AN137: 110 | AO137: 19279870 | AP137: 0 | AQ137: X | AR137: 322 | AT137: MYBVN1203931
A138: 2021-12-31 | B138: ULN*220100086 | C138: BND | D138: 2021-12-31 | E138: 2023-02-08 | F138: OLRAF | G138: VN130071 | H138: 10000000 | I138: 9920000 | J138: 10206100 | K138: 10206100 | L138: 0 | M138: 0 | N138: 102.061 | O138: 2.084 | P138: 2.084 | Q138: 0 | R138: 0 | S138: 0 | T138: MYR | U138: Others | V138: Others | W138: DanaInfra Nasional Berhad | X138: Bond | Y138: MYR | Z138: Malaysia | AA138: N/A | AD138: 0 | AF138: 10206100 | AG138: BND | AI138: 0 | AJ138: 10206100 | AK138: NonFI | AM138: QUOTED SHARES | AN138: 110 | AO138: 10206100 | AP138: 0 | AQ138: X | AR138: 404 | AT138: MYBVN1300711
A139: 2021-12-31 | B139: ULN*220100108 | C139: BND | D139: 2021-12-31 | E139: 2023-08-29 | F139: OLRAF | G139: VN130240 | H139: 35000000 | I139: 35739500 | J139: 36044050 | K139: 36044050 | L139: 0 | M139: 0 | N139: 102.983 | O139: 2.41 | P139: 2.41 | Q139: 0 | R139: 0 | S139: 0 | T139: MYR | U139: Others | V139: Others | W139: Syarikat Prasarana Negara Berhad | X139: Bond | Y139: MYR | Z139: Malaysia | AA139: N/A | AD139: 0 | AF139: 36044050 | AG139: BND | AI139: 0 | AJ139: 36044050 | AK139: NonFI | AM139: QUOTED SHARES | AN139: 110 | AO139: 36044050 | AP139: 0 | AQ139: X | AR139: 606 | AT139: MYBVN1302402
A140: 2021-12-31 | B140: ULN*220100087 | C140: BND | D140: 2021-12-31 | E140: 2023-10-31 | F140: OLRAF | G140: VN130276 | H140: 10000000 | I140: 9967000 | J140: 10296300 | K140: 10296300 | L140: 0 | M140: 0 | N140: 102.963 | O140: 2.54 | P140: 2.54 | Q140: 0 | R140: 0 | S140: 0 | T140: MYR | U140: Others | V140: Others | W140: DanaInfra Nasional Berhad | X140: Bond | Y140: MYR | Z140: Malaysia | AA140: N/A | AD140: 0 | AF140: 10296300 | AG140: BND | AI140: 0 | AJ140: 10296300 | AK140: NonFI | AM140: QUOTED SHARES | AN140: 110 | AO140: 10296300 | AP140: 0 | AQ140: X | AR140: 669 | AT140: MYBVN1302766
A141: 2021-12-31 | B141: ULN*220100105 | C141: BND | D141: 2021-12-31 | E141: 2026-06-17 | F141: OLRAF | G141: VN160158 | H141: 15000000 | I141: 15285000 | J141: 15625500 | K141: 15625500 | L141: 0 | M141: 0 | N141: 104.17 | O141: 3.383 | P141: 3.383 | Q141: 0 | R141: 0 | S141: 0 | T141: MYR | U141: Others | V141: Others | W141: Pengurusan Air SPV Berhad | X141: Bond | Y141: MYR | Z141: Malaysia | AA141: N/A | AD141: 0 | AF141: 15625500 | AG141: BND | AI141: 0 | AJ141: 15625500 | AK141: NonFI | AM141: QUOTED SHARES | AN141: 130 | AO141: 15625500 | AP141: 0 | AQ141: X | AR141: 1629 | AT141: MYBVN1601589
A142: 2021-12-31 | B142: ULN*220100116 | C142: BND | D142: 2021-12-31 | E142: 2026-07-27 | F142: OLRAF | G142: VN160231 | H142: 5000000 | I142: 5000000 | J142: 5173400 | K142: 5173400 | L142: 0 | M142: 0 | N142: 103.468 | O142: 3.373 | P142: 3.373 | Q142: 0 | R142: 0 | S142: 0 | T142: MYR | U142: Others | V142: Others | W142: Perbadanan Tabung Pendidikan Tinggi Nasional | X142: Bond | Y142: MYR | Z142: Malaysia | AA142: N/A | AD142: 0 | AF142: 5173400 | AG142: BND | AI142: 0 | AJ142: 5173400 | AK142: NonFI | AM142: QUOTED SHARES | AN142: 130 | AO142: 5173400 | AP142: 0 | AQ142: X | AR142: 1669 | AT142: MYBVN1602314
A143: 2021-12-31 | B143: ULN*220100097 | C143: BND | D143: 2021-12-31 | E143: 2026-07-28 | F143: OLRAF | G143: VN160235 | H143: 20000000 | I143: 20000000 | J143: 20684400 | K143: 20684400 | L143: 0 | M143: 0 | N143: 103.422 | O143: 3.384 | P143: 3.384 | Q143: 0 | R143: 0 | S143: 0 | T143: MYR | U143: Others | V143: Others | W143: Jambatan Kedua Sdn Bhd | X143: Bond | Y143: MYR | Z143: Malaysia | AA143: N/A | AD143: 0 | AF143: 20684400 | AG143: BND | AI143: 0 | AJ143: 20684400 | AK143: NonFI | AM143: QUOTED SHARES | AN143: 130 | AO143: 20684400 | AP143: 0 | AQ143: X | AR143: 1670 | AT143: MYBVN1602355
A144: 2021-12-31 | B144: ULN*220100099 | C144: BND | D144: 2021-12-31 | E144: 2026-09-21 | F144: OLRAF | G144: VN160279 | H144: 10000000 | I144: 10574000 | J144: 10281000 | K144: 10281000 | L144: 0 | M144: 0 | N144: 102.81 | O144: 3.399 | P144: 3.399 | Q144: 0 | R144: 0 | S144: 0 | T144: MYR | U144: Others | V144: Others | W144: LEMBAGA PEMBIAYAAN PERUMAHAN SEKTOR AWAM | X144: Bond | Y144: MYR | Z144: Malaysia | AA144: N/A | AD144: 0 | AF144: 10281000 | AG144: BND | AI144: 0 | AJ144: 10281000 | AK144: NonFI | AM144: QUOTED SHARES | AN144: 130 | AO144: 10281000 | AP144: 0 | AQ144: X | AR144: 1725 | AT144: MYBVN1602793
A145: 2021-12-31 | B145: ULN*220100089 | C145: BND | D145: 2021-12-31 | E145: 2027-03-19 | F145: OLRAF | G145: VN170118 | H145: 5000000 | I145: 5535500 | J145: 5259900 | K145: 5259900 | L145: 0 | M145: 0 | N145: 105.198 | O145: 3.46 | P145: 3.46 | Q145: 0 | R145: 0 | S145: 0 | T145: MYR | U145: Others | V145: Others | W145: DanaInfra Nasional Berhad | X145: Bond | Y145: MYR | Z145: Malaysia | AA145: N/A | AD145: 0 | AF145: 5259900 | AG145: BND | AI145: 0 | AJ145: 5259900 | AK145: NonFI | AM145: QUOTED SHARES | AN145: 110 | AO145: 5259900 | AP145: 0 | AQ145: X | AR145: 1904 | AT145: MYBVN1701181
A146: 2021-12-31 | B146: ULN*220100111 | C146: BND | D146: 2021-12-31 | E146: 2028-03-08 | F146: OLRAF | G146: VN180081 | H146: 10000000 | I146: 10550000 | J146: 10535200 | K146: 10535200 | L146: 0 | M146: 0 | N146: 105.352 | O146: 3.644 | P146: 3.644 | Q146: 0 | R146: 0 | S146: 0 | T146: MYR | U146: Others | V146: Others | W146: Syarikat Prasarana Negara Berhad | X146: Bond | Y146: MYR | Z146: Malaysia | AA146: N/A | AD146: 0 | AF146: 10535200 | AG146: BND | AI146: 0 | AJ146: 10535200 | AK146: NonFI | AM146: QUOTED SHARES | AN146: 110 | AO146: 10535200 | AP146: 0 | AQ146: X | AR146: 2259 | AT146: MYBVN1800819
A147: 2021-12-31 | B147: ULN*220100107 | C147: BND | D147: 2021-12-31 | E147: 2029-03-12 | F147: OLRAF | G147: VN190052 | H147: 5000000 | I147: 5526500 | J147: 5135650 | K147: 5135650 | L147: 0 | M147: 0 | N147: 102.713 | O147: 3.765 | P147: 3.765 | Q147: 0 | R147: 0 | S147: 0 | T147: MYR | U147: Others | V147: Others | W147: Syarikat Prasarana Negara Berhad | X147: Bond | Y147: MYR | Z147: Malaysia | AA147: N/A | AD147: 0 | AF147: 5135650 | AG147: BND | AI147: 0 | AJ147: 5135650 | AK147: NonFI | AM147: QUOTED SHARES | AN147: 110 | AO147: 5135650 | AP147: 0 | AQ147: X | AR147: 2628 | AT147: MYBVN1900528
A148: 2021-12-31 | B148: ULN*220100104 | C148: BND | D148: 2021-12-31 | E148: 2030-07-05 | F148: OLRAF | G148: VN200115 | H148: 5000000 | I148: 5000000 | J148: 4727850 | K148: 4727850 | L148: 0 | M148: 0 | N148: 94.557 | O148: 3.888 | P148: 3.888 | Q148: 0 | R148: 0 | S148: 0 | T148: MYR | U148: Others | V148: Others | W148: MALAYSIA RAIL LINK SDN BERHAD | X148: Bond | Y148: MYR | Z148: Malaysia | AA148: N/A | AD148: 0 | AF148: 4727850 | AG148: BND | AI148: 0 | AJ148: 4727850 | AK148: NonFI | AM148: QUOTED SHARES | AN148: 110 | AO148: 4727850 | AP148: 0 | AQ148: X | AR148: 3108 | AT148: MYBVN2001151
A149: 2021-12-31 | B149: ULN*220100117 | C149: BND | D149: 2021-12-31 | E149: 2026-08-27 | F149: OLRAF | G149: VP140207 | H149: 5000000 | I149: 5133000 | J149: 5245600 | K149: 5245600 | L149: 0 | M149: 0 | N149: 104.912 | O149: 3.378 | P149: 3.378 | Q149: 0 | R149: 0 | S149: 0 | T149: MYR | U149: Others | V149: Others | W149: Perbadanan Tabung Pendidikan Tinggi Nasional | X149: Bond | Y149: MYR | Z149: Malaysia | AA149: N/A | AD149: 0 | AF149: 5245600 | AG149: BND | AI149: 0 | AJ149: 5245600 | AK149: NonFI | AM149: QUOTED SHARES | AN149: 130 | AO149: 5245600 | AP149: 0 | AQ149: X | AR149: 1700 | AT149: MYBVP1402074
A150: 2021-12-31 | B150: ULN*220100110 | C150: BND | D150: 2021-12-31 | E150: 2026-08-04 | F150: OLRAF | G150: VS110260 | H150: 15000000 | I150: 15145500 | J150: 15596250 | K150: 15596250 | L150: 0 | M150: 0 | N150: 103.975 | O150: 3.406 | P150: 3.406 | Q150: 0 | R150: 0 | S150: 0 | T150: MYR | U150: Others | V150: Others | W150: Syarikat Prasarana Negara Berhad | X150: Bond | Y150: MYR | Z150: Malaysia | AA150: N/A | AD150: 0 | AF150: 15596250 | AG150: BND | AI150: 0 | AJ150: 15596250 | AK150: NonFI | AM150: QUOTED SHARES | AN150: 110 | AO150: 15596250 | AP150: 0 | AQ150: X | AR150: 1677 | AT150: MYBVS1102603
A151: 2021-12-31 | B151: ULN*220100090 | C151: BND | D151: 2021-12-31 | E151: 2028-10-31 | F151: OLRAF | G151: VS130277 | H151: 15000000 | I151: 16753500 | J151: 15798900 | K151: 15798900 | L151: 0 | M151: 0 | N151: 105.326 | O151: 3.691 | P151: 3.691 | Q151: 0 | R151: 0 | S151: 0 | T151: MYR | U151: Others | V151: Others | W151: DanaInfra Nasional Berhad | X151: Bond | Y151: MYR | Z151: Malaysia | AA151: N/A | AD151: 0 | AF151: 15798900 | AG151: BND | AI151: 0 | AJ151: 15798900 | AK151: NonFI | AM151: QUOTED SHARES | AN151: 110 | AO151: 15798900 | AP151: 0 | AQ151: X | AR151: 2496 | AT151: MYBVS1302773
A152: 2021-12-31 | B152: ULN*220100112 | C152: BND | D152: 2021-12-31 | E152: 2030-03-22 | F152: OLRAF | G152: VS150043 | H152: 5000000 | I152: 5431500 | J152: 5280800 | K152: 5280800 | L152: 0 | M152: 0 | N152: 105.616 | O152: 3.836 | P152: 3.836 | Q152: 0 | R152: 0 | S152: 0 | T152: MYR | U152: Others | V152: Others | W152: Syarikat Prasarana Negara Berhad | X152: Bond | Y152: MYR | Z152: Malaysia | AA152: N/A | AD152: 0 | AF152: 5280800 | AG152: BND | AI152: 0 | AJ152: 5280800 | AK152: NonFI | AM152: QUOTED SHARES | AN152: 110 | AO152: 5280800 | AP152: 0 | AQ152: X | AR152: 3003 | AT152: MYBVS1500434
A153: 2021-12-31 | B153: ULN*220100113 | C153: BND | D153: 2021-12-31 | E153: 2031-02-26 | F153: OLRAF | G153: VS160029 | H153: 15000000 | I153: 16389000 | J153: 15993450 | K153: 15993450 | L153: 0 | M153: 0 | N153: 106.623 | O153: 3.882 | P153: 3.882 | Q153: 0 | R153: 0 | S153: 0 | T153: MYR | U153: Others | V153: Others | W153: Syarikat Prasarana Negara Berhad | X153: Bond | Y153: MYR | Z153: Malaysia | AA153: N/A | AD153: 0 | AF153: 15993450 | AG153: BND | AI153: 0 | AJ153: 15993450 | AK153: NonFI | AM153: QUOTED SHARES | AN153: 110 | AO153: 15993450 | AP153: 0 | AQ153: X | AR153: 3344 | AT153: MYBVS1600291
A154: 2021-12-31 | B154: ULN*220100121 | C154: BND | D154: 2021-12-31 | E154: 2022-03-03 | F154: OSPEC | G154: VN120068 | H154: 5000000 | I154: 5000250 | J154: 5011500 | K154: 5011500 | L154: 0 | M154: 0 | N154: 100.23 | O154: 3.208 | P154: 3.208 | Q154: 0 | R154: 0 | S154: 0 | T154: MYR | U154: Others | V154: Others | W154: Abu Dhabi National Energy Company PJSC | X154: Bond | Y154: MYR | Z154: Malaysia | AA154: N/A | AD154: 0 | AF154: 5011500 | AG154: BND | AI154: 0 | AJ154: 5011500 | AK154: NonFI | AM154: QUOTED SHARES | AN154: 110 | AO154: 5011500 | AP154: 0 | AQ154: N/A | AR154: 62 | AT154: MYBVN1200689
A155: 2021-12-31 | B155: CSH*210400018 | C155: CSH | D155: 2021-04-06 | E155: 2022-04-06 | F155: SHF | G155: FDC*MYR*RHBBB | H155: 5629850.36 | I155: 5629850.36 | J155: 5629850.36 | K155: 5725634.94 | L155: 0 | M155: 0 | N155: 0 | O155: 0.023 | P155: 0 | Q155: 95784.58 | R155: 0 | S155: 0 | T155: MYR | U155: CASH | V155: CASH | W155: RHB Bank Berhad | X155: Money Market | Y155: MYR | Z155: CASH | AA155: N/A | AB155: 5629850.36 | AG155: CSH | AI155: 0 | AK155: FI | AM155: QUOTED SHARES | AN155: 220 | AP155: 0 | AR155: 365 | AS155: RHBBB | AT155: N/A
A156: 2021-12-31 | B156: CSH*210900044 | C156: CSH | D156: 2021-09-14 | E156: 2022-09-14 | F156: SHF | G156: FDC*MYR*RHBBB | H156: 5241564.14 | I156: 5241564.14 | J156: 5241564.14 | K156: 5276783.14 | L156: 0 | M156: 0 | N156: 0 | O156: 0.0225 | P156: 0 | Q156: 35219 | R156: 0 | S156: 0 | T156: MYR | U156: CASH | V156: CASH | W156: RHB Bank Berhad | X156: Money Market | Y156: MYR | Z156: CASH | AA156: N/A | AB156: 5241564.14 | AG156: CSH | AI156: 0 | AK156: FI | AM156: QUOTED SHARES | AN156: 220 | AP156: 0 | AR156: 365 | AS156: RHBBB | AT156: N/A
A157: 2021-12-31 | B157: TMUT*AIEF | C157: EQT | D157: 2021-10-21 | E157: 3000-01-01 | F157: TMUT | G157: AIEF | H157: 19200753.25 | I157: 20001424.66 | J157: 20026385.64 | K157: 20026385.64 | L157: 0 | M157: 24960.98 | N157: 1.043 | O157: 0 | P157: 0 | Q157: 0 | R157: 0 | S157: 0 | T157: MYR | U157: Others | V157: Others | W157: N/A | X157: Equity | Y157: MYR | Z157: Malaysia | AA157: N/A | AG157: UT | AI157: 1 | AJ157: 20026385.64 | AM157: QUOTED SHARES | AN157: 450 | AP157: 0 | AR157: 357279 | AT157: N/A
A158: 2021-12-31 | B158: TMUT*HLIF | C158: EQT | D158: 2021-10-20 | E158: 3000-01-01 | F158: TMUT | G158: HLIF | H158: 19918313.23 | I158: 20001973.29 | J158: 20031847.62 | K158: 20031847.62 | L158: 0 | M158: 29874.33 | N158: 1.0057 | O158: 0 | P158: 0 | Q158: 0 | R158: 0 | S158: 0 | T158: MYR | U158: Others | V158: Others | W158: N/A | X158: Equity | Y158: MYR | Z158: Malaysia | AA158: N/A | AG158: UT | AI158: 0 | AJ158: 20031847.62 | AM158: QUOTED SHARES | AN158: 450 | AP158: 0 | AR158: 357280 | AT158: N/A
A159: 2021-12-31 | B159: TMUT*NIF2 | C159: EQT | D159: 2021-10-14 | E159: 3000-01-01 | F159: TMUT | G159: NIF2 | H159: 40192926.05 | I159: 40000000 | J159: 40148713.83 | K159: 40148713.83 | L159: 0 | M159: 148713.83 | N159: 0.9989 | O159: 0 | P159: 0 | Q159: 0 | R159: 0 | S159: 0 | T159: MYR | U159: Others | V159: Others | W159: N/A | X159: Equity | Y159: MYR | Z159: Malaysia | AA159: N/A | AG159: UT | AI159: 1 | AJ159: 40148713.83 | AM159: QUOTED SHARES | AN159: 450 | AP159: 0 | AR159: 357286 | AT159: N/A
A160: 2021-12-31 | B160: TMUT*OIF | C160: EQT | D160: 2016-01-26 | E160: 3000-01-01 | F160: TMUT | G160: OIF | H160: 737946054.2 | I160: 740000000 | J160: 749605601.9 | K160: 749605601.9 | L160: 0 | M160: 9605601.88 | N160: 1.0158 | O160: 0 | P160: 0 | Q160: 0 | R160: 0 | S160: 0 | T160: MYR | U160: Others | V160: Others | W160: N/A | X160: Equity | Y160: MYR | Z160: Malaysia | AA160: N/A | AG160: UT | AI160: 0 | AJ160: 749605601.9 | AM160: QUOTED SHARES | AN160: 440 | AP160: 0 | AR160: 359374 | AT160: N/A
A161: 2021-12-31 | B161: TMUT*OLRAF | C161: EQT | D161: 2016-01-12 | E161: 3000-01-01 | F161: TMUT | G161: OLRAF | H161: 645676942.3 | I161: 650000000 | J161: 661948001.2 | K161: 661948001.2 | L161: 0 | M161: 11948001.22 | N161: 1.0252 | O161: 0 | P161: 0 | Q161: 0 | R161: 0 | S161: 0 | T161: MYR | U161: Others | V161: Others | W161: N/A | X161: Equity | Y161: MYR | Z161: Malaysia | AA161: N/A | AG161: UT | AI161: 0 | AJ161: 661948001.2 | AL161: MAIN BOARD | AM161: QUOTED SHARES | AN161: 450 | AP161: 0 | AR161: 359388 | AT161: N/A
A162: 2021-12-31 | B162: TMUT*OSPEC | C162: EQT | D162: 2016-03-28 | E162: 3000-01-01 | F162: TMUT | G162: OSPEC | H162: 4877000.42 | I162: 4877000.42 | J162: 5106707.14 | K162: 5106707.14 | L162: 0 | M162: 229706.72 | N162: 1.0471 | O162: 0 | P162: 0 | Q162: 0 | R162: 0 | S162: 0 | T162: MYR | U162: Others | V162: Others | W162: N/A | X162: Equity | Y162: MYR | Z162: Malaysia | AA162: N/A | AG162: UT | AI162: 1 | AJ162: 5106707.14 | AM162: QUOTED SHARES | AN162: 440 | AP162: 0 | AR162: 359312 | AT162: N/A

Sheet InMstHst (hidden)
A1: MarketValueDate | B1: qMasterID | C1: qProductType | D1: PurchaseDate | E1: MaturityDate | F1: qFundCode | G1: qStockCode | H1: UnitFaceValue | I1: CostFC | J1: MarketValueFC | K1: MarketValueSC | L1: LastMarketValue | M1: UnrealisedGainsStock | N1: PriceCurr | O1: PurchaseYTM | P1: ValueYTM | Q1: AccruedInterest | R1: AmortAccreation | S1: PreAcqSC | T1: StockCurrency | U1: SectorName | V1: InternalSectorName | W1: Issuer | X1: ProductTypeDesc | Y1: FundCurrency | Z1: CountryName | AA1: IssuerGrpName | AB1: Deposits | AC1: MoneyMarket | AD1: Bond | AE1: UTDeposit | AF1: UTBond | AG1: qAssetClass | AH1: Equity | AI1: ListedFlag | AJ1: UnitTrust | AK1: Attribute | AL1: BOARD | AM1: QUOTED | AN1: qAssetAccType | AO1: BNMUnitTrust | AP1: CashMaturity | AQ1: Rating | AR1: tenor | AS1: qCPCode | AT1: isincode
A2: 2022-02-28 | B2: CSH*211000039 | C2: CSH | D2: 2021-10-14 | E2: 2022-03-14 | F2: HFT | G2: FDC*MYR*BKK | H2: 30000000 | I2: 30000000 | J2: 30000000 | K2: 30260876.71 | L2: 0 | M2: 0 | N2: 0 | O2: 0.023 | P2: 0 | Q2: 260876.71 | R2: 0 | S2: 0 | T2: MYR | U2: CASH | V2: CASH | W2: Bangkok Bank | X2: Money Market | Y2: MYR | Z2: CASH | AA2: N/A | AB2: 30000000 | AG2: CSH | AI2: 0 | AK2: FI | AM2: QUOTED SHARES | AN2: 220 | AP2: 0 | AR2: 151 | AS2: BKK | AT2: N/A
A3: 2022-02-28 | B3: CSH*211100031 | C3: CSH | D3: 2021-11-10 | E3: 2022-03-10 | F3: HFT | G3: FDC*MYR*BKK | H3: 12000000 | I3: 12000000 | J3: 12000000 | K3: 12082109.59 | L3: 0 | M3: 0 | N3: 0 | O3: 0.0225 | P3: 0 | Q3: 82109.59 | R3: 0 | S3: 0 | T3: MYR | U3: CASH | V3: CASH | W3: Bangkok Bank | X3: Money Market | Y3: MYR | Z3: CASH | AA3: N/A | AB3: 12000000 | AG3: CSH | AI3: 0 | AK3: FI | AM3: QUOTED SHARES | AN3: 220 | AP3: 0 | AR3: 120 | AS3: BKK | AT3: N/A
A4: 2022-02-28 | B4: CSH*220100097 | C4: CSH | D4: 2022-01-25 | E4: 2022-03-25 | F4: HFT | G4: FDC*MYR*BKK | H4: 20000000 | I4: 20000000 | J4: 20000000 | K4: 20040273.97 | L4: 0 | M4: 0 | N4: 0 | O4: 0.021 | P4: 0 | Q4: 40273.97 | R4: 0 | S4: 0 | T4: MYR | U4: CASH | V4: CASH | W4: Bangkok Bank | X4: Money Market | Y4: MYR | Z4: CASH | AA4: N/A | AB4: 20000000 | AG4: CSH | AI4: 0 | AK4: FI | AM4: QUOTED SHARES | AN4: 220 | AP4: 0 | AR4: 59 | AS4: BKK | AT4: N/A
A5: 2022-02-28 | B5: CSH*210900036 | C5: CSH | D5: 2021-09-13 | E5: 2022-06-13 | F5: HFT | G5: FDC*MYR*MBMB | H5: 15000000 | I5: 15000000 | J5: 15000000 | K5: 15152794.52 | L5: 0 | M5: 0 | N5: 0 | O5: 0.022 | P5: 0 | Q5: 152794.52 | R5: 0 | S5: 0 | T5: MYR | U5: CASH | V5: CASH | W5: Mizuho Bank (Malaysia) Bhd | X5: Money Market | Y5: MYR | Z5: CASH | AA5: N/A | AB5: 15000000 | AG5: CSH | AI5: 0 | AK5: FI | AM5: QUOTED SHARES | AN5: 220 | AP5: 0 | AR5: 273 | AS5: MBMB | AT5: N/A
A6: 2022-02-28 | B6: CSH*210300024 | C6: CSH | D6: 2021-03-09 | E6: 2022-03-09 | F6: HFT | G6: FDC*MYR*PBB | H6: 15000000 | I6: 15000000 | J6: 15000000 | K6: 15396123.29 | L6: 0 | M6: 0 | N6: 0 | O6: 0.027 | P6: 0 | Q6: 396123.29 | R6: 0 | S6: 0 | T6: MYR | U6: CASH | V6: CASH | W6: Public Bank Berhad | X6: Money Market | Y6: MYR | Z6: CASH | AA6: N/A | AB6: 15000000 | AG6: CSH | AI6: 0 | AK6: FI | AM6: QUOTED SHARES | AN6: 220 | AP6: 0 | AR6: 365 | AS6: PBB | AT6: N/A
A7: 2022-02-28 | B7: CSH*210400021 | C7: CSH | D7: 2021-04-07 | E7: 2022-04-07 | F7: HFT | G7: FDC*MYR*PBB | H7: 10000000 | I7: 10000000 | J7: 10000000 | K7: 10242630.14 | L7: 0 | M7: 0 | N7: 0 | O7: 0.027 | P7: 0 | Q7: 242630.14 | R7: 0 | S7: 0 | T7: MYR | U7: CASH | V7: CASH | W7: Public Bank Berhad | X7: Money Market | Y7: MYR | Z7: CASH | AA7: N/A | AB7: 10000000 | AG7: CSH | AI7: 0 | AK7: FI | AM7: QUOTED SHARES | AN7: 220 | AP7: 0 | AR7: 365 | AS7: PBB | AT7: N/A
A8: 2022-02-28 | B8: CSH*210500025 | C8: CSH | D8: 2021-05-10 | E8: 2022-05-10 | F8: HFT | G8: FDC*MYR*PBB | H8: 10000000 | I8: 10000000 | J8: 10000000 | K8: 10218219.18 | L8: 0 | M8: 0 | N8: 0 | O8: 0.027 | P8: 0 | Q8: 218219.18 | R8: 0 | S8: 0 | T8: MYR | U8: CASH | V8: CASH | W8: Public Bank Berhad | X8: Money Market | Y8: MYR | Z8: CASH | AA8: N/A | AB8: 10000000 | AG8: CSH | AI8: 0 | AK8: FI | AM8: QUOTED SHARES | AN8: 220 | AP8: 0 | AR8: 365 | AS8: PBB | AT8: N/A
A9: 2022-02-28 | B9: CSH*210600017 | C9: CSH | D9: 2021-06-10 | E9: 2022-06-10 | F9: HFT | G9: FDC*MYR*PBB | H9: 10000000 | I9: 10000000 | J9: 10000000 | K9: 10195287.67 | L9: 0 | M9: 0 | N9: 0 | O9: 0.027 | P9: 0 | Q9: 195287.67 | R9: 0 | S9: 0 | T9: MYR | U9: CASH | V9: CASH | W9: Public Bank Berhad | X9: Money Market | Y9: MYR | Z9: CASH | AA9: N/A | AB9: 10000000 | AG9: CSH | AI9: 0 | AK9: FI | AM9: QUOTED SHARES | AN9: 220 | AP9: 0 | AR9: 365 | AS9: PBB | AT9: N/A
A10: 2022-02-28 | B10: CSH*210800022 | C10: CSH | D10: 2021-08-11 | E10: 2022-08-11 | F10: HFT | G10: FDC*MYR*PBB | H10: 13000000 | I10: 13000000 | J10: 13000000 | K10: 13194252.05 | L10: 0 | M10: 0 | N10: 0 | O10: 0.027 | P10: 0 | Q10: 194252.05 | R10: 0 | S10: 0 | T10: MYR | U10: CASH | V10: CASH | W10: Public Bank Berhad | X10: Money Market | Y10: MYR | Z10: CASH | AA10: N/A | AB10: 13000000 | AG10: CSH | AI10: 0 | AK10: FI | AM10: QUOTED SHARES | AN10: 220 | AP10: 0 | AR10: 365 | AS10: PBB | AT10: N/A
A11: 2022-02-28 | B11: CSH*210900022 | C11: CSH | D11: 2021-09-09 | E11: 2022-09-09 | F11: HFT | G11: FDC*MYR*PBB | H11: 13000000 | I11: 13000000 | J11: 13000000 | K11: 13166364.38 | L11: 0 | M11: 0 | N11: 0 | O11: 0.027 | P11: 0 | Q11: 166364.38 | R11: 0 | S11: 0 | T11: MYR | U11: CASH | V11: CASH | W11: Public Bank Berhad | X11: Money Market | Y11: MYR | Z11: CASH | AA11: N/A | AB11: 13000000 | AG11: CSH | AI11: 0 | AK11: FI | AM11: QUOTED SHARES | AN11: 220 | AP11: 0 | AR11: 365 | AS11: PBB | AT11: N/A
A12: 2022-02-28 | B12: CSH*211000012 | C12: CSH | D12: 2021-10-06 | E12: 2022-10-06 | F12: HFT | G12: FDC*MYR*PBB | H12: 10000000 | I12: 10000000 | J12: 10000000 | K12: 10108000 | L12: 0 | M12: 0 | N12: 0 | O12: 0.027 | P12: 0 | Q12: 108000 | R12: 0 | S12: 0 | T12: MYR | U12: CASH | V12: CASH | W12: Public Bank Berhad | X12: Money Market | Y12: MYR | Z12: CASH | AA12: N/A | AB12: 10000000 | AG12: CSH | AI12: 0 | AK12: FI | AM12: QUOTED SHARES | AN12: 220 | AP12: 0 | AR12: 365 | AS12: PBB | AT12: N/A
A13: 2022-02-28 | B13: CSH*211100030 | C13: CSH | D13: 2021-11-10 | E13: 2022-11-10 | F13: HFT | G13: FDC*MYR*PBB | H13: 10000000 | I13: 10000000 | J13: 10000000 | K13: 10082109.59 | L13: 0 | M13: 0 | N13: 0 | O13: 0.027 | P13: 0 | Q13: 82109.59 | R13: 0 | S13: 0 | T13: MYR | U13: CASH | V13: CASH | W13: Public Bank Berhad | X13: Money Market | Y13: MYR | Z13: CASH | AA13: N/A | AB13: 10000000 | AG13: CSH | AI13: 0 | AK13: FI | AM13: QUOTED SHARES | AN13: 220 | AP13: 0 | AR13: 365 | AS13: PBB | AT13: N/A
A14: 2022-02-28 | B14: CSH*211200018 | C14: CSH | D14: 2021-12-08 | E14: 2022-12-08 | F14: HFT | G14: FDC*MYR*PBB | H14: 14000000 | I14: 14000000 | J14: 14000000 | K14: 14085956.16 | L14: 0 | M14: 0 | N14: 0 | O14: 0.027 | P14: 0 | Q14: 85956.16 | R14: 0 | S14: 0 | T14: MYR | U14: CASH | V14: CASH | W14: Public Bank Berhad | X14: Money Market | Y14: MYR | Z14: CASH | AA14: N/A | AB14: 14000000 | AG14: CSH | AI14: 0 | AK14: FI | AM14: QUOTED SHARES | AN14: 220 | AP14: 0 | AR14: 365 | AS14: PBB | AT14: N/A
A15: 2022-02-28 | B15: CSH*210300073 | C15: CSH | D15: 2021-03-26 | E15: 2022-03-26 | F15: HFT | G15: FDC*MYR*RHBBB | H15: 10000000 | I15: 10000000 | J15: 10000000 | K15: 10214246.58 | L15: 0 | M15: 0 | N15: 0 | O15: 0.023 | P15: 0 | Q15: 214246.58 | R15: 0 | S15: 0 | T15: MYR | U15: CASH | V15: CASH | W15: RHB Bank Berhad | X15: Money Market | Y15: MYR | Z15: CASH | AA15: N/A | AB15: 10000000 | AG15: CSH | AI15: 0 | AK15: FI | AM15: QUOTED SHARES | AN15: 220 | AP15: 0 | AR15: 365 | AS15: RHBBB | AT15: N/A
A16: 2022-02-28 | B16: CSH*210400028 | C16: CSH | D16: 2021-04-09 | E16: 2022-04-09 | F16: HFT | G16: FDC*MYR*RHBBB | H16: 18000000 | I16: 18000000 | J16: 18000000 | K16: 18369764.38 | L16: 0 | M16: 0 | N16: 0 | O16: 0.023 | P16: 0 | Q16: 369764.38 | R16: 0 | S16: 0 | T16: MYR | U16: CASH | V16: CASH | W16: RHB Bank Berhad | X16: Money Market | Y16: MYR | Z16: CASH | AA16: N/A | AB16: 18000000 | AG16: CSH | AI16: 0 | AK16: FI | AM16: QUOTED SHARES | AN16: 220 | AP16: 0 | AR16: 365 | AS16: RHBBB | AT16: N/A
A17: 2022-02-28 | B17: CSH*210700052 | C17: CSH | D17: 2021-07-28 | E17: 2022-07-28 | F17: HFT | G17: FDC*MYR*RHBBB | H17: 12000000 | I17: 12000000 | J17: 12000000 | K17: 12156230.14 | L17: 0 | M17: 0 | N17: 0 | O17: 0.022 | P17: 0 | Q17: 156230.14 | R17: 0 | S17: 0 | T17: MYR | U17: CASH | V17: CASH | W17: RHB Bank Berhad | X17: Money Market | Y17: MYR | Z17: CASH | AA17: N/A | AB17: 12000000 | AG17: CSH | AI17: 0 | AK17: FI | AM17: QUOTED SHARES | AN17: 220 | AP17: 0 | AR17: 365 | AS17: RHBBB | AT17: N/A
A18: 2022-02-28 | B18: CSH*210800023 | C18: CSH | D18: 2021-08-11 | E18: 2022-05-11 | F18: HFT | G18: FDC*MYR*RHBBB | H18: 20000000 | I18: 20000000 | J18: 20000000 | K18: 20243506.85 | L18: 0 | M18: 0 | N18: 0 | O18: 0.022 | P18: 0 | Q18: 243506.85 | R18: 0 | S18: 0 | T18: MYR | U18: CASH | V18: CASH | W18: RHB Bank Berhad | X18: Money Market | Y18: MYR | Z18: CASH | AA18: N/A | AB18: 20000000 | AG18: CSH | AI18: 0 | AK18: FI | AM18: QUOTED SHARES | AN18: 220 | AP18: 0 | AR18: 273 | AS18: RHBBB | AT18: N/A
A19: 2022-02-28 | B19: CSH*210800050 | C19: CSH | D19: 2021-08-25 | E19: 2022-05-25 | F19: HFT | G19: FDC*MYR*RHBBB | H19: 15000000 | I19: 15000000 | J19: 15000000 | K19: 15169972.6 | L19: 0 | M19: 0 | N19: 0 | O19: 0.022 | P19: 0 | Q19: 169972.6 | R19: 0 | S19: 0 | T19: MYR | U19: CASH | V19: CASH | W19: RHB Bank Berhad | X19: Money Market | Y19: MYR | Z19: CASH | AA19: N/A | AB19: 15000000 | AG19: CSH | AI19: 0 | AK19: FI | AM19: QUOTED SHARES | AN19: 220 | AP19: 0 | AR19: 273 | AS19: RHBBB | AT19: N/A
A20: 2022-02-28 | B20: CSH*210900035 | C20: CSH | D20: 2021-09-13 | E20: 2022-06-13 | F20: HFT | G20: FDC*MYR*RHBBB | H20: 20000000 | I20: 20000000 | J20: 20000000 | K20: 20203726.03 | L20: 0 | M20: 0 | N20: 0 | O20: 0.022 | P20: 0 | Q20: 203726.03 | R20: 0 | S20: 0 | T20: MYR | U20: CASH | V20: CASH | W20: RHB Bank Berhad | X20: Money Market | Y20: MYR | Z20: CASH | AA20: N/A | AB20: 20000000 | AG20: CSH | AI20: 0 | AK20: FI | AM20: QUOTED SHARES | AN20: 220 | AP20: 0 | AR20: 273 | AS20: RHBBB | AT20: N/A
A21: 2022-02-28 | B21: CSH*220100016 | C21: CSH | D21: 2022-01-05 | E21: 2023-01-05 | F21: HFT | G21: FDC*MYR*RHBBB | H21: 20000000 | I21: 20000000 | J21: 20000000 | K21: 20069315.07 | L21: 0 | M21: 0 | N21: 0 | O21: 0.023 | P21: 0 | Q21: 69315.07 | R21: 0 | S21: 0 | T21: MYR | U21: CASH | V21: CASH | W21: RHB Bank Berhad | X21: Money Market | Y21: MYR | Z21: CASH | AA21: N/A | AB21: 20000000 | AG21: CSH | AI21: 0 | AK21: FI | AM21: QUOTED SHARES | AN21: 220 | AP21: 0 | AR21: 365 | AS21: RHBBB | AT21: N/A
A22: 2022-02-28 | B22: CSH*220100017 | C22: CSH | D22: 2022-01-05 | E22: 2022-04-05 | F22: HFT | G22: FDC*MYR*RHBBB | H22: 12000000 | I22: 12000000 | J22: 12000000 | K22: 12037068.49 | L22: 0 | M22: 0 | N22: 0 | O22: 0.0205 | P22: 0 | Q22: 37068.49 | R22: 0 | S22: 0 | T22: MYR | U22: CASH | V22: CASH | W22: RHB Bank Berhad | X22: Money Market | Y22: MYR | Z22: CASH | AA22: N/A | AB22: 12000000 | AG22: CSH | AI22: 0 | AK22: FI | AM22: QUOTED SHARES | AN22: 220 | AP22: 0 | AR22: 90 | AS22: RHBBB | AT22: N/A
A23: 2022-02-28 | B23: CSH*220200017 | C23: CSH | D23: 2022-02-10 | E23: 2022-03-10 | F23: HFT | G23: FDC*MYR*RHBBB | H23: 15000000 | I23: 15000000 | J23: 15000000 | K23: 15015226.03 | L23: 0 | M23: 0 | N23: 0 | O23: 0.0195 | P23: 0 | Q23: 15226.03 | R23: 0 | S23: 0 | T23: MYR | U23: CASH | V23: CASH | W23: RHB Bank Berhad | X23: Money Market | Y23: MYR | Z23: CASH | AA23: N/A | AB23: 15000000 | AG23: CSH | AI23: 0 | AK23: FI | AM23: QUOTED SHARES | AN23: 220 | AP23: 0 | AR23: 28 | AS23: RHBBB | AT23: N/A
A24: 2022-02-28 | B24: CSH*210800027 | C24: CSH | D24: 2021-08-12 | E24: 2022-08-12 | F24: HFT | G24: FDC*MYR*SMBCMB | H24: 41000000 | I24: 41000000 | J24: 41000000 | K24: 41519295.89 | L24: 0 | M24: 0 | N24: 0 | O24: 0.023 | P24: 0 | Q24: 519295.89 | R24: 0 | S24: 0 | T24: MYR | U24: CASH | V24: CASH | W24: Sumitomo Mitsui Banking Corporation Malaysia Bhd | X24: Money Market | Y24: MYR | Z24: CASH | AA24: N/A | AB24: 41000000 | AG24: CSH | AI24: 0 | AK24: FI | AM24: QUOTED SHARES | AN24: 220 | AP24: 0 | AR24: 365 | AS24: SMBCMB | AT24: N/A
A25: 2022-02-28 | B25: CSH*220200035 | C25: CSH | D25: 2022-02-22 | E25: 2022-03-08 | F25: HFT | G25: RPC*MYR*RHBBB | H25: 14000000 | I25: 14000000 | J25: 14000000 | K25: 14004027.4 | L25: 0 | M25: 0 | N25: 0 | O25: 0.015 | P25: 0 | Q25: 4027.4 | R25: 0 | S25: 0 | T25: MYR | U25: CASH | V25: CASH | W25: RHB Bank Berhad | X25: Money Market | Y25: MYR | Z25: CASH | AA25: N/A | AC25: 14000000 | AG25: CSH | AI25: 0 | AK25: FI | AM25: QUOTED SHARES | AN25: 210 | AP25: 0 | AR25: 14 | AS25: RHBBB | AT25: N/A
A26: 2022-02-28 | B26: CSH*220200044 | C26: CSH | D26: 2022-02-24 | E26: 2022-03-10 | F26: HFT | G26: RPC*MYR*RHBBB | H26: 8000000 | I26: 8000000 | J26: 8000000 | K26: 8001643.84 | L26: 0 | M26: 0 | N26: 0 | O26: 0.015 | P26: 0 | Q26: 1643.84 | R26: 0 | S26: 0 | T26: MYR | U26: CASH | V26: CASH | W26: RHB Bank Berhad | X26: Money Market | Y26: MYR | Z26: CASH | AA26: N/A | AC26: 8000000 | AG26: CSH | AI26: 0 | AK26: FI | AM26: QUOTED SHARES | AN26: 210 | AP26: 0 | AR26: 14 | AS26: RHBBB | AT26: N/A
A27: 2022-02-28 | B27: CSH*220200059 | C27: CSH | D27: 2022-02-25 | E27: 2022-03-09 | F27: HFT | G27: RPC*MYR*RHBBB | H27: 61000000 | I27: 61000000 | J27: 61000000 | K27: 61010027.4 | L27: 0 | M27: 0 | N27: 0 | O27: 0.015 | P27: 0 | Q27: 10027.4 | R27: 0 | S27: 0 | T27: MYR | U27: CASH | V27: CASH | W27: RHB Bank Berhad | X27: Money Market | Y27: MYR | Z27: CASH | AA27: N/A | AC27: 61000000 | AG27: CSH | AI27: 0 | AK27: FI | AM27: QUOTED SHARES | AN27: 210 | AP27: 0 | AR27: 12 | AS27: RHBBB | AT27: N/A
A28: 2022-02-28 | B28: ULN*220300002 | C28: BND | D28: 2022-02-28 | E28: 2025-12-12 | F28: HWIF6 | G28: DO140029 | H28: 5000000 | I28: 5350000 | J28: 5349800 | K28: 5349800 | L28: 0 | M28: 0 | N28: 106.996 | O28: 3.73 | P28: 3.73 | Q28: 0 | R28: 0 | S28: 0 | T28: MYR | U28: Others | V28: Others | W28: UniTapah Sdn Berhad | X28: Bond | Y28: MYR | Z28: Malaysia | AA28: N/A | AD28: 0 | AF28: 5349800 | AG28: BND | AI28: 0 | AJ28: 5349800 | AK28: NonFI | AM28: QUOTED SHARES | AN28: 110 | AO28: 5349800 | AP28: 0 | AQ28: AA2 | AR28: 1383 | AT28: MYBDO1400293
A29: 2022-02-28 | B29: ULN*220300038 | C29: BND | D29: 2022-02-28 | E29: 2027-09-30 | F29: HWIF6 | G29: GL200001 | H29: 10000000 | I29: 10000000 | J29: 9997000 | K29: 9997000 | L29: 0 | M29: 0 | N29: 99.97 | O29: 3.45 | P29: 3.45 | Q29: 0 | R29: 0 | S29: 0 | T29: MYR | U29: Others | V29: Others | W29: Government of Malaysia | X29: Bond | Y29: MYR | Z29: Malaysia | AA29: N/A | AD29: 0 | AF29: 9997000 | AG29: BND | AI29: 0 | AJ29: 9997000 | AK29: NonFI | AM29: QUOTED SHARES | AN29: 131 | AO29: 9997000 | AP29: 0 | AQ29: X | AR29: 2040 | AT29: MYBGL2000018
A30: 2022-02-28 | B30: ULN*220300039 | C30: BND | D30: 2022-02-28 | E30: 2028-10-31 | F30: HWIF6 | G30: GO180002 | H30: 10000000 | I30: 10444000.01 | J30: 10445000 | K30: 10445000 | L30: 0 | M30: 0 | N30: 104.45 | O30: 3.64 | P30: 3.64 | Q30: 0 | R30: 0 | S30: 0 | T30: MYR | U30: Others | V30: Others | W30: Government of Malaysia | X30: Bond | Y30: MYR | Z30: Malaysia | AA30: N/A | AD30: 0 | AF30: 10445000 | AG30: BND | AI30: 0 | AJ30: 10445000 | AK30: NonFI | AM30: QUOTED SHARES | AN30: 140 | AO30: 10445000 | AP30: 0 | AQ30: X | AR30: 2437 | AT30: MYBGO1800024
A31: 2022-02-28 | B31: ULN*220300040 | C31: BND | D31: 2022-02-28 | E31: 2032-07-15 | F31: HWIF6 | G31: MO220001 | H31: 10000000 | I31: 10002600 | J31: 9925000 | K31: 9925000 | L31: 0 | M31: 0 | N31: 99.25 | O31: 3.61 | P31: 3.61 | Q31: 0 | R31: 0 | S31: 0 | T31: MYR | U31: Others | V31: Others | W31: Government of Malaysia | X31: Bond | Y31: MYR | Z31: Malaysia | AA31: N/A | AD31: 0 | AF31: 9925000 | AG31: BND | AI31: 0 | AJ31: 9925000 | AK31: NonFI | AM31: QUOTED SHARES | AN31: 140 | AO31: 9925000 | AP31: 0 | AQ31: X | AR31: 3790 | AT31: MYBMO2200016
A32: 2022-02-28 | B32: ULN*220300003 | C32: BND | D32: 2022-02-28 | E32: 2029-05-21 | F32: HWIF6 | G32: PN190004 | H32: 10000000 | I32: 10192000 | J32: 10192000 | K32: 10192000 | L32: 0 | M32: 0 | N32: 101.92 | O32: 4.05 | P32: 4.05 | Q32: 0 | R32: 0 | S32: 0 | T32: MYR | U32: Others | V32: Others | W32: RHB Islamic Bank Berhad | X32: Bond | Y32: MYR | Z32: Malaysia | AA32: N/A | AD32: 0 | AF32: 10192000 | AG32: BND | AI32: 0 | AJ32: 10192000 | AK32: FI | AM32: QUOTED SHARES | AN32: 110 | AO32: 10192000 | AP32: 0 | AQ32: AA3 | AR32: 2639 | AT32: MYBPN1900041
A33: 2022-02-28 | B33: ULN*220300004 | C33: BND | D33: 2022-02-28 | E33: 2029-11-23 | F33: HWIF6 | G33: PN190015 | H33: 5000000 | I33: 5050500 | J33: 5052150 | K33: 5052150 | L33: 0 | M33: 0 | N33: 101.043 | O33: 3.73 | P33: 3.73 | Q33: 0 | R33: 0 | S33: 0 | T33: MYR | U33: Others | V33: Others | W33: CIMB Group Holdings Berhad | X33: Bond | Y33: MYR | Z33: Malaysia | AA33: CIMB | AD33: 0 | AF33: 5052150 | AG33: BND | AI33: 1 | AJ33: 5052150 | AK33: NonFI | AM33: QUOTED SHARES | AN33: 110 | AO33: 5052150 | AP33: 0 | AQ33: AA | AR33: 2825 | AT33: MYBPN1900157
A34: 2022-02-28 | B34: ULN*220300005 | C34: BND | D34: 2022-02-28 | E34: 2029-09-13 | F34: HWIF6 | G34: PO180006 | H34: 10000000 | I34: 10356000 | J34: 10362400 | K34: 10362400 | L34: 0 | M34: 0 | N34: 103.624 | O34: 4.37 | P34: 4.37 | Q34: 0 | R34: 0 | S34: 0 | T34: MYR | U34: Others | V34: Others | W34: CIMB Group Holdings Berhad | X34: Bond | Y34: MYR | Z34: Malaysia | AA34: CIMB | AD34: 0 | AF34: 10362400 | AG34: BND | AI34: 1 | AJ34: 10362400 | AK34: NonFI | AM34: QUOTED SHARES | AN34: 110 | AO34: 10362400 | AP34: 0 | AQ34: AA | AR34: 2754 | AT34: MYBPO1800066
A35: 2022-02-28 | B35: ULN*220300006 | C35: BND | D35: 2022-02-28 | E35: 2120-02-27 | F35: HWIF6 | G35: PZ200004 | H35: 7500000 | I35: 7473000 | J35: 7473375 | K35: 7473375 | L35: 0 | M35: 0 | N35: 99.645 | O35: 4 | P35: 4 | Q35: 0 | R35: 0 | S35: 0 | T35: MYR | U35: Others | V35: Others | W35: TOP GLOVE CORPORATION BHD | X35: Bond | Y35: MYR | Z35: Malaysia | AA35: N/A | AD35: 0 | AF35: 7473375 | AG35: BND | AI35: 1 | AJ35: 7473375 | AK35: NonFI | AM35: QUOTED SHARES | AN35: 110 | AO35: 7473375 | AP35: 0 | AQ35: AA- | AR35: 35792 | AT35: MYBPZ2000043
A36: 2022-02-28 | B36: ULN*220300007 | C36: BND | D36: 2022-02-28 | E36: 2023-04-25 | F36: HWIF6 | G36: UN130048 | H36: 5000000 | I36: 5050000 | J36: 5044700 | K36: 5044700 | L36: 0 | M36: 0 | N36: 100.894 | O36: 3.58 | P36: 3.58 | Q36: 0 | R36: 0 | S36: 0 | T36: MYR | U36: Others | V36: Others | W36: YTL Corporation Berhad | X36: Bond | Y36: MYR | Z36: Malaysia | AA36: N/A | AD36: 0 | AF36: 5044700 | AG36: BND | AI36: 1 | AJ36: 5044700 | AK36: NonFI | AM36: QUOTED SHARES | AN36: 110 | AO36: 5044700 | AP36: 0 | AQ36: AA1 | AR36: 421 | AT36: MYBUN1300481
A37: 2022-02-28 | B37: ULN*220300008 | C37: BND | D37: 2022-02-28 | E37: 2029-06-14 | F37: HWIF6 | G37: UN190218 | H37: 15000000 | I37: 15276000 | J37: 15280650 | K37: 15280650 | L37: 0 | M37: 0 | N37: 101.871 | O37: 4.05 | P37: 4.05 | Q37: 0 | R37: 0 | S37: 0 | T37: MYR | U37: Others | V37: Others | W37: Hong Leong Financial Group Berhad | X37: Bond | Y37: MYR | Z37: Malaysia | AA37: N/A | AD37: 0 | AF37: 15280650 | AG37: BND | AI37: 1 | AJ37: 15280650 | AK37: NonFI | AM37: QUOTED SHARES | AN37: 110 | AO37: 15280650 | AP37: 0 | AQ37: AA2 | AR37: 2663 | AT37: MYBUN1902187
A38: 2022-02-28 | B38: ULN*220300009 | C38: BND | D38: 2022-02-28 | E38: 2029-07-27 | F38: HWIF6 | G38: UN190256 | H38: 5000000 | I38: 5084500 | J38: 5084500 | K38: 5084500 | L38: 0 | M38: 0 | N38: 101.69 | O38: 3.67 | P38: 3.67 | Q38: 0 | R38: 0 | S38: 0 | T38: MYR | U38: Others | V38: Commercial Banks | W38: Public Bank Berhad | X38: Bond | Y38: MYR | Z38: Malaysia | AA38: N/A | AD38: 0 | AF38: 5084500 | AG38: BND | AI38: 1 | AJ38: 5084500 | AK38: FI | AL38: MAIN BOARD | AM38: QUOTED SHARES | AN38: 110 | AO38: 5084500 | AP38: 0 | AQ38: AA1 | AR38: 2706 | AT38: MYBUN1902567
A39: 2022-02-28 | B39: ULN*220300010 | C39: BND | D39: 2022-02-28 | E39: 2029-12-18 | F39: HWIF6 | G39: UN190380 | H39: 10000000 | I39: 10075000 | J39: 10101500 | K39: 10101500 | L39: 0 | M39: 0 | N39: 101.015 | O39: 3.64 | P39: 3.64 | Q39: 0 | R39: 0 | S39: 0 | T39: MYR | U39: Others | V39: Commercial Banks | W39: Public Bank Berhad | X39: Bond | Y39: MYR | Z39: Malaysia | AA39: N/A | AD39: 0 | AF39: 10101500 | AG39: BND | AI39: 1 | AJ39: 10101500 | AK39: FI | AL39: MAIN BOARD | AM39: QUOTED SHARES | AN39: 110 | AO39: 10101500 | AP39: 0 | AQ39: AA1 | AR39: 2850 | AT39: MYBUN1903805
A40: 2022-02-28 | B40: ULN*220300011 | C40: BND | D40: 2022-02-28 | E40: 2030-11-20 | F40: HWIF6 | G40: UN200272 | H40: 5000000 | I40: 4873000 | J40: 4883850 | K40: 4883850 | L40: 0 | M40: 0 | N40: 97.677 | O40: 3.5 | P40: 3.5 | Q40: 0 | R40: 0 | S40: 0 | T40: MYR | U40: Others | V40: Others | W40: RHB Bank Berhad | X40: Bond | Y40: MYR | Z40: Malaysia | AA40: N/A | AD40: 0 | AF40: 4883850 | AG40: BND | AI40: 1 | AJ40: 4883850 | AK40: FI | AM40: QUOTED SHARES | AN40: 110 | AO40: 4883850 | AP40: 0 | AQ40: AA3 | AR40: 3187 | AT40: MYBUN2002722
A41: 2022-02-28 | B41: ULN*220300012 | C41: BND | D41: 2022-02-28 | E41: 2024-12-24 | F41: HWIF6 | G41: VG220099 | H41: 5000000 | I41: 5006500 | J41: 5006800 | K41: 5006800 | L41: 0 | M41: 0 | N41: 100.136 | O41: 3.79 | P41: 3.79 | Q41: 0 | R41: 0 | S41: 0 | T41: MYR | U41: Others | V41: Others | W41: Toyota Capital Malaysia Sdn Berhad | X41: Bond | Y41: MYR | Z41: Malaysia | AA41: N/A | AD41: 0 | AF41: 5006800 | AG41: BND | AI41: 0 | AJ41: 5006800 | AK41: NonFI | AM41: QUOTED SHARES | AN41: 110 | AO41: 5006800 | AP41: 0 | AQ41: AAA | AR41: 1030 | AT41: MYBVG2200997
A42: 2022-02-28 | B42: ULN*220300013 | C42: BND | D42: 2022-02-28 | E42: 2022-05-27 | F42: HWIF6 | G42: VI170168 | H42: 5000000 | I42: 5031000 | J42: 5026700 | K42: 5026700 | L42: 0 | M42: 0 | N42: 100.534 | O42: 2.32 | P42: 2.32 | Q42: 0 | R42: 0 | S42: 0 | T42: MYR | U42: Others | V42: Others | W42: Imtiaz Sukuk II Berhad | X42: Bond | Y42: MYR | Z42: Malaysia | AA42: N/A | AD42: 0 | AF42: 5026700 | AG42: BND | AI42: 0 | AJ42: 5026700 | AK42: NonFI | AM42: QUOTED SHARES | AN42: 110 | AO42: 5026700 | AP42: 0 | AQ42: AA2 | AR42: 88 | AT42: MYBVI1701686
A43: 2022-02-28 | B43: ULN*220300014 | C43: BND | D43: 2022-02-28 | E43: 2023-09-28 | F43: HWIF6 | G43: VI180273 | H43: 5000000 | I43: 5138000 | J43: 5138250 | K43: 5138250 | L43: 0 | M43: 0 | N43: 102.765 | O43: 2.89 | P43: 2.89 | Q43: 0 | R43: 0 | S43: 0 | T43: MYR | U43: Others | V43: Others | W43: BGSM Management Sdn Berhad | X43: Bond | Y43: MYR | Z43: Malaysia | AA43: N/A | AD43: 0 | AF43: 5138250 | AG43: BND | AI43: 0 | AJ43: 5138250 | AK43: NonFI | AM43: QUOTED SHARES | AN43: 110 | AO43: 5138250 | AP43: 0 | AQ43: AA3 | AR43: 577 | AT43: MYBVI1802732
A44: 2022-02-28 | B44: ULN*220300015 | C44: BND | D44: 2022-02-28 | E44: 2024-07-22 | F44: HWIF6 | G44: VI190119 | H44: 10000000 | I44: 10181000 | J44: 10181200 | K44: 10181200 | L44: 0 | M44: 0 | N44: 101.812 | O44: 3.33 | P44: 3.33 | Q44: 0 | R44: 0 | S44: 0 | T44: MYR | U44: Others | V44: Others | W44: Bumitama Agri Ltd | X44: Bond | Y44: MYR | Z44: Malaysia | AA44: N/A | AD44: 0 | AF44: 10181200 | AG44: BND | AI44: 0 | AJ44: 10181200 | AK44: NonFI | AM44: QUOTED SHARES | AN44: 110 | AO44: 10181200 | AP44: 0 | AQ44: AA2 | AR44: 875 | AT44: MYBVI1901195
A45: 2022-02-28 | B45: ULN*220300016 | C45: BND | D45: 2022-02-28 | E45: 2027-01-25 | F45: HWIF6 | G45: VI220037 | H45: 10000000 | I45: 10002000 | J45: 10009900 | K45: 10009900 | L45: 0 | M45: 0 | N45: 100.099 | O45: 3.94 | P45: 3.94 | Q45: 0 | R45: 0 | S45: 0 | T45: MYR | U45: Others | V45: Others | W45: Sabah Credit Corporation | X45: Bond | Y45: MYR | Z45: Malaysia | AA45: N/A | AD45: 0 | AF45: 10009900 | AG45: BND | AI45: 0 | AJ45: 10009900 | AK45: NonFI | AM45: QUOTED SHARES | AN45: 110 | AO45: 10009900 | AP45: 0 | AQ45: AA1 | AR45: 1792 | AT45: MYBVI2200373
A46: 2022-02-28 | B46: ULN*220300017 | C46: BND | D46: 2022-02-28 | E46: 2022-07-29 | F46: HWIF6 | G46: VK150151 | H46: 10000000 | I46: 10103500 | J46: 10083400 | K46: 10083400 | L46: 0 | M46: 0 | N46: 100.834 | O46: 2.19 | P46: 2.19 | Q46: 0 | R46: 0 | S46: 0 | T46: MYR | U46: Others | V46: Others | W46: Putrajaya Holdings Sdn Berhad | X46: Bond | Y46: MYR | Z46: Malaysia | AA46: N/A | AD46: 0 | AF46: 10083400 | AG46: BND | AI46: 0 | AJ46: 10083400 | AK46: NonFI | AM46: QUOTED SHARES | AN46: 110 | AO46: 10083400 | AP46: 0 | AQ46: AAA | AR46: 151 | AT46: MYBVK1501512
A47: 2022-02-28 | B47: ULN*220300018 | C47: BND | D47: 2022-02-28 | E47: 2023-05-19 | F47: HWIF6 | G47: VK160146 | H47: 5000000 | I47: 5094500 | J47: 5088750 | K47: 5088750 | L47: 0 | M47: 0 | N47: 101.775 | O47: 3.54 | P47: 3.54 | Q47: 0 | R47: 0 | S47: 0 | T47: MYR | U47: Others | V47: Others | W47: UEM Sunrise Berhad | X47: Bond | Y47: MYR | Z47: Malaysia | AA47: N/A | AD47: 0 | AF47: 5088750 | AG47: BND | AI47: 0 | AJ47: 5088750 | AK47: NonFI | AM47: QUOTED SHARES | AN47: 110 | AO47: 5088750 | AP47: 0 | AQ47: AA- | AR47: 445 | AT47: MYBVK1601460
A48: 2022-02-28 | B48: ULN*220300019 | C48: BND | D48: 2022-02-28 | E48: 2027-10-07 | F48: HWIF6 | G48: VK200216 | H48: 5000000 | I48: 4804500 | J48: 4805500 | K48: 4805500 | L48: 0 | M48: 0 | N48: 96.11 | O48: 4.01 | P48: 4.01 | Q48: 0 | R48: 0 | S48: 0 | T48: MYR | U48: Others | V48: Others | W48: Imtiaz Sukuk II Berhad | X48: Bond | Y48: MYR | Z48: Malaysia | AA48: N/A | AD48: 0 | AF48: 4805500 | AG48: BND | AI48: 0 | AJ48: 4805500 | AK48: NonFI | AM48: QUOTED SHARES | AN48: 110 | AO48: 4805500 | AP48: 0 | AQ48: AA2 | AR48: 2047 | AT48: MYBVK2002163
A49: 2022-02-28 | B49: ULN*220300020 | C49: BND | D49: 2022-02-28 | E49: 2027-11-05 | F49: HWIF6 | G49: VK200302 | H49: 10000000 | I49: 9650000 | J49: 9645000 | K49: 9645000 | L49: 0 | M49: 0 | N49: 96.45 | O49: 4.03 | P49: 4.03 | Q49: 0 | R49: 0 | S49: 0 | T49: MYR | U49: Others | V49: Others | W49: Malaysia Airport Holdings Berhad | X49: Bond | Y49: MYR | Z49: Malaysia | AA49: N/A | AD49: 0 | AF49: 9645000 | AG49: BND | AI49: 1 | AJ49: 9645000 | AK49: NonFI | AM49: QUOTED SHARES | AN49: 110 | AO49: 9645000 | AP49: 0 | AQ49: AAA | AR49: 2076 | AT49: MYBVK2003021
A50: 2022-02-28 | B50: ULN*220300021 | C50: BND | D50: 2022-02-28 | E50: 2027-12-03 | F50: HWIF6 | G50: VK200335 | H50: 5000000 | I50: 4857500 | J50: 4850200 | K50: 4850200 | L50: 0 | M50: 0 | N50: 97.004 | O50: 4.01 | P50: 4.01 | Q50: 0 | R50: 0 | S50: 0 | T50: MYR | U50: Others | V50: Others | W50: Sime Darby Berhad | X50: Bond | Y50: MYR | Z50: Malaysia | AA50: N/A | AD50: 0 | AF50: 4850200 | AG50: BND | AI50: 0 | AJ50: 4850200 | AK50: NonFI | AM50: QUOTED SHARES | AN50: 110 | AO50: 4850200 | AP50: 0 | AQ50: AA+ | AR50: 2104 | AT50: MYBVK2003351
A51: 2022-02-28 | B51: ULN*220300022 | C51: BND | D51: 2022-02-28 | E51: 2029-02-09 | F51: HWIF6 | G51: VK220083 | H51: 5000000 | I51: 5000000 | J51: 5020300 | K51: 5020300 | L51: 0 | M51: 0 | N51: 100.406 | O51: 4.16 | P51: 4.16 | Q51: 0 | R51: 0 | S51: 0 | T51: MYR | U51: Others | V51: Others | W51: BATU KAWAN BHD | X51: Bond | Y51: MYR | Z51: Malaysia | AA51: N/A | AD51: 0 | AF51: 5020300 | AG51: BND | AI51: 1 | AJ51: 5020300 | AK51: NonFI | AM51: QUOTED SHARES | AN51: 110 | AO51: 5020300 | AP51: 0 | AQ51: AA1 | AR51: 2538 | AT51: MYBVK2200833
A52: 2022-02-28 | B52: ULN*220300023 | C52: BND | D52: 2022-02-28 | E52: 2025-08-29 | F52: HWIF6 | G52: VL170240 | H52: 10000000 | I52: 10447000 | J52: 10438500 | K52: 10438500 | L52: 0 | M52: 0 | N52: 104.385 | O52: 3.62 | P52: 3.62 | Q52: 0 | R52: 0 | S52: 0 | T52: MYR | U52: Others | V52: Others | W52: BGSM Management Sdn Berhad | X52: Bond | Y52: MYR | Z52: Malaysia | AA52: N/A | AD52: 0 | AF52: 10438500 | AG52: BND | AI52: 0 | AJ52: 10438500 | AK52: NonFI | AM52: QUOTED SHARES | AN52: 110 | AO52: 10438500 | AP52: 0 | AQ52: AA3 | AR52: 1278 | AT52: MYBVL1702407
A53: 2022-02-28 | B53: ULN*220300024 | C53: BND | D53: 2022-02-28 | E53: 2022-08-05 | F53: HWIF6 | G53: VN120286 | H53: 10000000 | I53: 10063500 | J53: 10063500 | K53: 10063500 | L53: 0 | M53: 0 | N53: 100.635 | O53: 2.42 | P53: 2.42 | Q53: 0 | R53: 0 | S53: 0 | T53: MYR | U53: Others | V53: Others | W53: Pengurusan Air SPV Berhad | X53: Bond | Y53: MYR | Z53: Malaysia | AA53: N/A | AD53: 0 | AF53: 10063500 | AG53: BND | AI53: 0 | AJ53: 10063500 | AK53: NonFI | AM53: QUOTED SHARES | AN53: 110 | AO53: 10063500 | AP53: 0 | AQ53: AAA | AR53: 158 | AT53: MYBVN1202867
A54: 2022-02-28 | B54: ULN*220300025 | C54: BND | D54: 2022-02-28 | E54: 2023-03-08 | F54: HWIF6 | G54: VN130094 | H54: 15000000 | I54: 15240000 | J54: 15240600 | K54: 15240600 | L54: 0 | M54: 0 | N54: 101.604 | O54: 2.51 | P54: 2.51 | Q54: 0 | R54: 0 | S54: 0 | T54: MYR | U54: Others | V54: Others | W54: Aman Sukuk Berhad | X54: Bond | Y54: MYR | Z54: Malaysia | AA54: N/A | AD54: 0 | AF54: 15240600 | AG54: BND | AI54: 0 | AJ54: 15240600 | AK54: NonFI | AM54: QUOTED SHARES | AN54: 110 | AO54: 15240600 | AP54: 0 | AQ54: AAA | AR54: 373 | AT54: MYBVN1300943
A55: 2022-02-28 | B55: ULN*220300026 | C55: BND | D55: 2022-02-28 | E55: 2025-06-05 | F55: HWIF6 | G55: VN150132 | H55: 10000000 | I55: 10346000 | J55: 10344400 | K55: 10344400 | L55: 0 | M55: 0 | N55: 103.444 | O55: 3.52 | P55: 3.52 | Q55: 0 | R55: 0 | S55: 0 | T55: MYR | U55: Others | V55: Others | W55: Benih Restu Berhad | X55: Bond | Y55: MYR | Z55: Malaysia | AA55: N/A | AD55: 0 | AF55: 10344400 | AG55: BND | AI55: 0 | AJ55: 10344400 | AK55: NonFI | AM55: QUOTED SHARES | AN55: 110 | AO55: 10344400 | AP55: 0 | AQ55: AA2 | AR55: 1193 | AT55: MYBVN1501326
A56: 2022-02-28 | B56: ULN*220300027 | C56: BND | D56: 2022-02-28 | E56: 2027-08-27 | F56: HWIF6 | G56: VN170244 | H56: 5000000 | I56: 5313500 | J56: 5316900 | K56: 5316900 | L56: 0 | M56: 0 | N56: 106.338 | O56: 3.97 | P56: 3.97 | Q56: 0 | R56: 0 | S56: 0 | T56: MYR | U56: Others | V56: Others | W56: Celcom Networks Sdn Berhad | X56: Bond | Y56: MYR | Z56: Malaysia | AA56: N/A | AD56: 0 | AF56: 5316900 | AG56: BND | AI56: 1 | AJ56: 5316900 | AK56: NonFI | AM56: QUOTED SHARES | AN56: 110 | AO56: 5316900 | AP56: 0 | AQ56: AA+ | AR56: 2006 | AT56: MYBVN1702445
A57: 2022-02-28 | B57: ULN*220300028 | C57: BND | D57: 2022-02-28 | E57: 2028-03-24 | F57: HWIF6 | G57: VN180095 | H57: 5000000 | I57: 5372500 | J57: 5368800 | K57: 5368800 | L57: 0 | M57: 0 | N57: 107.376 | O57: 4.35 | P57: 4.35 | Q57: 0 | R57: 0 | S57: 0 | T57: MYR | U57: Others | V57: Others | W57: MMC Corporation Berhad | X57: Bond | Y57: MYR | Z57: Malaysia | AA57: N/A | AD57: 0 | AF57: 5368800 | AG57: BND | AI57: 0 | AJ57: 5368800 | AK57: NonFI | AM57: QUOTED SHARES | AN57: 110 | AO57: 5368800 | AP57: 0 | AQ57: AA- | AR57: 2216 | AT57: MYBVN1800959
A58: 2022-02-28 | B58: ULN*220300029 | C58: BND | D58: 2022-02-28 | E58: 2028-08-18 | F58: HWIF6 | G58: VN180242 | H58: 5000000 | I58: 5223500 | J58: 5228750 | K58: 5228750 | L58: 0 | M58: 0 | N58: 104.575 | O58: 4.3 | P58: 4.3 | Q58: 0 | R58: 0 | S58: 0 | T58: MYR | U58: Others | V58: Others | W58: IJM Corporation Berhad | X58: Bond | Y58: MYR | Z58: Malaysia | AA58: N/A | AD58: 0 | AF58: 5228750 | AG58: BND | AI58: 1 | AJ58: 5228750 | AK58: NonFI | AM58: QUOTED SHARES | AN58: 110 | AO58: 5228750 | AP58: 0 | AQ58: AA3 | AR58: 2363 | AT58: MYBVN1802427
A59: 2022-02-28 | B59: ULN*220300030 | C59: BND | D59: 2022-02-28 | E59: 2029-04-10 | F59: HWIF6 | G59: VN190085 | H59: 5000000 | I59: 5135000 | J59: 5131100 | K59: 5131100 | L59: 0 | M59: 0 | N59: 102.622 | O59: 4.37 | P59: 4.37 | Q59: 0 | R59: 0 | S59: 0 | T59: MYR | U59: Others | V59: Others | W59: IJM Corporation Berhad | X59: Bond | Y59: MYR | Z59: Malaysia | AA59: N/A | AD59: 0 | AF59: 5131100 | AG59: BND | AI59: 1 | AJ59: 5131100 | AK59: NonFI | AM59: QUOTED SHARES | AN59: 110 | AO59: 5131100 | AP59: 0 | AQ59: AA3 | AR59: 2598 | AT59: MYBVN1900858
A60: 2022-02-28 | B60: ULN*220300031 | C60: BND | D60: 2022-02-28 | E60: 2029-09-20 | F60: HWIF6 | G60: VN190184 | H60: 10000000 | I60: 9733000 | J60: 9778200 | K60: 9778200 | L60: 0 | M60: 0 | N60: 97.782 | O60: 4.05 | P60: 4.05 | Q60: 0 | R60: 0 | S60: 0 | T60: MYR | U60: Others | V60: Others | W60: DIGI TELECOMMUNICATIONS SDN BHD | X60: Bond | Y60: MYR | Z60: Malaysia | AA60: N/A | AD60: 0 | AF60: 9778200 | AG60: BND | AI60: 1 | AJ60: 9778200 | AK60: NonFI | AM60: QUOTED SHARES | AN60: 110 | AO60: 9778200 | AP60: 0 | AQ60: AAA | AR60: 2761 | AT60: MYBVN1901849
A61: 2022-02-28 | B61: ULN*220300032 | C61: BND | D61: 2022-02-28 | E61: 2029-11-16 | F61: HWIF6 | G61: VN190236 | H61: 7500000 | I61: 7452750 | J61: 7475700 | K61: 7475700 | L61: 0 | M61: 0 | N61: 99.676 | O61: 4.41 | P61: 4.41 | Q61: 0 | R61: 0 | S61: 0 | T61: MYR | U61: Others | V61: Others | W61: Gamuda Berhad | X61: Bond | Y61: MYR | Z61: Malaysia | AA61: N/A | AD61: 0 | AF61: 7475700 | AG61: BND | AI61: 1 | AJ61: 7475700 | AK61: NonFI | AM61: QUOTED SHARES | AN61: 110 | AO61: 7475700 | AP61: 0 | AQ61: AA3 | AR61: 2818 | AT61: MYBVN1902367
A62: 2022-02-28 | B62: ULN*220300033 | C62: BND | D62: 2022-02-28 | E62: 2030-06-14 | F62: HWIF6 | G62: VN200089 | H62: 10000000 | I62: 9499000 | J62: 9492200 | K62: 9492200 | L62: 0 | M62: 0 | N62: 94.922 | O62: 4.05 | P62: 4.05 | Q62: 0 | R62: 0 | S62: 0 | T62: MYR | U62: Others | V62: Others | W62: Sarawak Energy Berhad | X62: Bond | Y62: MYR | Z62: Malaysia | AA62: N/A | AD62: 0 | AF62: 9492200 | AG62: BND | AI62: 0 | AJ62: 9492200 | AK62: NonFI | AM62: QUOTED SHARES | AN62: 110 | AO62: 9492200 | AP62: 0 | AQ62: AA1 | AR62: 3028 | AT62: MYBVN2000898
A63: 2022-02-28 | B63: ULN*220300034 | C63: BND | D63: 2022-02-28 | E63: 2031-11-25 | F63: HWIF6 | G63: VN210441 | H63: 5000000 | I63: 5004500 | J63: 4982600 | K63: 4982600 | L63: 0 | M63: 0 | N63: 99.652 | O63: 4.11 | P63: 4.11 | Q63: 0 | R63: 0 | S63: 0 | T63: MYR | U63: Others | V63: Others | W63: Tenaga Nasional Berhad | X63: Bond | Y63: MYR | Z63: Malaysia | AA63: N/A | AD63: 0 | AF63: 4982600 | AG63: BND | AI63: 1 | AJ63: 4982600 | AK63: NonFI | AM63: QUOTED SHARES | AN63: 110 | AO63: 4982600 | AP63: 0 | AQ63: AAA | AR63: 3557 | AT63: MYBVN2104419
A64: 2022-02-28 | B64: ULN*220300035 | C64: BND | D64: 2022-02-28 | E64: 2022-05-03 | F64: HWIF6 | G64: VO110051 | H64: 5000000 | I64: 5042500 | J64: 5023000 | K64: 5023000 | L64: 0 | M64: 0 | N64: 100.46 | O64: 2.27 | P64: 2.27 | Q64: 0 | R64: 0 | S64: 0 | T64: MYR | U64: Others | V64: Others | W64: Westports Holdings Berhad | X64: Bond | Y64: MYR | Z64: Malaysia | AA64: N/A | AD64: 0 | AF64: 5023000 | AG64: BND | AI64: 1 | AJ64: 5023000 | AK64: NonFI | AM64: QUOTED SHARES | AN64: 110 | AO64: 5023000 | AP64: 0 | AQ64: AA+ | AR64: 64 | AT64: MYBVO1100515
A65: 2022-02-28 | B65: ULN*220300001 | C65: BND | D65: 2022-02-28 | E65: 2023-01-12 | F65: HWIF6 | G65: VO120010 | H65: 10000000 | I65: 10178000 | J65: 10177500 | K65: 10177500 | L65: 0 | M65: 0 | N65: 101.775 | O65: 2.41 | P65: 2.41 | Q65: 0 | R65: 0 | S65: 0 | T65: MYR | U65: Others | V65: Others | W65: Projek Lebuhraya Usahasama Berhad | X65: Bond | Y65: MYR | Z65: Malaysia | AA65: N/A | AD65: 0 | AF65: 10177500 | AG65: BND | AI65: 0 | AJ65: 10177500 | AM65: QUOTED SHARES | AN65: 110 | AO65: 10177500 | AP65: 0 | AQ65: AAA | AR65: 318 | AT65: MYBVO1200109
A66: 2022-02-28 | B66: ULN*220300036 | C66: BND | D66: 2022-02-28 | E66: 2027-11-12 | F66: HWIF6 | G66: VP150259 | H66: 5000000 | I66: 5432500 | J66: 5426550 | K66: 5426550 | L66: 0 | M66: 0 | N66: 108.531 | O66: 4.29 | P66: 4.29 | Q66: 0 | R66: 0 | S66: 0 | T66: MYR | U66: Others | V66: Others | W66: MMC Corporation Berhad | X66: Bond | Y66: MYR | Z66: Malaysia | AA66: N/A | AD66: 0 | AF66: 5426550 | AG66: BND | AI66: 0 | AJ66: 5426550 | AK66: NonFI | AM66: QUOTED SHARES | AN66: 110 | AO66: 5426550 | AP66: 0 | AQ66: AA- | AR66: 2083 | AT66: MYBVP1502592
A67: 2022-02-28 | B67: ULN*220300037 | C67: BND | D67: 2022-02-28 | E67: 2031-04-30 | F67: HWIF6 | G67: VR170359 | H67: 10000000 | I67: 10579000 | J67: 10579200 | K67: 10579200 | L67: 0 | M67: 0 | N67: 105.792 | O67: 4.53 | P67: 4.53 | Q67: 0 | R67: 0 | S67: 0 | T67: MYR | U67: Others | V67: Others | W67: SARAWAK POWERR GENERATION SDN BHD | X67: Bond | Y67: MYR | Z67: Malaysia | AA67: N/A | AD67: 0 | AF67: 10579200 | AG67: BND | AI67: 0 | AJ67: 10579200 | AK67: NonFI | AM67: QUOTED SHARES | AN67: 110 | AO67: 10579200 | AP67: 0 | AQ67: AA- | AR67: 3348 | AT67: MYBVR1703592
A68: 2022-02-28 | B68: ULN*220300104 | C68: BND | D68: 2022-02-28 | E68: 2028-06-12 | F68: OIF | G68: DR140026 | H68: 5000000 | I68: 5432500 | J68: 5513800 | K68: 5513800 | L68: 0 | M68: 0 | N68: 110.276 | O68: 4.05 | P68: 4.05 | Q68: 0 | R68: 0 | S68: 0 | T68: MYR | U68: Others | V68: Others | W68: UniTapah Sdn Berhad | X68: Bond | Y68: MYR | Z68: Malaysia | AA68: N/A | AD68: 0 | AF68: 5513800 | AG68: BND | AI68: 0 | AJ68: 5513800 | AK68: NonFI | AM68: QUOTED SHARES | AN68: 110 | AO68: 5513800 | AP68: 0 | AQ68: AA2 | AR68: 2296 | AT68: MYBDR1400262
A69: 2022-02-28 | B69: ULN*220300043 | C69: BND | D69: 2022-02-28 | E69: 2034-07-05 | F69: OIF | G69: MS190004 | H69: 10000000 | I69: 10625000 | J69: 9820000 | K69: 9820000 | L69: 0 | M69: 0 | N69: 98.2 | O69: 4.014 | P69: 4.014 | Q69: 0 | R69: 0 | S69: 0 | T69: MYR | U69: Others | V69: Others | W69: Government of Malaysia | X69: Bond | Y69: MYR | Z69: Malaysia | AA69: N/A | AD69: 0 | AF69: 9820000 | AG69: BND | AI69: 0 | AJ69: 9820000 | AK69: NonFI | AM69: QUOTED SHARES | AN69: 140 | AO69: 9820000 | AP69: 0 | AQ69: X | AR69: 4510 | AT69: MYBMS1900047
A70: 2022-02-28 | B70: ULN*220300103 | C70: BND | D70: 2022-02-28 | E70: 2023-10-23 | F70: OIF | G70: PJ170012 | H70: 5000000 | I70: 5025500 | J70: 5142800 | K70: 5142800 | L70: 0 | M70: 0 | N70: 102.856 | O70: 3.007 | P70: 3.007 | Q70: 0 | R70: 0 | S70: 0 | T70: MYR | U70: Others | V70: Others | W70: TRIplc Medical Sdn Berhad | X70: Bond | Y70: MYR | Z70: Malaysia | AA70: N/A | AD70: 0 | AF70: 5142800 | AG70: BND | AI70: 0 | AJ70: 5142800 | AK70: NonFI | AM70: QUOTED SHARES | AN70: 110 | AO70: 5142800 | AP70: 0 | AQ70: AA1 | AR70: 602 | AT70: MYBPJ1700126
A71: 2022-02-28 | B71: ULN*220300118 | C71: BND | D71: 2022-02-28 | E71: 2022-03-31 | F71: OIF | G71: PK170006 | H71: 6000000 | I71: 5937000 | J71: 5990700 | K71: 5990700 | L71: 0 | M71: 0 | N71: 99.845 | O71: 7.585 | P71: 7.585 | Q71: 0 | R71: 0 | S71: 0 | T71: MYR | U71: Others | V71: Others | W71: Quill Retail Malls Sdn Berhad | X71: Bond | Y71: MYR | Z71: Malaysia | AA71: N/A | AD71: 0 | AF71: 5990700 | AG71: BND | AI71: 0 | AJ71: 5990700 | AK71: NonFI | AM71: QUOTED SHARES | AN71: 110 | AO71: 5990700 | AP71: 0 | AQ71: AA3 | AR71: 31 | AT71: MYBPK1700066
A72: 2022-02-28 | B72: ULN*220300108 | C72: BND | D72: 2022-02-28 | E72: 2024-09-13 | F72: OIF | G72: PO180006 | H72: 20050000 | I72: 20823913.99 | J72: 20776612 | K72: 20776612 | L72: 0 | M72: 0 | N72: 103.624 | O72: 3.377 | P72: 3.377 | Q72: 0 | R72: 0 | S72: 0 | T72: MYR | U72: Others | V72: Others | W72: CIMB Group Holdings Berhad | X72: Bond | Y72: MYR | Z72: Malaysia | AA72: CIMB | AD72: 0 | AF72: 20776612 | AG72: BND | AI72: 1 | AJ72: 20776612 | AK72: NonFI | AM72: QUOTED SHARES | AN72: 110 | AO72: 20776612 | AP72: 0 | AQ72: AA | AR72: 928 | AT72: MYBPO1800066
A73: 2022-02-28 | B73: ULN*220300093 | C73: BND | D73: 2022-02-28 | E73: 2026-07-03 | F73: OIF | G73: PP140040 | H73: 5000000 | I73: 5088500 | J73: 5285250 | K73: 5285250 | L73: 0 | M73: 0 | N73: 105.705 | O73: 3.666 | P73: 3.666 | Q73: 0 | R73: 0 | S73: 0 | T73: MYR | U73: Others | V73: Others | W73: Sepangar Bay Power Corporation Sdn Berhad | X73: Bond | Y73: MYR | Z73: Malaysia | AA73: N/A | AD73: 0 | AF73: 5285250 | AG73: BND | AI73: 0 | AJ73: 5285250 | AK73: NonFI | AM73: QUOTED SHARES | AN73: 110 | AO73: 5285250 | AP73: 0 | AQ73: AA1 | AR73: 1586 | AT73: MYBPP1400401
A74: 2022-02-28 | B74: ULN*220300067 | C74: BND | D74: 2022-02-28 | E74: 2025-03-24 | F74: OIF | G74: UH210111 | H74: 10000000 | I74: 10000000 | J74: 9980000 | K74: 9980000 | L74: 0 | M74: 0 | N74: 99.8 | O74: 3.919 | P74: 3.919 | Q74: 0 | R74: 0 | S74: 0 | T74: MYR | U74: Others | V74: Others | W74: GLACIER ASSETS BERHAD | X74: Bond | Y74: MYR | Z74: Malaysia | AA74: N/A | AD74: 0 | AF74: 9980000 | AG74: BND | AI74: 0 | AJ74: 9980000 | AK74: NonFI | AM74: QUOTED SHARES | AN74: 110 | AO74: 9980000 | AP74: 0 | AQ74: AAA | AR74: 1120 | AT74: MYBUH2101112
A75: 2022-02-28 | B75: ULN*220300101 | C75: BND | D75: 2022-02-28 | E75: 2024-10-18 | F75: OIF | G75: UH210181 | H75: 10000000 | I75: 10016000 | J75: 9957700 | K75: 9957700 | L75: 0 | M75: 0 | N75: 99.577 | O75: 3.669 | P75: 3.669 | Q75: 0 | R75: 0 | S75: 0 | T75: MYR | U75: Others | V75: Others | W75: Toyota Capital Malaysia Sdn Berhad | X75: Bond | Y75: MYR | Z75: Malaysia | AA75: N/A | AD75: 0 | AF75: 9957700 | AG75: BND | AI75: 0 | AJ75: 9957700 | AK75: NonFI | AM75: QUOTED SHARES | AN75: 110 | AO75: 9957700 | AP75: 0 | AQ75: AAA | AR75: 963 | AT75: MYBUH2101815
A76: 2022-02-28 | B76: ULN*220300114 | C76: BND | D76: 2022-02-28 | E76: 2024-07-12 | F76: OIF | G76: UI190238 | H76: 10000000 | I76: 10022000 | J76: 9785400 | K76: 9785400 | L76: 0 | M76: 0 | N76: 97.854 | O76: 5.83 | P76: 5.83 | Q76: 0 | R76: 0 | S76: 0 | T76: MYR | U76: Others | V76: Others | W76: Notable Vision Sdn Berhad | X76: Bond | Y76: MYR | Z76: Malaysia | AA76: N/A | AD76: 0 | AF76: 9785400 | AG76: BND | AI76: 0 | AJ76: 9785400 | AK76: NonFI | AM76: QUOTED SHARES | AN76: 110 | AO76: 9785400 | AP76: 0 | AQ76: AAA | AR76: 865 | AT76: MYBUI1902385
A77: 2022-02-28 | B77: ULN*220300102 | C77: BND | D77: 2022-02-28 | E77: 2025-01-30 | F77: OIF | G77: UI200031 | H77: 10000000 | I77: 10045000 | J77: 10005000 | K77: 10005000 | L77: 0 | M77: 0 | N77: 100.05 | O77: 3.781 | P77: 3.781 | Q77: 0 | R77: 0 | S77: 0 | T77: MYR | U77: Others | V77: Others | W77: Toyota Capital Malaysia Sdn Berhad | X77: Bond | Y77: MYR | Z77: Malaysia | AA77: N/A | AD77: 0 | AF77: 10005000 | AG77: BND | AI77: 0 | AJ77: 10005000 | AK77: NonFI | AM77: QUOTED SHARES | AN77: 110 | AO77: 10005000 | AP77: 0 | AQ77: AAA | AR77: 1067 | AT77: MYBUI2000312
A78: 2022-02-28 | B78: ULN*220300109 | C78: BND | D78: 2022-02-28 | E78: 2023-02-28 | F78: OIF | G78: UJ180024 | H78: 15000000 | I78: 14965500 | J78: 15228750 | K78: 15228750 | L78: 0 | M78: 0 | N78: 101.525 | O78: 3.412 | P78: 3.412 | Q78: 0 | R78: 0 | S78: 0 | T78: MYR | U78: Others | V78: Others | W78: Inverfin Sdn Berhad | X78: Bond | Y78: MYR | Z78: Malaysia | AA78: N/A | AD78: 0 | AF78: 15228750 | AG78: BND | AI78: 0 | AJ78: 15228750 | AK78: NonFI | AM78: QUOTED SHARES | AN78: 110 | AO78: 15228750 | AP78: 0 | AQ78: AAA | AR78: 365 | AT78: MYBUJ1800249
A79: 2022-02-28 | B79: ULN*220300092 | C79: BND | D79: 2022-02-28 | E79: 2026-02-27 | F79: OIF | G79: UK190029 | H79: 5000000 | I79: 5161500 | J79: 5161150 | K79: 5161150 | L79: 0 | M79: 0 | N79: 103.223 | O79: 4.608 | P79: 4.608 | Q79: 0 | R79: 0 | S79: 0 | T79: MYR | U79: Others | V79: Others | W79: Sabah Development Bank Berhad | X79: Bond | Y79: MYR | Z79: Malaysia | AA79: N/A | AD79: 0 | AF79: 5161150 | AG79: BND | AI79: 0 | AJ79: 5161150 | AK79: NonFI | AM79: QUOTED SHARES | AN79: 110 | AO79: 5161150 | AP79: 0 | AQ79: AA1 | AR79: 1460 | AT79: MYBUK1900294
